Workbook

Sheet ご使用に関して
A1: 本計算シート | B1: Ver.1.13
A2: ※本計算シートは、独立行政法人建築研究所（協力：国土交通省国土技術政策総合研究所）にて公開されている
A3: 「住宅・建築物の省エネルギー基準及び低炭素建築物の認定基準に関する技術情報（http://www.kenken.go.jp/becc/house.html）」
A4: の「設計一次エネルギー消費量算定方法」「3 暖冷房負荷と外皮性能 3-1全般 暖冷房負荷データ」を基に計算を行います。
A5: 「3 暖冷房負荷と外皮性能 3-1全般 暖冷房負荷データ」においては、1日の時刻を1時から24時と表記していますが、
A6: 本計算シートでは、1日を0時から23時と読み替えて作成しておりますので、ご注意ください。
A8: 使用許諾条件 | H8: 使用方法

Sheet 入力データ
B7: 入力項目
B8: 用途 | C8: 分類 | D8: 項目名 | E8: 記号 | F8: 単位 | G8: 入力値
B9: 基本情報 | D9: 地域区分 | E9: - | F9: - | G9: 6地域
D10: 床面積の合計 | E10: A_A | F10: m2 | G10: 120.08
D11: 主たる居室の床面積 | E11: A_MR | F11: m2 | G11: 29.81
D12: その他の居室の床面積 | E12: A_OR | F12: m2 | G12: 51.34
B13: 暖冷房 | C13: 外皮 | D13: 単位温度差当たりの外皮熱損失量 | E13: q | F13: W/K | G13: 279.8
D14: 単位日射強度当たりの冷房期の日射熱取得量 | E14: m_C | F14: W/(W/m2) | G14: 6.42
D15: 単位日射強度当たりの暖房期の日射熱取得量 | E15: m_H | F15: W/(W/m2) | G15: 12.37
D16: 通風の利用における相当換気回数（主たる居室） | E16: NV_MR | F16: 1/h | G16: 0 | H16: ※省エネ基準では0回/h、5回/h、20回/hが選択可能
D17: 通風の利用における相当換気回数（その他の居室） | E17: NV_OR | F17: 1/h | G17: 0 | H17: ※省エネ基準では0回/h、5回/h、20回/hが選択可能
D18: 蓄熱の利用 | E18: r_TS | F18: - | G18: 利用しない
C19: 暖房設備 | D19: 運転モード | E19: - | F19: - | G19: 居室間歇運転
D20: 床暖房採用の有無（主たる居室） | E20: - | F20: - | G20: 床暖房を採用しない
D21: 床暖房の敷設率（主たる居室） | E21: R_(l,i) | F21: - | G21: 0.75
D22: 床暖房採用の有無（その他の居室） | E22: - | F22: - | G22: 床暖房を採用しない
D23: 床暖房の敷設率（その他の居室） | E23: R_(l,i) | F23: - | G23: 0.75
C24: 冷房設備 | D24: 運転モード | E24: - | F24: - | G24: 居室間歇運転
B25: 換気 | C25: 熱交換換気 | D25: 熱交換型換気 | E25: - | F25: - | G25: 採用しない
D26: 全般換気設備の有効換気量率 | E26: - | F26: e | G26: 1
D27: 熱交換型換気設備の温度交換効率 | E27: - | F27: ηt | G27: 0.65
D28: 給気と排気の比率による温度交換効率の補正係数 | E28: - | F28: Cbal | G28: 0.9
D29: 排気過多時における住宅外皮経由の漏気による温度交換効率の補正係数 | E29: - | F29: Cleak | G29: 1
B30: 負荷ファイルフォルダパス | G30: J:\2014年度\(ProNo_1405)公開用エクセルファイル作成\3-1_HukaData_20131211 | H30: ←ダウンロードした負荷ファイルのフォルダパスを入力してください.なお、末尾に"\"はつけないでください.
B31: 暖冷房区画番号 | G31: 1

Sheet 計算結果
A1: ※計算過程シートのE,F,G列の数値が貼り付けられます。 | BC1: →テスト用 ※単位をMJ/hからkJ/hに変更
A2: ※プログラム計算が実行されると、表内のデータは全て削除されます。 プログラム実行中は他の作業を行わないでください。計算結果が正しく算出されない可能性があります。
BH3: 住宅全体 | CB3: 住宅全体
F4: =SUM(F9:F8768) -> 12860.80282 | G4: =SUM(G9:G8768) -> 0 | H4: 0 | I4: 0 | J4: 0 | K4: 0 | L4: 0 | M4: 0 | N4: 0 | O4: 0 | P4: 0 | Q4: 0 | R4: 0 | S4: 12860.80282 | Z4: =SUM(Z9:Z8768) -> 5158.570268 | AA4: =SUM(AA9:AA8768) -> 1640.392713 | AB4: 0 | AC4: 0 | AD4: 0 | AE4: 0 | AF4: 0 | AG4: 0 | AH4: 0 | AI4: 0 | AJ4: 0 | AK4: 0 | AL4: 0 | AM4: 0 | AN4: 0 | AO4: 0 | AP4: 0 | AQ4: 0 | AR4: 0 | AS4: 0 | AT4: 0 | AU4: 0 | AV4: 0 | AW4: 0 | AX4: 0 | AY4: 0 | AZ4: 5158.570268 | BA4: 1640.392713 | BG4: 年間合計 | BH4: =SUM(BI4:BU4) -> 12860802.82 | BI4: =SUM(BI9:BI8768) -> 12860802.82 | BJ4: =SUM(BJ9:BJ8768) -> 0 | BK4: 0 | BL4: 0 | BM4: 0 | BN4: 0 | BO4: 0 | BP4: 0 | BQ4: 0 | BR4: 0 | BS4: 0 | BT4: 0 | BU4: 0 | CA4: 年間合計 | CB4: =SUM(CC4:CO4) -> 6798962.981 | CC4: =SUM(CC9:CC8768) -> 5158570.268 | CD4: =SUM(CD9:CD8768) -> 1640392.713 | CE4: 0 | CF4: 0 | CG4: 0 | CH4: 0 | CI4: 0 | CJ4: 0 | CK4: 0 | CL4: 0 | CM4: 0 | CN4: 0 | CO4: 0 | CP4: 0 | CQ4: 0 | CR4: 0 | CS4: 0 | CT4: 0 | CU4: 0 | CV4: 0 | CW4: 0 | CX4: 0 | CY4: 0 | CZ4: 0 | DA4: 0 | DB4: 0
A5: ■標準住戸の暖房負荷結果 | U5: ■標準住戸の冷房負荷結果 | BD5: ■標準住戸の暖房負荷結果 | BX5: ■標準住戸の冷房負荷結果
D6: 外気 | F6: LD | G6: 台所 | H6: 和室 | I6: 主寝室 | J6: 子供室1 | K6: 子供室2 | L6: 浴室 | M6: 1F便所 | N6: 洗面所 | O6: ホール | P6: クローゼット | Q6: 2Fホール | R6: 2F便所 | S6: 住宅全体 | X6: 外気 | Z6: LD | AB6: 台所 | AD6: 和室 | AF6: 主寝室 | AH6: 子供室1 | AJ6: 子供室2 | AL6: 浴室 | AN6: 1F便所 | AP6: 洗面所 | AR6: ホール | AT6: クローゼット | AV6: 2Fホール | AX6: 2F便所 | AZ6: 住宅全体 | BG6: 外気 | BI6: LD | BJ6: 台所 | BK6: 和室 | BL6: 主寝室 | BM6: 子供室1 | BN6: 子供室2 | BO6: 浴室 | BP6: 1F便所 | BQ6: 洗面所 | BR6: ホール | BS6: クローゼット | BT6: 2Fホール | BU6: 2F便所 | CA6: 外気 | CC6: LD | CE6: 台所 | CG6: 和室 | CI6: 主寝室 | CK6: 子供室1 | CM6: 子供室2 | CO6: 浴室 | CQ6: 1F便所 | CS6: 洗面所 | CU6: ホール | CW6: クローゼット | CY6: 2Fホール | DA6: 2F便所
D7: 気温 | E7: 絶湿 | F7: 顕熱 | G7: 顕熱 | H7: 顕熱 | I7: 顕熱 | J7: 顕熱 | K7: 顕熱 | L7: 顕熱 | M7: 顕熱 | N7: 顕熱 | O7: 顕熱 | P7: 顕熱 | Q7: 顕熱 | R7: 顕熱 | S7: 顕熱 | X7: 気温 | Y7: 絶湿 | Z7: 顕熱 | AA7: 潜熱 | AB7: 顕熱 | AC7: 潜熱 | AD7: 顕熱 | AE7: 潜熱 | AF7: 顕熱 | AG7: 潜熱 | AH7: 顕熱 | AI7: 潜熱 | AJ7: 顕熱 | AK7: 潜熱 | AL7: 顕熱 | AM7: 潜熱 | AN7: 顕熱 | AO7: 潜熱 | AP7: 顕熱 | AQ7: 潜熱 | AR7: 顕熱 | AS7: 潜熱 | AT7: 顕熱 | AU7: 潜熱 | AV7: 顕熱 | AW7: 潜熱 | AX7: 顕熱 | AY7: 潜熱 | AZ7: 顕熱 | BA7: 潜熱 | BG7: 気温 | BH7: 絶湿 | BI7: 顕熱 | BJ7: 顕熱 | BK7: 顕熱 | BL7: 顕熱 | BM7: 顕熱 | BN7: 顕熱 | BO7: 顕熱 | BP7: 顕熱 | BQ7: 顕熱 | BR7: 顕熱 | BS7: 顕熱 | BT7: 顕熱 | BU7: 顕熱 | CA7: 気温 | CB7: 絶湿 | CC7: 顕熱 | CD7: 潜熱 | CE7: 顕熱 | CF7: 潜熱 | CG7: 顕熱 | CH7: 潜熱 | CI7: 顕熱 | CJ7: 潜熱 | CK7: 顕熱 | CL7: 潜熱 | CM7: 顕熱 | CN7: 潜熱 | CO7: 顕熱 | CP7: 潜熱 | CQ7: 顕熱 | CR7: 潜熱 | CS7: 顕熱 | CT7: 潜熱 | CU7: 顕熱 | CV7: 潜熱 | CW7: 顕熱 | CX7: 潜熱 | CY7: 顕熱 | CZ7: 潜熱 | DA7: 顕熱 | DB7: 潜熱
D8: [℃] | E8: [g/kg'] | F8: [MJ/h] | G8: [MJ/h] | H8: [MJ/h] | I8: [MJ/h] | J8: [MJ/h] | K8: [MJ/h] | L8: [MJ/h] | M8: [MJ/h] | N8: [MJ/h] | O8: [MJ/h] | P8: [MJ/h] | Q8: [MJ/h] | R8: [MJ/h] | S8: [MJ/h] | X8: [℃] | Y8: [g/kg'] | Z8: [MJ/h] | AA8: [MJ/h] | AB8: [MJ/h] | AC8: [MJ/h] | AD8: [MJ/h] | AE8: [MJ/h] | AF8: [MJ/h] | AG8: [MJ/h] | AH8: [MJ/h] | AI8: [MJ/h] | AJ8: [MJ/h] | AK8: [MJ/h] | AL8: [MJ/h] | AM8: [MJ/h] | AN8: [MJ/h] | AO8: [MJ/h] | AP8: [MJ/h] | AQ8: [MJ/h] | AR8: [MJ/h] | AS8: [MJ/h] | AT8: [MJ/h] | AU8: [MJ/h] | AV8: [MJ/h] | AW8: [MJ/h] | AX8: [MJ/h] | AY8: [MJ/h] | AZ8: [MJ/h] | BA8: [MJ/h] | BG8: [℃] | BH8: [g/kg'] | BI8: [kJ/h] | BJ8: [kJ/h] | BK8: [kJ/h] | BL8: [kJ/h] | BM8: [kJ/h] | BN8: [kJ/h] | BO8: [kJ/h] | BP8: [kJ/h] | BQ8: [kJ/h] | BR8: [kJ/h] | BS8: [kJ/h] | BT8: [kJ/h] | BU8: [kJ/h] | CA8: [℃] | CB8: [g/kg'] | CC8: [kJ/h] | CD8: [kJ/h] | CE8: [kJ/h] | CF8: [kJ/h] | CG8: [kJ/h] | CH8: [kJ/h] | CI8: [kJ/h] | CJ8: [kJ/h] | CK8: [kJ/h] | CL8: [kJ/h] | CM8: [kJ/h] | CN8: [kJ/h] | CO8: [kJ/h] | CP8: [kJ/h] | CQ8: [kJ/h] | CR8: [kJ/h] | CS8: [kJ/h] | CT8: [kJ/h] | CU8: [kJ/h] | CV8: [kJ/h] | CW8: [kJ/h] | CX8: [kJ/h] | CY8: [kJ/h] | CZ8: [kJ/h] | DA8: [kJ/h] | DB8: [kJ/h]
A9: 2014-01-01 | B9: 00:00:00 | C9: 休日 | D9: 2.6 | E9: 3.3 | F9: 0 | S9: =SUM(F9:R9) -> 0 | U9: 2014-01-01 | V9: 00:00:00 | W9: 休日 | X9: 2.6 | Y9: 3.3 | Z9: 0 | AA9: 0 | AZ9: =Z9+AB9+AD9+AF9+AH9+AJ9+AL9+AN9+AP9+AR9+AT9+AV9+AX9 -> 0 | BA9: =AA9+AC9+AE9+AG9+AI9+AK9+AM9+AO9+AQ9+AS9+AU9+AW9+AY9 -> 0 | BD9: 2014-01-01 | BE9: 00:00:00 | BF9: 休日 | BG9: =D9 -> 2.6 | BH9: =E9 -> 3.3 | BI9: =F9*1000 -> 0 | BJ9: =G9*1000 -> 0 | BK9: =H9*1000 -> 0 | BL9: =I9*1000 -> 0 | BM9: =J9*1000 -> 0 | BN9: =K9*1000 -> 0 | BO9: =L9*1000 -> 0 | BP9: =M9*1000 -> 0 | BQ9: =N9*1000 -> 0 | BR9: =O9*1000 -> 0 | BS9: =P9*1000 -> 0 | BT9: =Q9*1000 -> 0 | BU9: =R9*1000 -> 0 | BX9: 2014-01-01 | BY9: 00:00:00 | BZ9: 休日 | CA9: =X9 -> 2.6 | CB9: =Y9 -> 3.3 | CC9: =Z9*1000 -> 0 | CD9: =AA9*1000 -> 0 | CE9: =AB9*1000 -> 0 | CF9: =AC9*1000 -> 0 | CG9: =AD9*1000 -> 0 | CH9: =AE9*1000 -> 0 | CI9: =AF9*1000 -> 0 | CJ9: =AG9*1000 -> 0 | CK9: =AH9*1000 -> 0 | CL9: =AI9*1000 -> 0 | CM9: =AJ9*1000 -> 0 | CN9: =AK9*1000 -> 0 | CO9: =AL9*1000 -> 0 | CP9: =AM9*1000 -> 0 | CQ9: =AN9*1000 -> 0 | CR9: =AO9*1000 -> 0 | CS9: =AP9*1000 -> 0 | CT9: =AQ9*1000 -> 0 | CU9: =AR9*1000 -> 0 | CV9: =AS9*1000 -> 0 | CW9: =AT9*1000 -> 0 | CX9: =AU9*1000 -> 0 | CY9: =AV9*1000 -> 0 | CZ9: =AW9*1000 -> 0 | DA9: =AX9*1000 -> 0 | DB9: =AY9*1000 -> 0
A10: 2014-01-01 | B10: 01:00:00 | C10: 休日 | D10: 2.9 | E10: 3.2 | F10: 0 | S10: =SUM(F10:R10) -> 0 | U10: 2014-01-01 | V10: 01:00:00 | W10: 休日 | X10: 2.9 | Y10: 3.2 | Z10: 0 | AA10: 0 | AZ10: =Z10+AB10+AD10+AF10+AH10+AJ10+AL10+AN10+AP10+AR10+AT10+AV10+AX10 -> 0 | BA10: =AA10+AC10+AE10+AG10+AI10+AK10+AM10+AO10+AQ10+AS10+AU10+AW10+AY10 -> 0 | BD10: 2014-01-01 | BE10: 01:00:00 | BF10: 休日 | BG10: =D10 -> 2.9 | BH10: 3.2 | BI10: =F10*1000 -> 0 | BJ10: 0 | BK10: 0 | BL10: 0 | BM10: 0 | BN10: 0 | BO10: 0 | BP10: 0 | BQ10: 0 | BR10: 0 | BS10: 0 | BT10: 0 | BU10: 0 | BX10: 2014-01-01 | BY10: 01:00:00 | BZ10: 休日 | CA10: =X10 -> 2.9 | CB10: 3.2 | CC10: 0 | CD10: 0 | CE10: 0 | CF10: 0 | CG10: 0 | CH10: 0 | CI10: 0 | CJ10: 0 | CK10: 0 | CL10: 0 | CM10: 0 | CN10: 0 | CO10: 0 | CP10: 0 | CQ10: 0 | CR10: 0 | CS10: 0 | CT10: 0 | CU10: 0 | CV10: 0 | CW10: 0 | CX10: 0 | CY10: 0 | CZ10: 0 | DA10: 0 | DB10: 0
A11: 2014-01-01 | B11: 02:00:00 | C11: 休日 | D11: 2.8 | E11: 3.2 | F11: 0 | S11: 0 | U11: 2014-01-01 | V11: 02:00:00 | W11: 休日 | X11: 2.8 | Y11: 3.2 | Z11: 0 | AA11: 0 | AZ11: 0 | BA11: 0 | BD11: 2014-01-01 | BE11: 02:00:00 | BF11: 休日 | BG11: 2.8 | BH11: 3.2 | BI11: 0 | BJ11: 0 | BK11: 0 | BL11: 0 | BM11: 0 | BN11: 0 | BO11: 0 | BP11: 0 | BQ11: 0 | BR11: 0 | BS11: 0 | BT11: 0 | BU11: 0 | BX11: 2014-01-01 | BY11: 02:00:00 | BZ11: 休日 | CA11: 2.8 | CB11: 3.2 | CC11: 0 | CD11: 0 | CE11: 0 | CF11: 0 | CG11: 0 | CH11: 0 | CI11: 0 | CJ11: 0 | CK11: 0 | CL11: 0 | CM11: 0 | CN11: 0 | CO11: 0 | CP11: 0 | CQ11: 0 | CR11: 0 | CS11: 0 | CT11: 0 | CU11: 0 | CV11: 0 | CW11: 0 | CX11: 0 | CY11: 0 | CZ11: 0 | DA11: 0 | DB11: 0
A12: 2014-01-01 | B12: 03:00:00 | C12: 休日 | D12: 2.4 | E12: 3.3 | F12: 0 | S12: 0 | U12: 2014-01-01 | V12: 03:00:00 | W12: 休日 | X12: 2.4 | Y12: 3.3 | Z12: 0 | AA12: 0 | AZ12: 0 | BA12: 0 | BD12: 2014-01-01 | BE12: 03:00:00 | BF12: 休日 | BG12: 2.4 | BH12: 3.3 | BI12: 0 | BJ12: 0 | BK12: 0 | BL12: 0 | BM12: 0 | BN12: 0 | BO12: 0 | BP12: 0 | BQ12: 0 | BR12: 0 | BS12: 0 | BT12: 0 | BU12: 0 | BX12: 2014-01-01 | BY12: 03:00:00 | BZ12: 休日 | CA12: 2.4 | CB12: 3.3 | CC12: 0 | CD12: 0 | CE12: 0 | CF12: 0 | CG12: 0 | CH12: 0 | CI12: 0 | CJ12: 0 | CK12: 0 | CL12: 0 | CM12: 0 | CN12: 0 | CO12: 0 | CP12: 0 | CQ12: 0 | CR12: 0 | CS12: 0 | CT12: 0 | CU12: 0 | CV12: 0 | CW12: 0 | CX12: 0 | CY12: 0 | CZ12: 0 | DA12: 0 | DB12: 0
A13: 2014-01-01 | B13: 04:00:00 | C13: 休日 | D13: 2.4 | E13: 3.3 | F13: 0 | S13: 0 | U13: 2014-01-01 | V13: 04:00:00 | W13: 休日 | X13: 2.4 | Y13: 3.3 | Z13: 0 | AA13: 0 | AZ13: 0 | BA13: 0 | BD13: 2014-01-01 | BE13: 04:00:00 | BF13: 休日 | BG13: 2.4 | BH13: 3.3 | BI13: 0 | BJ13: 0 | BK13: 0 | BL13: 0 | BM13: 0 | BN13: 0 | BO13: 0 | BP13: 0 | BQ13: 0 | BR13: 0 | BS13: 0 | BT13: 0 | BU13: 0 | BX13: 2014-01-01 | BY13: 04:00:00 | BZ13: 休日 | CA13: 2.4 | CB13: 3.3 | CC13: 0 | CD13: 0 | CE13: 0 | CF13: 0 | CG13: 0 | CH13: 0 | CI13: 0 | CJ13: 0 | CK13: 0 | CL13: 0 | CM13: 0 | CN13: 0 | CO13: 0 | CP13: 0 | CQ13: 0 | CR13: 0 | CS13: 0 | CT13: 0 | CU13: 0 | CV13: 0 | CW13: 0 | CX13: 0 | CY13: 0 | CZ13: 0 | DA13: 0 | DB13: 0
A14: 2014-01-01 | B14: 05:00:00 | C14: 休日 | D14: 2.8 | E14: 3.3 | F14: 0 | S14: 0 | U14: 2014-01-01 | V14: 05:00:00 | W14: 休日 | X14: 2.8 | Y14: 3.3 | Z14: 0 | AA14: 0 | AZ14: 0 | BA14: 0 | BD14: 2014-01-01 | BE14: 05:00:00 | BF14: 休日 | BG14: 2.8 | BH14: 3.3 | BI14: 0 | BJ14: 0 | BK14: 0 | BL14: 0 | BM14: 0 | BN14: 0 | BO14: 0 | BP14: 0 | BQ14: 0 | BR14: 0 | BS14: 0 | BT14: 0 | BU14: 0 | BX14: 2014-01-01 | BY14: 05:00:00 | BZ14: 休日 | CA14: 2.8 | CB14: 3.3 | CC14: 0 | CD14: 0 | CE14: 0 | CF14: 0 | CG14: 0 | CH14: 0 | CI14: 0 | CJ14: 0 | CK14: 0 | CL14: 0 | CM14: 0 | CN14: 0 | CO14: 0 | CP14: 0 | CQ14: 0 | CR14: 0 | CS14: 0 | CT14: 0 | CU14: 0 | CV14: 0 | CW14: 0 | CX14: 0 | CY14: 0 | CZ14: 0 | DA14: 0 | DB14: 0
A15: 2014-01-01 | B15: 06:00:00 | C15: 休日 | D15: 2.3 | E15: 3.2 | F15: 0 | S15: 0 | U15: 2014-01-01 | V15: 06:00:00 | W15: 休日 | X15: 2.3 | Y15: 3.2 | Z15: 0 | AA15: 0 | AZ15: 0 | BA15: 0 | BD15: 2014-01-01 | BE15: 06:00:00 | BF15: 休日 | BG15: 2.3 | BH15: 3.2 | BI15: 0 | BJ15: 0 | BK15: 0 | BL15: 0 | BM15: 0 | BN15: 0 | BO15: 0 | BP15: 0 | BQ15: 0 | BR15: 0 | BS15: 0 | BT15: 0 | BU15: 0 | BX15: 2014-01-01 | BY15: 06:00:00 | BZ15: 休日 | CA15: 2.3 | CB15: 3.2 | CC15: 0 | CD15: 0 | CE15: 0 | CF15: 0 | CG15: 0 | CH15: 0 | CI15: 0 | CJ15: 0 | CK15: 0 | CL15: 0 | CM15: 0 | CN15: 0 | CO15: 0 | CP15: 0 | CQ15: 0 | CR15: 0 | CS15: 0 | CT15: 0 | CU15: 0 | CV15: 0 | CW15: 0 | CX15: 0 | CY15: 0 | CZ15: 0 | DA15: 0 | DB15: 0
A16: 2014-01-01 | B16: 07:00:00 | C16: 休日 | D16: 2.3 | E16: 3.3 | F16: 29.17185761 | S16: 29.17185761 | U16: 2014-01-01 | V16: 07:00:00 | W16: 休日 | X16: 2.3 | Y16: 3.3 | Z16: 0 | AA16: 0 | AZ16: 0 | BA16: 0 | BD16: 2014-01-01 | BE16: 07:00:00 | BF16: 休日 | BG16: 2.3 | BH16: 3.3 | BI16: 29171.85761 | BJ16: 0 | BK16: 0 | BL16: 0 | BM16: 0 | BN16: 0 | BO16: 0 | BP16: 0 | BQ16: 0 | BR16: 0 | BS16: 0 | BT16: 0 | BU16: 0 | BX16: 2014-01-01 | BY16: 07:00:00 | BZ16: 休日 | CA16: 2.3 | CB16: 3.3 | CC16: 0 | CD16: 0 | CE16: 0 | CF16: 0 | CG16: 0 | CH16: 0 | CI16: 0 | CJ16: 0 | CK16: 0 | CL16: 0 | CM16: 0 | CN16: 0 | CO16: 0 | CP16: 0 | CQ16: 0 | CR16: 0 | CS16: 0 | CT16: 0 | CU16: 0 | CV16: 0 | CW16: 0 | CX16: 0 | CY16: 0 | CZ16: 0 | DA16: 0 | DB16: 0
A17: 2014-01-01 | B17: 08:00:00 | C17: 休日 | D17: 3.7 | E17: 3.3 | F17: 6.416355275 | S17: 6.416355275 | U17: 2014-01-01 | V17: 08:00:00 | W17: 休日 | X17: 3.7 | Y17: 3.3 | Z17: 0 | AA17: 0 | AZ17: 0 | BA17: 0 | BD17: 2014-01-01 | BE17: 08:00:00 | BF17: 休日 | BG17: 3.7 | BH17: 3.3 | BI17: 6416.355275 | BJ17: 0 | BK17: 0 | BL17: 0 | BM17: 0 | BN17: 0 | BO17: 0 | BP17: 0 | BQ17: 0 | BR17: 0 | BS17: 0 | BT17: 0 | BU17: 0 | BX17: 2014-01-01 | BY17: 08:00:00 | BZ17: 休日 | CA17: 3.7 | CB17: 3.3 | CC17: 0 | CD17: 0 | CE17: 0 | CF17: 0 | CG17: 0 | CH17: 0 | CI17: 0 | CJ17: 0 | CK17: 0 | CL17: 0 | CM17: 0 | CN17: 0 | CO17: 0 | CP17: 0 | CQ17: 0 | CR17: 0 | CS17: 0 | CT17: 0 | CU17: 0 | CV17: 0 | CW17: 0 | CX17: 0 | CY17: 0 | CZ17: 0 | DA17: 0 | DB17: 0
A18: 2014-01-01 | B18: 09:00:00 | C18: 休日 | D18: 5.9 | E18: 3.3 | F18: 0.1489942815 | S18: 0.1489942815 | U18: 2014-01-01 | V18: 09:00:00 | W18: 休日 | X18: 5.9 | Y18: 3.3 | Z18: 0 | AA18: 0 | AZ18: 0 | BA18: 0 | BD18: 2014-01-01 | BE18: 09:00:00 | BF18: 休日 | BG18: 5.9 | BH18: 3.3 | BI18: 148.9942815 | BJ18: 0 | BK18: 0 | BL18: 0 | BM18: 0 | BN18: 0 | BO18: 0 | BP18: 0 | BQ18: 0 | BR18: 0 | BS18: 0 | BT18: 0 | BU18: 0 | BX18: 2014-01-01 | BY18: 09:00:00 | BZ18: 休日 | CA18: 5.9 | CB18: 3.3 | CC18: 0 | CD18: 0 | CE18: 0 | CF18: 0 | CG18: 0 | CH18: 0 | CI18: 0 | CJ18: 0 | CK18: 0 | CL18: 0 | CM18: 0 | CN18: 0 | CO18: 0 | CP18: 0 | CQ18: 0 | CR18: 0 | CS18: 0 | CT18: 0 | CU18: 0 | CV18: 0 | CW18: 0 | CX18: 0 | CY18: 0 | CZ18: 0 | DA18: 0 | DB18: 0
A19: 2014-01-01 | B19: 10:00:00 | C19: 休日 | D19: 7.7 | E19: 2.8 | F19: 0.08357042029 | S19: 0.08357042029 | U19: 2014-01-01 | V19: 10:00:00 | W19: 休日 | X19: 7.7 | Y19: 2.8 | Z19: 0 | AA19: 0 | AZ19: 0 | BA19: 0 | BD19: 2014-01-01 | BE19: 10:00:00 | BF19: 休日 | BG19: 7.7 | BH19: 2.8 | BI19: 83.57042029 | BJ19: 0 | BK19: 0 | BL19: 0 | BM19: 0 | BN19: 0 | BO19: 0 | BP19: 0 | BQ19: 0 | BR19: 0 | BS19: 0 | BT19: 0 | BU19: 0 | BX19: 2014-01-01 | BY19: 10:00:00 | BZ19: 休日 | CA19: 7.7 | CB19: 2.8 | CC19: 0 | CD19: 0 | CE19: 0 | CF19: 0 | CG19: 0 | CH19: 0 | CI19: 0 | CJ19: 0 | CK19: 0 | CL19: 0 | CM19: 0 | CN19: 0 | CO19: 0 | CP19: 0 | CQ19: 0 | CR19: 0 | CS19: 0 | CT19: 0 | CU19: 0 | CV19: 0 | CW19: 0 | CX19: 0 | CY19: 0 | CZ19: 0 | DA19: 0 | DB19: 0
A20: 2014-01-01 | B20: 11:00:00 | C20: 休日 | D20: 8.5 | E20: 3 | F20: 0.08651724873 | S20: 0.08651724873 | U20: 2014-01-01 | V20: 11:00:00 | W20: 休日 | X20: 8.5 | Y20: 3 | Z20: 0 | AA20: 0 | AZ20: 0 | BA20: 0 | BD20: 2014-01-01 | BE20: 11:00:00 | BF20: 休日 | BG20: 8.5 | BH20: 3 | BI20: 86.51724873 | BJ20: 0 | BK20: 0 | BL20: 0 | BM20: 0 | BN20: 0 | BO20: 0 | BP20: 0 | BQ20: 0 | BR20: 0 | BS20: 0 | BT20: 0 | BU20: 0 | BX20: 2014-01-01 | BY20: 11:00:00 | BZ20: 休日 | CA20: 8.5 | CB20: 3 | CC20: 0 | CD20: 0 | CE20: 0 | CF20: 0 | CG20: 0 | CH20: 0 | CI20: 0 | CJ20: 0 | CK20: 0 | CL20: 0 | CM20: 0 | CN20: 0 | CO20: 0 | CP20: 0 | CQ20: 0 | CR20: 0 | CS20: 0 | CT20: 0 | CU20: 0 | CV20: 0 | CW20: 0 | CX20: 0 | CY20: 0 | CZ20: 0 | DA20: 0 | DB20: 0
A21: 2014-01-01 | B21: 12:00:00 | C21: 休日 | D21: 9.3 | E21: 2.6 | F21: 0.0748704045 | S21: 0.0748704045 | U21: 2014-01-01 | V21: 12:00:00 | W21: 休日 | X21: 9.3 | Y21: 2.6 | Z21: 0 | AA21: 0 | AZ21: 0 | BA21: 0 | BD21: 2014-01-01 | BE21: 12:00:00 | BF21: 休日 | BG21: 9.3 | BH21: 2.6 | BI21: 74.8704045 | BJ21: 0 | BK21: 0 | BL21: 0 | BM21: 0 | BN21: 0 | BO21: 0 | BP21: 0 | BQ21: 0 | BR21: 0 | BS21: 0 | BT21: 0 | BU21: 0 | BX21: 2014-01-01 | BY21: 12:00:00 | BZ21: 休日 | CA21: 9.3 | CB21: 2.6 | CC21: 0 | CD21: 0 | CE21: 0 | CF21: 0 | CG21: 0 | CH21: 0 | CI21: 0 | CJ21: 0 | CK21: 0 | CL21: 0 | CM21: 0 | CN21: 0 | CO21: 0 | CP21: 0 | CQ21: 0 | CR21: 0 | CS21: 0 | CT21: 0 | CU21: 0 | CV21: 0 | CW21: 0 | CX21: 0 | CY21: 0 | CZ21: 0 | DA21: 0 | DB21: 0
A22: 2014-01-01 | B22: 13:00:00 | C22: 休日 | D22: 9.8 | E22: 2.6 | F22: 0 | S22: 0 | U22: 2014-01-01 | V22: 13:00:00 | W22: 休日 | X22: 9.8 | Y22: 2.6 | Z22: 0 | AA22: 0 | AZ22: 0 | BA22: 0 | BD22: 2014-01-01 | BE22: 13:00:00 | BF22: 休日 | BG22: 9.8 | BH22: 2.6 | BI22: 0 | BJ22: 0 | BK22: 0 | BL22: 0 | BM22: 0 | BN22: 0 | BO22: 0 | BP22: 0 | BQ22: 0 | BR22: 0 | BS22: 0 | BT22: 0 | BU22: 0 | BX22: 2014-01-01 | BY22: 13:00:00 | BZ22: 休日 | CA22: 9.8 | CB22: 2.6 | CC22: 0 | CD22: 0 | CE22: 0 | CF22: 0 | CG22: 0 | CH22: 0 | CI22: 0 | CJ22: 0 | CK22: 0 | CL22: 0 | CM22: 0 | CN22: 0 | CO22: 0 | CP22: 0 | CQ22: 0 | CR22: 0 | CS22: 0 | CT22: 0 | CU22: 0 | CV22: 0 | CW22: 0 | CX22: 0 | CY22: 0 | CZ22: 0 | DA22: 0 | DB22: 0
A23: 2014-01-01 | B23: 14:00:00 | C23: 休日 | D23: 9.6 | E23: 2.6 | F23: 0 | S23: 0 | U23: 2014-01-01 | V23: 14:00:00 | W23: 休日 | X23: 9.6 | Y23: 2.6 | Z23: 0 | AA23: 0 | AZ23: 0 | BA23: 0 | BD23: 2014-01-01 | BE23: 14:00:00 | BF23: 休日 | BG23: 9.6 | BH23: 2.6 | BI23: 0 | BJ23: 0 | BK23: 0 | BL23: 0 | BM23: 0 | BN23: 0 | BO23: 0 | BP23: 0 | BQ23: 0 | BR23: 0 | BS23: 0 | BT23: 0 | BU23: 0 | BX23: 2014-01-01 | BY23: 14:00:00 | BZ23: 休日 | CA23: 9.6 | CB23: 2.6 | CC23: 0 | CD23: 0 | CE23: 0 | CF23: 0 | CG23: 0 | CH23: 0 | CI23: 0 | CJ23: 0 | CK23: 0 | CL23: 0 | CM23: 0 | CN23: 0 | CO23: 0 | CP23: 0 | CQ23: 0 | CR23: 0 | CS23: 0 | CT23: 0 | CU23: 0 | CV23: 0 | CW23: 0 | CX23: 0 | CY23: 0 | CZ23: 0 | DA23: 0 | DB23: 0
A24: 2014-01-01 | B24: 15:00:00 | C24: 休日 | D24: 8.9 | E24: 3.3 | F24: 0.2628171845 | S24: 0.2628171845 | U24: 2014-01-01 | V24: 15:00:00 | W24: 休日 | X24: 8.9 | Y24: 3.3 | Z24: 0 | AA24: 0 | AZ24: 0 | BA24: 0 | BD24: 2014-01-01 | BE24: 15:00:00 | BF24: 休日 | BG24: 8.9 | BH24: 3.3 | BI24: 262.8171845 | BJ24: 0 | BK24: 0 | BL24: 0 | BM24: 0 | BN24: 0 | BO24: 0 | BP24: 0 | BQ24: 0 | BR24: 0 | BS24: 0 | BT24: 0 | BU24: 0 | BX24: 2014-01-01 | BY24: 15:00:00 | BZ24: 休日 | CA24: 8.9 | CB24: 3.3 | CC24: 0 | CD24: 0 | CE24: 0 | CF24: 0 | CG24: 0 | CH24: 0 | CI24: 0 | CJ24: 0 | CK24: 0 | CL24: 0 | CM24: 0 | CN24: 0 | CO24: 0 | CP24: 0 | CQ24: 0 | CR24: 0 | CS24: 0 | CT24: 0 | CU24: 0 | CV24: 0 | CW24: 0 | CX24: 0 | CY24: 0 | CZ24: 0 | DA24: 0 | DB24: 0
A25: 2014-01-01 | B25: 16:00:00 | C25: 休日 | D25: 7.9 | E25: 3.3 | F25: 3.846779336 | S25: 3.846779336 | U25: 2014-01-01 | V25: 16:00:00 | W25: 休日 | X25: 7.9 | Y25: 3.3 | Z25: 0 | AA25: 0 | AZ25: 0 | BA25: 0 | BD25: 2014-01-01 | BE25: 16:00:00 | BF25: 休日 | BG25: 7.9 | BH25: 3.3 | BI25: 3846.779336 | BJ25: 0 | BK25: 0 | BL25: 0 | BM25: 0 | BN25: 0 | BO25: 0 | BP25: 0 | BQ25: 0 | BR25: 0 | BS25: 0 | BT25: 0 | BU25: 0 | BX25: 2014-01-01 | BY25: 16:00:00 | BZ25: 休日 | CA25: 7.9 | CB25: 3.3 | CC25: 0 | CD25: 0 | CE25: 0 | CF25: 0 | CG25: 0 | CH25: 0 | CI25: 0 | CJ25: 0 | CK25: 0 | CL25: 0 | CM25: 0 | CN25: 0 | CO25: 0 | CP25: 0 | CQ25: 0 | CR25: 0 | CS25: 0 | CT25: 0 | CU25: 0 | CV25: 0 | CW25: 0 | CX25: 0 | CY25: 0 | CZ25: 0 | DA25: 0 | DB25: 0
A26: 2014-01-01 | B26: 17:00:00 | C26: 休日 | D26: 6.9 | E26: 3.5 | F26: 5.892268006 | S26: 5.892268006 | U26: 2014-01-01 | V26: 17:00:00 | W26: 休日 | X26: 6.9 | Y26: 3.5 | Z26: 0 | AA26: 0 | AZ26: 0 | BA26: 0 | BD26: 2014-01-01 | BE26: 17:00:00 | BF26: 休日 | BG26: 6.9 | BH26: 3.5 | BI26: 5892.268006 | BJ26: 0 | BK26: 0 | BL26: 0 | BM26: 0 | BN26: 0 | BO26: 0 | BP26: 0 | BQ26: 0 | BR26: 0 | BS26: 0 | BT26: 0 | BU26: 0 | BX26: 2014-01-01 | BY26: 17:00:00 | BZ26: 休日 | CA26: 6.9 | CB26: 3.5 | CC26: 0 | CD26: 0 | CE26: 0 | CF26: 0 | CG26: 0 | CH26: 0 | CI26: 0 | CJ26: 0 | CK26: 0 | CL26: 0 | CM26: 0 | CN26: 0 | CO26: 0 | CP26: 0 | CQ26: 0 | CR26: 0 | CS26: 0 | CT26: 0 | CU26: 0 | CV26: 0 | CW26: 0 | CX26: 0 | CY26: 0 | CZ26: 0 | DA26: 0 | DB26: 0
A27: 2014-01-01 | B27: 18:00:00 | C27: 休日 | D27: 6.4 | E27: 3.6 | F27: 4.241367012 | S27: 4.241367012 | U27: 2014-01-01 | V27: 18:00:00 | W27: 休日 | X27: 6.4 | Y27: 3.6 | Z27: 0 | AA27: 0 | AZ27: 0 | BA27: 0 | BD27: 2014-01-01 | BE27: 18:00:00 | BF27: 休日 | BG27: 6.4 | BH27: 3.6 | BI27: 4241.367012 | BJ27: 0 | BK27: 0 | BL27: 0 | BM27: 0 | BN27: 0 | BO27: 0 | BP27: 0 | BQ27: 0 | BR27: 0 | BS27: 0 | BT27: 0 | BU27: 0 | BX27: 2014-01-01 | BY27: 18:00:00 | BZ27: 休日 | CA27: 6.4 | CB27: 3.6 | CC27: 0 | CD27: 0 | CE27: 0 | CF27: 0 | CG27: 0 | CH27: 0 | CI27: 0 | CJ27: 0 | CK27: 0 | CL27: 0 | CM27: 0 | CN27: 0 | CO27: 0 | CP27: 0 | CQ27: 0 | CR27: 0 | CS27: 0 | CT27: 0 | CU27: 0 | CV27: 0 | CW27: 0 | CX27: 0 | CY27: 0 | CZ27: 0 | DA27: 0 | DB27: 0
A28: 2014-01-01 | B28: 19:00:00 | C28: 休日 | D28: 6.4 | E28: 3.7 | F28: 5.059368397 | S28: 5.059368397 | U28: 2014-01-01 | V28: 19:00:00 | W28: 休日 | X28: 6.4 | Y28: 3.7 | Z28: 0 | AA28: 0 | AZ28: 0 | BA28: 0 | BD28: 2014-01-01 | BE28: 19:00:00 | BF28: 休日 | BG28: 6.4 | BH28: 3.7 | BI28: 5059.368397 | BJ28: 0 | BK28: 0 | BL28: 0 | BM28: 0 | BN28: 0 | BO28: 0 | BP28: 0 | BQ28: 0 | BR28: 0 | BS28: 0 | BT28: 0 | BU28: 0 | BX28: 2014-01-01 | BY28: 19:00:00 | BZ28: 休日 | CA28: 6.4 | CB28: 3.7 | CC28: 0 | CD28: 0 | CE28: 0 | CF28: 0 | CG28: 0 | CH28: 0 | CI28: 0 | CJ28: 0 | CK28: 0 | CL28: 0 | CM28: 0 | CN28: 0 | CO28: 0 | CP28: 0 | CQ28: 0 | CR28: 0 | CS28: 0 | CT28: 0 | CU28: 0 | CV28: 0 | CW28: 0 | CX28: 0 | CY28: 0 | CZ28: 0 | DA28: 0 | DB28: 0
A29: 2014-01-01 | B29: 20:00:00 | C29: 休日 | D29: 6.4 | E29: 3.7 | F29: 5.374842192 | S29: 5.374842192 | U29: 2014-01-01 | V29: 20:00:00 | W29: 休日 | X29: 6.4 | Y29: 3.7 | Z29: 0 | AA29: 0 | AZ29: 0 | BA29: 0 | BD29: 2014-01-01 | BE29: 20:00:00 | BF29: 休日 | BG29: 6.4 | BH29: 3.7 | BI29: 5374.842192 | BJ29: 0 | BK29: 0 | BL29: 0 | BM29: 0 | BN29: 0 | BO29: 0 | BP29: 0 | BQ29: 0 | BR29: 0 | BS29: 0 | BT29: 0 | BU29: 0 | BX29: 2014-01-01 | BY29: 20:00:00 | BZ29: 休日 | CA29: 6.4 | CB29: 3.7 | CC29: 0 | CD29: 0 | CE29: 0 | CF29: 0 | CG29: 0 | CH29: 0 | CI29: 0 | CJ29: 0 | CK29: 0 | CL29: 0 | CM29: 0 | CN29: 0 | CO29: 0 | CP29: 0 | CQ29: 0 | CR29: 0 | CS29: 0 | CT29: 0 | CU29: 0 | CV29: 0 | CW29: 0 | CX29: 0 | CY29: 0 | CZ29: 0 | DA29: 0 | DB29: 0
A30: 2014-01-01 | B30: 21:00:00 | C30: 休日 | D30: 6.2 | E30: 3.6 | F30: 6.005598255 | S30: 6.005598255 | U30: 2014-01-01 | V30: 21:00:00 | W30: 休日 | X30: 6.2 | Y30: 3.6 | Z30: 0 | AA30: 0 | AZ30: 0 | BA30: 0 | BD30: 2014-01-01 | BE30: 21:00:00 | BF30: 休日 | BG30: 6.2 | BH30: 3.6 | BI30: 6005.598255 | BJ30: 0 | BK30: 0 | BL30: 0 | BM30: 0 | BN30: 0 | BO30: 0 | BP30: 0 | BQ30: 0 | BR30: 0 | BS30: 0 | BT30: 0 | BU30: 0 | BX30: 2014-01-01 | BY30: 21:00:00 | BZ30: 休日 | CA30: 6.2 | CB30: 3.6 | CC30: 0 | CD30: 0 | CE30: 0 | CF30: 0 | CG30: 0 | CH30: 0 | CI30: 0 | CJ30: 0 | CK30: 0 | CL30: 0 | CM30: 0 | CN30: 0 | CO30: 0 | CP30: 0 | CQ30: 0 | CR30: 0 | CS30: 0 | CT30: 0 | CU30: 0 | CV30: 0 | CW30: 0 | CX30: 0 | CY30: 0 | CZ30: 0 | DA30: 0 | DB30: 0
A31: 2014-01-01 | B31: 22:00:00 | C31: 休日 | D31: 6.1 | E31: 3.5 | F31: 0 | S31: 0 | U31: 2014-01-01 | V31: 22:00:00 | W31: 休日 | X31: 6.1 | Y31: 3.5 | Z31: 0 | AA31: 0 | AZ31: 0 | BA31: 0 | BD31: 2014-01-01 | BE31: 22:00:00 | BF31: 休日 | BG31: 6.1 | BH31: 3.5 | BI31: 0 | BJ31: 0 | BK31: 0 | BL31: 0 | BM31: 0 | BN31: 0 | BO31: 0 | BP31: 0 | BQ31: 0 | BR31: 0 | BS31: 0 | BT31: 0 | BU31: 0 | BX31: 2014-01-01 | BY31: 22:00:00 | BZ31: 休日 | CA31: 6.1 | CB31: 3.5 | CC31: 0 | CD31: 0 | CE31: 0 | CF31: 0 | CG31: 0 | CH31: 0 | CI31: 0 | CJ31: 0 | CK31: 0 | CL31: 0 | CM31: 0 | CN31: 0 | CO31: 0 | CP31: 0 | CQ31: 0 | CR31: 0 | CS31: 0 | CT31: 0 | CU31: 0 | CV31: 0 | CW31: 0 | CX31: 0 | CY31: 0 | CZ31: 0 | DA31: 0 | DB31: 0
A32: 2014-01-01 | B32: 23:00:00 | C32: 休日 | D32: 5.9 | E32: 3.5 | F32: 0 | S32: 0 | U32: 2014-01-01 | V32: 23:00:00 | W32: 休日 | X32: 5.9 | Y32: 3.5 | Z32: 0 | AA32: 0 | AZ32: 0 | BA32: 0 | BD32: 2014-01-01 | BE32: 23:00:00 | BF32: 休日 | BG32: 5.9 | BH32: 3.5 | BI32: 0 | BJ32: 0 | BK32: 0 | BL32: 0 | BM32: 0 | BN32: 0 | BO32: 0 | BP32: 0 | BQ32: 0 | BR32: 0 | BS32: 0 | BT32: 0 | BU32: 0 | BX32: 2014-01-01 | BY32: 23:00:00 | BZ32: 休日 | CA32: 5.9 | CB32: 3.5 | CC32: 0 | CD32: 0 | CE32: 0 | CF32: 0 | CG32: 0 | CH32: 0 | CI32: 0 | CJ32: 0 | CK32: 0 | CL32: 0 | CM32: 0 | CN32: 0 | CO32: 0 | CP32: 0 | CQ32: 0 | CR32: 0 | CS32: 0 | CT32: 0 | CU32: 0 | CV32: 0 | CW32: 0 | CX32: 0 | CY32: 0 | CZ32: 0 | DA32: 0 | DB32: 0
A33: 2014-01-02 | B33: 00:00:00 | C33: 平日 | D33: 5.4 | E33: 3.5 | F33: 0 | S33: 0 | U33: 2014-01-02 | V33: 00:00:00 | W33: 平日 | X33: 5.4 | Y33: 3.5 | Z33: 0 | AA33: 0 | AZ33: 0 | BA33: 0 | BD33: 2014-01-02 | BE33: 00:00:00 | BF33: 平日 | BG33: 5.4 | BH33: 3.5 | BI33: 0 | BJ33: 0 | BK33: 0 | BL33: 0 | BM33: 0 | BN33: 0 | BO33: 0 | BP33: 0 | BQ33: 0 | BR33: 0 | BS33: 0 | BT33: 0 | BU33: 0 | BX33: 2014-01-02 | BY33: 00:00:00 | BZ33: 平日 | CA33: 5.4 | CB33: 3.5 | CC33: 0 | CD33: 0 | CE33: 0 | CF33: 0 | CG33: 0 | CH33: 0 | CI33: 0 | CJ33: 0 | CK33: 0 | CL33: 0 | CM33: 0 | CN33: 0 | CO33: 0 | CP33: 0 | CQ33: 0 | CR33: 0 | CS33: 0 | CT33: 0 | CU33: 0 | CV33: 0 | CW33: 0 | CX33: 0 | CY33: 0 | CZ33: 0 | DA33: 0 | DB33: 0
A34: 2014-01-02 | B34: 01:00:00 | C34: 平日 | D34: 5.6 | E34: 3.5 | F34: 0 | S34: 0 | U34: 2014-01-02 | V34: 01:00:00 | W34: 平日 | X34: 5.6 | Y34: 3.5 | Z34: 0 | AA34: 0 | AZ34: 0 | BA34: 0 | BD34: 2014-01-02 | BE34: 01:00:00 | BF34: 平日 | BG34: 5.6 | BH34: 3.5 | BI34: 0 | BJ34: 0 | BK34: 0 | BL34: 0 | BM34: 0 | BN34: 0 | BO34: 0 | BP34: 0 | BQ34: 0 | BR34: 0 | BS34: 0 | BT34: 0 | BU34: 0 | BX34: 2014-01-02 | BY34: 01:00:00 | BZ34: 平日 | CA34: 5.6 | CB34: 3.5 | CC34: 0 | CD34: 0 | CE34: 0 | CF34: 0 | CG34: 0 | CH34: 0 | CI34: 0 | CJ34: 0 | CK34: 0 | CL34: 0 | CM34: 0 | CN34: 0 | CO34: 0 | CP34: 0 | CQ34: 0 | CR34: 0 | CS34: 0 | CT34: 0 | CU34: 0 | CV34: 0 | CW34: 0 | CX34: 0 | CY34: 0 | CZ34: 0 | DA34: 0 | DB34: 0
A35: 2014-01-02 | B35: 02:00:00 | C35: 平日 | D35: 5.5 | E35: 3.4 | F35: 0 | S35: 0 | U35: 2014-01-02 | V35: 02:00:00 | W35: 平日 | X35: 5.5 | Y35: 3.4 | Z35: 0 | AA35: 0 | AZ35: 0 | BA35: 0 | BD35: 2014-01-02 | BE35: 02:00:00 | BF35: 平日 | BG35: 5.5 | BH35: 3.4 | BI35: 0 | BJ35: 0 | BK35: 0 | BL35: 0 | BM35: 0 | BN35: 0 | BO35: 0 | BP35: 0 | BQ35: 0 | BR35: 0 | BS35: 0 | BT35: 0 | BU35: 0 | BX35: 2014-01-02 | BY35: 02:00:00 | BZ35: 平日 | CA35: 5.5 | CB35: 3.4 | CC35: 0 | CD35: 0 | CE35: 0 | CF35: 0 | CG35: 0 | CH35: 0 | CI35: 0 | CJ35: 0 | CK35: 0 | CL35: 0 | CM35: 0 | CN35: 0 | CO35: 0 | CP35: 0 | CQ35: 0 | CR35: 0 | CS35: 0 | CT35: 0 | CU35: 0 | CV35: 0 | CW35: 0 | CX35: 0 | CY35: 0 | CZ35: 0 | DA35: 0 | DB35: 0
A36: 2014-01-02 | B36: 03:00:00 | C36: 平日 | D36: 5.5 | E36: 3.5 | F36: 0 | S36: 0 | U36: 2014-01-02 | V36: 03:00:00 | W36: 平日 | X36: 5.5 | Y36: 3.5 | Z36: 0 | AA36: 0 | AZ36: 0 | BA36: 0 | BD36: 2014-01-02 | BE36: 03:00:00 | BF36: 平日 | BG36: 5.5 | BH36: 3.5 | BI36: 0 | BJ36: 0 | BK36: 0 | BL36: 0 | BM36: 0 | BN36: 0 | BO36: 0 | BP36: 0 | BQ36: 0 | BR36: 0 | BS36: 0 | BT36: 0 | BU36: 0 | BX36: 2014-01-02 | BY36: 03:00:00 | BZ36: 平日 | CA36: 5.5 | CB36: 3.5 | CC36: 0 | CD36: 0 | CE36: 0 | CF36: 0 | CG36: 0 | CH36: 0 | CI36: 0 | CJ36: 0 | CK36: 0 | CL36: 0 | CM36: 0 | CN36: 0 | CO36: 0 | CP36: 0 | CQ36: 0 | CR36: 0 | CS36: 0 | CT36: 0 | CU36: 0 | CV36: 0 | CW36: 0 | CX36: 0 | CY36: 0 | CZ36: 0 | DA36: 0 | DB36: 0
A37: 2014-01-02 | B37: 04:00:00 | C37: 平日 | D37: 5.4 | E37: 3.4 | F37: 0 | S37: 0 | U37: 2014-01-02 | V37: 04:00:00 | W37: 平日 | X37: 5.4 | Y37: 3.4 | Z37: 0 | AA37: 0 | AZ37: 0 | BA37: 0 | BD37: 2014-01-02 | BE37: 04:00:00 | BF37: 平日 | BG37: 5.4 | BH37: 3.4 | BI37: 0 | BJ37: 0 | BK37: 0 | BL37: 0 | BM37: 0 | BN37: 0 | BO37: 0 | BP37: 0 | BQ37: 0 | BR37: 0 | BS37: 0 | BT37: 0 | BU37: 0 | BX37: 2014-01-02 | BY37: 04:00:00 | BZ37: 平日 | CA37: 5.4 | CB37: 3.4 | CC37: 0 | CD37: 0 | CE37: 0 | CF37: 0 | CG37: 0 | CH37: 0 | CI37: 0 | CJ37: 0 | CK37: 0 | CL37: 0 | CM37: 0 | CN37: 0 | CO37: 0 | CP37: 0 | CQ37: 0 | CR37: 0 | CS37: 0 | CT37: 0 | CU37: 0 | CV37: 0 | CW37: 0 | CX37: 0 | CY37: 0 | CZ37: 0 | DA37: 0 | DB37: 0
A38: 2014-01-02 | B38: 05:00:00 | C38: 平日 | D38: 5.7 | E38: 3.2 | F38: 25.28381469 | S38: 25.28381469 | U38: 2014-01-02 | V38: 05:00:00 | W38: 平日 | X38: 5.7 | Y38: 3.2 | Z38: 0 | AA38: 0 | AZ38: 0 | BA38: 0 | BD38: 2014-01-02 | BE38: 05:00:00 | BF38: 平日 | BG38: 5.7 | BH38: 3.2 | BI38: 25283.81469 | BJ38: 0 | BK38: 0 | BL38: 0 | BM38: 0 | BN38: 0 | BO38: 0 | BP38: 0 | BQ38: 0 | BR38: 0 | BS38: 0 | BT38: 0 | BU38: 0 | BX38: 2014-01-02 | BY38: 05:00:00 | BZ38: 平日 | CA38: 5.7 | CB38: 3.2 | CC38: 0 | CD38: 0 | CE38: 0 | CF38: 0 | CG38: 0 | CH38: 0 | CI38: 0 | CJ38: 0 | CK38: 0 | CL38: 0 | CM38: 0 | CN38: 0 | CO38: 0 | CP38: 0 | CQ38: 0 | CR38: 0 | CS38: 0 | CT38: 0 | CU38: 0 | CV38: 0 | CW38: 0 | CX38: 0 | CY38: 0 | CZ38: 0 | DA38: 0 | DB38: 0
A39: 2014-01-02 | B39: 06:00:00 | C39: 平日 | D39: 5.1 | E39: 3.3 | F39: 10.3976544 | S39: 10.3976544 | U39: 2014-01-02 | V39: 06:00:00 | W39: 平日 | X39: 5.1 | Y39: 3.3 | Z39: 0 | AA39: 0 | AZ39: 0 | BA39: 0 | BD39: 2014-01-02 | BE39: 06:00:00 | BF39: 平日 | BG39: 5.1 | BH39: 3.3 | BI39: 10397.6544 | BJ39: 0 | BK39: 0 | BL39: 0 | BM39: 0 | BN39: 0 | BO39: 0 | BP39: 0 | BQ39: 0 | BR39: 0 | BS39: 0 | BT39: 0 | BU39: 0 | BX39: 2014-01-02 | BY39: 06:00:00 | BZ39: 平日 | CA39: 5.1 | CB39: 3.3 | CC39: 0 | CD39: 0 | CE39: 0 | CF39: 0 | CG39: 0 | CH39: 0 | CI39: 0 | CJ39: 0 | CK39: 0 | CL39: 0 | CM39: 0 | CN39: 0 | CO39: 0 | CP39: 0 | CQ39: 0 | CR39: 0 | CS39: 0 | CT39: 0 | CU39: 0 | CV39: 0 | CW39: 0 | CX39: 0 | CY39: 0 | CZ39: 0 | DA39: 0 | DB39: 0
A40: 2014-01-02 | B40: 07:00:00 | C40: 平日 | D40: 4.5 | E40: 3.6 | F40: 7.277525393 | S40: 7.277525393 | U40: 2014-01-02 | V40: 07:00:00 | W40: 平日 | X40: 4.5 | Y40: 3.6 | Z40: 0 | AA40: 0 | AZ40: 0 | BA40: 0 | BD40: 2014-01-02 | BE40: 07:00:00 | BF40: 平日 | BG40: 4.5 | BH40: 3.6 | BI40: 7277.525393 | BJ40: 0 | BK40: 0 | BL40: 0 | BM40: 0 | BN40: 0 | BO40: 0 | BP40: 0 | BQ40: 0 | BR40: 0 | BS40: 0 | BT40: 0 | BU40: 0 | BX40: 2014-01-02 | BY40: 07:00:00 | BZ40: 平日 | CA40: 4.5 | CB40: 3.6 | CC40: 0 | CD40: 0 | CE40: 0 | CF40: 0 | CG40: 0 | CH40: 0 | CI40: 0 | CJ40: 0 | CK40: 0 | CL40: 0 | CM40: 0 | CN40: 0 | CO40: 0 | CP40: 0 | CQ40: 0 | CR40: 0 | CS40: 0 | CT40: 0 | CU40: 0 | CV40: 0 | CW40: 0 | CX40: 0 | CY40: 0 | CZ40: 0 | DA40: 0 | DB40: 0
A41: 2014-01-02 | B41: 08:00:00 | C41: 平日 | D41: 5.3 | E41: 3.5 | F41: 6.907487506 | S41: 6.907487506 | U41: 2014-01-02 | V41: 08:00:00 | W41: 平日 | X41: 5.3 | Y41: 3.5 | Z41: 0 | AA41: 0 | AZ41: 0 | BA41: 0 | BD41: 2014-01-02 | BE41: 08:00:00 | BF41: 平日 | BG41: 5.3 | BH41: 3.5 | BI41: 6907.487506 | BJ41: 0 | BK41: 0 | BL41: 0 | BM41: 0 | BN41: 0 | BO41: 0 | BP41: 0 | BQ41: 0 | BR41: 0 | BS41: 0 | BT41: 0 | BU41: 0 | BX41: 2014-01-02 | BY41: 08:00:00 | BZ41: 平日 | CA41: 5.3 | CB41: 3.5 | CC41: 0 | CD41: 0 | CE41: 0 | CF41: 0 | CG41: 0 | CH41: 0 | CI41: 0 | CJ41: 0 | CK41: 0 | CL41: 0 | CM41: 0 | CN41: 0 | CO41: 0 | CP41: 0 | CQ41: 0 | CR41: 0 | CS41: 0 | CT41: 0 | CU41: 0 | CV41: 0 | CW41: 0 | CX41: 0 | CY41: 0 | CZ41: 0 | DA41: 0 | DB41: 0
A42: 2014-01-02 | B42: 09:00:00 | C42: 平日 | D42: 6.7 | E42: 3.4 | F42: 0 | S42: 0 | U42: 2014-01-02 | V42: 09:00:00 | W42: 平日 | X42: 6.7 | Y42: 3.4 | Z42: 0 | AA42: 0 | AZ42: 0 | BA42: 0 | BD42: 2014-01-02 | BE42: 09:00:00 | BF42: 平日 | BG42: 6.7 | BH42: 3.4 | BI42: 0 | BJ42: 0 | BK42: 0 | BL42: 0 | BM42: 0 | BN42: 0 | BO42: 0 | BP42: 0 | BQ42: 0 | BR42: 0 | BS42: 0 | BT42: 0 | BU42: 0 | BX42: 2014-01-02 | BY42: 09:00:00 | BZ42: 平日 | CA42: 6.7 | CB42: 3.4 | CC42: 0 | CD42: 0 | CE42: 0 | CF42: 0 | CG42: 0 | CH42: 0 | CI42: 0 | CJ42: 0 | CK42: 0 | CL42: 0 | CM42: 0 | CN42: 0 | CO42: 0 | CP42: 0 | CQ42: 0 | CR42: 0 | CS42: 0 | CT42: 0 | CU42: 0 | CV42: 0 | CW42: 0 | CX42: 0 | CY42: 0 | CZ42: 0 | DA42: 0 | DB42: 0
A43: 2014-01-02 | B43: 10:00:00 | C43: 平日 | D43: 6.7 | E43: 3 | F43: 0 | S43: 0 | U43: 2014-01-02 | V43: 10:00:00 | W43: 平日 | X43: 6.7 | Y43: 3 | Z43: 0 | AA43: 0 | AZ43: 0 | BA43: 0 | BD43: 2014-01-02 | BE43: 10:00:00 | BF43: 平日 | BG43: 6.7 | BH43: 3 | BI43: 0 | BJ43: 0 | BK43: 0 | BL43: 0 | BM43: 0 | BN43: 0 | BO43: 0 | BP43: 0 | BQ43: 0 | BR43: 0 | BS43: 0 | BT43: 0 | BU43: 0 | BX43: 2014-01-02 | BY43: 10:00:00 | BZ43: 平日 | CA43: 6.7 | CB43: 3 | CC43: 0 | CD43: 0 | CE43: 0 | CF43: 0 | CG43: 0 | CH43: 0 | CI43: 0 | CJ43: 0 | CK43: 0 | CL43: 0 | CM43: 0 | CN43: 0 | CO43: 0 | CP43: 0 | CQ43: 0 | CR43: 0 | CS43: 0 | CT43: 0 | CU43: 0 | CV43: 0 | CW43: 0 | CX43: 0 | CY43: 0 | CZ43: 0 | DA43: 0 | DB43: 0
A44: 2014-01-02 | B44: 11:00:00 | C44: 平日 | D44: 7 | E44: 2.9 | F44: 13.10263917 | S44: 13.10263917 | U44: 2014-01-02 | V44: 11:00:00 | W44: 平日 | X44: 7 | Y44: 2.9 | Z44: 0 | AA44: 0 | AZ44: 0 | BA44: 0 | BD44: 2014-01-02 | BE44: 11:00:00 | BF44: 平日 | BG44: 7 | BH44: 2.9 | BI44: 13102.63917 | BJ44: 0 | BK44: 0 | BL44: 0 | BM44: 0 | BN44: 0 | BO44: 0 | BP44: 0 | BQ44: 0 | BR44: 0 | BS44: 0 | BT44: 0 | BU44: 0 | BX44: 2014-01-02 | BY44: 11:00:00 | BZ44: 平日 | CA44: 7 | CB44: 2.9 | CC44: 0 | CD44: 0 | CE44: 0 | CF44: 0 | CG44: 0 | CH44: 0 | CI44: 0 | CJ44: 0 | CK44: 0 | CL44: 0 | CM44: 0 | CN44: 0 | CO44: 0 | CP44: 0 | CQ44: 0 | CR44: 0 | CS44: 0 | CT44: 0 | CU44: 0 | CV44: 0 | CW44: 0 | CX44: 0 | CY44: 0 | CZ44: 0 | DA44: 0 | DB44: 0
A45: 2014-01-02 | B45: 12:00:00 | C45: 平日 | D45: 7.2 | E45: 2.8 | F45: 6.141317895 | S45: 6.141317895 | U45: 2014-01-02 | V45: 12:00:00 | W45: 平日 | X45: 7.2 | Y45: 2.8 | Z45: 0 | AA45: 0 | AZ45: 0 | BA45: 0 | BD45: 2014-01-02 | BE45: 12:00:00 | BF45: 平日 | BG45: 7.2 | BH45: 2.8 | BI45: 6141.317895 | BJ45: 0 | BK45: 0 | BL45: 0 | BM45: 0 | BN45: 0 | BO45: 0 | BP45: 0 | BQ45: 0 | BR45: 0 | BS45: 0 | BT45: 0 | BU45: 0 | BX45: 2014-01-02 | BY45: 12:00:00 | BZ45: 平日 | CA45: 7.2 | CB45: 2.8 | CC45: 0 | CD45: 0 | CE45: 0 | CF45: 0 | CG45: 0 | CH45: 0 | CI45: 0 | CJ45: 0 | CK45: 0 | CL45: 0 | CM45: 0 | CN45: 0 | CO45: 0 | CP45: 0 | CQ45: 0 | CR45: 0 | CS45: 0 | CT45: 0 | CU45: 0 | CV45: 0 | CW45: 0 | CX45: 0 | CY45: 0 | CZ45: 0 | DA45: 0 | DB45: 0
A46: 2014-01-02 | B46: 13:00:00 | C46: 平日 | D46: 7.5 | E46: 2.7 | F46: 0 | S46: 0 | U46: 2014-01-02 | V46: 13:00:00 | W46: 平日 | X46: 7.5 | Y46: 2.7 | Z46: 0 | AA46: 0 | AZ46: 0 | BA46: 0 | BD46: 2014-01-02 | BE46: 13:00:00 | BF46: 平日 | BG46: 7.5 | BH46: 2.7 | BI46: 0 | BJ46: 0 | BK46: 0 | BL46: 0 | BM46: 0 | BN46: 0 | BO46: 0 | BP46: 0 | BQ46: 0 | BR46: 0 | BS46: 0 | BT46: 0 | BU46: 0 | BX46: 2014-01-02 | BY46: 13:00:00 | BZ46: 平日 | CA46: 7.5 | CB46: 2.7 | CC46: 0 | CD46: 0 | CE46: 0 | CF46: 0 | CG46: 0 | CH46: 0 | CI46: 0 | CJ46: 0 | CK46: 0 | CL46: 0 | CM46: 0 | CN46: 0 | CO46: 0 | CP46: 0 | CQ46: 0 | CR46: 0 | CS46: 0 | CT46: 0 | CU46: 0 | CV46: 0 | CW46: 0 | CX46: 0 | CY46: 0 | CZ46: 0 | DA46: 0 | DB46: 0
A47: 2014-01-02 | B47: 14:00:00 | C47: 平日 | D47: 7.5 | E47: 2.8 | F47: 0 | S47: 0 | U47: 2014-01-02 | V47: 14:00:00 | W47: 平日 | X47: 7.5 | Y47: 2.8 | Z47: 0 | AA47: 0 | AZ47: 0 | BA47: 0 | BD47: 2014-01-02 | BE47: 14:00:00 | BF47: 平日 | BG47: 7.5 | BH47: 2.8 | BI47: 0 | BJ47: 0 | BK47: 0 | BL47: 0 | BM47: 0 | BN47: 0 | BO47: 0 | BP47: 0 | BQ47: 0 | BR47: 0 | BS47: 0 | BT47: 0 | BU47: 0 | BX47: 2014-01-02 | BY47: 14:00:00 | BZ47: 平日 | CA47: 7.5 | CB47: 2.8 | CC47: 0 | CD47: 0 | CE47: 0 | CF47: 0 | CG47: 0 | CH47: 0 | CI47: 0 | CJ47: 0 | CK47: 0 | CL47: 0 | CM47: 0 | CN47: 0 | CO47: 0 | CP47: 0 | CQ47: 0 | CR47: 0 | CS47: 0 | CT47: 0 | CU47: 0 | CV47: 0 | CW47: 0 | CX47: 0 | CY47: 0 | CZ47: 0 | DA47: 0 | DB47: 0
A48: 2014-01-02 | B48: 15:00:00 | C48: 平日 | D48: 7.6 | E48: 2.8 | F48: 7.124326538 | S48: 7.124326538 | U48: 2014-01-02 | V48: 15:00:00 | W48: 平日 | X48: 7.6 | Y48: 2.8 | Z48: 0 | AA48: 0 | AZ48: 0 | BA48: 0 | BD48: 2014-01-02 | BE48: 15:00:00 | BF48: 平日 | BG48: 7.6 | BH48: 2.8 | BI48: 7124.326538 | BJ48: 0 | BK48: 0 | BL48: 0 | BM48: 0 | BN48: 0 | BO48: 0 | BP48: 0 | BQ48: 0 | BR48: 0 | BS48: 0 | BT48: 0 | BU48: 0 | BX48: 2014-01-02 | BY48: 15:00:00 | BZ48: 平日 | CA48: 7.6 | CB48: 2.8 | CC48: 0 | CD48: 0 | CE48: 0 | CF48: 0 | CG48: 0 | CH48: 0 | CI48: 0 | CJ48: 0 | CK48: 0 | CL48: 0 | CM48: 0 | CN48: 0 | CO48: 0 | CP48: 0 | CQ48: 0 | CR48: 0 | CS48: 0 | CT48: 0 | CU48: 0 | CV48: 0 | CW48: 0 | CX48: 0 | CY48: 0 | CZ48: 0 | DA48: 0 | DB48: 0
A49: 2014-01-02 | B49: 16:00:00 | C49: 平日 | D49: 7.4 | E49: 2.8 | F49: 5.699248423 | S49: 5.699248423 | U49: 2014-01-02 | V49: 16:00:00 | W49: 平日 | X49: 7.4 | Y49: 2.8 | Z49: 0 | AA49: 0 | AZ49: 0 | BA49: 0 | BD49: 2014-01-02 | BE49: 16:00:00 | BF49: 平日 | BG49: 7.4 | BH49: 2.8 | BI49: 5699.248423 | BJ49: 0 | BK49: 0 | BL49: 0 | BM49: 0 | BN49: 0 | BO49: 0 | BP49: 0 | BQ49: 0 | BR49: 0 | BS49: 0 | BT49: 0 | BU49: 0 | BX49: 2014-01-02 | BY49: 16:00:00 | BZ49: 平日 | CA49: 7.4 | CB49: 2.8 | CC49: 0 | CD49: 0 | CE49: 0 | CF49: 0 | CG49: 0 | CH49: 0 | CI49: 0 | CJ49: 0 | CK49: 0 | CL49: 0 | CM49: 0 | CN49: 0 | CO49: 0 | CP49: 0 | CQ49: 0 | CR49: 0 | CS49: 0 | CT49: 0 | CU49: 0 | CV49: 0 | CW49: 0 | CX49: 0 | CY49: 0 | CZ49: 0 | DA49: 0 | DB49: 0
A50: 2014-01-02 | B50: 17:00:00 | C50: 平日 | D50: 6.7 | E50: 2.9 | F50: 8.360557194 | S50: 8.360557194 | U50: 2014-01-02 | V50: 17:00:00 | W50: 平日 | X50: 6.7 | Y50: 2.9 | Z50: 0 | AA50: 0 | AZ50: 0 | BA50: 0 | BD50: 2014-01-02 | BE50: 17:00:00 | BF50: 平日 | BG50: 6.7 | BH50: 2.9 | BI50: 8360.557194 | BJ50: 0 | BK50: 0 | BL50: 0 | BM50: 0 | BN50: 0 | BO50: 0 | BP50: 0 | BQ50: 0 | BR50: 0 | BS50: 0 | BT50: 0 | BU50: 0 | BX50: 2014-01-02 | BY50: 17:00:00 | BZ50: 平日 | CA50: 6.7 | CB50: 2.9 | CC50: 0 | CD50: 0 | CE50: 0 | CF50: 0 | CG50: 0 | CH50: 0 | CI50: 0 | CJ50: 0 | CK50: 0 | CL50: 0 | CM50: 0 | CN50: 0 | CO50: 0 | CP50: 0 | CQ50: 0 | CR50: 0 | CS50: 0 | CT50: 0 | CU50: 0 | CV50: 0 | CW50: 0 | CX50: 0 | CY50: 0 | CZ50: 0 | DA50: 0 | DB50: 0
A51: 2014-01-02 | B51: 18:00:00 | C51: 平日 | D51: 6 | E51: 2.9 | F51: 8.847393719 | S51: 8.847393719 | U51: 2014-01-02 | V51: 18:00:00 | W51: 平日 | X51: 6 | Y51: 2.9 | Z51: 0 | AA51: 0 | AZ51: 0 | BA51: 0 | BD51: 2014-01-02 | BE51: 18:00:00 | BF51: 平日 | BG51: 6 | BH51: 2.9 | BI51: 8847.393719 | BJ51: 0 | BK51: 0 | BL51: 0 | BM51: 0 | BN51: 0 | BO51: 0 | BP51: 0 | BQ51: 0 | BR51: 0 | BS51: 0 | BT51: 0 | BU51: 0 | BX51: 2014-01-02 | BY51: 18:00:00 | BZ51: 平日 | CA51: 6 | CB51: 2.9 | CC51: 0 | CD51: 0 | CE51: 0 | CF51: 0 | CG51: 0 | CH51: 0 | CI51: 0 | CJ51: 0 | CK51: 0 | CL51: 0 | CM51: 0 | CN51: 0 | CO51: 0 | CP51: 0 | CQ51: 0 | CR51: 0 | CS51: 0 | CT51: 0 | CU51: 0 | CV51: 0 | CW51: 0 | CX51: 0 | CY51: 0 | CZ51: 0 | DA51: 0 | DB51: 0
A52: 2014-01-02 | B52: 19:00:00 | C52: 平日 | D52: 4.7 | E52: 3.1 | F52: 6.463358978 | S52: 6.463358978 | U52: 2014-01-02 | V52: 19:00:00 | W52: 平日 | X52: 4.7 | Y52: 3.1 | Z52: 0 | AA52: 0 | AZ52: 0 | BA52: 0 | BD52: 2014-01-02 | BE52: 19:00:00 | BF52: 平日 | BG52: 4.7 | BH52: 3.1 | BI52: 6463.358978 | BJ52: 0 | BK52: 0 | BL52: 0 | BM52: 0 | BN52: 0 | BO52: 0 | BP52: 0 | BQ52: 0 | BR52: 0 | BS52: 0 | BT52: 0 | BU52: 0 | BX52: 2014-01-02 | BY52: 19:00:00 | BZ52: 平日 | CA52: 4.7 | CB52: 3.1 | CC52: 0 | CD52: 0 | CE52: 0 | CF52: 0 | CG52: 0 | CH52: 0 | CI52: 0 | CJ52: 0 | CK52: 0 | CL52: 0 | CM52: 0 | CN52: 0 | CO52: 0 | CP52: 0 | CQ52: 0 | CR52: 0 | CS52: 0 | CT52: 0 | CU52: 0 | CV52: 0 | CW52: 0 | CX52: 0 | CY52: 0 | CZ52: 0 | DA52: 0 | DB52: 0
A53: 2014-01-02 | B53: 20:00:00 | C53: 平日 | D53: 3.6 | E53: 3.1 | F53: 7.363496753 | S53: 7.363496753 | U53: 2014-01-02 | V53: 20:00:00 | W53: 平日 | X53: 3.6 | Y53: 3.1 | Z53: 0 | AA53: 0 | AZ53: 0 | BA53: 0 | BD53: 2014-01-02 | BE53: 20:00:00 | BF53: 平日 | BG53: 3.6 | BH53: 3.1 | BI53: 7363.496753 | BJ53: 0 | BK53: 0 | BL53: 0 | BM53: 0 | BN53: 0 | BO53: 0 | BP53: 0 | BQ53: 0 | BR53: 0 | BS53: 0 | BT53: 0 | BU53: 0 | BX53: 2014-01-02 | BY53: 20:00:00 | BZ53: 平日 | CA53: 3.6 | CB53: 3.1 | CC53: 0 | CD53: 0 | CE53: 0 | CF53: 0 | CG53: 0 | CH53: 0 | CI53: 0 | CJ53: 0 | CK53: 0 | CL53: 0 | CM53: 0 | CN53: 0 | CO53: 0 | CP53: 0 | CQ53: 0 | CR53: 0 | CS53: 0 | CT53: 0 | CU53: 0 | CV53: 0 | CW53: 0 | CX53: 0 | CY53: 0 | CZ53: 0 | DA53: 0 | DB53: 0
A54: 2014-01-02 | B54: 21:00:00 | C54: 平日 | D54: 2.9 | E54: 3.1 | F54: 8.039335968 | S54: 8.039335968 | U54: 2014-01-02 | V54: 21:00:00 | W54: 平日 | X54: 2.9 | Y54: 3.1 | Z54: 0 | AA54: 0 | AZ54: 0 | BA54: 0 | BD54: 2014-01-02 | BE54: 21:00:00 | BF54: 平日 | BG54: 2.9 | BH54: 3.1 | BI54: 8039.335968 | BJ54: 0 | BK54: 0 | BL54: 0 | BM54: 0 | BN54: 0 | BO54: 0 | BP54: 0 | BQ54: 0 | BR54: 0 | BS54: 0 | BT54: 0 | BU54: 0 | BX54: 2014-01-02 | BY54: 21:00:00 | BZ54: 平日 | CA54: 2.9 | CB54: 3.1 | CC54: 0 | CD54: 0 | CE54: 0 | CF54: 0 | CG54: 0 | CH54: 0 | CI54: 0 | CJ54: 0 | CK54: 0 | CL54: 0 | CM54: 0 | CN54: 0 | CO54: 0 | CP54: 0 | CQ54: 0 | CR54: 0 | CS54: 0 | CT54: 0 | CU54: 0 | CV54: 0 | CW54: 0 | CX54: 0 | CY54: 0 | CZ54: 0 | DA54: 0 | DB54: 0
A55: 2014-01-02 | B55: 22:00:00 | C55: 平日 | D55: 2.1 | E55: 3.2 | F55: 8.646700423 | S55: 8.646700423 | U55: 2014-01-02 | V55: 22:00:00 | W55: 平日 | X55: 2.1 | Y55: 3.2 | Z55: 0 | AA55: 0 | AZ55: 0 | BA55: 0 | BD55: 2014-01-02 | BE55: 22:00:00 | BF55: 平日 | BG55: 2.1 | BH55: 3.2 | BI55: 8646.700423 | BJ55: 0 | BK55: 0 | BL55: 0 | BM55: 0 | BN55: 0 | BO55: 0 | BP55: 0 | BQ55: 0 | BR55: 0 | BS55: 0 | BT55: 0 | BU55: 0 | BX55: 2014-01-02 | BY55: 22:00:00 | BZ55: 平日 | CA55: 2.1 | CB55: 3.2 | CC55: 0 | CD55: 0 | CE55: 0 | CF55: 0 | CG55: 0 | CH55: 0 | CI55: 0 | CJ55: 0 | CK55: 0 | CL55: 0 | CM55: 0 | CN55: 0 | CO55: 0 | CP55: 0 | CQ55: 0 | CR55: 0 | CS55: 0 | CT55: 0 | CU55: 0 | CV55: 0 | CW55: 0 | CX55: 0 | CY55: 0 | CZ55: 0 | DA55: 0 | DB55: 0
A56: 2014-01-02 | B56: 23:00:00 | C56: 平日 | D56: 1.6 | E56: 3.1 | F56: 0 | S56: 0 | U56: 2014-01-02 | V56: 23:00:00 | W56: 平日 | X56: 1.6 | Y56: 3.1 | Z56: 0 | AA56: 0 | AZ56: 0 | BA56: 0 | BD56: 2014-01-02 | BE56: 23:00:00 | BF56: 平日 | BG56: 1.6 | BH56: 3.1 | BI56: 0 | BJ56: 0 | BK56: 0 | BL56: 0 | BM56: 0 | BN56: 0 | BO56: 0 | BP56: 0 | BQ56: 0 | BR56: 0 | BS56: 0 | BT56: 0 | BU56: 0 | BX56: 2014-01-02 | BY56: 23:00:00 | BZ56: 平日 | CA56: 1.6 | CB56: 3.1 | CC56: 0 | CD56: 0 | CE56: 0 | CF56: 0 | CG56: 0 | CH56: 0 | CI56: 0 | CJ56: 0 | CK56: 0 | CL56: 0 | CM56: 0 | CN56: 0 | CO56: 0 | CP56: 0 | CQ56: 0 | CR56: 0 | CS56: 0 | CT56: 0 | CU56: 0 | CV56: 0 | CW56: 0 | CX56: 0 | CY56: 0 | CZ56: 0 | DA56: 0 | DB56: 0
A57: 2014-01-03 | B57: 00:00:00 | C57: 平日 | D57: 1.3 | E57: 3.1 | F57: 0 | S57: 0 | U57: 2014-01-03 | V57: 00:00:00 | W57: 平日 | X57: 1.3 | Y57: 3.1 | Z57: 0 | AA57: 0 | AZ57: 0 | BA57: 0 | BD57: 2014-01-03 | BE57: 00:00:00 | BF57: 平日 | BG57: 1.3 | BH57: 3.1 | BI57: 0 | BJ57: 0 | BK57: 0 | BL57: 0 | BM57: 0 | BN57: 0 | BO57: 0 | BP57: 0 | BQ57: 0 | BR57: 0 | BS57: 0 | BT57: 0 | BU57: 0 | BX57: 2014-01-03 | BY57: 00:00:00 | BZ57: 平日 | CA57: 1.3 | CB57: 3.1 | CC57: 0 | CD57: 0 | CE57: 0 | CF57: 0 | CG57: 0 | CH57: 0 | CI57: 0 | CJ57: 0 | CK57: 0 | CL57: 0 | CM57: 0 | CN57: 0 | CO57: 0 | CP57: 0 | CQ57: 0 | CR57: 0 | CS57: 0 | CT57: 0 | CU57: 0 | CV57: 0 | CW57: 0 | CX57: 0 | CY57: 0 | CZ57: 0 | DA57: 0 | DB57: 0
A58: 2014-01-03 | B58: 01:00:00 | C58: 平日 | D58: 0.6 | E58: 3.1 | F58: 0 | S58: 0 | U58: 2014-01-03 | V58: 01:00:00 | W58: 平日 | X58: 0.6 | Y58: 3.1 | Z58: 0 | AA58: 0 | AZ58: 0 | BA58: 0 | BD58: 2014-01-03 | BE58: 01:00:00 | BF58: 平日 | BG58: 0.6 | BH58: 3.1 | BI58: 0 | BJ58: 0 | BK58: 0 | BL58: 0 | BM58: 0 | BN58: 0 | BO58: 0 | BP58: 0 | BQ58: 0 | BR58: 0 | BS58: 0 | BT58: 0 | BU58: 0 | BX58: 2014-01-03 | BY58: 01:00:00 | BZ58: 平日 | CA58: 0.6 | CB58: 3.1 | CC58: 0 | CD58: 0 | CE58: 0 | CF58: 0 | CG58: 0 | CH58: 0 | CI58: 0 | CJ58: 0 | CK58: 0 | CL58: 0 | CM58: 0 | CN58: 0 | CO58: 0 | CP58: 0 | CQ58: 0 | CR58: 0 | CS58: 0 | CT58: 0 | CU58: 0 | CV58: 0 | CW58: 0 | CX58: 0 | CY58: 0 | CZ58: 0 | DA58: 0 | DB58: 0
A59: 2014-01-03 | B59: 02:00:00 | C59: 平日 | D59: 0.6 | E59: 3 | F59: 0 | S59: 0 | U59: 2014-01-03 | V59: 02:00:00 | W59: 平日 | X59: 0.6 | Y59: 3 | Z59: 0 | AA59: 0 | AZ59: 0 | BA59: 0 | BD59: 2014-01-03 | BE59: 02:00:00 | BF59: 平日 | BG59: 0.6 | BH59: 3 | BI59: 0 | BJ59: 0 | BK59: 0 | BL59: 0 | BM59: 0 | BN59: 0 | BO59: 0 | BP59: 0 | BQ59: 0 | BR59: 0 | BS59: 0 | BT59: 0 | BU59: 0 | BX59: 2014-01-03 | BY59: 02:00:00 | BZ59: 平日 | CA59: 0.6 | CB59: 3 | CC59: 0 | CD59: 0 | CE59: 0 | CF59: 0 | CG59: 0 | CH59: 0 | CI59: 0 | CJ59: 0 | CK59: 0 | CL59: 0 | CM59: 0 | CN59: 0 | CO59: 0 | CP59: 0 | CQ59: 0 | CR59: 0 | CS59: 0 | CT59: 0 | CU59: 0 | CV59: 0 | CW59: 0 | CX59: 0 | CY59: 0 | CZ59: 0 | DA59: 0 | DB59: 0
A60: 2014-01-03 | B60: 03:00:00 | C60: 平日 | D60: 0.7 | E60: 3.1 | F60: 0 | S60: 0 | U60: 2014-01-03 | V60: 03:00:00 | W60: 平日 | X60: 0.7 | Y60: 3.1 | Z60: 0 | AA60: 0 | AZ60: 0 | BA60: 0 | BD60: 2014-01-03 | BE60: 03:00:00 | BF60: 平日 | BG60: 0.7 | BH60: 3.1 | BI60: 0 | BJ60: 0 | BK60: 0 | BL60: 0 | BM60: 0 | BN60: 0 | BO60: 0 | BP60: 0 | BQ60: 0 | BR60: 0 | BS60: 0 | BT60: 0 | BU60: 0 | BX60: 2014-01-03 | BY60: 03:00:00 | BZ60: 平日 | CA60: 0.7 | CB60: 3.1 | CC60: 0 | CD60: 0 | CE60: 0 | CF60: 0 | CG60: 0 | CH60: 0 | CI60: 0 | CJ60: 0 | CK60: 0 | CL60: 0 | CM60: 0 | CN60: 0 | CO60: 0 | CP60: 0 | CQ60: 0 | CR60: 0 | CS60: 0 | CT60: 0 | CU60: 0 | CV60: 0 | CW60: 0 | CX60: 0 | CY60: 0 | CZ60: 0 | DA60: 0 | DB60: 0
A61: 2014-01-03 | B61: 04:00:00 | C61: 平日 | D61: 0.7 | E61: 3.1 | F61: 0 | S61: 0 | U61: 2014-01-03 | V61: 04:00:00 | W61: 平日 | X61: 0.7 | Y61: 3.1 | Z61: 0 | AA61: 0 | AZ61: 0 | BA61: 0 | BD61: 2014-01-03 | BE61: 04:00:00 | BF61: 平日 | BG61: 0.7 | BH61: 3.1 | BI61: 0 | BJ61: 0 | BK61: 0 | BL61: 0 | BM61: 0 | BN61: 0 | BO61: 0 | BP61: 0 | BQ61: 0 | BR61: 0 | BS61: 0 | BT61: 0 | BU61: 0 | BX61: 2014-01-03 | BY61: 04:00:00 | BZ61: 平日 | CA61: 0.7 | CB61: 3.1 | CC61: 0 | CD61: 0 | CE61: 0 | CF61: 0 | CG61: 0 | CH61: 0 | CI61: 0 | CJ61: 0 | CK61: 0 | CL61: 0 | CM61: 0 | CN61: 0 | CO61: 0 | CP61: 0 | CQ61: 0 | CR61: 0 | CS61: 0 | CT61: 0 | CU61: 0 | CV61: 0 | CW61: 0 | CX61: 0 | CY61: 0 | CZ61: 0 | DA61: 0 | DB61: 0
A62: 2014-01-03 | B62: 05:00:00 | C62: 平日 | D62: 1.1 | E62: 3.1 | F62: 31.53674599 | S62: 31.53674599 | U62: 2014-01-03 | V62: 05:00:00 | W62: 平日 | X62: 1.1 | Y62: 3.1 | Z62: 0 | AA62: 0 | AZ62: 0 | BA62: 0 | BD62: 2014-01-03 | BE62: 05:00:00 | BF62: 平日 | BG62: 1.1 | BH62: 3.1 | BI62: 31536.74599 | BJ62: 0 | BK62: 0 | BL62: 0 | BM62: 0 | BN62: 0 | BO62: 0 | BP62: 0 | BQ62: 0 | BR62: 0 | BS62: 0 | BT62: 0 | BU62: 0 | BX62: 2014-01-03 | BY62: 05:00:00 | BZ62: 平日 | CA62: 1.1 | CB62: 3.1 | CC62: 0 | CD62: 0 | CE62: 0 | CF62: 0 | CG62: 0 | CH62: 0 | CI62: 0 | CJ62: 0 | CK62: 0 | CL62: 0 | CM62: 0 | CN62: 0 | CO62: 0 | CP62: 0 | CQ62: 0 | CR62: 0 | CS62: 0 | CT62: 0 | CU62: 0 | CV62: 0 | CW62: 0 | CX62: 0 | CY62: 0 | CZ62: 0 | DA62: 0 | DB62: 0
A63: 2014-01-03 | B63: 06:00:00 | C63: 平日 | D63: 1.4 | E63: 3.1 | F63: 13.12893782 | S63: 13.12893782 | U63: 2014-01-03 | V63: 06:00:00 | W63: 平日 | X63: 1.4 | Y63: 3.1 | Z63: 0 | AA63: 0 | AZ63: 0 | BA63: 0 | BD63: 2014-01-03 | BE63: 06:00:00 | BF63: 平日 | BG63: 1.4 | BH63: 3.1 | BI63: 13128.93782 | BJ63: 0 | BK63: 0 | BL63: 0 | BM63: 0 | BN63: 0 | BO63: 0 | BP63: 0 | BQ63: 0 | BR63: 0 | BS63: 0 | BT63: 0 | BU63: 0 | BX63: 2014-01-03 | BY63: 06:00:00 | BZ63: 平日 | CA63: 1.4 | CB63: 3.1 | CC63: 0 | CD63: 0 | CE63: 0 | CF63: 0 | CG63: 0 | CH63: 0 | CI63: 0 | CJ63: 0 | CK63: 0 | CL63: 0 | CM63: 0 | CN63: 0 | CO63: 0 | CP63: 0 | CQ63: 0 | CR63: 0 | CS63: 0 | CT63: 0 | CU63: 0 | CV63: 0 | CW63: 0 | CX63: 0 | CY63: 0 | CZ63: 0 | DA63: 0 | DB63: 0
A64: 2014-01-03 | B64: 07:00:00 | C64: 平日 | D64: 1.6 | E64: 3.1 | F64: 11.51261973 | S64: 11.51261973 | U64: 2014-01-03 | V64: 07:00:00 | W64: 平日 | X64: 1.6 | Y64: 3.1 | Z64: 0 | AA64: 0 | AZ64: 0 | BA64: 0 | BD64: 2014-01-03 | BE64: 07:00:00 | BF64: 平日 | BG64: 1.6 | BH64: 3.1 | BI64: 11512.61973 | BJ64: 0 | BK64: 0 | BL64: 0 | BM64: 0 | BN64: 0 | BO64: 0 | BP64: 0 | BQ64: 0 | BR64: 0 | BS64: 0 | BT64: 0 | BU64: 0 | BX64: 2014-01-03 | BY64: 07:00:00 | BZ64: 平日 | CA64: 1.6 | CB64: 3.1 | CC64: 0 | CD64: 0 | CE64: 0 | CF64: 0 | CG64: 0 | CH64: 0 | CI64: 0 | CJ64: 0 | CK64: 0 | CL64: 0 | CM64: 0 | CN64: 0 | CO64: 0 | CP64: 0 | CQ64: 0 | CR64: 0 | CS64: 0 | CT64: 0 | CU64: 0 | CV64: 0 | CW64: 0 | CX64: 0 | CY64: 0 | CZ64: 0 | DA64: 0 | DB64: 0
A65: 2014-01-03 | B65: 08:00:00 | C65: 平日 | D65: 2.6 | E65: 3.2 | F65: 10.12938893 | S65: 10.12938893 | U65: 2014-01-03 | V65: 08:00:00 | W65: 平日 | X65: 2.6 | Y65: 3.2 | Z65: 0 | AA65: 0 | AZ65: 0 | BA65: 0 | BD65: 2014-01-03 | BE65: 08:00:00 | BF65: 平日 | BG65: 2.6 | BH65: 3.2 | BI65: 10129.38893 | BJ65: 0 | BK65: 0 | BL65: 0 | BM65: 0 | BN65: 0 | BO65: 0 | BP65: 0 | BQ65: 0 | BR65: 0 | BS65: 0 | BT65: 0 | BU65: 0 | BX65: 2014-01-03 | BY65: 08:00:00 | BZ65: 平日 | CA65: 2.6 | CB65: 3.2 | CC65: 0 | CD65: 0 | CE65: 0 | CF65: 0 | CG65: 0 | CH65: 0 | CI65: 0 | CJ65: 0 | CK65: 0 | CL65: 0 | CM65: 0 | CN65: 0 | CO65: 0 | CP65: 0 | CQ65: 0 | CR65: 0 | CS65: 0 | CT65: 0 | CU65: 0 | CV65: 0 | CW65: 0 | CX65: 0 | CY65: 0 | CZ65: 0 | DA65: 0 | DB65: 0
A66: 2014-01-03 | B66: 09:00:00 | C66: 平日 | D66: 3.4 | E66: 3.3 | F66: 0 | S66: 0 | U66: 2014-01-03 | V66: 09:00:00 | W66: 平日 | X66: 3.4 | Y66: 3.3 | Z66: 0 | AA66: 0 | AZ66: 0 | BA66: 0 | BD66: 2014-01-03 | BE66: 09:00:00 | BF66: 平日 | BG66: 3.4 | BH66: 3.3 | BI66: 0 | BJ66: 0 | BK66: 0 | BL66: 0 | BM66: 0 | BN66: 0 | BO66: 0 | BP66: 0 | BQ66: 0 | BR66: 0 | BS66: 0 | BT66: 0 | BU66: 0 | BX66: 2014-01-03 | BY66: 09:00:00 | BZ66: 平日 | CA66: 3.4 | CB66: 3.3 | CC66: 0 | CD66: 0 | CE66: 0 | CF66: 0 | CG66: 0 | CH66: 0 | CI66: 0 | CJ66: 0 | CK66: 0 | CL66: 0 | CM66: 0 | CN66: 0 | CO66: 0 | CP66: 0 | CQ66: 0 | CR66: 0 | CS66: 0 | CT66: 0 | CU66: 0 | CV66: 0 | CW66: 0 | CX66: 0 | CY66: 0 | CZ66: 0 | DA66: 0 | DB66: 0
A67: 2014-01-03 | B67: 10:00:00 | C67: 平日 | D67: 4.4 | E67: 3.4 | F67: 0 | S67: 0 | U67: 2014-01-03 | V67: 10:00:00 | W67: 平日 | X67: 4.4 | Y67: 3.4 | Z67: 0 | AA67: 0 | AZ67: 0 | BA67: 0 | BD67: 2014-01-03 | BE67: 10:00:00 | BF67: 平日 | BG67: 4.4 | BH67: 3.4 | BI67: 0 | BJ67: 0 | BK67: 0 | BL67: 0 | BM67: 0 | BN67: 0 | BO67: 0 | BP67: 0 | BQ67: 0 | BR67: 0 | BS67: 0 | BT67: 0 | BU67: 0 | BX67: 2014-01-03 | BY67: 10:00:00 | BZ67: 平日 | CA67: 4.4 | CB67: 3.4 | CC67: 0 | CD67: 0 | CE67: 0 | CF67: 0 | CG67: 0 | CH67: 0 | CI67: 0 | CJ67: 0 | CK67: 0 | CL67: 0 | CM67: 0 | CN67: 0 | CO67: 0 | CP67: 0 | CQ67: 0 | CR67: 0 | CS67: 0 | CT67: 0 | CU67: 0 | CV67: 0 | CW67: 0 | CX67: 0 | CY67: 0 | CZ67: 0 | DA67: 0 | DB67: 0
A68: 2014-01-03 | B68: 11:00:00 | C68: 平日 | D68: 4.7 | E68: 3.9 | F68: 18.38664506 | S68: 18.38664506 | U68: 2014-01-03 | V68: 11:00:00 | W68: 平日 | X68: 4.7 | Y68: 3.9 | Z68: 0 | AA68: 0 | AZ68: 0 | BA68: 0 | BD68: 2014-01-03 | BE68: 11:00:00 | BF68: 平日 | BG68: 4.7 | BH68: 3.9 | BI68: 18386.64506 | BJ68: 0 | BK68: 0 | BL68: 0 | BM68: 0 | BN68: 0 | BO68: 0 | BP68: 0 | BQ68: 0 | BR68: 0 | BS68: 0 | BT68: 0 | BU68: 0 | BX68: 2014-01-03 | BY68: 11:00:00 | BZ68: 平日 | CA68: 4.7 | CB68: 3.9 | CC68: 0 | CD68: 0 | CE68: 0 | CF68: 0 | CG68: 0 | CH68: 0 | CI68: 0 | CJ68: 0 | CK68: 0 | CL68: 0 | CM68: 0 | CN68: 0 | CO68: 0 | CP68: 0 | CQ68: 0 | CR68: 0 | CS68: 0 | CT68: 0 | CU68: 0 | CV68: 0 | CW68: 0 | CX68: 0 | CY68: 0 | CZ68: 0 | DA68: 0 | DB68: 0
A69: 2014-01-03 | B69: 12:00:00 | C69: 平日 | D69: 4.4 | E69: 4.2 | F69: 9.390792929 | S69: 9.390792929 | U69: 2014-01-03 | V69: 12:00:00 | W69: 平日 | X69: 4.4 | Y69: 4.2 | Z69: 0 | AA69: 0 | AZ69: 0 | BA69: 0 | BD69: 2014-01-03 | BE69: 12:00:00 | BF69: 平日 | BG69: 4.4 | BH69: 4.2 | BI69: 9390.792929 | BJ69: 0 | BK69: 0 | BL69: 0 | BM69: 0 | BN69: 0 | BO69: 0 | BP69: 0 | BQ69: 0 | BR69: 0 | BS69: 0 | BT69: 0 | BU69: 0 | BX69: 2014-01-03 | BY69: 12:00:00 | BZ69: 平日 | CA69: 4.4 | CB69: 4.2 | CC69: 0 | CD69: 0 | CE69: 0 | CF69: 0 | CG69: 0 | CH69: 0 | CI69: 0 | CJ69: 0 | CK69: 0 | CL69: 0 | CM69: 0 | CN69: 0 | CO69: 0 | CP69: 0 | CQ69: 0 | CR69: 0 | CS69: 0 | CT69: 0 | CU69: 0 | CV69: 0 | CW69: 0 | CX69: 0 | CY69: 0 | CZ69: 0 | DA69: 0 | DB69: 0
A70: 2014-01-03 | B70: 13:00:00 | C70: 平日 | D70: 4.7 | E70: 4.5 | F70: 0 | S70: 0 | U70: 2014-01-03 | V70: 13:00:00 | W70: 平日 | X70: 4.7 | Y70: 4.5 | Z70: 0 | AA70: 0 | AZ70: 0 | BA70: 0 | BD70: 2014-01-03 | BE70: 13:00:00 | BF70: 平日 | BG70: 4.7 | BH70: 4.5 | BI70: 0 | BJ70: 0 | BK70: 0 | BL70: 0 | BM70: 0 | BN70: 0 | BO70: 0 | BP70: 0 | BQ70: 0 | BR70: 0 | BS70: 0 | BT70: 0 | BU70: 0 | BX70: 2014-01-03 | BY70: 13:00:00 | BZ70: 平日 | CA70: 4.7 | CB70: 4.5 | CC70: 0 | CD70: 0 | CE70: 0 | CF70: 0 | CG70: 0 | CH70: 0 | CI70: 0 | CJ70: 0 | CK70: 0 | CL70: 0 | CM70: 0 | CN70: 0 | CO70: 0 | CP70: 0 | CQ70: 0 | CR70: 0 | CS70: 0 | CT70: 0 | CU70: 0 | CV70: 0 | CW70: 0 | CX70: 0 | CY70: 0 | CZ70: 0 | DA70: 0 | DB70: 0
A71: 2014-01-03 | B71: 14:00:00 | C71: 平日 | D71: 4.9 | E71: 4.7 | F71: 0 | S71: 0 | U71: 2014-01-03 | V71: 14:00:00 | W71: 平日 | X71: 4.9 | Y71: 4.7 | Z71: 0 | AA71: 0 | AZ71: 0 | BA71: 0 | BD71: 2014-01-03 | BE71: 14:00:00 | BF71: 平日 | BG71: 4.9 | BH71: 4.7 | BI71: 0 | BJ71: 0 | BK71: 0 | BL71: 0 | BM71: 0 | BN71: 0 | BO71: 0 | BP71: 0 | BQ71: 0 | BR71: 0 | BS71: 0 | BT71: 0 | BU71: 0 | BX71: 2014-01-03 | BY71: 14:00:00 | BZ71: 平日 | CA71: 4.9 | CB71: 4.7 | CC71: 0 | CD71: 0 | CE71: 0 | CF71: 0 | CG71: 0 | CH71: 0 | CI71: 0 | CJ71: 0 | CK71: 0 | CL71: 0 | CM71: 0 | CN71: 0 | CO71: 0 | CP71: 0 | CQ71: 0 | CR71: 0 | CS71: 0 | CT71: 0 | CU71: 0 | CV71: 0 | CW71: 0 | CX71: 0 | CY71: 0 | CZ71: 0 | DA71: 0 | DB71: 0
A72: 2014-01-03 | B72: 15:00:00 | C72: 平日 | D72: 5.3 | E72: 5 | F72: 17.75012916 | S72: 17.75012916 | U72: 2014-01-03 | V72: 15:00:00 | W72: 平日 | X72: 5.3 | Y72: 5 | Z72: 0 | AA72: 0 | AZ72: 0 | BA72: 0 | BD72: 2014-01-03 | BE72: 15:00:00 | BF72: 平日 | BG72: 5.3 | BH72: 5 | BI72: 17750.12916 | BJ72: 0 | BK72: 0 | BL72: 0 | BM72: 0 | BN72: 0 | BO72: 0 | BP72: 0 | BQ72: 0 | BR72: 0 | BS72: 0 | BT72: 0 | BU72: 0 | BX72: 2014-01-03 | BY72: 15:00:00 | BZ72: 平日 | CA72: 5.3 | CB72: 5 | CC72: 0 | CD72: 0 | CE72: 0 | CF72: 0 | CG72: 0 | CH72: 0 | CI72: 0 | CJ72: 0 | CK72: 0 | CL72: 0 | CM72: 0 | CN72: 0 | CO72: 0 | CP72: 0 | CQ72: 0 | CR72: 0 | CS72: 0 | CT72: 0 | CU72: 0 | CV72: 0 | CW72: 0 | CX72: 0 | CY72: 0 | CZ72: 0 | DA72: 0 | DB72: 0
A73: 2014-01-03 | B73: 16:00:00 | C73: 平日 | D73: 5.1 | E73: 5.1 | F73: 9.671864761 | S73: 9.671864761 | U73: 2014-01-03 | V73: 16:00:00 | W73: 平日 | X73: 5.1 | Y73: 5.1 | Z73: 0 | AA73: 0 | AZ73: 0 | BA73: 0 | BD73: 2014-01-03 | BE73: 16:00:00 | BF73: 平日 | BG73: 5.1 | BH73: =E73 -> 5.1 | BI73: 9671.864761 | BJ73: =G73*1000 -> 0 | BK73: =H73*1000 -> 0 | BL73: =I73*1000 -> 0 | BM73: =J73*1000 -> 0 | BN73: =K73*1000 -> 0 | BO73: =L73*1000 -> 0 | BP73: =M73*1000 -> 0 | BQ73: =N73*1000 -> 0 | BR73: =O73*1000 -> 0 | BS73: =P73*1000 -> 0 | BT73: =Q73*1000 -> 0 | BU73: =R73*1000 -> 0 | BX73: 2014-01-03 | BY73: 16:00:00 | BZ73: 平日 | CA73: 5.1 | CB73: =Y73 -> 5.1 | CC73: =Z73*1000 -> 0 | CD73: =AA73*1000 -> 0 | CE73: =AB73*1000 -> 0 | CF73: =AC73*1000 -> 0 | CG73: =AD73*1000 -> 0 | CH73: =AE73*1000 -> 0 | CI73: =AF73*1000 -> 0 | CJ73: =AG73*1000 -> 0 | CK73: =AH73*1000 -> 0 | CL73: =AI73*1000 -> 0 | CM73: =AJ73*1000 -> 0 | CN73: =AK73*1000 -> 0 | CO73: =AL73*1000 -> 0 | CP73: =AM73*1000 -> 0 | CQ73: =AN73*1000 -> 0 | CR73: =AO73*1000 -> 0 | CS73: =AP73*1000 -> 0 | CT73: =AQ73*1000 -> 0 | CU73: =AR73*1000 -> 0 | CV73: =AS73*1000 -> 0 | CW73: =AT73*1000 -> 0 | CX73: =AU73*1000 -> 0 | CY73: =AV73*1000 -> 0 | CZ73: =AW73*1000 -> 0 | DA73: =AX73*1000 -> 0 | DB73: =AY73*1000 -> 0
A74: 2014-01-03 | B74: 17:00:00 | C74: 平日 | D74: 5 | E74: 4.9 | F74: 11.43207815 | S74: =SUM(F74:R74) -> 11.43207815 | U74: 2014-01-03 | V74: 17:00:00 | W74: 平日 | X74: 5 | Y74: 4.9 | Z74: 0 | AA74: 0 | AZ74: =Z74+AB74+AD74+AF74+AH74+AJ74+AL74+AN74+AP74+AR74+AT74+AV74+AX74 -> 0 | BA74: =AA74+AC74+AE74+AG74+AI74+AK74+AM74+AO74+AQ74+AS74+AU74+AW74+AY74 -> 0 | BD74: 2014-01-03 | BE74: 17:00:00 | BF74: 平日 | BG74: =D74 -> 5 | BH74: 4.9 | BI74: =F74*1000 -> 11432.07815 | BJ74: 0 | BK74: 0 | BL74: 0 | BM74: 0 | BN74: 0 | BO74: 0 | BP74: 0 | BQ74: 0 | BR74: 0 | BS74: 0 | BT74: 0 | BU74: 0 | BX74: 2014-01-03 | BY74: 17:00:00 | BZ74: 平日 | CA74: =X74 -> 5 | CB74: 4.9 | CC74: 0 | CD74: 0 | CE74: 0 | CF74: 0 | CG74: 0 | CH74: 0 | CI74: 0 | CJ74: 0 | CK74: 0 | CL74: 0 | CM74: 0 | CN74: 0 | CO74: 0 | CP74: 0 | CQ74: 0 | CR74: 0 | CS74: 0 | CT74: 0 | CU74: 0 | CV74: 0 | CW74: 0 | CX74: 0 | CY74: 0 | CZ74: 0 | DA74: 0 | DB74: 0
A75: 2014-01-03 | B75: 18:00:00 | C75: 平日 | D75: 5.1 | E75: 4.9 | F75: 10.95024645 | S75: 10.95024645 | U75: 2014-01-03 | V75: 18:00:00 | W75: 平日 | X75: 5.1 | Y75: 4.9 | Z75: 0 | AA75: 0 | AZ75: 0 | BA75: 0 | BD75: 2014-01-03 | BE75: 18:00:00 | BF75: 平日 | BG75: 5.1 | BH75: 4.9 | BI75: 10950.24645 | BJ75: 0 | BK75: 0 | BL75: 0 | BM75: 0 | BN75: 0 | BO75: 0 | BP75: 0 | BQ75: 0 | BR75: 0 | BS75: 0 | BT75: 0 | BU75: 0 | BX75: 2014-01-03 | BY75: 18:00:00 | BZ75: 平日 | CA75: 5.1 | CB75: 4.9 | CC75: 0 | CD75: 0 | CE75: 0 | CF75: 0 | CG75: 0 | CH75: 0 | CI75: 0 | CJ75: 0 | CK75: 0 | CL75: 0 | CM75: 0 | CN75: 0 | CO75: 0 | CP75: 0 | CQ75: 0 | CR75: 0 | CS75: 0 | CT75: 0 | CU75: 0 | CV75: 0 | CW75: 0 | CX75: 0 | CY75: 0 | CZ75: 0 | DA75: 0 | DB75: 0
A76: 2014-01-03 | B76: 19:00:00 | C76: 平日 | D76: 5.1 | E76: 4.9 | F76: 7.59234381 | S76: 7.59234381 | U76: 2014-01-03 | V76: 19:00:00 | W76: 平日 | X76: 5.1 | Y76: 4.9 | Z76: 0 | AA76: 0 | AZ76: 0 | BA76: 0 | BD76: 2014-01-03 | BE76: 19:00:00 | BF76: 平日 | BG76: 5.1 | BH76: 4.9 | BI76: 7592.34381 | BJ76: 0 | BK76: 0 | BL76: 0 | BM76: 0 | BN76: 0 | BO76: 0 | BP76: 0 | BQ76: 0 | BR76: 0 | BS76: 0 | BT76: 0 | BU76: 0 | BX76: 2014-01-03 | BY76: 19:00:00 | BZ76: 平日 | CA76: 5.1 | CB76: 4.9 | CC76: 0 | CD76: 0 | CE76: 0 | CF76: 0 | CG76: 0 | CH76: 0 | CI76: 0 | CJ76: 0 | CK76: 0 | CL76: 0 | CM76: 0 | CN76: 0 | CO76: 0 | CP76: 0 | CQ76: 0 | CR76: 0 | CS76: 0 | CT76: 0 | CU76: 0 | CV76: 0 | CW76: 0 | CX76: 0 | CY76: 0 | CZ76: 0 | DA76: 0 | DB76: 0
A77: 2014-01-03 | B77: 20:00:00 | C77: 平日 | D77: 5 | E77: 5 | F77: 7.821472086 | S77: 7.821472086 | U77: 2014-01-03 | V77: 20:00:00 | W77: 平日 | X77: 5 | Y77: 5 | Z77: 0 | AA77: 0 | AZ77: 0 | BA77: 0 | BD77: 2014-01-03 | BE77: 20:00:00 | BF77: 平日 | BG77: 5 | BH77: 5 | BI77: 7821.472086 | BJ77: 0 | BK77: 0 | BL77: 0 | BM77: 0 | BN77: 0 | BO77: 0 | BP77: 0 | BQ77: 0 | BR77: 0 | BS77: 0 | BT77: 0 | BU77: 0 | BX77: 2014-01-03 | BY77: 20:00:00 | BZ77: 平日 | CA77: 5 | CB77: 5 | CC77: 0 | CD77: 0 | CE77: 0 | CF77: 0 | CG77: 0 | CH77: 0 | CI77: 0 | CJ77: 0 | CK77: 0 | CL77: 0 | CM77: 0 | CN77: 0 | CO77: 0 | CP77: 0 | CQ77: 0 | CR77: 0 | CS77: 0 | CT77: 0 | CU77: 0 | CV77: 0 | CW77: 0 | CX77: 0 | CY77: 0 | CZ77: 0 | DA77: 0 | DB77: 0
A78: 2014-01-03 | B78: 21:00:00 | C78: 平日 | D78: 5.3 | E78: 5 | F78: 7.877376131 | S78: 7.877376131 | U78: 2014-01-03 | V78: 21:00:00 | W78: 平日 | X78: 5.3 | Y78: 5 | Z78: 0 | AA78: 0 | AZ78: 0 | BA78: 0 | BD78: 2014-01-03 | BE78: 21:00:00 | BF78: 平日 | BG78: 5.3 | BH78: 5 | BI78: 7877.376131 | BJ78: 0 | BK78: 0 | BL78: 0 | BM78: 0 | BN78: 0 | BO78: 0 | BP78: 0 | BQ78: 0 | BR78: 0 | BS78: 0 | BT78: 0 | BU78: 0 | BX78: 2014-01-03 | BY78: 21:00:00 | BZ78: 平日 | CA78: 5.3 | CB78: 5 | CC78: 0 | CD78: 0 | CE78: 0 | CF78: 0 | CG78: 0 | CH78: 0 | CI78: 0 | CJ78: 0 | CK78: 0 | CL78: 0 | CM78: 0 | CN78: 0 | CO78: 0 | CP78: 0 | CQ78: 0 | CR78: 0 | CS78: 0 | CT78: 0 | CU78: 0 | CV78: 0 | CW78: 0 | CX78: 0 | CY78: 0 | CZ78: 0 | DA78: 0 | DB78: 0
A79: 2014-01-03 | B79: 22:00:00 | C79: 平日 | D79: 5.3 | E79: 5 | F79: 7.937126662 | S79: 7.937126662 | U79: 2014-01-03 | V79: 22:00:00 | W79: 平日 | X79: 5.3 | Y79: 5 | Z79: 0 | AA79: 0 | AZ79: 0 | BA79: 0 | BD79: 2014-01-03 | BE79: 22:00:00 | BF79: 平日 | BG79: 5.3 | BH79: 5 | BI79: 7937.126662 | BJ79: 0 | BK79: 0 | BL79: 0 | BM79: 0 | BN79: 0 | BO79: 0 | BP79: 0 | BQ79: 0 | BR79: 0 | BS79: 0 | BT79: 0 | BU79: 0 | BX79: 2014-01-03 | BY79: 22:00:00 | BZ79: 平日 | CA79: 5.3 | CB79: 5 | CC79: 0 | CD79: 0 | CE79: 0 | CF79: 0 | CG79: 0 | CH79: 0 | CI79: 0 | CJ79: 0 | CK79: 0 | CL79: 0 | CM79: 0 | CN79: 0 | CO79: 0 | CP79: 0 | CQ79: 0 | CR79: 0 | CS79: 0 | CT79: 0 | CU79: 0 | CV79: 0 | CW79: 0 | CX79: 0 | CY79: 0 | CZ79: 0 | DA79: 0 | DB79: 0
A80: 2014-01-03 | B80: 23:00:00 | C80: 平日 | D80: 5.6 | E80: 5.1 | F80: 0 | S80: 0 | U80: 2014-01-03 | V80: 23:00:00 | W80: 平日 | X80: 5.6 | Y80: 5.1 | Z80: 0 | AA80: 0 | AZ80: 0 | BA80: 0 | BD80: 2014-01-03 | BE80: 23:00:00 | BF80: 平日 | BG80: 5.6 | BH80: 5.1 | BI80: 0 | BJ80: 0 | BK80: 0 | BL80: 0 | BM80: 0 | BN80: 0 | BO80: 0 | BP80: 0 | BQ80: 0 | BR80: 0 | BS80: 0 | BT80: 0 | BU80: 0 | BX80: 2014-01-03 | BY80: 23:00:00 | BZ80: 平日 | CA80: 5.6 | CB80: 5.1 | CC80: 0 | CD80: 0 | CE80: 0 | CF80: 0 | CG80: 0 | CH80: 0 | CI80: 0 | CJ80: 0 | CK80: 0 | CL80: 0 | CM80: 0 | CN80: 0 | CO80: 0 | CP80: 0 | CQ80: 0 | CR80: 0 | CS80: 0 | CT80: 0 | CU80: 0 | CV80: 0 | CW80: 0 | CX80: 0 | CY80: 0 | CZ80: 0 | DA80: 0 | DB80: 0
A81: 2014-01-04 | B81: 00:00:00 | C81: 平日 | D81: 5.7 | E81: 5.2 | F81: 0 | S81: 0 | U81: 2014-01-04 | V81: 00:00:00 | W81: 平日 | X81: 5.7 | Y81: 5.2 | Z81: 0 | AA81: 0 | AZ81: 0 | BA81: 0 | BD81: 2014-01-04 | BE81: 00:00:00 | BF81: 平日 | BG81: 5.7 | BH81: 5.2 | BI81: 0 | BJ81: 0 | BK81: 0 | BL81: 0 | BM81: 0 | BN81: 0 | BO81: 0 | BP81: 0 | BQ81: 0 | BR81: 0 | BS81: 0 | BT81: 0 | BU81: 0 | BX81: 2014-01-04 | BY81: 00:00:00 | BZ81: 平日 | CA81: 5.7 | CB81: 5.2 | CC81: 0 | CD81: 0 | CE81: 0 | CF81: 0 | CG81: 0 | CH81: 0 | CI81: 0 | CJ81: 0 | CK81: 0 | CL81: 0 | CM81: 0 | CN81: 0 | CO81: 0 | CP81: 0 | CQ81: 0 | CR81: 0 | CS81: 0 | CT81: 0 | CU81: 0 | CV81: 0 | CW81: 0 | CX81: 0 | CY81: 0 | CZ81: 0 | DA81: 0 | DB81: 0
A82: 2014-01-04 | B82: 01:00:00 | C82: 平日 | D82: 5.5 | E82: 5.1 | F82: 0 | S82: 0 | U82: 2014-01-04 | V82: 01:00:00 | W82: 平日 | X82: 5.5 | Y82: 5.1 | Z82: 0 | AA82: 0 | AZ82: 0 | BA82: 0 | BD82: 2014-01-04 | BE82: 01:00:00 | BF82: 平日 | BG82: 5.5 | BH82: 5.1 | BI82: 0 | BJ82: 0 | BK82: 0 | BL82: 0 | BM82: 0 | BN82: 0 | BO82: 0 | BP82: 0 | BQ82: 0 | BR82: 0 | BS82: 0 | BT82: 0 | BU82: 0 | BX82: 2014-01-04 | BY82: 01:00:00 | BZ82: 平日 | CA82: 5.5 | CB82: 5.1 | CC82: 0 | CD82: 0 | CE82: 0 | CF82: 0 | CG82: 0 | CH82: 0 | CI82: 0 | CJ82: 0 | CK82: 0 | CL82: 0 | CM82: 0 | CN82: 0 | CO82: 0 | CP82: 0 | CQ82: 0 | CR82: 0 | CS82: 0 | CT82: 0 | CU82: 0 | CV82: 0 | CW82: 0 | CX82: 0 | CY82: 0 | CZ82: 0 | DA82: 0 | DB82: 0
A83: 2014-01-04 | B83: 02:00:00 | C83: 平日 | D83: 6 | E83: 5.4 | F83: 0 | S83: 0 | U83: 2014-01-04 | V83: 02:00:00 | W83: 平日 | X83: 6 | Y83: 5.4 | Z83: 0 | AA83: 0 | AZ83: 0 | BA83: 0 | BD83: 2014-01-04 | BE83: 02:00:00 | BF83: 平日 | BG83: 6 | BH83: 5.4 | BI83: 0 | BJ83: 0 | BK83: 0 | BL83: 0 | BM83: 0 | BN83: 0 | BO83: 0 | BP83: 0 | BQ83: 0 | BR83: 0 | BS83: 0 | BT83: 0 | BU83: 0 | BX83: 2014-01-04 | BY83: 02:00:00 | BZ83: 平日 | CA83: 6 | CB83: 5.4 | CC83: 0 | CD83: 0 | CE83: 0 | CF83: 0 | CG83: 0 | CH83: 0 | CI83: 0 | CJ83: 0 | CK83: 0 | CL83: 0 | CM83: 0 | CN83: 0 | CO83: 0 | CP83: 0 | CQ83: 0 | CR83: 0 | CS83: 0 | CT83: 0 | CU83: 0 | CV83: 0 | CW83: 0 | CX83: 0 | CY83: 0 | CZ83: 0 | DA83: 0 | DB83: 0
A84: 2014-01-04 | B84: 03:00:00 | C84: 平日 | D84: 5.9 | E84: 5.4 | F84: 0 | S84: 0 | U84: 2014-01-04 | V84: 03:00:00 | W84: 平日 | X84: 5.9 | Y84: 5.4 | Z84: 0 | AA84: 0 | AZ84: 0 | BA84: 0 | BD84: 2014-01-04 | BE84: 03:00:00 | BF84: 平日 | BG84: 5.9 | BH84: 5.4 | BI84: 0 | BJ84: 0 | BK84: 0 | BL84: 0 | BM84: 0 | BN84: 0 | BO84: 0 | BP84: 0 | BQ84: 0 | BR84: 0 | BS84: 0 | BT84: 0 | BU84: 0 | BX84: 2014-01-04 | BY84: 03:00:00 | BZ84: 平日 | CA84: 5.9 | CB84: 5.4 | CC84: 0 | CD84: 0 | CE84: 0 | CF84: 0 | CG84: 0 | CH84: 0 | CI84: 0 | CJ84: 0 | CK84: 0 | CL84: 0 | CM84: 0 | CN84: 0 | CO84: 0 | CP84: 0 | CQ84: 0 | CR84: 0 | CS84: 0 | CT84: 0 | CU84: 0 | CV84: 0 | CW84: 0 | CX84: 0 | CY84: 0 | CZ84: 0 | DA84: 0 | DB84: 0
A85: 2014-01-04 | B85: 04:00:00 | C85: 平日 | D85: 5.8 | E85: 5.5 | F85: 0 | S85: 0 | U85: 2014-01-04 | V85: 04:00:00 | W85: 平日 | X85: 5.8 | Y85: 5.5 | Z85: 0 | AA85: 0 | AZ85: 0 | BA85: 0 | BD85: 2014-01-04 | BE85: 04:00:00 | BF85: 平日 | BG85: 5.8 | BH85: 5.5 | BI85: 0 | BJ85: 0 | BK85: 0 | BL85: 0 | BM85: 0 | BN85: 0 | BO85: 0 | BP85: 0 | BQ85: 0 | BR85: 0 | BS85: 0 | BT85: 0 | BU85: 0 | BX85: 2014-01-04 | BY85: 04:00:00 | BZ85: 平日 | CA85: 5.8 | CB85: 5.5 | CC85: 0 | CD85: 0 | CE85: 0 | CF85: 0 | CG85: 0 | CH85: 0 | CI85: 0 | CJ85: 0 | CK85: 0 | CL85: 0 | CM85: 0 | CN85: 0 | CO85: 0 | CP85: 0 | CQ85: 0 | CR85: 0 | CS85: 0 | CT85: 0 | CU85: 0 | CV85: 0 | CW85: 0 | CX85: 0 | CY85: 0 | CZ85: 0 | DA85: 0 | DB85: 0
A86: 2014-01-04 | B86: 05:00:00 | C86: 平日 | D86: 6.3 | E86: 5.6 | F86: 24.58593906 | S86: 24.58593906 | U86: 2014-01-04 | V86: 05:00:00 | W86: 平日 | X86: 6.3 | Y86: 5.6 | Z86: 0 | AA86: 0 | AZ86: 0 | BA86: 0 | BD86: 2014-01-04 | BE86: 05:00:00 | BF86: 平日 | BG86: 6.3 | BH86: 5.6 | BI86: 24585.93906 | BJ86: 0 | BK86: 0 | BL86: 0 | BM86: 0 | BN86: 0 | BO86: 0 | BP86: 0 | BQ86: 0 | BR86: 0 | BS86: 0 | BT86: 0 | BU86: 0 | BX86: 2014-01-04 | BY86: 05:00:00 | BZ86: 平日 | CA86: 6.3 | CB86: 5.6 | CC86: 0 | CD86: 0 | CE86: 0 | CF86: 0 | CG86: 0 | CH86: 0 | CI86: 0 | CJ86: 0 | CK86: 0 | CL86: 0 | CM86: 0 | CN86: 0 | CO86: 0 | CP86: 0 | CQ86: 0 | CR86: 0 | CS86: 0 | CT86: 0 | CU86: 0 | CV86: 0 | CW86: 0 | CX86: 0 | CY86: 0 | CZ86: 0 | DA86: 0 | DB86: 0
A87: 2014-01-04 | B87: 06:00:00 | C87: 平日 | D87: 6.8 | E87: 5.6 | F87: 9.645285724 | S87: 9.645285724 | U87: 2014-01-04 | V87: 06:00:00 | W87: 平日 | X87: 6.8 | Y87: 5.6 | Z87: 0 | AA87: 0 | AZ87: 0 | BA87: 0 | BD87: 2014-01-04 | BE87: 06:00:00 | BF87: 平日 | BG87: 6.8 | BH87: 5.6 | BI87: 9645.285724 | BJ87: 0 | BK87: 0 | BL87: 0 | BM87: 0 | BN87: 0 | BO87: 0 | BP87: 0 | BQ87: 0 | BR87: 0 | BS87: 0 | BT87: 0 | BU87: 0 | BX87: 2014-01-04 | BY87: 06:00:00 | BZ87: 平日 | CA87: 6.8 | CB87: 5.6 | CC87: 0 | CD87: 0 | CE87: 0 | CF87: 0 | CG87: 0 | CH87: 0 | CI87: 0 | CJ87: 0 | CK87: 0 | CL87: 0 | CM87: 0 | CN87: 0 | CO87: 0 | CP87: 0 | CQ87: 0 | CR87: 0 | CS87: 0 | CT87: 0 | CU87: 0 | CV87: 0 | CW87: 0 | CX87: 0 | CY87: 0 | CZ87: 0 | DA87: 0 | DB87: 0
A88: 2014-01-04 | B88: 07:00:00 | C88: 平日 | D88: 6.6 | E88: 5.8 | F88: 8.40389834 | S88: 8.40389834 | U88: 2014-01-04 | V88: 07:00:00 | W88: 平日 | X88: 6.6 | Y88: 5.8 | Z88: 0 | AA88: 0 | AZ88: 0 | BA88: 0 | BD88: 2014-01-04 | BE88: 07:00:00 | BF88: 平日 | BG88: 6.6 | BH88: 5.8 | BI88: 8403.89834 | BJ88: 0 | BK88: 0 | BL88: 0 | BM88: 0 | BN88: 0 | BO88: 0 | BP88: 0 | BQ88: 0 | BR88: 0 | BS88: 0 | BT88: 0 | BU88: 0 | BX88: 2014-01-04 | BY88: 07:00:00 | BZ88: 平日 | CA88: 6.6 | CB88: 5.8 | CC88: 0 | CD88: 0 | CE88: 0 | CF88: 0 | CG88: 0 | CH88: 0 | CI88: 0 | CJ88: 0 | CK88: 0 | CL88: 0 | CM88: 0 | CN88: 0 | CO88: 0 | CP88: 0 | CQ88: 0 | CR88: 0 | CS88: 0 | CT88: 0 | CU88: 0 | CV88: 0 | CW88: 0 | CX88: 0 | CY88: 0 | CZ88: 0 | DA88: 0 | DB88: 0
A89: 2014-01-04 | B89: 08:00:00 | C89: 平日 | D89: 7 | E89: 6 | F89: 7.296974396 | S89: 7.296974396 | U89: 2014-01-04 | V89: 08:00:00 | W89: 平日 | X89: 7 | Y89: 6 | Z89: 0 | AA89: 0 | AZ89: 0 | BA89: 0 | BD89: 2014-01-04 | BE89: 08:00:00 | BF89: 平日 | BG89: 7 | BH89: 6 | BI89: 7296.974396 | BJ89: 0 | BK89: 0 | BL89: 0 | BM89: 0 | BN89: 0 | BO89: 0 | BP89: 0 | BQ89: 0 | BR89: 0 | BS89: 0 | BT89: 0 | BU89: 0 | BX89: 2014-01-04 | BY89: 08:00:00 | BZ89: 平日 | CA89: 7 | CB89: 6 | CC89: 0 | CD89: 0 | CE89: 0 | CF89: 0 | CG89: 0 | CH89: 0 | CI89: 0 | CJ89: 0 | CK89: 0 | CL89: 0 | CM89: 0 | CN89: 0 | CO89: 0 | CP89: 0 | CQ89: 0 | CR89: 0 | CS89: 0 | CT89: 0 | CU89: 0 | CV89: 0 | CW89: 0 | CX89: 0 | CY89: 0 | CZ89: 0 | DA89: 0 | DB89: 0
A90: 2014-01-04 | B90: 09:00:00 | C90: 平日 | D90: 7.7 | E90: 6.2 | F90: 0 | S90: 0 | U90: 2014-01-04 | V90: 09:00:00 | W90: 平日 | X90: 7.7 | Y90: 6.2 | Z90: 0 | AA90: 0 | AZ90: 0 | BA90: 0 | BD90: 2014-01-04 | BE90: 09:00:00 | BF90: 平日 | BG90: 7.7 | BH90: 6.2 | BI90: 0 | BJ90: 0 | BK90: 0 | BL90: 0 | BM90: 0 | BN90: 0 | BO90: 0 | BP90: 0 | BQ90: 0 | BR90: 0 | BS90: 0 | BT90: 0 | BU90: 0 | BX90: 2014-01-04 | BY90: 09:00:00 | BZ90: 平日 | CA90: 7.7 | CB90: 6.2 | CC90: 0 | CD90: 0 | CE90: 0 | CF90: 0 | CG90: 0 | CH90: 0 | CI90: 0 | CJ90: 0 | CK90: 0 | CL90: 0 | CM90: 0 | CN90: 0 | CO90: 0 | CP90: 0 | CQ90: 0 | CR90: 0 | CS90: 0 | CT90: 0 | CU90: 0 | CV90: 0 | CW90: 0 | CX90: 0 | CY90: 0 | CZ90: 0 | DA90: 0 | DB90: 0
A91: 2014-01-04 | B91: 10:00:00 | C91: 平日 | D91: 8 | E91: 6.3 | F91: 0 | S91: 0 | U91: 2014-01-04 | V91: 10:00:00 | W91: 平日 | X91: 8 | Y91: 6.3 | Z91: 0 | AA91: 0 | AZ91: 0 | BA91: 0 | BD91: 2014-01-04 | BE91: 10:00:00 | BF91: 平日 | BG91: 8 | BH91: 6.3 | BI91: 0 | BJ91: 0 | BK91: 0 | BL91: 0 | BM91: 0 | BN91: 0 | BO91: 0 | BP91: 0 | BQ91: 0 | BR91: 0 | BS91: 0 | BT91: 0 | BU91: 0 | BX91: 2014-01-04 | BY91: 10:00:00 | BZ91: 平日 | CA91: 8 | CB91: 6.3 | CC91: 0 | CD91: 0 | CE91: 0 | CF91: 0 | CG91: 0 | CH91: 0 | CI91: 0 | CJ91: 0 | CK91: 0 | CL91: 0 | CM91: 0 | CN91: 0 | CO91: 0 | CP91: 0 | CQ91: 0 | CR91: 0 | CS91: 0 | CT91: 0 | CU91: 0 | CV91: 0 | CW91: 0 | CX91: 0 | CY91: 0 | CZ91: 0 | DA91: 0 | DB91: 0
A92: 2014-01-04 | B92: 11:00:00 | C92: 平日 | D92: 8.5 | E92: 6.3 | F92: 13.11025754 | S92: 13.11025754 | U92: 2014-01-04 | V92: 11:00:00 | W92: 平日 | X92: 8.5 | Y92: 6.3 | Z92: 0 | AA92: 0 | AZ92: 0 | BA92: 0 | BD92: 2014-01-04 | BE92: 11:00:00 | BF92: 平日 | BG92: 8.5 | BH92: 6.3 | BI92: 13110.25754 | BJ92: 0 | BK92: 0 | BL92: 0 | BM92: 0 | BN92: 0 | BO92: 0 | BP92: 0 | BQ92: 0 | BR92: 0 | BS92: 0 | BT92: 0 | BU92: 0 | BX92: 2014-01-04 | BY92: 11:00:00 | BZ92: 平日 | CA92: 8.5 | CB92: 6.3 | CC92: 0 | CD92: 0 | CE92: 0 | CF92: 0 | CG92: 0 | CH92: 0 | CI92: 0 | CJ92: 0 | CK92: 0 | CL92: 0 | CM92: 0 | CN92: 0 | CO92: 0 | CP92: 0 | CQ92: 0 | CR92: 0 | CS92: 0 | CT92: 0 | CU92: 0 | CV92: 0 | CW92: 0 | CX92: 0 | CY92: 0 | CZ92: 0 | DA92: 0 | DB92: 0
A93: 2014-01-04 | B93: 12:00:00 | C93: 平日 | D93: 8.8 | E93: 6.3 | F93: 6.082121073 | S93: 6.082121073 | U93: 2014-01-04 | V93: 12:00:00 | W93: 平日 | X93: 8.8 | Y93: 6.3 | Z93: 0 | AA93: 0 | AZ93: 0 | BA93: 0 | BD93: 2014-01-04 | BE93: 12:00:00 | BF93: 平日 | BG93: 8.8 | BH93: 6.3 | BI93: 6082.121073 | BJ93: 0 | BK93: 0 | BL93: 0 | BM93: 0 | BN93: 0 | BO93: 0 | BP93: 0 | BQ93: 0 | BR93: 0 | BS93: 0 | BT93: 0 | BU93: 0 | BX93: 2014-01-04 | BY93: 12:00:00 | BZ93: 平日 | CA93: 8.8 | CB93: 6.3 | CC93: 0 | CD93: 0 | CE93: 0 | CF93: 0 | CG93: 0 | CH93: 0 | CI93: 0 | CJ93: 0 | CK93: 0 | CL93: 0 | CM93: 0 | CN93: 0 | CO93: 0 | CP93: 0 | CQ93: 0 | CR93: 0 | CS93: 0 | CT93: 0 | CU93: 0 | CV93: 0 | CW93: 0 | CX93: 0 | CY93: 0 | CZ93: 0 | DA93: 0 | DB93: 0
A94: 2014-01-04 | B94: 13:00:00 | C94: 平日 | D94: 9.2 | E94: 6.3 | F94: 0 | S94: 0 | U94: 2014-01-04 | V94: 13:00:00 | W94: 平日 | X94: 9.2 | Y94: 6.3 | Z94: 0 | AA94: 0 | AZ94: 0 | BA94: 0 | BD94: 2014-01-04 | BE94: 13:00:00 | BF94: 平日 | BG94: 9.2 | BH94: 6.3 | BI94: 0 | BJ94: 0 | BK94: 0 | BL94: 0 | BM94: 0 | BN94: 0 | BO94: 0 | BP94: 0 | BQ94: 0 | BR94: 0 | BS94: 0 | BT94: 0 | BU94: 0 | BX94: 2014-01-04 | BY94: 13:00:00 | BZ94: 平日 | CA94: 9.2 | CB94: 6.3 | CC94: 0 | CD94: 0 | CE94: 0 | CF94: 0 | CG94: 0 | CH94: 0 | CI94: 0 | CJ94: 0 | CK94: 0 | CL94: 0 | CM94: 0 | CN94: 0 | CO94: 0 | CP94: 0 | CQ94: 0 | CR94: 0 | CS94: 0 | CT94: 0 | CU94: 0 | CV94: 0 | CW94: 0 | CX94: 0 | CY94: 0 | CZ94: 0 | DA94: 0 | DB94: 0
A95: 2014-01-04 | B95: 14:00:00 | C95: 平日 | D95: 9.5 | E95: 6.3 | F95: 0 | S95: 0 | U95: 2014-01-04 | V95: 14:00:00 | W95: 平日 | X95: 9.5 | Y95: 6.3 | Z95: 0 | AA95: 0 | AZ95: 0 | BA95: 0 | BD95: 2014-01-04 | BE95: 14:00:00 | BF95: 平日 | BG95: 9.5 | BH95: 6.3 | BI95: 0 | BJ95: 0 | BK95: 0 | BL95: 0 | BM95: 0 | BN95: 0 | BO95: 0 | BP95: 0 | BQ95: 0 | BR95: 0 | BS95: 0 | BT95: 0 | BU95: 0 | BX95: 2014-01-04 | BY95: 14:00:00 | BZ95: 平日 | CA95: 9.5 | CB95: 6.3 | CC95: 0 | CD95: 0 | CE95: 0 | CF95: 0 | CG95: 0 | CH95: 0 | CI95: 0 | CJ95: 0 | CK95: 0 | CL95: 0 | CM95: 0 | CN95: 0 | CO95: 0 | CP95: 0 | CQ95: 0 | CR95: 0 | CS95: 0 | CT95: 0 | CU95: 0 | CV95: 0 | CW95: 0 | CX95: 0 | CY95: 0 | CZ95: 0 | DA95: 0 | DB95: 0
A96: 2014-01-04 | B96: 15:00:00 | C96: 平日 | D96: 9.8 | E96: 6.1 | F96: 11.38080174 | S96: 11.38080174 | U96: 2014-01-04 | V96: 15:00:00 | W96: 平日 | X96: 9.8 | Y96: 6.1 | Z96: 0 | AA96: 0 | AZ96: 0 | BA96: 0 | BD96: 2014-01-04 | BE96: 15:00:00 | BF96: 平日 | BG96: 9.8 | BH96: 6.1 | BI96: 11380.80174 | BJ96: 0 | BK96: 0 | BL96: 0 | BM96: 0 | BN96: 0 | BO96: 0 | BP96: 0 | BQ96: 0 | BR96: 0 | BS96: 0 | BT96: 0 | BU96: 0 | BX96: 2014-01-04 | BY96: 15:00:00 | BZ96: 平日 | CA96: 9.8 | CB96: 6.1 | CC96: 0 | CD96: 0 | CE96: 0 | CF96: 0 | CG96: 0 | CH96: 0 | CI96: 0 | CJ96: 0 | CK96: 0 | CL96: 0 | CM96: 0 | CN96: 0 | CO96: 0 | CP96: 0 | CQ96: 0 | CR96: 0 | CS96: 0 | CT96: 0 | CU96: 0 | CV96: 0 | CW96: 0 | CX96: 0 | CY96: 0 | CZ96: 0 | DA96: 0 | DB96: 0
A97: 2014-01-04 | B97: 16:00:00 | C97: 平日 | D97: 9.6 | E97: 5.7 | F97: 6.207428235 | S97: 6.207428235 | U97: 2014-01-04 | V97: 16:00:00 | W97: 平日 | X97: 9.6 | Y97: 5.7 | Z97: 0 | AA97: 0 | AZ97: 0 | BA97: 0 | BD97: 2014-01-04 | BE97: 16:00:00 | BF97: 平日 | BG97: 9.6 | BH97: 5.7 | BI97: 6207.428235 | BJ97: 0 | BK97: 0 | BL97: 0 | BM97: 0 | BN97: 0 | BO97: 0 | BP97: 0 | BQ97: 0 | BR97: 0 | BS97: 0 | BT97: 0 | BU97: 0 | BX97: 2014-01-04 | BY97: 16:00:00 | BZ97: 平日 | CA97: 9.6 | CB97: 5.7 | CC97: 0 | CD97: 0 | CE97: 0 | CF97: 0 | CG97: 0 | CH97: 0 | CI97: 0 | CJ97: 0 | CK97: 0 | CL97: 0 | CM97: 0 | CN97: 0 | CO97: 0 | CP97: 0 | CQ97: 0 | CR97: 0 | CS97: 0 | CT97: 0 | CU97: 0 | CV97: 0 | CW97: 0 | CX97: 0 | CY97: 0 | CZ97: 0 | DA97: 0 | DB97: 0
A98: 2014-01-04 | B98: 17:00:00 | C98: 平日 | D98: 9.4 | E98: 5.1 | F98: 7.507810546 | S98: 7.507810546 | U98: 2014-01-04 | V98: 17:00:00 | W98: 平日 | X98: 9.4 | Y98: 5.1 | Z98: 0 | AA98: 0 | AZ98: 0 | BA98: 0 | BD98: 2014-01-04 | BE98: 17:00:00 | BF98: 平日 | BG98: 9.4 | BH98: 5.1 | BI98: 7507.810546 | BJ98: 0 | BK98: 0 | BL98: 0 | BM98: 0 | BN98: 0 | BO98: 0 | BP98: 0 | BQ98: 0 | BR98: 0 | BS98: 0 | BT98: 0 | BU98: 0 | BX98: 2014-01-04 | BY98: 17:00:00 | BZ98: 平日 | CA98: 9.4 | CB98: 5.1 | CC98: 0 | CD98: 0 | CE98: 0 | CF98: 0 | CG98: 0 | CH98: 0 | CI98: 0 | CJ98: 0 | CK98: 0 | CL98: 0 | CM98: 0 | CN98: 0 | CO98: 0 | CP98: 0 | CQ98: 0 | CR98: 0 | CS98: 0 | CT98: 0 | CU98: 0 | CV98: 0 | CW98: 0 | CX98: 0 | CY98: 0 | CZ98: 0 | DA98: 0 | DB98: 0
A99: 2014-01-04 | B99: 18:00:00 | C99: 平日 | D99: 8.8 | E99: 4.7 | F99: 7.515078654 | S99: 7.515078654 | U99: 2014-01-04 | V99: 18:00:00 | W99: 平日 | X99: 8.8 | Y99: 4.7 | Z99: 0 | AA99: 0 | AZ99: 0 | BA99: 0 | BD99: 2014-01-04 | BE99: 18:00:00 | BF99: 平日 | BG99: 8.8 | BH99: 4.7 | BI99: 7515.078654 | BJ99: 0 | BK99: 0 | BL99: 0 | BM99: 0 | BN99: 0 | BO99: 0 | BP99: 0 | BQ99: 0 | BR99: 0 | BS99: 0 | BT99: 0 | BU99: 0 | BX99: 2014-01-04 | BY99: 18:00:00 | BZ99: 平日 | CA99: 8.8 | CB99: 4.7 | CC99: 0 | CD99: 0 | CE99: 0 | CF99: 0 | CG99: 0 | CH99: 0 | CI99: 0 | CJ99: 0 | CK99: 0 | CL99: 0 | CM99: 0 | CN99: 0 | CO99: 0 | CP99: 0 | CQ99: 0 | CR99: 0 | CS99: 0 | CT99: 0 | CU99: 0 | CV99: 0 | CW99: 0 | CX99: 0 | CY99: 0 | CZ99: 0 | DA99: 0 | DB99: 0
A100: 2014-01-04 | B100: 19:00:00 | C100: 平日 | D100: 8.3 | E100: 4.1 | F100: 5.209177492 | S100: 5.209177492 | U100: 2014-01-04 | V100: 19:00:00 | W100: 平日 | X100: 8.3 | Y100: 4.1 | Z100: 0 | AA100: 0 | AZ100: 0 | BA100: 0 | BD100: 2014-01-04 | BE100: 19:00:00 | BF100: 平日 | BG100: 8.3 | BH100: 4.1 | BI100: 5209.177492 | BJ100: 0 | BK100: 0 | BL100: 0 | BM100: 0 | BN100: 0 | BO100: 0 | BP100: 0 | BQ100: 0 | BR100: 0 | BS100: 0 | BT100: 0 | BU100: 0 | BX100: 2014-01-04 | BY100: 19:00:00 | BZ100: 平日 | CA100: 8.3 | CB100: 4.1 | CC100: 0 | CD100: 0 | CE100: 0 | CF100: 0 | CG100: 0 | CH100: 0 | CI100: 0 | CJ100: 0 | CK100: 0 | CL100: 0 | CM100: 0 | CN100: 0 | CO100: 0 | CP100: 0 | CQ100: 0 | CR100: 0 | CS100: 0 | CT100: 0 | CU100: 0 | CV100: 0 | CW100: 0 | CX100: 0 | CY100: 0 | CZ100: 0 | DA100: 0 | DB100: 0
A101: 2014-01-04 | B101: 20:00:00 | C101: 平日 | D101: 7.2 | E101: 3.7 | F101: 5.924126988 | S101: 5.924126988 | U101: 2014-01-04 | V101: 20:00:00 | W101: 平日 | X101: 7.2 | Y101: 3.7 | Z101: 0 | AA101: 0 | AZ101: 0 | BA101: 0 | BD101: 2014-01-04 | BE101: 20:00:00 | BF101: 平日 | BG101: 7.2 | BH101: 3.7 | BI101: 5924.126988 | BJ101: 0 | BK101: 0 | BL101: 0 | BM101: 0 | BN101: 0 | BO101: 0 | BP101: 0 | BQ101: 0 | BR101: 0 | BS101: 0 | BT101: 0 | BU101: 0 | BX101: 2014-01-04 | BY101: 20:00:00 | BZ101: 平日 | CA101: 7.2 | CB101: 3.7 | CC101: 0 | CD101: 0 | CE101: 0 | CF101: 0 | CG101: 0 | CH101: 0 | CI101: 0 | CJ101: 0 | CK101: 0 | CL101: 0 | CM101: 0 | CN101: 0 | CO101: 0 | CP101: 0 | CQ101: 0 | CR101: 0 | CS101: 0 | CT101: 0 | CU101: 0 | CV101: 0 | CW101: 0 | CX101: 0 | CY101: 0 | CZ101: 0 | DA101: 0 | DB101: 0
A102: 2014-01-04 | B102: 21:00:00 | C102: 平日 | D102: 6.3 | E102: 3.8 | F102: 6.531588544 | S102: 6.531588544 | U102: 2014-01-04 | V102: 21:00:00 | W102: 平日 | X102: 6.3 | Y102: 3.8 | Z102: 0 | AA102: 0 | AZ102: 0 | BA102: 0 | BD102: 2014-01-04 | BE102: 21:00:00 | BF102: 平日 | BG102: 6.3 | BH102: 3.8 | BI102: 6531.588544 | BJ102: 0 | BK102: 0 | BL102: 0 | BM102: 0 | BN102: 0 | BO102: 0 | BP102: 0 | BQ102: 0 | BR102: 0 | BS102: 0 | BT102: 0 | BU102: 0 | BX102: 2014-01-04 | BY102: 21:00:00 | BZ102: 平日 | CA102: 6.3 | CB102: 3.8 | CC102: 0 | CD102: 0 | CE102: 0 | CF102: 0 | CG102: 0 | CH102: 0 | CI102: 0 | CJ102: 0 | CK102: 0 | CL102: 0 | CM102: 0 | CN102: 0 | CO102: 0 | CP102: 0 | CQ102: 0 | CR102: 0 | CS102: 0 | CT102: 0 | CU102: 0 | CV102: 0 | CW102: 0 | CX102: 0 | CY102: 0 | CZ102: 0 | DA102: 0 | DB102: 0
A103: 2014-01-04 | B103: 22:00:00 | C103: 平日 | D103: 6.9 | E103: 3.8 | F103: 6.62288978 | S103: 6.62288978 | U103: 2014-01-04 | V103: 22:00:00 | W103: 平日 | X103: 6.9 | Y103: 3.8 | Z103: 0 | AA103: 0 | AZ103: 0 | BA103: 0 | BD103: 2014-01-04 | BE103: 22:00:00 | BF103: 平日 | BG103: 6.9 | BH103: 3.8 | BI103: 6622.88978 | BJ103: 0 | BK103: 0 | BL103: 0 | BM103: 0 | BN103: 0 | BO103: 0 | BP103: 0 | BQ103: 0 | BR103: 0 | BS103: 0 | BT103: 0 | BU103: 0 | BX103: 2014-01-04 | BY103: 22:00:00 | BZ103: 平日 | CA103: 6.9 | CB103: 3.8 | CC103: 0 | CD103: 0 | CE103: 0 | CF103: 0 | CG103: 0 | CH103: 0 | CI103: 0 | CJ103: 0 | CK103: 0 | CL103: 0 | CM103: 0 | CN103: 0 | CO103: 0 | CP103: 0 | CQ103: 0 | CR103: 0 | CS103: 0 | CT103: 0 | CU103: 0 | CV103: 0 | CW103: 0 | CX103: 0 | CY103: 0 | CZ103: 0 | DA103: 0 | DB103: 0
A104: 2014-01-04 | B104: 23:00:00 | C104: 平日 | D104: 5.5 | E104: 3.9 | F104: 0 | S104: 0 | U104: 2014-01-04 | V104: 23:00:00 | W104: 平日 | X104: 5.5 | Y104: 3.9 | Z104: 0 | AA104: 0 | AZ104: 0 | BA104: 0 | BD104: 2014-01-04 | BE104: 23:00:00 | BF104: 平日 | BG104: 5.5 | BH104: 3.9 | BI104: 0 | BJ104: 0 | BK104: 0 | BL104: 0 | BM104: 0 | BN104: 0 | BO104: 0 | BP104: 0 | BQ104: 0 | BR104: 0 | BS104: 0 | BT104: 0 | BU104: 0 | BX104: 2014-01-04 | BY104: 23:00:00 | BZ104: 平日 | CA104: 5.5 | CB104: 3.9 | CC104: 0 | CD104: 0 | CE104: 0 | CF104: 0 | CG104: 0 | CH104: 0 | CI104: 0 | CJ104: 0 | CK104: 0 | CL104: 0 | CM104: 0 | CN104: 0 | CO104: 0 | CP104: 0 | CQ104: 0 | CR104: 0 | CS104: 0 | CT104: 0 | CU104: 0 | CV104: 0 | CW104: 0 | CX104: 0 | CY104: 0 | CZ104: 0 | DA104: 0 | DB104: 0
A105: 2014-01-05 | B105: 00:00:00 | C105: 平日 | D105: 6.5 | E105: 3.7 | F105: 0 | S105: 0 | U105: 2014-01-05 | V105: 00:00:00 | W105: 平日 | X105: 6.5 | Y105: 3.7 | Z105: 0 | AA105: 0 | AZ105: 0 | BA105: 0 | BD105: 2014-01-05 | BE105: 00:00:00 | BF105: 平日 | BG105: 6.5 | BH105: 3.7 | BI105: 0 | BJ105: 0 | BK105: 0 | BL105: 0 | BM105: 0 | BN105: 0 | BO105: 0 | BP105: 0 | BQ105: 0 | BR105: 0 | BS105: 0 | BT105: 0 | BU105: 0 | BX105: 2014-01-05 | BY105: 00:00:00 | BZ105: 平日 | CA105: 6.5 | CB105: 3.7 | CC105: 0 | CD105: 0 | CE105: 0 | CF105: 0 | CG105: 0 | CH105: 0 | CI105: 0 | CJ105: 0 | CK105: 0 | CL105: 0 | CM105: 0 | CN105: 0 | CO105: 0 | CP105: 0 | CQ105: 0 | CR105: 0 | CS105: 0 | CT105: 0 | CU105: 0 | CV105: 0 | CW105: 0 | CX105: 0 | CY105: 0 | CZ105: 0 | DA105: 0 | DB105: 0
A106: 2014-01-05 | B106: 01:00:00 | C106: 平日 | D106: 6.3 | E106: 3.8 | F106: 0 | S106: 0 | U106: 2014-01-05 | V106: 01:00:00 | W106: 平日 | X106: 6.3 | Y106: 3.8 | Z106: 0 | AA106: 0 | AZ106: 0 | BA106: 0 | BD106: 2014-01-05 | BE106: 01:00:00 | BF106: 平日 | BG106: 6.3 | BH106: 3.8 | BI106: 0 | BJ106: 0 | BK106: 0 | BL106: 0 | BM106: 0 | BN106: 0 | BO106: 0 | BP106: 0 | BQ106: 0 | BR106: 0 | BS106: 0 | BT106: 0 | BU106: 0 | BX106: 2014-01-05 | BY106: 01:00:00 | BZ106: 平日 | CA106: 6.3 | CB106: 3.8 | CC106: 0 | CD106: 0 | CE106: 0 | CF106: 0 | CG106: 0 | CH106: 0 | CI106: 0 | CJ106: 0 | CK106: 0 | CL106: 0 | CM106: 0 | CN106: 0 | CO106: 0 | CP106: 0 | CQ106: 0 | CR106: 0 | CS106: 0 | CT106: 0 | CU106: 0 | CV106: 0 | CW106: 0 | CX106: 0 | CY106: 0 | CZ106: 0 | DA106: 0 | DB106: 0
A107: 2014-01-05 | B107: 02:00:00 | C107: 平日 | D107: 5.7 | E107: 3.9 | F107: 0 | S107: 0 | U107: 2014-01-05 | V107: 02:00:00 | W107: 平日 | X107: 5.7 | Y107: 3.9 | Z107: 0 | AA107: 0 | AZ107: 0 | BA107: 0 | BD107: 2014-01-05 | BE107: 02:00:00 | BF107: 平日 | BG107: 5.7 | BH107: 3.9 | BI107: 0 | BJ107: 0 | BK107: 0 | BL107: 0 | BM107: 0 | BN107: 0 | BO107: 0 | BP107: 0 | BQ107: 0 | BR107: 0 | BS107: 0 | BT107: 0 | BU107: 0 | BX107: 2014-01-05 | BY107: 02:00:00 | BZ107: 平日 | CA107: 5.7 | CB107: 3.9 | CC107: 0 | CD107: 0 | CE107: 0 | CF107: 0 | CG107: 0 | CH107: 0 | CI107: 0 | CJ107: 0 | CK107: 0 | CL107: 0 | CM107: 0 | CN107: 0 | CO107: 0 | CP107: 0 | CQ107: 0 | CR107: 0 | CS107: 0 | CT107: 0 | CU107: 0 | CV107: 0 | CW107: 0 | CX107: 0 | CY107: 0 | CZ107: 0 | DA107: 0 | DB107: 0
A108: 2014-01-05 | B108: 03:00:00 | C108: 平日 | D108: 6.3 | E108: 3.7 | F108: 0 | S108: 0 | U108: 2014-01-05 | V108: 03:00:00 | W108: 平日 | X108: 6.3 | Y108: 3.7 | Z108: 0 | AA108: 0 | AZ108: 0 | BA108: 0 | BD108: 2014-01-05 | BE108: 03:00:00 | BF108: 平日 | BG108: 6.3 | BH108: 3.7 | BI108: 0 | BJ108: 0 | BK108: 0 | BL108: 0 | BM108: 0 | BN108: 0 | BO108: 0 | BP108: 0 | BQ108: 0 | BR108: 0 | BS108: 0 | BT108: 0 | BU108: 0 | BX108: 2014-01-05 | BY108: 03:00:00 | BZ108: 平日 | CA108: 6.3 | CB108: 3.7 | CC108: 0 | CD108: 0 | CE108: 0 | CF108: 0 | CG108: 0 | CH108: 0 | CI108: 0 | CJ108: 0 | CK108: 0 | CL108: 0 | CM108: 0 | CN108: 0 | CO108: 0 | CP108: 0 | CQ108: 0 | CR108: 0 | CS108: 0 | CT108: 0 | CU108: 0 | CV108: 0 | CW108: 0 | CX108: 0 | CY108: 0 | CZ108: 0 | DA108: 0 | DB108: 0
A109: 2014-01-05 | B109: 04:00:00 | C109: 平日 | D109: 6.8 | E109: 3.6 | F109: 0 | S109: 0 | U109: 2014-01-05 | V109: 04:00:00 | W109: 平日 | X109: 6.8 | Y109: 3.6 | Z109: 0 | AA109: 0 | AZ109: 0 | BA109: 0 | BD109: 2014-01-05 | BE109: 04:00:00 | BF109: 平日 | BG109: 6.8 | BH109: 3.6 | BI109: 0 | BJ109: 0 | BK109: 0 | BL109: 0 | BM109: 0 | BN109: 0 | BO109: 0 | BP109: 0 | BQ109: 0 | BR109: 0 | BS109: 0 | BT109: 0 | BU109: 0 | BX109: 2014-01-05 | BY109: 04:00:00 | BZ109: 平日 | CA109: 6.8 | CB109: 3.6 | CC109: 0 | CD109: 0 | CE109: 0 | CF109: 0 | CG109: 0 | CH109: 0 | CI109: 0 | CJ109: 0 | CK109: 0 | CL109: 0 | CM109: 0 | CN109: 0 | CO109: 0 | CP109: 0 | CQ109: 0 | CR109: 0 | CS109: 0 | CT109: 0 | CU109: 0 | CV109: 0 | CW109: 0 | CX109: 0 | CY109: 0 | CZ109: 0 | DA109: 0 | DB109: 0
A110: 2014-01-05 | B110: 05:00:00 | C110: 平日 | D110: 5.9 | E110: 3.8 | F110: 23.85136524 | S110: 23.85136524 | U110: 2014-01-05 | V110: 05:00:00 | W110: 平日 | X110: 5.9 | Y110: 3.8 | Z110: 0 | AA110: 0 | AZ110: 0 | BA110: 0 | BD110: 2014-01-05 | BE110: 05:00:00 | BF110: 平日 | BG110: 5.9 | BH110: 3.8 | BI110: 23851.36524 | BJ110: 0 | BK110: 0 | BL110: 0 | BM110: 0 | BN110: 0 | BO110: 0 | BP110: 0 | BQ110: 0 | BR110: 0 | BS110: 0 | BT110: 0 | BU110: 0 | BX110: 2014-01-05 | BY110: 05:00:00 | BZ110: 平日 | CA110: 5.9 | CB110: 3.8 | CC110: 0 | CD110: 0 | CE110: 0 | CF110: 0 | CG110: 0 | CH110: 0 | CI110: 0 | CJ110: 0 | CK110: 0 | CL110: 0 | CM110: 0 | CN110: 0 | CO110: 0 | CP110: 0 | CQ110: 0 | CR110: 0 | CS110: 0 | CT110: 0 | CU110: 0 | CV110: 0 | CW110: 0 | CX110: 0 | CY110: 0 | CZ110: 0 | DA110: 0 | DB110: 0
A111: 2014-01-05 | B111: 06:00:00 | C111: 平日 | D111: 5.6 | E111: 3.6 | F111: 9.843800766 | S111: 9.843800766 | U111: 2014-01-05 | V111: 06:00:00 | W111: 平日 | X111: 5.6 | Y111: 3.6 | Z111: 0 | AA111: 0 | AZ111: 0 | BA111: 0 | BD111: 2014-01-05 | BE111: 06:00:00 | BF111: 平日 | BG111: 5.6 | BH111: 3.6 | BI111: 9843.800766 | BJ111: 0 | BK111: 0 | BL111: 0 | BM111: 0 | BN111: 0 | BO111: 0 | BP111: 0 | BQ111: 0 | BR111: 0 | BS111: 0 | BT111: 0 | BU111: 0 | BX111: 2014-01-05 | BY111: 06:00:00 | BZ111: 平日 | CA111: 5.6 | CB111: 3.6 | CC111: 0 | CD111: 0 | CE111: 0 | CF111: 0 | CG111: 0 | CH111: 0 | CI111: 0 | CJ111: 0 | CK111: 0 | CL111: 0 | CM111: 0 | CN111: 0 | CO111: 0 | CP111: 0 | CQ111: 0 | CR111: 0 | CS111: 0 | CT111: 0 | CU111: 0 | CV111: 0 | CW111: 0 | CX111: 0 | CY111: 0 | CZ111: 0 | DA111: 0 | DB111: 0
A112: 2014-01-05 | B112: 07:00:00 | C112: 平日 | D112: 5.2 | E112: 3.4 | F112: 7.502336533 | S112: 7.502336533 | U112: 2014-01-05 | V112: 07:00:00 | W112: 平日 | X112: 5.2 | Y112: 3.4 | Z112: 0 | AA112: 0 | AZ112: 0 | BA112: 0 | BD112: 2014-01-05 | BE112: 07:00:00 | BF112: 平日 | BG112: 5.2 | BH112: 3.4 | BI112: 7502.336533 | BJ112: 0 | BK112: 0 | BL112: 0 | BM112: 0 | BN112: 0 | BO112: 0 | BP112: 0 | BQ112: 0 | BR112: 0 | BS112: 0 | BT112: 0 | BU112: 0 | BX112: 2014-01-05 | BY112: 07:00:00 | BZ112: 平日 | CA112: 5.2 | CB112: 3.4 | CC112: 0 | CD112: 0 | CE112: 0 | CF112: 0 | CG112: 0 | CH112: 0 | CI112: 0 | CJ112: 0 | CK112: 0 | CL112: 0 | CM112: 0 | CN112: 0 | CO112: 0 | CP112: 0 | CQ112: 0 | CR112: 0 | CS112: 0 | CT112: 0 | CU112: 0 | CV112: 0 | CW112: 0 | CX112: 0 | CY112: 0 | CZ112: 0 | DA112: 0 | DB112: 0
A113: 2014-01-05 | B113: 08:00:00 | C113: 平日 | D113: 5.2 | E113: 3.1 | F113: 6.107230739 | S113: 6.107230739 | U113: 2014-01-05 | V113: 08:00:00 | W113: 平日 | X113: 5.2 | Y113: 3.1 | Z113: 0 | AA113: 0 | AZ113: 0 | BA113: 0 | BD113: 2014-01-05 | BE113: 08:00:00 | BF113: 平日 | BG113: 5.2 | BH113: 3.1 | BI113: 6107.230739 | BJ113: 0 | BK113: 0 | BL113: 0 | BM113: 0 | BN113: 0 | BO113: 0 | BP113: 0 | BQ113: 0 | BR113: 0 | BS113: 0 | BT113: 0 | BU113: 0 | BX113: 2014-01-05 | BY113: 08:00:00 | BZ113: 平日 | CA113: 5.2 | CB113: 3.1 | CC113: 0 | CD113: 0 | CE113: 0 | CF113: 0 | CG113: 0 | CH113: 0 | CI113: 0 | CJ113: 0 | CK113: 0 | CL113: 0 | CM113: 0 | CN113: 0 | CO113: 0 | CP113: 0 | CQ113: 0 | CR113: 0 | CS113: 0 | CT113: 0 | CU113: 0 | CV113: 0 | CW113: 0 | CX113: 0 | CY113: 0 | CZ113: 0 | DA113: 0 | DB113: 0
A114: 2014-01-05 | B114: 09:00:00 | C114: 平日 | D114: 6.4 | E114: 3 | F114: 0 | S114: 0 | U114: 2014-01-05 | V114: 09:00:00 | W114: 平日 | X114: 6.4 | Y114: 3 | Z114: 0 | AA114: 0 | AZ114: 0 | BA114: 0 | BD114: 2014-01-05 | BE114: 09:00:00 | BF114: 平日 | BG114: 6.4 | BH114: 3 | BI114: 0 | BJ114: 0 | BK114: 0 | BL114: 0 | BM114: 0 | BN114: 0 | BO114: 0 | BP114: 0 | BQ114: 0 | BR114: 0 | BS114: 0 | BT114: 0 | BU114: 0 | BX114: 2014-01-05 | BY114: 09:00:00 | BZ114: 平日 | CA114: 6.4 | CB114: 3 | CC114: 0 | CD114: 0 | CE114: 0 | CF114: 0 | CG114: 0 | CH114: 0 | CI114: 0 | CJ114: 0 | CK114: 0 | CL114: 0 | CM114: 0 | CN114: 0 | CO114: 0 | CP114: 0 | CQ114: 0 | CR114: 0 | CS114: 0 | CT114: 0 | CU114: 0 | CV114: 0 | CW114: 0 | CX114: 0 | CY114: 0 | CZ114: 0 | DA114: 0 | DB114: 0
A115: 2014-01-05 | B115: 10:00:00 | C115: 平日 | D115: 7.2 | E115: 2.8 | F115: 0 | S115: 0 | U115: 2014-01-05 | V115: 10:00:00 | W115: 平日 | X115: 7.2 | Y115: 2.8 | Z115: 0 | AA115: 0 | AZ115: 0 | BA115: 0 | BD115: 2014-01-05 | BE115: 10:00:00 | BF115: 平日 | BG115: 7.2 | BH115: 2.8 | BI115: 0 | BJ115: 0 | BK115: 0 | BL115: 0 | BM115: 0 | BN115: 0 | BO115: 0 | BP115: 0 | BQ115: 0 | BR115: 0 | BS115: 0 | BT115: 0 | BU115: 0 | BX115: 2014-01-05 | BY115: 10:00:00 | BZ115: 平日 | CA115: 7.2 | CB115: 2.8 | CC115: 0 | CD115: 0 | CE115: 0 | CF115: 0 | CG115: 0 | CH115: 0 | CI115: 0 | CJ115: 0 | CK115: 0 | CL115: 0 | CM115: 0 | CN115: 0 | CO115: 0 | CP115: 0 | CQ115: 0 | CR115: 0 | CS115: 0 | CT115: 0 | CU115: 0 | CV115: 0 | CW115: 0 | CX115: 0 | CY115: 0 | CZ115: 0 | DA115: 0 | DB115: 0
A116: 2014-01-05 | B116: 11:00:00 | C116: 平日 | D116: 7.7 | E116: 2.9 | F116: 5.06049336 | S116: 5.06049336 | U116: 2014-01-05 | V116: 11:00:00 | W116: 平日 | X116: 7.7 | Y116: 2.9 | Z116: 0 | AA116: 0 | AZ116: 0 | BA116: 0 | BD116: 2014-01-05 | BE116: 11:00:00 | BF116: 平日 | BG116: 7.7 | BH116: 2.9 | BI116: 5060.49336 | BJ116: 0 | BK116: 0 | BL116: 0 | BM116: 0 | BN116: 0 | BO116: 0 | BP116: 0 | BQ116: 0 | BR116: 0 | BS116: 0 | BT116: 0 | BU116: 0 | BX116: 2014-01-05 | BY116: 11:00:00 | BZ116: 平日 | CA116: 7.7 | CB116: 2.9 | CC116: 0 | CD116: 0 | CE116: 0 | CF116: 0 | CG116: 0 | CH116: 0 | CI116: 0 | CJ116: 0 | CK116: 0 | CL116: 0 | CM116: 0 | CN116: 0 | CO116: 0 | CP116: 0 | CQ116: 0 | CR116: 0 | CS116: 0 | CT116: 0 | CU116: 0 | CV116: 0 | CW116: 0 | CX116: 0 | CY116: 0 | CZ116: 0 | DA116: 0 | DB116: 0
A117: 2014-01-05 | B117: 12:00:00 | C117: 平日 | D117: 7.6 | E117: 2.7 | F117: 1.721768726 | S117: 1.721768726 | U117: 2014-01-05 | V117: 12:00:00 | W117: 平日 | X117: 7.6 | Y117: 2.7 | Z117: 0 | AA117: 0 | AZ117: 0 | BA117: 0 | BD117: 2014-01-05 | BE117: 12:00:00 | BF117: 平日 | BG117: 7.6 | BH117: 2.7 | BI117: 1721.768726 | BJ117: 0 | BK117: 0 | BL117: 0 | BM117: 0 | BN117: 0 | BO117: 0 | BP117: 0 | BQ117: 0 | BR117: 0 | BS117: 0 | BT117: 0 | BU117: 0 | BX117: 2014-01-05 | BY117: 12:00:00 | BZ117: 平日 | CA117: 7.6 | CB117: 2.7 | CC117: 0 | CD117: 0 | CE117: 0 | CF117: 0 | CG117: 0 | CH117: 0 | CI117: 0 | CJ117: 0 | CK117: 0 | CL117: 0 | CM117: 0 | CN117: 0 | CO117: 0 | CP117: 0 | CQ117: 0 | CR117: 0 | CS117: 0 | CT117: 0 | CU117: 0 | CV117: 0 | CW117: 0 | CX117: 0 | CY117: 0 | CZ117: 0 | DA117: 0 | DB117: 0
A118: 2014-01-05 | B118: 13:00:00 | C118: 平日 | D118: 7 | E118: 2.9 | F118: 0 | S118: 0 | U118: 2014-01-05 | V118: 13:00:00 | W118: 平日 | X118: 7 | Y118: 2.9 | Z118: 0 | AA118: 0 | AZ118: 0 | BA118: 0 | BD118: 2014-01-05 | BE118: 13:00:00 | BF118: 平日 | BG118: 7 | BH118: 2.9 | BI118: 0 | BJ118: 0 | BK118: 0 | BL118: 0 | BM118: 0 | BN118: 0 | BO118: 0 | BP118: 0 | BQ118: 0 | BR118: 0 | BS118: 0 | BT118: 0 | BU118: 0 | BX118: 2014-01-05 | BY118: 13:00:00 | BZ118: 平日 | CA118: 7 | CB118: 2.9 | CC118: 0 | CD118: 0 | CE118: 0 | CF118: 0 | CG118: 0 | CH118: 0 | CI118: 0 | CJ118: 0 | CK118: 0 | CL118: 0 | CM118: 0 | CN118: 0 | CO118: 0 | CP118: 0 | CQ118: 0 | CR118: 0 | CS118: 0 | CT118: 0 | CU118: 0 | CV118: 0 | CW118: 0 | CX118: 0 | CY118: 0 | CZ118: 0 | DA118: 0 | DB118: 0
A119: 2014-01-05 | B119: 14:00:00 | C119: 平日 | D119: 7.4 | E119: 2.7 | F119: 0 | S119: 0 | U119: 2014-01-05 | V119: 14:00:00 | W119: 平日 | X119: 7.4 | Y119: 2.7 | Z119: 0 | AA119: 0 | AZ119: 0 | BA119: 0 | BD119: 2014-01-05 | BE119: 14:00:00 | BF119: 平日 | BG119: 7.4 | BH119: 2.7 | BI119: 0 | BJ119: 0 | BK119: 0 | BL119: 0 | BM119: 0 | BN119: 0 | BO119: 0 | BP119: 0 | BQ119: 0 | BR119: 0 | BS119: 0 | BT119: 0 | BU119: 0 | BX119: 2014-01-05 | BY119: 14:00:00 | BZ119: 平日 | CA119: 7.4 | CB119: 2.7 | CC119: 0 | CD119: 0 | CE119: 0 | CF119: 0 | CG119: 0 | CH119: 0 | CI119: 0 | CJ119: 0 | CK119: 0 | CL119: 0 | CM119: 0 | CN119: 0 | CO119: 0 | CP119: 0 | CQ119: 0 | CR119: 0 | CS119: 0 | CT119: 0 | CU119: 0 | CV119: 0 | CW119: 0 | CX119: 0 | CY119: 0 | CZ119: 0 | DA119: 0 | DB119: 0
A120: 2014-01-05 | B120: 15:00:00 | C120: 平日 | D120: 6.6 | E120: 2.5 | F120: 2.216123943 | S120: 2.216123943 | U120: 2014-01-05 | V120: 15:00:00 | W120: 平日 | X120: 6.6 | Y120: 2.5 | Z120: 0 | AA120: 0 | AZ120: 0 | BA120: 0 | BD120: 2014-01-05 | BE120: 15:00:00 | BF120: 平日 | BG120: 6.6 | BH120: 2.5 | BI120: 2216.123943 | BJ120: 0 | BK120: 0 | BL120: 0 | BM120: 0 | BN120: 0 | BO120: 0 | BP120: 0 | BQ120: 0 | BR120: 0 | BS120: 0 | BT120: 0 | BU120: 0 | BX120: 2014-01-05 | BY120: 15:00:00 | BZ120: 平日 | CA120: 6.6 | CB120: 2.5 | CC120: 0 | CD120: 0 | CE120: 0 | CF120: 0 | CG120: 0 | CH120: 0 | CI120: 0 | CJ120: 0 | CK120: 0 | CL120: 0 | CM120: 0 | CN120: 0 | CO120: 0 | CP120: 0 | CQ120: 0 | CR120: 0 | CS120: 0 | CT120: 0 | CU120: 0 | CV120: 0 | CW120: 0 | CX120: 0 | CY120: 0 | CZ120: 0 | DA120: 0 | DB120: 0
A121: 2014-01-05 | B121: 16:00:00 | C121: 平日 | D121: 5.9 | E121: 2.5 | F121: 3.901386358 | S121: 3.901386358 | U121: 2014-01-05 | V121: 16:00:00 | W121: 平日 | X121: 5.9 | Y121: 2.5 | Z121: 0 | AA121: 0 | AZ121: 0 | BA121: 0 | BD121: 2014-01-05 | BE121: 16:00:00 | BF121: 平日 | BG121: 5.9 | BH121: 2.5 | BI121: 3901.386358 | BJ121: 0 | BK121: 0 | BL121: 0 | BM121: 0 | BN121: 0 | BO121: 0 | BP121: 0 | BQ121: 0 | BR121: 0 | BS121: 0 | BT121: 0 | BU121: 0 | BX121: 2014-01-05 | BY121: 16:00:00 | BZ121: 平日 | CA121: 5.9 | CB121: 2.5 | CC121: 0 | CD121: 0 | CE121: 0 | CF121: 0 | CG121: 0 | CH121: 0 | CI121: 0 | CJ121: 0 | CK121: 0 | CL121: 0 | CM121: 0 | CN121: 0 | CO121: 0 | CP121: 0 | CQ121: 0 | CR121: 0 | CS121: 0 | CT121: 0 | CU121: 0 | CV121: 0 | CW121: 0 | CX121: 0 | CY121: 0 | CZ121: 0 | DA121: 0 | DB121: 0
A122: 2014-01-05 | B122: 17:00:00 | C122: 平日 | D122: 4.9 | E122: 2.4 | F122: 7.927921966 | S122: 7.927921966 | U122: 2014-01-05 | V122: 17:00:00 | W122: 平日 | X122: 4.9 | Y122: 2.4 | Z122: 0 | AA122: 0 | AZ122: 0 | BA122: 0 | BD122: 2014-01-05 | BE122: 17:00:00 | BF122: 平日 | BG122: 4.9 | BH122: 2.4 | BI122: 7927.921966 | BJ122: 0 | BK122: 0 | BL122: 0 | BM122: 0 | BN122: 0 | BO122: 0 | BP122: 0 | BQ122: 0 | BR122: 0 | BS122: 0 | BT122: 0 | BU122: 0 | BX122: 2014-01-05 | BY122: 17:00:00 | BZ122: 平日 | CA122: 4.9 | CB122: 2.4 | CC122: 0 | CD122: 0 | CE122: 0 | CF122: 0 | CG122: 0 | CH122: 0 | CI122: 0 | CJ122: 0 | CK122: 0 | CL122: 0 | CM122: 0 | CN122: 0 | CO122: 0 | CP122: 0 | CQ122: 0 | CR122: 0 | CS122: 0 | CT122: 0 | CU122: 0 | CV122: 0 | CW122: 0 | CX122: 0 | CY122: 0 | CZ122: 0 | DA122: 0 | DB122: 0
A123: 2014-01-05 | B123: 18:00:00 | C123: 平日 | D123: 4.2 | E123: 2.7 | F123: 8.960075923 | S123: 8.960075923 | U123: 2014-01-05 | V123: 18:00:00 | W123: 平日 | X123: 4.2 | Y123: 2.7 | Z123: 0 | AA123: 0 | AZ123: 0 | BA123: 0 | BD123: 2014-01-05 | BE123: 18:00:00 | BF123: 平日 | BG123: 4.2 | BH123: 2.7 | BI123: 8960.075923 | BJ123: 0 | BK123: 0 | BL123: 0 | BM123: 0 | BN123: 0 | BO123: 0 | BP123: 0 | BQ123: 0 | BR123: 0 | BS123: 0 | BT123: 0 | BU123: 0 | BX123: 2014-01-05 | BY123: 18:00:00 | BZ123: 平日 | CA123: 4.2 | CB123: 2.7 | CC123: 0 | CD123: 0 | CE123: 0 | CF123: 0 | CG123: 0 | CH123: 0 | CI123: 0 | CJ123: 0 | CK123: 0 | CL123: 0 | CM123: 0 | CN123: 0 | CO123: 0 | CP123: 0 | CQ123: 0 | CR123: 0 | CS123: 0 | CT123: 0 | CU123: 0 | CV123: 0 | CW123: 0 | CX123: 0 | CY123: 0 | CZ123: 0 | DA123: 0 | DB123: 0
A124: 2014-01-05 | B124: 19:00:00 | C124: 平日 | D124: 4 | E124: 2.7 | F124: 6.233117069 | S124: 6.233117069 | U124: 2014-01-05 | V124: 19:00:00 | W124: 平日 | X124: 4 | Y124: 2.7 | Z124: 0 | AA124: 0 | AZ124: 0 | BA124: 0 | BD124: 2014-01-05 | BE124: 19:00:00 | BF124: 平日 | BG124: 4 | BH124: 2.7 | BI124: 6233.117069 | BJ124: 0 | BK124: 0 | BL124: 0 | BM124: 0 | BN124: 0 | BO124: 0 | BP124: 0 | BQ124: 0 | BR124: 0 | BS124: 0 | BT124: 0 | BU124: 0 | BX124: 2014-01-05 | BY124: 19:00:00 | BZ124: 平日 | CA124: 4 | CB124: 2.7 | CC124: 0 | CD124: 0 | CE124: 0 | CF124: 0 | CG124: 0 | CH124: 0 | CI124: 0 | CJ124: 0 | CK124: 0 | CL124: 0 | CM124: 0 | CN124: 0 | CO124: 0 | CP124: 0 | CQ124: 0 | CR124: 0 | CS124: 0 | CT124: 0 | CU124: 0 | CV124: 0 | CW124: 0 | CX124: 0 | CY124: 0 | CZ124: 0 | DA124: 0 | DB124: 0
A125: 2014-01-05 | B125: 20:00:00 | C125: 平日 | D125: 2.9 | E125: 2.9 | F125: 7.298841902 | S125: 7.298841902 | U125: 2014-01-05 | V125: 20:00:00 | W125: 平日 | X125: 2.9 | Y125: 2.9 | Z125: 0 | AA125: 0 | AZ125: 0 | BA125: 0 | BD125: 2014-01-05 | BE125: 20:00:00 | BF125: 平日 | BG125: 2.9 | BH125: 2.9 | BI125: 7298.841902 | BJ125: 0 | BK125: 0 | BL125: 0 | BM125: 0 | BN125: 0 | BO125: 0 | BP125: 0 | BQ125: 0 | BR125: 0 | BS125: 0 | BT125: 0 | BU125: 0 | BX125: 2014-01-05 | BY125: 20:00:00 | BZ125: 平日 | CA125: 2.9 | CB125: 2.9 | CC125: 0 | CD125: 0 | CE125: 0 | CF125: 0 | CG125: 0 | CH125: 0 | CI125: 0 | CJ125: 0 | CK125: 0 | CL125: 0 | CM125: 0 | CN125: 0 | CO125: 0 | CP125: 0 | CQ125: 0 | CR125: 0 | CS125: 0 | CT125: 0 | CU125: 0 | CV125: 0 | CW125: 0 | CX125: 0 | CY125: 0 | CZ125: 0 | DA125: 0 | DB125: 0
A126: 2014-01-05 | B126: 21:00:00 | C126: 平日 | D126: 2.9 | E126: 3 | F126: 7.909954241 | S126: 7.909954241 | U126: 2014-01-05 | V126: 21:00:00 | W126: 平日 | X126: 2.9 | Y126: 3 | Z126: 0 | AA126: 0 | AZ126: 0 | BA126: 0 | BD126: 2014-01-05 | BE126: 21:00:00 | BF126: 平日 | BG126: 2.9 | BH126: 3 | BI126: 7909.954241 | BJ126: 0 | BK126: 0 | BL126: 0 | BM126: 0 | BN126: 0 | BO126: 0 | BP126: 0 | BQ126: 0 | BR126: 0 | BS126: 0 | BT126: 0 | BU126: 0 | BX126: 2014-01-05 | BY126: 21:00:00 | BZ126: 平日 | CA126: 2.9 | CB126: 3 | CC126: 0 | CD126: 0 | CE126: 0 | CF126: 0 | CG126: 0 | CH126: 0 | CI126: 0 | CJ126: 0 | CK126: 0 | CL126: 0 | CM126: 0 | CN126: 0 | CO126: 0 | CP126: 0 | CQ126: 0 | CR126: 0 | CS126: 0 | CT126: 0 | CU126: 0 | CV126: 0 | CW126: 0 | CX126: 0 | CY126: 0 | CZ126: 0 | DA126: 0 | DB126: 0
A127: 2014-01-05 | B127: 22:00:00 | C127: 平日 | D127: 1.9 | E127: 3.1 | F127: 8.655214312 | S127: 8.655214312 | U127: 2014-01-05 | V127: 22:00:00 | W127: 平日 | X127: 1.9 | Y127: 3.1 | Z127: 0 | AA127: 0 | AZ127: 0 | BA127: 0 | BD127: 2014-01-05 | BE127: 22:00:00 | BF127: 平日 | BG127: 1.9 | BH127: 3.1 | BI127: 8655.214312 | BJ127: 0 | BK127: 0 | BL127: 0 | BM127: 0 | BN127: 0 | BO127: 0 | BP127: 0 | BQ127: 0 | BR127: 0 | BS127: 0 | BT127: 0 | BU127: 0 | BX127: 2014-01-05 | BY127: 22:00:00 | BZ127: 平日 | CA127: 1.9 | CB127: 3.1 | CC127: 0 | CD127: 0 | CE127: 0 | CF127: 0 | CG127: 0 | CH127: 0 | CI127: 0 | CJ127: 0 | CK127: 0 | CL127: 0 | CM127: 0 | CN127: 0 | CO127: 0 | CP127: 0 | CQ127: 0 | CR127: 0 | CS127: 0 | CT127: 0 | CU127: 0 | CV127: 0 | CW127: 0 | CX127: 0 | CY127: 0 | CZ127: 0 | DA127: 0 | DB127: 0
A128: 2014-01-05 | B128: 23:00:00 | C128: 平日 | D128: 1.8 | E128: 3 | F128: 0 | S128: 0 | U128: 2014-01-05 | V128: 23:00:00 | W128: 平日 | X128: 1.8 | Y128: 3 | Z128: 0 | AA128: 0 | AZ128: 0 | BA128: 0 | BD128: 2014-01-05 | BE128: 23:00:00 | BF128: 平日 | BG128: 1.8 | BH128: 3 | BI128: 0 | BJ128: 0 | BK128: 0 | BL128: 0 | BM128: 0 | BN128: 0 | BO128: 0 | BP128: 0 | BQ128: 0 | BR128: 0 | BS128: 0 | BT128: 0 | BU128: 0 | BX128: 2014-01-05 | BY128: 23:00:00 | BZ128: 平日 | CA128: 1.8 | CB128: 3 | CC128: 0 | CD128: 0 | CE128: 0 | CF128: 0 | CG128: 0 | CH128: 0 | CI128: 0 | CJ128: 0 | CK128: 0 | CL128: 0 | CM128: 0 | CN128: 0 | CO128: 0 | CP128: 0 | CQ128: 0 | CR128: 0 | CS128: 0 | CT128: 0 | CU128: 0 | CV128: 0 | CW128: 0 | CX128: 0 | CY128: 0 | CZ128: 0 | DA128: 0 | DB128: 0
A129: 2014-01-06 | B129: 00:00:00 | C129: 平日 | D129: 1.9 | E129: 3 | F129: 0 | S129: 0 | U129: 2014-01-06 | V129: 00:00:00 | W129: 平日 | X129: 1.9 | Y129: 3 | Z129: 0 | AA129: 0 | AZ129: 0 | BA129: 0 | BD129: 2014-01-06 | BE129: 00:00:00 | BF129: 平日 | BG129: 1.9 | BH129: 3 | BI129: 0 | BJ129: 0 | BK129: 0 | BL129: 0 | BM129: 0 | BN129: 0 | BO129: 0 | BP129: 0 | BQ129: 0 | BR129: 0 | BS129: 0 | BT129: 0 | BU129: 0 | BX129: 2014-01-06 | BY129: 00:00:00 | BZ129: 平日 | CA129: 1.9 | CB129: 3 | CC129: 0 | CD129: 0 | CE129: 0 | CF129: 0 | CG129: 0 | CH129: 0 | CI129: 0 | CJ129: 0 | CK129: 0 | CL129: 0 | CM129: 0 | CN129: 0 | CO129: 0 | CP129: 0 | CQ129: 0 | CR129: 0 | CS129: 0 | CT129: 0 | CU129: 0 | CV129: 0 | CW129: 0 | CX129: 0 | CY129: 0 | CZ129: 0 | DA129: 0 | DB129: 0
A130: 2014-01-06 | B130: 01:00:00 | C130: 平日 | D130: 1.7 | E130: 3.1 | F130: 0 | S130: 0 | U130: 2014-01-06 | V130: 01:00:00 | W130: 平日 | X130: 1.7 | Y130: 3.1 | Z130: 0 | AA130: 0 | AZ130: 0 | BA130: 0 | BD130: 2014-01-06 | BE130: 01:00:00 | BF130: 平日 | BG130: 1.7 | BH130: 3.1 | BI130: 0 | BJ130: 0 | BK130: 0 | BL130: 0 | BM130: 0 | BN130: 0 | BO130: 0 | BP130: 0 | BQ130: 0 | BR130: 0 | BS130: 0 | BT130: 0 | BU130: 0 | BX130: 2014-01-06 | BY130: 01:00:00 | BZ130: 平日 | CA130: 1.7 | CB130: 3.1 | CC130: 0 | CD130: 0 | CE130: 0 | CF130: 0 | CG130: 0 | CH130: 0 | CI130: 0 | CJ130: 0 | CK130: 0 | CL130: 0 | CM130: 0 | CN130: 0 | CO130: 0 | CP130: 0 | CQ130: 0 | CR130: 0 | CS130: 0 | CT130: 0 | CU130: 0 | CV130: 0 | CW130: 0 | CX130: 0 | CY130: 0 | CZ130: 0 | DA130: 0 | DB130: 0
A131: 2014-01-06 | B131: 02:00:00 | C131: 平日 | D131: 2.5 | E131: 3.2 | F131: 0 | S131: 0 | U131: 2014-01-06 | V131: 02:00:00 | W131: 平日 | X131: 2.5 | Y131: 3.2 | Z131: 0 | AA131: 0 | AZ131: 0 | BA131: 0 | BD131: 2014-01-06 | BE131: 02:00:00 | BF131: 平日 | BG131: 2.5 | BH131: 3.2 | BI131: 0 | BJ131: 0 | BK131: 0 | BL131: 0 | BM131: 0 | BN131: 0 | BO131: 0 | BP131: 0 | BQ131: 0 | BR131: 0 | BS131: 0 | BT131: 0 | BU131: 0 | BX131: 2014-01-06 | BY131: 02:00:00 | BZ131: 平日 | CA131: 2.5 | CB131: 3.2 | CC131: 0 | CD131: 0 | CE131: 0 | CF131: 0 | CG131: 0 | CH131: 0 | CI131: 0 | CJ131: 0 | CK131: 0 | CL131: 0 | CM131: 0 | CN131: 0 | CO131: 0 | CP131: 0 | CQ131: 0 | CR131: 0 | CS131: 0 | CT131: 0 | CU131: 0 | CV131: 0 | CW131: 0 | CX131: 0 | CY131: 0 | CZ131: 0 | DA131: 0 | DB131: 0
A132: 2014-01-06 | B132: 03:00:00 | C132: 平日 | D132: 2.7 | E132: 2.9 | F132: 0 | S132: 0 | U132: 2014-01-06 | V132: 03:00:00 | W132: 平日 | X132: 2.7 | Y132: 2.9 | Z132: 0 | AA132: 0 | AZ132: 0 | BA132: 0 | BD132: 2014-01-06 | BE132: 03:00:00 | BF132: 平日 | BG132: 2.7 | BH132: 2.9 | BI132: 0 | BJ132: 0 | BK132: 0 | BL132: 0 | BM132: 0 | BN132: 0 | BO132: 0 | BP132: 0 | BQ132: 0 | BR132: 0 | BS132: 0 | BT132: 0 | BU132: 0 | BX132: 2014-01-06 | BY132: 03:00:00 | BZ132: 平日 | CA132: 2.7 | CB132: 2.9 | CC132: 0 | CD132: 0 | CE132: 0 | CF132: 0 | CG132: 0 | CH132: 0 | CI132: 0 | CJ132: 0 | CK132: 0 | CL132: 0 | CM132: 0 | CN132: 0 | CO132: 0 | CP132: 0 | CQ132: 0 | CR132: 0 | CS132: 0 | CT132: 0 | CU132: 0 | CV132: 0 | CW132: 0 | CX132: 0 | CY132: 0 | CZ132: 0 | DA132: 0 | DB132: 0
A133: 2014-01-06 | B133: 04:00:00 | C133: 平日 | D133: 2.8 | E133: 2.5 | F133: 0 | S133: 0 | U133: 2014-01-06 | V133: 04:00:00 | W133: 平日 | X133: 2.8 | Y133: 2.5 | Z133: 0 | AA133: 0 | AZ133: 0 | BA133: 0 | BD133: 2014-01-06 | BE133: 04:00:00 | BF133: 平日 | BG133: 2.8 | BH133: 2.5 | BI133: 0 | BJ133: 0 | BK133: 0 | BL133: 0 | BM133: 0 | BN133: 0 | BO133: 0 | BP133: 0 | BQ133: 0 | BR133: 0 | BS133: 0 | BT133: 0 | BU133: 0 | BX133: 2014-01-06 | BY133: 04:00:00 | BZ133: 平日 | CA133: 2.8 | CB133: 2.5 | CC133: 0 | CD133: 0 | CE133: 0 | CF133: 0 | CG133: 0 | CH133: 0 | CI133: 0 | CJ133: 0 | CK133: 0 | CL133: 0 | CM133: 0 | CN133: 0 | CO133: 0 | CP133: 0 | CQ133: 0 | CR133: 0 | CS133: 0 | CT133: 0 | CU133: 0 | CV133: 0 | CW133: 0 | CX133: 0 | CY133: 0 | CZ133: 0 | DA133: 0 | DB133: 0
A134: 2014-01-06 | B134: 05:00:00 | C134: 平日 | D134: 2.1 | E134: 2.5 | F134: 30.49827208 | S134: 30.49827208 | U134: 2014-01-06 | V134: 05:00:00 | W134: 平日 | X134: 2.1 | Y134: 2.5 | Z134: 0 | AA134: 0 | AZ134: 0 | BA134: 0 | BD134: 2014-01-06 | BE134: 05:00:00 | BF134: 平日 | BG134: 2.1 | BH134: 2.5 | BI134: 30498.27208 | BJ134: 0 | BK134: 0 | BL134: 0 | BM134: 0 | BN134: 0 | BO134: 0 | BP134: 0 | BQ134: 0 | BR134: 0 | BS134: 0 | BT134: 0 | BU134: 0 | BX134: 2014-01-06 | BY134: 05:00:00 | BZ134: 平日 | CA134: 2.1 | CB134: 2.5 | CC134: 0 | CD134: 0 | CE134: 0 | CF134: 0 | CG134: 0 | CH134: 0 | CI134: 0 | CJ134: 0 | CK134: 0 | CL134: 0 | CM134: 0 | CN134: 0 | CO134: 0 | CP134: 0 | CQ134: 0 | CR134: 0 | CS134: 0 | CT134: 0 | CU134: 0 | CV134: 0 | CW134: 0 | CX134: 0 | CY134: 0 | CZ134: 0 | DA134: 0 | DB134: 0
A135: 2014-01-06 | B135: 06:00:00 | C135: 平日 | D135: 1.6 | E135: 2.7 | F135: 13.05918912 | S135: 13.05918912 | U135: 2014-01-06 | V135: 06:00:00 | W135: 平日 | X135: 1.6 | Y135: 2.7 | Z135: 0 | AA135: 0 | AZ135: 0 | BA135: 0 | BD135: 2014-01-06 | BE135: 06:00:00 | BF135: 平日 | BG135: 1.6 | BH135: 2.7 | BI135: 13059.18912 | BJ135: 0 | BK135: 0 | BL135: 0 | BM135: 0 | BN135: 0 | BO135: 0 | BP135: 0 | BQ135: 0 | BR135: 0 | BS135: 0 | BT135: 0 | BU135: 0 | BX135: 2014-01-06 | BY135: 06:00:00 | BZ135: 平日 | CA135: 1.6 | CB135: 2.7 | CC135: 0 | CD135: 0 | CE135: 0 | CF135: 0 | CG135: 0 | CH135: 0 | CI135: 0 | CJ135: 0 | CK135: 0 | CL135: 0 | CM135: 0 | CN135: 0 | CO135: 0 | CP135: 0 | CQ135: 0 | CR135: 0 | CS135: 0 | CT135: 0 | CU135: 0 | CV135: 0 | CW135: 0 | CX135: 0 | CY135: 0 | CZ135: 0 | DA135: 0 | DB135: 0
A136: 2014-01-06 | B136: 07:00:00 | C136: 平日 | D136: 1.4 | E136: 2.7 | F136: 7.74725687 | S136: 7.74725687 | U136: 2014-01-06 | V136: 07:00:00 | W136: 平日 | X136: 1.4 | Y136: 2.7 | Z136: 0 | AA136: 0 | AZ136: 0 | BA136: 0 | BD136: 2014-01-06 | BE136: 07:00:00 | BF136: 平日 | BG136: 1.4 | BH136: 2.7 | BI136: 7747.25687 | BJ136: 0 | BK136: 0 | BL136: 0 | BM136: 0 | BN136: 0 | BO136: 0 | BP136: 0 | BQ136: 0 | BR136: 0 | BS136: 0 | BT136: 0 | BU136: 0 | BX136: 2014-01-06 | BY136: 07:00:00 | BZ136: 平日 | CA136: 1.4 | CB136: 2.7 | CC136: 0 | CD136: 0 | CE136: 0 | CF136: 0 | CG136: 0 | CH136: 0 | CI136: 0 | CJ136: 0 | CK136: 0 | CL136: 0 | CM136: 0 | CN136: 0 | CO136: 0 | CP136: 0 | CQ136: 0 | CR136: 0 | CS136: 0 | CT136: 0 | CU136: 0 | CV136: 0 | CW136: 0 | CX136: 0 | CY136: 0 | CZ136: 0 | DA136: 0 | DB136: 0
A137: 2014-01-06 | B137: 08:00:00 | C137: 平日 | D137: 3.2 | E137: 2.6 | F137: 2.677703428 | S137: 2.677703428 | U137: 2014-01-06 | V137: 08:00:00 | W137: 平日 | X137: 3.2 | Y137: 2.6 | Z137: 0 | AA137: 0 | AZ137: 0 | BA137: 0 | BD137: 2014-01-06 | BE137: 08:00:00 | BF137: 平日 | BG137: 3.2 | BH137: =E137 -> 2.6 | BI137: 2677.703428 | BJ137: =G137*1000 -> 0 | BK137: =H137*1000 -> 0 | BL137: =I137*1000 -> 0 | BM137: =J137*1000 -> 0 | BN137: =K137*1000 -> 0 | BO137: =L137*1000 -> 0 | BP137: =M137*1000 -> 0 | BQ137: =N137*1000 -> 0 | BR137: =O137*1000 -> 0 | BS137: =P137*1000 -> 0 | BT137: =Q137*1000 -> 0 | BU137: =R137*1000 -> 0 | BX137: 2014-01-06 | BY137: 08:00:00 | BZ137: 平日 | CA137: 3.2 | CB137: =Y137 -> 2.6 | CC137: =Z137*1000 -> 0 | CD137: =AA137*1000 -> 0 | CE137: =AB137*1000 -> 0 | CF137: =AC137*1000 -> 0 | CG137: =AD137*1000 -> 0 | CH137: =AE137*1000 -> 0 | CI137: =AF137*1000 -> 0 | CJ137: =AG137*1000 -> 0 | CK137: =AH137*1000 -> 0 | CL137: =AI137*1000 -> 0 | CM137: =AJ137*1000 -> 0 | CN137: =AK137*1000 -> 0 | CO137: =AL137*1000 -> 0 | CP137: =AM137*1000 -> 0 | CQ137: =AN137*1000 -> 0 | CR137: =AO137*1000 -> 0 | CS137: =AP137*1000 -> 0 | CT137: =AQ137*1000 -> 0 | CU137: =AR137*1000 -> 0 | CV137: =AS137*1000 -> 0 | CW137: =AT137*1000 -> 0 | CX137: =AU137*1000 -> 0 | CY137: =AV137*1000 -> 0 | CZ137: =AW137*1000 -> 0 | DA137: =AX137*1000 -> 0 | DB137: =AY137*1000 -> 0
A138: 2014-01-06 | B138: 09:00:00 | C138: 平日 | D138: 4.5 | E138: 2.4 | F138: 0 | S138: =SUM(F138:R138) -> 0 | U138: 2014-01-06 | V138: 09:00:00 | W138: 平日 | X138: 4.5 | Y138: 2.4 | Z138: 0 | AA138: 0 | AZ138: =Z138+AB138+AD138+AF138+AH138+AJ138+AL138+AN138+AP138+AR138+AT138+AV138+AX138 -> 0 | BA138: =AA138+AC138+AE138+AG138+AI138+AK138+AM138+AO138+AQ138+AS138+AU138+AW138+AY138 -> 0 | BD138: 2014-01-06 | BE138: 09:00:00 | BF138: 平日 | BG138: =D138 -> 4.5 | BH138: 2.4 | BI138: =F138*1000 -> 0 | BJ138: 0 | BK138: 0 | BL138: 0 | BM138: 0 | BN138: 0 | BO138: 0 | BP138: 0 | BQ138: 0 | BR138: 0 | BS138: 0 | BT138: 0 | BU138: 0 | BX138: 2014-01-06 | BY138: 09:00:00 | BZ138: 平日 | CA138: =X138 -> 4.5 | CB138: 2.4 | CC138: 0 | CD138: 0 | CE138: 0 | CF138: 0 | CG138: 0 | CH138: 0 | CI138: 0 | CJ138: 0 | CK138: 0 | CL138: 0 | CM138: 0 | CN138: 0 | CO138: 0 | CP138: 0 | CQ138: 0 | CR138: 0 | CS138: 0 | CT138: 0 | CU138: 0 | CV138: 0 | CW138: 0 | CX138: 0 | CY138: 0 | CZ138: 0 | DA138: 0 | DB138: 0
A139: 2014-01-06 | B139: 10:00:00 | C139: 平日 | D139: 5.5 | E139: 2.5 | F139: 0 | S139: 0 | U139: 2014-01-06 | V139: 10:00:00 | W139: 平日 | X139: 5.5 | Y139: 2.5 | Z139: 0 | AA139: 0 | AZ139: 0 | BA139: 0 | BD139: 2014-01-06 | BE139: 10:00:00 | BF139: 平日 | BG139: 5.5 | BH139: 2.5 | BI139: 0 | BJ139: 0 | BK139: 0 | BL139: 0 | BM139: 0 | BN139: 0 | BO139: 0 | BP139: 0 | BQ139: 0 | BR139: 0 | BS139: 0 | BT139: 0 | BU139: 0 | BX139: 2014-01-06 | BY139: 10:00:00 | BZ139: 平日 | CA139: 5.5 | CB139: 2.5 | CC139: 0 | CD139: 0 | CE139: 0 | CF139: 0 | CG139: 0 | CH139: 0 | CI139: 0 | CJ139: 0 | CK139: 0 | CL139: 0 | CM139: 0 | CN139: 0 | CO139: 0 | CP139: 0 | CQ139: 0 | CR139: 0 | CS139: 0 | CT139: 0 | CU139: 0 | CV139: 0 | CW139: 0 | CX139: 0 | CY139: 0 | CZ139: 0 | DA139: 0 | DB139: 0
A140: 2014-01-06 | B140: 11:00:00 | C140: 平日 | D140: 6.1 | E140: 2.5 | F140: 0.3133169805 | S140: 0.3133169805 | U140: 2014-01-06 | V140: 11:00:00 | W140: 平日 | X140: 6.1 | Y140: 2.5 | Z140: 0 | AA140: 0 | AZ140: 0 | BA140: 0 | BD140: 2014-01-06 | BE140: 11:00:00 | BF140: 平日 | BG140: 6.1 | BH140: 2.5 | BI140: 313.3169805 | BJ140: 0 | BK140: 0 | BL140: 0 | BM140: 0 | BN140: 0 | BO140: 0 | BP140: 0 | BQ140: 0 | BR140: 0 | BS140: 0 | BT140: 0 | BU140: 0 | BX140: 2014-01-06 | BY140: 11:00:00 | BZ140: 平日 | CA140: 6.1 | CB140: 2.5 | CC140: 0 | CD140: 0 | CE140: 0 | CF140: 0 | CG140: 0 | CH140: 0 | CI140: 0 | CJ140: 0 | CK140: 0 | CL140: 0 | CM140: 0 | CN140: 0 | CO140: 0 | CP140: 0 | CQ140: 0 | CR140: 0 | CS140: 0 | CT140: 0 | CU140: 0 | CV140: 0 | CW140: 0 | CX140: 0 | CY140: 0 | CZ140: 0 | DA140: 0 | DB140: 0
A141: 2014-01-06 | B141: 12:00:00 | C141: 平日 | D141: 6.1 | E141: 2.3 | F141: 0.1094765822 | S141: 0.1094765822 | U141: 2014-01-06 | V141: 12:00:00 | W141: 平日 | X141: 6.1 | Y141: 2.3 | Z141: 0 | AA141: 0 | AZ141: 0 | BA141: 0 | BD141: 2014-01-06 | BE141: 12:00:00 | BF141: 平日 | BG141: 6.1 | BH141: 2.3 | BI141: 109.4765822 | BJ141: 0 | BK141: 0 | BL141: 0 | BM141: 0 | BN141: 0 | BO141: 0 | BP141: 0 | BQ141: 0 | BR141: 0 | BS141: 0 | BT141: 0 | BU141: 0 | BX141: 2014-01-06 | BY141: 12:00:00 | BZ141: 平日 | CA141: 6.1 | CB141: 2.3 | CC141: 0 | CD141: 0 | CE141: 0 | CF141: 0 | CG141: 0 | CH141: 0 | CI141: 0 | CJ141: 0 | CK141: 0 | CL141: 0 | CM141: 0 | CN141: 0 | CO141: 0 | CP141: 0 | CQ141: 0 | CR141: 0 | CS141: 0 | CT141: 0 | CU141: 0 | CV141: 0 | CW141: 0 | CX141: 0 | CY141: 0 | CZ141: 0 | DA141: 0 | DB141: 0
A142: 2014-01-06 | B142: 13:00:00 | C142: 平日 | D142: 6.3 | E142: 2.3 | F142: 0 | S142: 0 | U142: 2014-01-06 | V142: 13:00:00 | W142: 平日 | X142: 6.3 | Y142: 2.3 | Z142: 0 | AA142: 0 | AZ142: 0 | BA142: 0 | BD142: 2014-01-06 | BE142: 13:00:00 | BF142: 平日 | BG142: 6.3 | BH142: 2.3 | BI142: 0 | BJ142: 0 | BK142: 0 | BL142: 0 | BM142: 0 | BN142: 0 | BO142: 0 | BP142: 0 | BQ142: 0 | BR142: 0 | BS142: 0 | BT142: 0 | BU142: 0 | BX142: 2014-01-06 | BY142: 13:00:00 | BZ142: 平日 | CA142: 6.3 | CB142: 2.3 | CC142: 0 | CD142: 0 | CE142: 0 | CF142: 0 | CG142: 0 | CH142: 0 | CI142: 0 | CJ142: 0 | CK142: 0 | CL142: 0 | CM142: 0 | CN142: 0 | CO142: 0 | CP142: 0 | CQ142: 0 | CR142: 0 | CS142: 0 | CT142: 0 | CU142: 0 | CV142: 0 | CW142: 0 | CX142: 0 | CY142: 0 | CZ142: 0 | DA142: 0 | DB142: 0
A143: 2014-01-06 | B143: 14:00:00 | C143: 平日 | D143: 6.2 | E143: 2.2 | F143: 0 | S143: 0 | U143: 2014-01-06 | V143: 14:00:00 | W143: 平日 | X143: 6.2 | Y143: 2.2 | Z143: 0 | AA143: 0 | AZ143: 0 | BA143: 0 | BD143: 2014-01-06 | BE143: 14:00:00 | BF143: 平日 | BG143: 6.2 | BH143: 2.2 | BI143: 0 | BJ143: 0 | BK143: 0 | BL143: 0 | BM143: 0 | BN143: 0 | BO143: 0 | BP143: 0 | BQ143: 0 | BR143: 0 | BS143: 0 | BT143: 0 | BU143: 0 | BX143: 2014-01-06 | BY143: 14:00:00 | BZ143: 平日 | CA143: 6.2 | CB143: 2.2 | CC143: 0 | CD143: 0 | CE143: 0 | CF143: 0 | CG143: 0 | CH143: 0 | CI143: 0 | CJ143: 0 | CK143: 0 | CL143: 0 | CM143: 0 | CN143: 0 | CO143: 0 | CP143: 0 | CQ143: 0 | CR143: 0 | CS143: 0 | CT143: 0 | CU143: 0 | CV143: 0 | CW143: 0 | CX143: 0 | CY143: 0 | CZ143: 0 | DA143: 0 | DB143: 0
A144: 2014-01-06 | B144: 15:00:00 | C144: 平日 | D144: 5.8 | E144: 2.2 | F144: 0.292577477 | S144: 0.292577477 | U144: 2014-01-06 | V144: 15:00:00 | W144: 平日 | X144: 5.8 | Y144: 2.2 | Z144: 0 | AA144: 0 | AZ144: 0 | BA144: 0 | BD144: 2014-01-06 | BE144: 15:00:00 | BF144: 平日 | BG144: 5.8 | BH144: 2.2 | BI144: 292.577477 | BJ144: 0 | BK144: 0 | BL144: 0 | BM144: 0 | BN144: 0 | BO144: 0 | BP144: 0 | BQ144: 0 | BR144: 0 | BS144: 0 | BT144: 0 | BU144: 0 | BX144: 2014-01-06 | BY144: 15:00:00 | BZ144: 平日 | CA144: 5.8 | CB144: 2.2 | CC144: 0 | CD144: 0 | CE144: 0 | CF144: 0 | CG144: 0 | CH144: 0 | CI144: 0 | CJ144: 0 | CK144: 0 | CL144: 0 | CM144: 0 | CN144: 0 | CO144: 0 | CP144: 0 | CQ144: 0 | CR144: 0 | CS144: 0 | CT144: 0 | CU144: 0 | CV144: 0 | CW144: 0 | CX144: 0 | CY144: 0 | CZ144: 0 | DA144: 0 | DB144: 0
A145: 2014-01-06 | B145: 16:00:00 | C145: 平日 | D145: 4.8 | E145: 2.2 | F145: 1.807636426 | S145: 1.807636426 | U145: 2014-01-06 | V145: 16:00:00 | W145: 平日 | X145: 4.8 | Y145: 2.2 | Z145: 0 | AA145: 0 | AZ145: 0 | BA145: 0 | BD145: 2014-01-06 | BE145: 16:00:00 | BF145: 平日 | BG145: 4.8 | BH145: 2.2 | BI145: 1807.636426 | BJ145: 0 | BK145: 0 | BL145: 0 | BM145: 0 | BN145: 0 | BO145: 0 | BP145: 0 | BQ145: 0 | BR145: 0 | BS145: 0 | BT145: 0 | BU145: 0 | BX145: 2014-01-06 | BY145: 16:00:00 | BZ145: 平日 | CA145: 4.8 | CB145: 2.2 | CC145: 0 | CD145: 0 | CE145: 0 | CF145: 0 | CG145: 0 | CH145: 0 | CI145: 0 | CJ145: 0 | CK145: 0 | CL145: 0 | CM145: 0 | CN145: 0 | CO145: 0 | CP145: 0 | CQ145: 0 | CR145: 0 | CS145: 0 | CT145: 0 | CU145: 0 | CV145: 0 | CW145: 0 | CX145: 0 | CY145: 0 | CZ145: 0 | DA145: 0 | DB145: 0
A146: 2014-01-06 | B146: 17:00:00 | C146: 平日 | D146: 4 | E146: 2.5 | F146: 7.284241651 | S146: 7.284241651 | U146: 2014-01-06 | V146: 17:00:00 | W146: 平日 | X146: 4 | Y146: 2.5 | Z146: 0 | AA146: 0 | AZ146: 0 | BA146: 0 | BD146: 2014-01-06 | BE146: 17:00:00 | BF146: 平日 | BG146: 4 | BH146: 2.5 | BI146: 7284.241651 | BJ146: 0 | BK146: 0 | BL146: 0 | BM146: 0 | BN146: 0 | BO146: 0 | BP146: 0 | BQ146: 0 | BR146: 0 | BS146: 0 | BT146: 0 | BU146: 0 | BX146: 2014-01-06 | BY146: 17:00:00 | BZ146: 平日 | CA146: 4 | CB146: 2.5 | CC146: 0 | CD146: 0 | CE146: 0 | CF146: 0 | CG146: 0 | CH146: 0 | CI146: 0 | CJ146: 0 | CK146: 0 | CL146: 0 | CM146: 0 | CN146: 0 | CO146: 0 | CP146: 0 | CQ146: 0 | CR146: 0 | CS146: 0 | CT146: 0 | CU146: 0 | CV146: 0 | CW146: 0 | CX146: 0 | CY146: 0 | CZ146: 0 | DA146: 0 | DB146: 0
A147: 2014-01-06 | B147: 18:00:00 | C147: 平日 | D147: 3.3 | E147: 2.5 | F147: 8.670663444 | S147: 8.670663444 | U147: 2014-01-06 | V147: 18:00:00 | W147: 平日 | X147: 3.3 | Y147: 2.5 | Z147: 0 | AA147: 0 | AZ147: 0 | BA147: 0 | BD147: 2014-01-06 | BE147: 18:00:00 | BF147: 平日 | BG147: 3.3 | BH147: 2.5 | BI147: 8670.663444 | BJ147: 0 | BK147: 0 | BL147: 0 | BM147: 0 | BN147: 0 | BO147: 0 | BP147: 0 | BQ147: 0 | BR147: 0 | BS147: 0 | BT147: 0 | BU147: 0 | BX147: 2014-01-06 | BY147: 18:00:00 | BZ147: 平日 | CA147: 3.3 | CB147: 2.5 | CC147: 0 | CD147: 0 | CE147: 0 | CF147: 0 | CG147: 0 | CH147: 0 | CI147: 0 | CJ147: 0 | CK147: 0 | CL147: 0 | CM147: 0 | CN147: 0 | CO147: 0 | CP147: 0 | CQ147: 0 | CR147: 0 | CS147: 0 | CT147: 0 | CU147: 0 | CV147: 0 | CW147: 0 | CX147: 0 | CY147: 0 | CZ147: 0 | DA147: 0 | DB147: 0
A148: 2014-01-06 | B148: 19:00:00 | C148: 平日 | D148: 3 | E148: 2.4 | F148: 6.072325355 | S148: 6.072325355 | U148: 2014-01-06 | V148: 19:00:00 | W148: 平日 | X148: 3 | Y148: 2.4 | Z148: 0 | AA148: 0 | AZ148: 0 | BA148: 0 | BD148: 2014-01-06 | BE148: 19:00:00 | BF148: 平日 | BG148: 3 | BH148: 2.4 | BI148: 6072.325355 | BJ148: 0 | BK148: 0 | BL148: 0 | BM148: 0 | BN148: 0 | BO148: 0 | BP148: 0 | BQ148: 0 | BR148: 0 | BS148: 0 | BT148: 0 | BU148: 0 | BX148: 2014-01-06 | BY148: 19:00:00 | BZ148: 平日 | CA148: 3 | CB148: 2.4 | CC148: 0 | CD148: 0 | CE148: 0 | CF148: 0 | CG148: 0 | CH148: 0 | CI148: 0 | CJ148: 0 | CK148: 0 | CL148: 0 | CM148: 0 | CN148: 0 | CO148: 0 | CP148: 0 | CQ148: 0 | CR148: 0 | CS148: 0 | CT148: 0 | CU148: 0 | CV148: 0 | CW148: 0 | CX148: 0 | CY148: 0 | CZ148: 0 | DA148: 0 | DB148: 0
A149: 2014-01-06 | B149: 20:00:00 | C149: 平日 | D149: 2.6 | E149: 2.5 | F149: 7.070419268 | S149: 7.070419268 | U149: 2014-01-06 | V149: 20:00:00 | W149: 平日 | X149: 2.6 | Y149: 2.5 | Z149: 0 | AA149: 0 | AZ149: 0 | BA149: 0 | BD149: 2014-01-06 | BE149: 20:00:00 | BF149: 平日 | BG149: 2.6 | BH149: 2.5 | BI149: 7070.419268 | BJ149: 0 | BK149: 0 | BL149: 0 | BM149: 0 | BN149: 0 | BO149: 0 | BP149: 0 | BQ149: 0 | BR149: 0 | BS149: 0 | BT149: 0 | BU149: 0 | BX149: 2014-01-06 | BY149: 20:00:00 | BZ149: 平日 | CA149: 2.6 | CB149: 2.5 | CC149: 0 | CD149: 0 | CE149: 0 | CF149: 0 | CG149: 0 | CH149: 0 | CI149: 0 | CJ149: 0 | CK149: 0 | CL149: 0 | CM149: 0 | CN149: 0 | CO149: 0 | CP149: 0 | CQ149: 0 | CR149: 0 | CS149: 0 | CT149: 0 | CU149: 0 | CV149: 0 | CW149: 0 | CX149: 0 | CY149: 0 | CZ149: 0 | DA149: 0 | DB149: 0
A150: 2014-01-06 | B150: 21:00:00 | C150: 平日 | D150: 2.3 | E150: 2.5 | F150: 7.81723635 | S150: 7.81723635 | U150: 2014-01-06 | V150: 21:00:00 | W150: 平日 | X150: 2.3 | Y150: 2.5 | Z150: 0 | AA150: 0 | AZ150: 0 | BA150: 0 | BD150: 2014-01-06 | BE150: 21:00:00 | BF150: 平日 | BG150: 2.3 | BH150: 2.5 | BI150: 7817.23635 | BJ150: 0 | BK150: 0 | BL150: 0 | BM150: 0 | BN150: 0 | BO150: 0 | BP150: 0 | BQ150: 0 | BR150: 0 | BS150: 0 | BT150: 0 | BU150: 0 | BX150: 2014-01-06 | BY150: 21:00:00 | BZ150: 平日 | CA150: 2.3 | CB150: 2.5 | CC150: 0 | CD150: 0 | CE150: 0 | CF150: 0 | CG150: 0 | CH150: 0 | CI150: 0 | CJ150: 0 | CK150: 0 | CL150: 0 | CM150: 0 | CN150: 0 | CO150: 0 | CP150: 0 | CQ150: 0 | CR150: 0 | CS150: 0 | CT150: 0 | CU150: 0 | CV150: 0 | CW150: 0 | CX150: 0 | CY150: 0 | CZ150: 0 | DA150: 0 | DB150: 0
A151: 2014-01-06 | B151: 22:00:00 | C151: 平日 | D151: 2.4 | E151: 2.5 | F151: 8.296415834 | S151: 8.296415834 | U151: 2014-01-06 | V151: 22:00:00 | W151: 平日 | X151: 2.4 | Y151: 2.5 | Z151: 0 | AA151: 0 | AZ151: 0 | BA151: 0 | BD151: 2014-01-06 | BE151: 22:00:00 | BF151: 平日 | BG151: 2.4 | BH151: 2.5 | BI151: 8296.415834 | BJ151: 0 | BK151: 0 | BL151: 0 | BM151: 0 | BN151: 0 | BO151: 0 | BP151: 0 | BQ151: 0 | BR151: 0 | BS151: 0 | BT151: 0 | BU151: 0 | BX151: 2014-01-06 | BY151: 22:00:00 | BZ151: 平日 | CA151: 2.4 | CB151: 2.5 | CC151: 0 | CD151: 0 | CE151: 0 | CF151: 0 | CG151: 0 | CH151: 0 | CI151: 0 | CJ151: 0 | CK151: 0 | CL151: 0 | CM151: 0 | CN151: 0 | CO151: 0 | CP151: 0 | CQ151: 0 | CR151: 0 | CS151: 0 | CT151: 0 | CU151: 0 | CV151: 0 | CW151: 0 | CX151: 0 | CY151: 0 | CZ151: 0 | DA151: 0 | DB151: 0
A152: 2014-01-06 | B152: 23:00:00 | C152: 平日 | D152: 1.9 | E152: 2.5 | F152: 0 | S152: 0 | U152: 2014-01-06 | V152: 23:00:00 | W152: 平日 | X152: 1.9 | Y152: 2.5 | Z152: 0 | AA152: 0 | AZ152: 0 | BA152: 0 | BD152: 2014-01-06 | BE152: 23:00:00 | BF152: 平日 | BG152: 1.9 | BH152: 2.5 | BI152: 0 | BJ152: 0 | BK152: 0 | BL152: 0 | BM152: 0 | BN152: 0 | BO152: 0 | BP152: 0 | BQ152: 0 | BR152: 0 | BS152: 0 | BT152: 0 | BU152: 0 | BX152: 2014-01-06 | BY152: 23:00:00 | BZ152: 平日 | CA152: 1.9 | CB152: 2.5 | CC152: 0 | CD152: 0 | CE152: 0 | CF152: 0 | CG152: 0 | CH152: 0 | CI152: 0 | CJ152: 0 | CK152: 0 | CL152: 0 | CM152: 0 | CN152: 0 | CO152: 0 | CP152: 0 | CQ152: 0 | CR152: 0 | CS152: 0 | CT152: 0 | CU152: 0 | CV152: 0 | CW152: 0 | CX152: 0 | CY152: 0 | CZ152: 0 | DA152: 0 | DB152: 0
A153: 2014-01-07 | B153: 00:00:00 | C153: 休日 | D153: 1.9 | E153: 2.5 | F153: 0 | S153: 0 | U153: 2014-01-07 | V153: 00:00:00 | W153: 休日 | X153: 1.9 | Y153: 2.5 | Z153: 0 | AA153: 0 | AZ153: 0 | BA153: 0 | BD153: 2014-01-07 | BE153: 00:00:00 | BF153: 休日 | BG153: 1.9 | BH153: 2.5 | BI153: 0 | BJ153: 0 | BK153: 0 | BL153: 0 | BM153: 0 | BN153: 0 | BO153: 0 | BP153: 0 | BQ153: 0 | BR153: 0 | BS153: 0 | BT153: 0 | BU153: 0 | BX153: 2014-01-07 | BY153: 00:00:00 | BZ153: 休日 | CA153: 1.9 | CB153: 2.5 | CC153: 0 | CD153: 0 | CE153: 0 | CF153: 0 | CG153: 0 | CH153: 0 | CI153: 0 | CJ153: 0 | CK153: 0 | CL153: 0 | CM153: 0 | CN153: 0 | CO153: 0 | CP153: 0 | CQ153: 0 | CR153: 0 | CS153: 0 | CT153: 0 | CU153: 0 | CV153: 0 | CW153: 0 | CX153: 0 | CY153: 0 | CZ153: 0 | DA153: 0 | DB153: 0
A154: 2014-01-07 | B154: 01:00:00 | C154: 休日 | D154: 1.7 | E154: 2.6 | F154: 0 | S154: 0 | U154: 2014-01-07 | V154: 01:00:00 | W154: 休日 | X154: 1.7 | Y154: 2.6 | Z154: 0 | AA154: 0 | AZ154: 0 | BA154: 0 | BD154: 2014-01-07 | BE154: 01:00:00 | BF154: 休日 | BG154: 1.7 | BH154: 2.6 | BI154: 0 | BJ154: 0 | BK154: 0 | BL154: 0 | BM154: 0 | BN154: 0 | BO154: 0 | BP154: 0 | BQ154: 0 | BR154: 0 | BS154: 0 | BT154: 0 | BU154: 0 | BX154: 2014-01-07 | BY154: 01:00:00 | BZ154: 休日 | CA154: 1.7 | CB154: 2.6 | CC154: 0 | CD154: 0 | CE154: 0 | CF154: 0 | CG154: 0 | CH154: 0 | CI154: 0 | CJ154: 0 | CK154: 0 | CL154: 0 | CM154: 0 | CN154: 0 | CO154: 0 | CP154: 0 | CQ154: 0 | CR154: 0 | CS154: 0 | CT154: 0 | CU154: 0 | CV154: 0 | CW154: 0 | CX154: 0 | CY154: 0 | CZ154: 0 | DA154: 0 | DB154: 0
A155: 2014-01-07 | B155: 02:00:00 | C155: 休日 | D155: 1.8 | E155: 2.6 | F155: 0 | S155: 0 | U155: 2014-01-07 | V155: 02:00:00 | W155: 休日 | X155: 1.8 | Y155: 2.6 | Z155: 0 | AA155: 0 | AZ155: 0 | BA155: 0 | BD155: 2014-01-07 | BE155: 02:00:00 | BF155: 休日 | BG155: 1.8 | BH155: 2.6 | BI155: 0 | BJ155: 0 | BK155: 0 | BL155: 0 | BM155: 0 | BN155: 0 | BO155: 0 | BP155: 0 | BQ155: 0 | BR155: 0 | BS155: 0 | BT155: 0 | BU155: 0 | BX155: 2014-01-07 | BY155: 02:00:00 | BZ155: 休日 | CA155: 1.8 | CB155: 2.6 | CC155: 0 | CD155: 0 | CE155: 0 | CF155: 0 | CG155: 0 | CH155: 0 | CI155: 0 | CJ155: 0 | CK155: 0 | CL155: 0 | CM155: 0 | CN155: 0 | CO155: 0 | CP155: 0 | CQ155: 0 | CR155: 0 | CS155: 0 | CT155: 0 | CU155: 0 | CV155: 0 | CW155: 0 | CX155: 0 | CY155: 0 | CZ155: 0 | DA155: 0 | DB155: 0
A156: 2014-01-07 | B156: 03:00:00 | C156: 休日 | D156: 1.7 | E156: 2.8 | F156: 0 | S156: 0 | U156: 2014-01-07 | V156: 03:00:00 | W156: 休日 | X156: 1.7 | Y156: 2.8 | Z156: 0 | AA156: 0 | AZ156: 0 | BA156: 0 | BD156: 2014-01-07 | BE156: 03:00:00 | BF156: 休日 | BG156: 1.7 | BH156: 2.8 | BI156: 0 | BJ156: 0 | BK156: 0 | BL156: 0 | BM156: 0 | BN156: 0 | BO156: 0 | BP156: 0 | BQ156: 0 | BR156: 0 | BS156: 0 | BT156: 0 | BU156: 0 | BX156: 2014-01-07 | BY156: 03:00:00 | BZ156: 休日 | CA156: 1.7 | CB156: 2.8 | CC156: 0 | CD156: 0 | CE156: 0 | CF156: 0 | CG156: 0 | CH156: 0 | CI156: 0 | CJ156: 0 | CK156: 0 | CL156: 0 | CM156: 0 | CN156: 0 | CO156: 0 | CP156: 0 | CQ156: 0 | CR156: 0 | CS156: 0 | CT156: 0 | CU156: 0 | CV156: 0 | CW156: 0 | CX156: 0 | CY156: 0 | CZ156: 0 | DA156: 0 | DB156: 0
A157: 2014-01-07 | B157: 04:00:00 | C157: 休日 | D157: 0.9 | E157: 2.7 | F157: 0 | S157: 0 | U157: 2014-01-07 | V157: 04:00:00 | W157: 休日 | X157: 0.9 | Y157: 2.7 | Z157: 0 | AA157: 0 | AZ157: 0 | BA157: 0 | BD157: 2014-01-07 | BE157: 04:00:00 | BF157: 休日 | BG157: 0.9 | BH157: 2.7 | BI157: 0 | BJ157: 0 | BK157: 0 | BL157: 0 | BM157: 0 | BN157: 0 | BO157: 0 | BP157: 0 | BQ157: 0 | BR157: 0 | BS157: 0 | BT157: 0 | BU157: 0 | BX157: 2014-01-07 | BY157: 04:00:00 | BZ157: 休日 | CA157: 0.9 | CB157: 2.7 | CC157: 0 | CD157: 0 | CE157: 0 | CF157: 0 | CG157: 0 | CH157: 0 | CI157: 0 | CJ157: 0 | CK157: 0 | CL157: 0 | CM157: 0 | CN157: 0 | CO157: 0 | CP157: 0 | CQ157: 0 | CR157: 0 | CS157: 0 | CT157: 0 | CU157: 0 | CV157: 0 | CW157: 0 | CX157: 0 | CY157: 0 | CZ157: 0 | DA157: 0 | DB157: 0
A158: 2014-01-07 | B158: 05:00:00 | C158: 休日 | D158: 0.6 | E158: 2.8 | F158: 0 | S158: 0 | U158: 2014-01-07 | V158: 05:00:00 | W158: 休日 | X158: 0.6 | Y158: 2.8 | Z158: 0 | AA158: 0 | AZ158: 0 | BA158: 0 | BD158: 2014-01-07 | BE158: 05:00:00 | BF158: 休日 | BG158: 0.6 | BH158: 2.8 | BI158: 0 | BJ158: 0 | BK158: 0 | BL158: 0 | BM158: 0 | BN158: 0 | BO158: 0 | BP158: 0 | BQ158: 0 | BR158: 0 | BS158: 0 | BT158: 0 | BU158: 0 | BX158: 2014-01-07 | BY158: 05:00:00 | BZ158: 休日 | CA158: 0.6 | CB158: 2.8 | CC158: 0 | CD158: 0 | CE158: 0 | CF158: 0 | CG158: 0 | CH158: 0 | CI158: 0 | CJ158: 0 | CK158: 0 | CL158: 0 | CM158: 0 | CN158: 0 | CO158: 0 | CP158: 0 | CQ158: 0 | CR158: 0 | CS158: 0 | CT158: 0 | CU158: 0 | CV158: 0 | CW158: 0 | CX158: 0 | CY158: 0 | CZ158: 0 | DA158: 0 | DB158: 0
A159: 2014-01-07 | B159: 06:00:00 | C159: 休日 | D159: 1 | E159: 2.8 | F159: 0 | S159: 0 | U159: 2014-01-07 | V159: 06:00:00 | W159: 休日 | X159: 1 | Y159: 2.8 | Z159: 0 | AA159: 0 | AZ159: 0 | BA159: 0 | BD159: 2014-01-07 | BE159: 06:00:00 | BF159: 休日 | BG159: 1 | BH159: 2.8 | BI159: 0 | BJ159: 0 | BK159: 0 | BL159: 0 | BM159: 0 | BN159: 0 | BO159: 0 | BP159: 0 | BQ159: 0 | BR159: 0 | BS159: 0 | BT159: 0 | BU159: 0 | BX159: 2014-01-07 | BY159: 06:00:00 | BZ159: 休日 | CA159: 1 | CB159: 2.8 | CC159: 0 | CD159: 0 | CE159: 0 | CF159: 0 | CG159: 0 | CH159: 0 | CI159: 0 | CJ159: 0 | CK159: 0 | CL159: 0 | CM159: 0 | CN159: 0 | CO159: 0 | CP159: 0 | CQ159: 0 | CR159: 0 | CS159: 0 | CT159: 0 | CU159: 0 | CV159: 0 | CW159: 0 | CX159: 0 | CY159: 0 | CZ159: 0 | DA159: 0 | DB159: 0
A160: 2014-01-07 | B160: 07:00:00 | C160: 休日 | D160: 1.8 | E160: 3 | F160: 30.81904225 | S160: 30.81904225 | U160: 2014-01-07 | V160: 07:00:00 | W160: 休日 | X160: 1.8 | Y160: 3 | Z160: 0 | AA160: 0 | AZ160: 0 | BA160: 0 | BD160: 2014-01-07 | BE160: 07:00:00 | BF160: 休日 | BG160: 1.8 | BH160: 3 | BI160: 30819.04225 | BJ160: 0 | BK160: 0 | BL160: 0 | BM160: 0 | BN160: 0 | BO160: 0 | BP160: 0 | BQ160: 0 | BR160: 0 | BS160: 0 | BT160: 0 | BU160: 0 | BX160: 2014-01-07 | BY160: 07:00:00 | BZ160: 休日 | CA160: 1.8 | CB160: 3 | CC160: 0 | CD160: 0 | CE160: 0 | CF160: 0 | CG160: 0 | CH160: 0 | CI160: 0 | CJ160: 0 | CK160: 0 | CL160: 0 | CM160: 0 | CN160: 0 | CO160: 0 | CP160: 0 | CQ160: 0 | CR160: 0 | CS160: 0 | CT160: 0 | CU160: 0 | CV160: 0 | CW160: 0 | CX160: 0 | CY160: 0 | CZ160: 0 | DA160: 0 | DB160: 0
A161: 2014-01-07 | B161: 08:00:00 | C161: 休日 | D161: 3.8 | E161: 3.1 | F161: 11.25563744 | S161: 11.25563744 | U161: 2014-01-07 | V161: 08:00:00 | W161: 休日 | X161: 3.8 | Y161: 3.1 | Z161: 0 | AA161: 0 | AZ161: 0 | BA161: 0 | BD161: 2014-01-07 | BE161: 08:00:00 | BF161: 休日 | BG161: 3.8 | BH161: 3.1 | BI161: 11255.63744 | BJ161: 0 | BK161: 0 | BL161: 0 | BM161: 0 | BN161: 0 | BO161: 0 | BP161: 0 | BQ161: 0 | BR161: 0 | BS161: 0 | BT161: 0 | BU161: 0 | BX161: 2014-01-07 | BY161: 08:00:00 | BZ161: 休日 | CA161: 3.8 | CB161: 3.1 | CC161: 0 | CD161: 0 | CE161: 0 | CF161: 0 | CG161: 0 | CH161: 0 | CI161: 0 | CJ161: 0 | CK161: 0 | CL161: 0 | CM161: 0 | CN161: 0 | CO161: 0 | CP161: 0 | CQ161: 0 | CR161: 0 | CS161: 0 | CT161: 0 | CU161: 0 | CV161: 0 | CW161: 0 | CX161: 0 | CY161: 0 | CZ161: 0 | DA161: 0 | DB161: 0
A162: 2014-01-07 | B162: 09:00:00 | C162: 休日 | D162: 7.2 | E162: 3.4 | F162: 4.802316185 | S162: 4.802316185 | U162: 2014-01-07 | V162: 09:00:00 | W162: 休日 | X162: 7.2 | Y162: 3.4 | Z162: 0 | AA162: 0 | AZ162: 0 | BA162: 0 | BD162: 2014-01-07 | BE162: 09:00:00 | BF162: 休日 | BG162: 7.2 | BH162: 3.4 | BI162: 4802.316185 | BJ162: 0 | BK162: 0 | BL162: 0 | BM162: 0 | BN162: 0 | BO162: 0 | BP162: 0 | BQ162: 0 | BR162: 0 | BS162: 0 | BT162: 0 | BU162: 0 | BX162: 2014-01-07 | BY162: 09:00:00 | BZ162: 休日 | CA162: 7.2 | CB162: 3.4 | CC162: 0 | CD162: 0 | CE162: 0 | CF162: 0 | CG162: 0 | CH162: 0 | CI162: 0 | CJ162: 0 | CK162: 0 | CL162: 0 | CM162: 0 | CN162: 0 | CO162: 0 | CP162: 0 | CQ162: 0 | CR162: 0 | CS162: 0 | CT162: 0 | CU162: 0 | CV162: 0 | CW162: 0 | CX162: 0 | CY162: 0 | CZ162: 0 | DA162: 0 | DB162: 0
A163: 2014-01-07 | B163: 10:00:00 | C163: 休日 | D163: 7.7 | E163: 3.5 | F163: 4.605527838 | S163: 4.605527838 | U163: 2014-01-07 | V163: 10:00:00 | W163: 休日 | X163: 7.7 | Y163: 3.5 | Z163: 0 | AA163: 0 | AZ163: 0 | BA163: 0 | BD163: 2014-01-07 | BE163: 10:00:00 | BF163: 休日 | BG163: 7.7 | BH163: 3.5 | BI163: 4605.527838 | BJ163: 0 | BK163: 0 | BL163: 0 | BM163: 0 | BN163: 0 | BO163: 0 | BP163: 0 | BQ163: 0 | BR163: 0 | BS163: 0 | BT163: 0 | BU163: 0 | BX163: 2014-01-07 | BY163: 10:00:00 | BZ163: 休日 | CA163: 7.7 | CB163: 3.5 | CC163: 0 | CD163: 0 | CE163: 0 | CF163: 0 | CG163: 0 | CH163: 0 | CI163: 0 | CJ163: 0 | CK163: 0 | CL163: 0 | CM163: 0 | CN163: 0 | CO163: 0 | CP163: 0 | CQ163: 0 | CR163: 0 | CS163: 0 | CT163: 0 | CU163: 0 | CV163: 0 | CW163: 0 | CX163: 0 | CY163: 0 | CZ163: 0 | DA163: 0 | DB163: 0
A164: 2014-01-07 | B164: 11:00:00 | C164: 休日 | D164: 7.7 | E164: 3.7 | F164: 5.667784242 | S164: 5.667784242 | U164: 2014-01-07 | V164: 11:00:00 | W164: 休日 | X164: 7.7 | Y164: 3.7 | Z164: 0 | AA164: 0 | AZ164: 0 | BA164: 0 | BD164: 2014-01-07 | BE164: 11:00:00 | BF164: 休日 | BG164: 7.7 | BH164: 3.7 | BI164: 5667.784242 | BJ164: 0 | BK164: 0 | BL164: 0 | BM164: 0 | BN164: 0 | BO164: 0 | BP164: 0 | BQ164: 0 | BR164: 0 | BS164: 0 | BT164: 0 | BU164: 0 | BX164: 2014-01-07 | BY164: 11:00:00 | BZ164: 休日 | CA164: 7.7 | CB164: 3.7 | CC164: 0 | CD164: 0 | CE164: 0 | CF164: 0 | CG164: 0 | CH164: 0 | CI164: 0 | CJ164: 0 | CK164: 0 | CL164: 0 | CM164: 0 | CN164: 0 | CO164: 0 | CP164: 0 | CQ164: 0 | CR164: 0 | CS164: 0 | CT164: 0 | CU164: 0 | CV164: 0 | CW164: 0 | CX164: 0 | CY164: 0 | CZ164: 0 | DA164: 0 | DB164: 0
A165: 2014-01-07 | B165: 12:00:00 | C165: 休日 | D165: 9.4 | E165: 3.9 | F165: 4.930816555 | S165: 4.930816555 | U165: 2014-01-07 | V165: 12:00:00 | W165: 休日 | X165: 9.4 | Y165: 3.9 | Z165: 0 | AA165: 0 | AZ165: 0 | BA165: 0 | BD165: 2014-01-07 | BE165: 12:00:00 | BF165: 休日 | BG165: 9.4 | BH165: 3.9 | BI165: 4930.816555 | BJ165: 0 | BK165: 0 | BL165: 0 | BM165: 0 | BN165: 0 | BO165: 0 | BP165: 0 | BQ165: 0 | BR165: 0 | BS165: 0 | BT165: 0 | BU165: 0 | BX165: 2014-01-07 | BY165: 12:00:00 | BZ165: 休日 | CA165: 9.4 | CB165: 3.9 | CC165: 0 | CD165: 0 | CE165: 0 | CF165: 0 | CG165: 0 | CH165: 0 | CI165: 0 | CJ165: 0 | CK165: 0 | CL165: 0 | CM165: 0 | CN165: 0 | CO165: 0 | CP165: 0 | CQ165: 0 | CR165: 0 | CS165: 0 | CT165: 0 | CU165: 0 | CV165: 0 | CW165: 0 | CX165: 0 | CY165: 0 | CZ165: 0 | DA165: 0 | DB165: 0
A166: 2014-01-07 | B166: 13:00:00 | C166: 休日 | D166: 9.2 | E166: 4 | F166: 0 | S166: 0 | U166: 2014-01-07 | V166: 13:00:00 | W166: 休日 | X166: 9.2 | Y166: 4 | Z166: 0 | AA166: 0 | AZ166: 0 | BA166: 0 | BD166: 2014-01-07 | BE166: 13:00:00 | BF166: 休日 | BG166: 9.2 | BH166: 4 | BI166: 0 | BJ166: 0 | BK166: 0 | BL166: 0 | BM166: 0 | BN166: 0 | BO166: 0 | BP166: 0 | BQ166: 0 | BR166: 0 | BS166: 0 | BT166: 0 | BU166: 0 | BX166: 2014-01-07 | BY166: 13:00:00 | BZ166: 休日 | CA166: 9.2 | CB166: 4 | CC166: 0 | CD166: 0 | CE166: 0 | CF166: 0 | CG166: 0 | CH166: 0 | CI166: 0 | CJ166: 0 | CK166: 0 | CL166: 0 | CM166: 0 | CN166: 0 | CO166: 0 | CP166: 0 | CQ166: 0 | CR166: 0 | CS166: 0 | CT166: 0 | CU166: 0 | CV166: 0 | CW166: 0 | CX166: 0 | CY166: 0 | CZ166: 0 | DA166: 0 | DB166: 0
A167: 2014-01-07 | B167: 14:00:00 | C167: 休日 | D167: 9 | E167: 4 | F167: 0 | S167: 0 | U167: 2014-01-07 | V167: 14:00:00 | W167: 休日 | X167: 9 | Y167: 4 | Z167: 0 | AA167: 0 | AZ167: 0 | BA167: 0 | BD167: 2014-01-07 | BE167: 14:00:00 | BF167: 休日 | BG167: 9 | BH167: 4 | BI167: 0 | BJ167: 0 | BK167: 0 | BL167: 0 | BM167: 0 | BN167: 0 | BO167: 0 | BP167: 0 | BQ167: 0 | BR167: 0 | BS167: 0 | BT167: 0 | BU167: 0 | BX167: 2014-01-07 | BY167: 14:00:00 | BZ167: 休日 | CA167: 9 | CB167: 4 | CC167: 0 | CD167: 0 | CE167: 0 | CF167: 0 | CG167: 0 | CH167: 0 | CI167: 0 | CJ167: 0 | CK167: 0 | CL167: 0 | CM167: 0 | CN167: 0 | CO167: 0 | CP167: 0 | CQ167: 0 | CR167: 0 | CS167: 0 | CT167: 0 | CU167: 0 | CV167: 0 | CW167: 0 | CX167: 0 | CY167: 0 | CZ167: 0 | DA167: 0 | DB167: 0
A168: 2014-01-07 | B168: 15:00:00 | C168: 休日 | D168: 9 | E168: 4.1 | F168: 10.24666178 | S168: 10.24666178 | U168: 2014-01-07 | V168: 15:00:00 | W168: 休日 | X168: 9 | Y168: 4.1 | Z168: 0 | AA168: 0 | AZ168: 0 | BA168: 0 | BD168: 2014-01-07 | BE168: 15:00:00 | BF168: 休日 | BG168: 9 | BH168: 4.1 | BI168: 10246.66178 | BJ168: 0 | BK168: 0 | BL168: 0 | BM168: 0 | BN168: 0 | BO168: 0 | BP168: 0 | BQ168: 0 | BR168: 0 | BS168: 0 | BT168: 0 | BU168: 0 | BX168: 2014-01-07 | BY168: 15:00:00 | BZ168: 休日 | CA168: 9 | CB168: 4.1 | CC168: 0 | CD168: 0 | CE168: 0 | CF168: 0 | CG168: 0 | CH168: 0 | CI168: 0 | CJ168: 0 | CK168: 0 | CL168: 0 | CM168: 0 | CN168: 0 | CO168: 0 | CP168: 0 | CQ168: 0 | CR168: 0 | CS168: 0 | CT168: 0 | CU168: 0 | CV168: 0 | CW168: 0 | CX168: 0 | CY168: 0 | CZ168: 0 | DA168: 0 | DB168: 0
A169: 2014-01-07 | B169: 16:00:00 | C169: 休日 | D169: 8.9 | E169: 4.3 | F169: 7.43552658 | S169: 7.43552658 | U169: 2014-01-07 | V169: 16:00:00 | W169: 休日 | X169: 8.9 | Y169: 4.3 | Z169: 0 | AA169: 0 | AZ169: 0 | BA169: 0 | BD169: 2014-01-07 | BE169: 16:00:00 | BF169: 休日 | BG169: 8.9 | BH169: 4.3 | BI169: 7435.52658 | BJ169: 0 | BK169: 0 | BL169: 0 | BM169: 0 | BN169: 0 | BO169: 0 | BP169: 0 | BQ169: 0 | BR169: 0 | BS169: 0 | BT169: 0 | BU169: 0 | BX169: 2014-01-07 | BY169: 16:00:00 | BZ169: 休日 | CA169: 8.9 | CB169: 4.3 | CC169: 0 | CD169: 0 | CE169: 0 | CF169: 0 | CG169: 0 | CH169: 0 | CI169: 0 | CJ169: 0 | CK169: 0 | CL169: 0 | CM169: 0 | CN169: 0 | CO169: 0 | CP169: 0 | CQ169: 0 | CR169: 0 | CS169: 0 | CT169: 0 | CU169: 0 | CV169: 0 | CW169: 0 | CX169: 0 | CY169: 0 | CZ169: 0 | DA169: 0 | DB169: 0
A170: 2014-01-07 | B170: 17:00:00 | C170: 休日 | D170: 8.7 | E170: 4.3 | F170: 7.420670473 | S170: 7.420670473 | U170: 2014-01-07 | V170: 17:00:00 | W170: 休日 | X170: 8.7 | Y170: 4.3 | Z170: 0 | AA170: 0 | AZ170: 0 | BA170: 0 | BD170: 2014-01-07 | BE170: 17:00:00 | BF170: 休日 | BG170: 8.7 | BH170: 4.3 | BI170: 7420.670473 | BJ170: 0 | BK170: 0 | BL170: 0 | BM170: 0 | BN170: 0 | BO170: 0 | BP170: 0 | BQ170: 0 | BR170: 0 | BS170: 0 | BT170: 0 | BU170: 0 | BX170: 2014-01-07 | BY170: 17:00:00 | BZ170: 休日 | CA170: 8.7 | CB170: 4.3 | CC170: 0 | CD170: 0 | CE170: 0 | CF170: 0 | CG170: 0 | CH170: 0 | CI170: 0 | CJ170: 0 | CK170: 0 | CL170: 0 | CM170: 0 | CN170: 0 | CO170: 0 | CP170: 0 | CQ170: 0 | CR170: 0 | CS170: 0 | CT170: 0 | CU170: 0 | CV170: 0 | CW170: 0 | CX170: 0 | CY170: 0 | CZ170: 0 | DA170: 0 | DB170: 0
A171: 2014-01-07 | B171: 18:00:00 | C171: 休日 | D171: 8.4 | E171: 4.3 | F171: 5.178598379 | S171: 5.178598379 | U171: 2014-01-07 | V171: 18:00:00 | W171: 休日 | X171: 8.4 | Y171: 4.3 | Z171: 0 | AA171: 0 | AZ171: 0 | BA171: 0 | BD171: 2014-01-07 | BE171: 18:00:00 | BF171: 休日 | BG171: 8.4 | BH171: 4.3 | BI171: 5178.598379 | BJ171: 0 | BK171: 0 | BL171: 0 | BM171: 0 | BN171: 0 | BO171: 0 | BP171: 0 | BQ171: 0 | BR171: 0 | BS171: 0 | BT171: 0 | BU171: 0 | BX171: 2014-01-07 | BY171: 18:00:00 | BZ171: 休日 | CA171: 8.4 | CB171: 4.3 | CC171: 0 | CD171: 0 | CE171: 0 | CF171: 0 | CG171: 0 | CH171: 0 | CI171: 0 | CJ171: 0 | CK171: 0 | CL171: 0 | CM171: 0 | CN171: 0 | CO171: 0 | CP171: 0 | CQ171: 0 | CR171: 0 | CS171: 0 | CT171: 0 | CU171: 0 | CV171: 0 | CW171: 0 | CX171: 0 | CY171: 0 | CZ171: 0 | DA171: 0 | DB171: 0
A172: 2014-01-07 | B172: 19:00:00 | C172: 休日 | D172: 7.9 | E172: 4.4 | F172: 5.646300037 | S172: 5.646300037 | U172: 2014-01-07 | V172: 19:00:00 | W172: 休日 | X172: 7.9 | Y172: 4.4 | Z172: 0 | AA172: 0 | AZ172: 0 | BA172: 0 | BD172: 2014-01-07 | BE172: 19:00:00 | BF172: 休日 | BG172: 7.9 | BH172: 4.4 | BI172: 5646.300037 | BJ172: 0 | BK172: 0 | BL172: 0 | BM172: 0 | BN172: 0 | BO172: 0 | BP172: 0 | BQ172: 0 | BR172: 0 | BS172: 0 | BT172: 0 | BU172: 0 | BX172: 2014-01-07 | BY172: 19:00:00 | BZ172: 休日 | CA172: 7.9 | CB172: 4.4 | CC172: 0 | CD172: 0 | CE172: 0 | CF172: 0 | CG172: 0 | CH172: 0 | CI172: 0 | CJ172: 0 | CK172: 0 | CL172: 0 | CM172: 0 | CN172: 0 | CO172: 0 | CP172: 0 | CQ172: 0 | CR172: 0 | CS172: 0 | CT172: 0 | CU172: 0 | CV172: 0 | CW172: 0 | CX172: 0 | CY172: 0 | CZ172: 0 | DA172: 0 | DB172: 0
A173: 2014-01-07 | B173: 20:00:00 | C173: 休日 | D173: 7.4 | E173: 4.4 | F173: 5.789928561 | S173: 5.789928561 | U173: 2014-01-07 | V173: 20:00:00 | W173: 休日 | X173: 7.4 | Y173: 4.4 | Z173: 0 | AA173: 0 | AZ173: 0 | BA173: 0 | BD173: 2014-01-07 | BE173: 20:00:00 | BF173: 休日 | BG173: 7.4 | BH173: 4.4 | BI173: 5789.928561 | BJ173: 0 | BK173: 0 | BL173: 0 | BM173: 0 | BN173: 0 | BO173: 0 | BP173: 0 | BQ173: 0 | BR173: 0 | BS173: 0 | BT173: 0 | BU173: 0 | BX173: 2014-01-07 | BY173: 20:00:00 | BZ173: 休日 | CA173: 7.4 | CB173: 4.4 | CC173: 0 | CD173: 0 | CE173: 0 | CF173: 0 | CG173: 0 | CH173: 0 | CI173: 0 | CJ173: 0 | CK173: 0 | CL173: 0 | CM173: 0 | CN173: 0 | CO173: 0 | CP173: 0 | CQ173: 0 | CR173: 0 | CS173: 0 | CT173: 0 | CU173: 0 | CV173: 0 | CW173: 0 | CX173: 0 | CY173: 0 | CZ173: 0 | DA173: 0 | DB173: 0
A174: 2014-01-07 | B174: 21:00:00 | C174: 休日 | D174: 7.2 | E174: 4.2 | F174: 6.207623878 | S174: 6.207623878 | U174: 2014-01-07 | V174: 21:00:00 | W174: 休日 | X174: 7.2 | Y174: 4.2 | Z174: 0 | AA174: 0 | AZ174: 0 | BA174: 0 | BD174: 2014-01-07 | BE174: 21:00:00 | BF174: 休日 | BG174: 7.2 | BH174: 4.2 | BI174: 6207.623878 | BJ174: 0 | BK174: 0 | BL174: 0 | BM174: 0 | BN174: 0 | BO174: 0 | BP174: 0 | BQ174: 0 | BR174: 0 | BS174: 0 | BT174: 0 | BU174: 0 | BX174: 2014-01-07 | BY174: 21:00:00 | BZ174: 休日 | CA174: 7.2 | CB174: 4.2 | CC174: 0 | CD174: 0 | CE174: 0 | CF174: 0 | CG174: 0 | CH174: 0 | CI174: 0 | CJ174: 0 | CK174: 0 | CL174: 0 | CM174: 0 | CN174: 0 | CO174: 0 | CP174: 0 | CQ174: 0 | CR174: 0 | CS174: 0 | CT174: 0 | CU174: 0 | CV174: 0 | CW174: 0 | CX174: 0 | CY174: 0 | CZ174: 0 | DA174: 0 | DB174: 0
A175: 2014-01-07 | B175: 22:00:00 | C175: 休日 | D175: 7.5 | E175: 4.2 | F175: 0 | S175: 0 | U175: 2014-01-07 | V175: 22:00:00 | W175: 休日 | X175: 7.5 | Y175: 4.2 | Z175: 0 | AA175: 0 | AZ175: 0 | BA175: 0 | BD175: 2014-01-07 | BE175: 22:00:00 | BF175: 休日 | BG175: 7.5 | BH175: 4.2 | BI175: 0 | BJ175: 0 | BK175: 0 | BL175: 0 | BM175: 0 | BN175: 0 | BO175: 0 | BP175: 0 | BQ175: 0 | BR175: 0 | BS175: 0 | BT175: 0 | BU175: 0 | BX175: 2014-01-07 | BY175: 22:00:00 | BZ175: 休日 | CA175: 7.5 | CB175: 4.2 | CC175: 0 | CD175: 0 | CE175: 0 | CF175: 0 | CG175: 0 | CH175: 0 | CI175: 0 | CJ175: 0 | CK175: 0 | CL175: 0 | CM175: 0 | CN175: 0 | CO175: 0 | CP175: 0 | CQ175: 0 | CR175: 0 | CS175: 0 | CT175: 0 | CU175: 0 | CV175: 0 | CW175: 0 | CX175: 0 | CY175: 0 | CZ175: 0 | DA175: 0 | DB175: 0
A176: 2014-01-07 | B176: 23:00:00 | C176: 休日 | D176: 6.8 | E176: 4.2 | F176: 0 | S176: 0 | U176: 2014-01-07 | V176: 23:00:00 | W176: 休日 | X176: 6.8 | Y176: 4.2 | Z176: 0 | AA176: 0 | AZ176: 0 | BA176: 0 | BD176: 2014-01-07 | BE176: 23:00:00 | BF176: 休日 | BG176: 6.8 | BH176: 4.2 | BI176: 0 | BJ176: 0 | BK176: 0 | BL176: 0 | BM176: 0 | BN176: 0 | BO176: 0 | BP176: 0 | BQ176: 0 | BR176: 0 | BS176: 0 | BT176: 0 | BU176: 0 | BX176: 2014-01-07 | BY176: 23:00:00 | BZ176: 休日 | CA176: 6.8 | CB176: 4.2 | CC176: 0 | CD176: 0 | CE176: 0 | CF176: 0 | CG176: 0 | CH176: 0 | CI176: 0 | CJ176: 0 | CK176: 0 | CL176: 0 | CM176: 0 | CN176: 0 | CO176: 0 | CP176: 0 | CQ176: 0 | CR176: 0 | CS176: 0 | CT176: 0 | CU176: 0 | CV176: 0 | CW176: 0 | CX176: 0 | CY176: 0 | CZ176: 0 | DA176: 0 | DB176: 0
A177: 2014-01-08 | B177: 00:00:00 | C177: 休日 | D177: 5.7 | E177: 4.1 | F177: 0 | S177: 0 | U177: 2014-01-08 | V177: 00:00:00 | W177: 休日 | X177: 5.7 | Y177: 4.1 | Z177: 0 | AA177: 0 | AZ177: 0 | BA177: 0 | BD177: 2014-01-08 | BE177: 00:00:00 | BF177: 休日 | BG177: 5.7 | BH177: 4.1 | BI177: 0 | BJ177: 0 | BK177: 0 | BL177: 0 | BM177: 0 | BN177: 0 | BO177: 0 | BP177: 0 | BQ177: 0 | BR177: 0 | BS177: 0 | BT177: 0 | BU177: 0 | BX177: 2014-01-08 | BY177: 00:00:00 | BZ177: 休日 | CA177: 5.7 | CB177: 4.1 | CC177: 0 | CD177: 0 | CE177: 0 | CF177: 0 | CG177: 0 | CH177: 0 | CI177: 0 | CJ177: 0 | CK177: 0 | CL177: 0 | CM177: 0 | CN177: 0 | CO177: 0 | CP177: 0 | CQ177: 0 | CR177: 0 | CS177: 0 | CT177: 0 | CU177: 0 | CV177: 0 | CW177: 0 | CX177: 0 | CY177: 0 | CZ177: 0 | DA177: 0 | DB177: 0
A178: 2014-01-08 | B178: 01:00:00 | C178: 休日 | D178: 5.5 | E178: 4.2 | F178: 0 | S178: 0 | U178: 2014-01-08 | V178: 01:00:00 | W178: 休日 | X178: 5.5 | Y178: 4.2 | Z178: 0 | AA178: 0 | AZ178: 0 | BA178: 0 | BD178: 2014-01-08 | BE178: 01:00:00 | BF178: 休日 | BG178: 5.5 | BH178: 4.2 | BI178: 0 | BJ178: 0 | BK178: 0 | BL178: 0 | BM178: 0 | BN178: 0 | BO178: 0 | BP178: 0 | BQ178: 0 | BR178: 0 | BS178: 0 | BT178: 0 | BU178: 0 | BX178: 2014-01-08 | BY178: 01:00:00 | BZ178: 休日 | CA178: 5.5 | CB178: 4.2 | CC178: 0 | CD178: 0 | CE178: 0 | CF178: 0 | CG178: 0 | CH178: 0 | CI178: 0 | CJ178: 0 | CK178: 0 | CL178: 0 | CM178: 0 | CN178: 0 | CO178: 0 | CP178: 0 | CQ178: 0 | CR178: 0 | CS178: 0 | CT178: 0 | CU178: 0 | CV178: 0 | CW178: 0 | CX178: 0 | CY178: 0 | CZ178: 0 | DA178: 0 | DB178: 0
A179: 2014-01-08 | B179: 02:00:00 | C179: 休日 | D179: 5.4 | E179: 4.1 | F179: 0 | S179: 0 | U179: 2014-01-08 | V179: 02:00:00 | W179: 休日 | X179: 5.4 | Y179: 4.1 | Z179: 0 | AA179: 0 | AZ179: 0 | BA179: 0 | BD179: 2014-01-08 | BE179: 02:00:00 | BF179: 休日 | BG179: 5.4 | BH179: 4.1 | BI179: 0 | BJ179: 0 | BK179: 0 | BL179: 0 | BM179: 0 | BN179: 0 | BO179: 0 | BP179: 0 | BQ179: 0 | BR179: 0 | BS179: 0 | BT179: 0 | BU179: 0 | BX179: 2014-01-08 | BY179: 02:00:00 | BZ179: 休日 | CA179: 5.4 | CB179: 4.1 | CC179: 0 | CD179: 0 | CE179: 0 | CF179: 0 | CG179: 0 | CH179: 0 | CI179: 0 | CJ179: 0 | CK179: 0 | CL179: 0 | CM179: 0 | CN179: 0 | CO179: 0 | CP179: 0 | CQ179: 0 | CR179: 0 | CS179: 0 | CT179: 0 | CU179: 0 | CV179: 0 | CW179: 0 | CX179: 0 | CY179: 0 | CZ179: 0 | DA179: 0 | DB179: 0
A180: 2014-01-08 | B180: 03:00:00 | C180: 休日 | D180: 4.2 | E180: 4.1 | F180: 0 | S180: 0 | U180: 2014-01-08 | V180: 03:00:00 | W180: 休日 | X180: 4.2 | Y180: 4.1 | Z180: 0 | AA180: 0 | AZ180: 0 | BA180: 0 | BD180: 2014-01-08 | BE180: 03:00:00 | BF180: 休日 | BG180: 4.2 | BH180: 4.1 | BI180: 0 | BJ180: 0 | BK180: 0 | BL180: 0 | BM180: 0 | BN180: 0 | BO180: 0 | BP180: 0 | BQ180: 0 | BR180: 0 | BS180: 0 | BT180: 0 | BU180: 0 | BX180: 2014-01-08 | BY180: 03:00:00 | BZ180: 休日 | CA180: 4.2 | CB180: 4.1 | CC180: 0 | CD180: 0 | CE180: 0 | CF180: 0 | CG180: 0 | CH180: 0 | CI180: 0 | CJ180: 0 | CK180: 0 | CL180: 0 | CM180: 0 | CN180: 0 | CO180: 0 | CP180: 0 | CQ180: 0 | CR180: 0 | CS180: 0 | CT180: 0 | CU180: 0 | CV180: 0 | CW180: 0 | CX180: 0 | CY180: 0 | CZ180: 0 | DA180: 0 | DB180: 0
A181: 2014-01-08 | B181: 04:00:00 | C181: 休日 | D181: 3.9 | E181: 4.1 | F181: 0 | S181: 0 | U181: 2014-01-08 | V181: 04:00:00 | W181: 休日 | X181: 3.9 | Y181: 4.1 | Z181: 0 | AA181: 0 | AZ181: 0 | BA181: 0 | BD181: 2014-01-08 | BE181: 04:00:00 | BF181: 休日 | BG181: 3.9 | BH181: 4.1 | BI181: 0 | BJ181: 0 | BK181: 0 | BL181: 0 | BM181: 0 | BN181: 0 | BO181: 0 | BP181: 0 | BQ181: 0 | BR181: 0 | BS181: 0 | BT181: 0 | BU181: 0 | BX181: 2014-01-08 | BY181: 04:00:00 | BZ181: 休日 | CA181: 3.9 | CB181: 4.1 | CC181: 0 | CD181: 0 | CE181: 0 | CF181: 0 | CG181: 0 | CH181: 0 | CI181: 0 | CJ181: 0 | CK181: 0 | CL181: 0 | CM181: 0 | CN181: 0 | CO181: 0 | CP181: 0 | CQ181: 0 | CR181: 0 | CS181: 0 | CT181: 0 | CU181: 0 | CV181: 0 | CW181: 0 | CX181: 0 | CY181: 0 | CZ181: 0 | DA181: 0 | DB181: 0
A182: 2014-01-08 | B182: 05:00:00 | C182: 休日 | D182: 3.2 | E182: 3.9 | F182: 0 | S182: 0 | U182: 2014-01-08 | V182: 05:00:00 | W182: 休日 | X182: 3.2 | Y182: 3.9 | Z182: 0 | AA182: 0 | AZ182: 0 | BA182: 0 | BD182: 2014-01-08 | BE182: 05:00:00 | BF182: 休日 | BG182: 3.2 | BH182: 3.9 | BI182: 0 | BJ182: 0 | BK182: 0 | BL182: 0 | BM182: 0 | BN182: 0 | BO182: 0 | BP182: 0 | BQ182: 0 | BR182: 0 | BS182: 0 | BT182: 0 | BU182: 0 | BX182: 2014-01-08 | BY182: 05:00:00 | BZ182: 休日 | CA182: 3.2 | CB182: 3.9 | CC182: 0 | CD182: 0 | CE182: 0 | CF182: 0 | CG182: 0 | CH182: 0 | CI182: 0 | CJ182: 0 | CK182: 0 | CL182: 0 | CM182: 0 | CN182: 0 | CO182: 0 | CP182: 0 | CQ182: 0 | CR182: 0 | CS182: 0 | CT182: 0 | CU182: 0 | CV182: 0 | CW182: 0 | CX182: 0 | CY182: 0 | CZ182: 0 | DA182: 0 | DB182: 0
A183: 2014-01-08 | B183: 06:00:00 | C183: 休日 | D183: 3.4 | E183: 4.1 | F183: 0 | S183: 0 | U183: 2014-01-08 | V183: 06:00:00 | W183: 休日 | X183: 3.4 | Y183: 4.1 | Z183: 0 | AA183: 0 | AZ183: 0 | BA183: 0 | BD183: 2014-01-08 | BE183: 06:00:00 | BF183: 休日 | BG183: 3.4 | BH183: 4.1 | BI183: 0 | BJ183: 0 | BK183: 0 | BL183: 0 | BM183: 0 | BN183: 0 | BO183: 0 | BP183: 0 | BQ183: 0 | BR183: 0 | BS183: 0 | BT183: 0 | BU183: 0 | BX183: 2014-01-08 | BY183: 06:00:00 | BZ183: 休日 | CA183: 3.4 | CB183: 4.1 | CC183: 0 | CD183: 0 | CE183: 0 | CF183: 0 | CG183: 0 | CH183: 0 | CI183: 0 | CJ183: 0 | CK183: 0 | CL183: 0 | CM183: 0 | CN183: 0 | CO183: 0 | CP183: 0 | CQ183: 0 | CR183: 0 | CS183: 0 | CT183: 0 | CU183: 0 | CV183: 0 | CW183: 0 | CX183: 0 | CY183: 0 | CZ183: 0 | DA183: 0 | DB183: 0
A184: 2014-01-08 | B184: 07:00:00 | C184: 休日 | D184: 3.2 | E184: 4.1 | F184: 24.49986663 | S184: 24.49986663 | U184: 2014-01-08 | V184: 07:00:00 | W184: 休日 | X184: 3.2 | Y184: 4.1 | Z184: 0 | AA184: 0 | AZ184: 0 | BA184: 0 | BD184: 2014-01-08 | BE184: 07:00:00 | BF184: 休日 | BG184: 3.2 | BH184: 4.1 | BI184: 24499.86663 | BJ184: 0 | BK184: 0 | BL184: 0 | BM184: 0 | BN184: 0 | BO184: 0 | BP184: 0 | BQ184: 0 | BR184: 0 | BS184: 0 | BT184: 0 | BU184: 0 | BX184: 2014-01-08 | BY184: 07:00:00 | BZ184: 休日 | CA184: 3.2 | CB184: 4.1 | CC184: 0 | CD184: 0 | CE184: 0 | CF184: 0 | CG184: 0 | CH184: 0 | CI184: 0 | CJ184: 0 | CK184: 0 | CL184: 0 | CM184: 0 | CN184: 0 | CO184: 0 | CP184: 0 | CQ184: 0 | CR184: 0 | CS184: 0 | CT184: 0 | CU184: 0 | CV184: 0 | CW184: 0 | CX184: 0 | CY184: 0 | CZ184: 0 | DA184: 0 | DB184: 0
A185: 2014-01-08 | B185: 08:00:00 | C185: 休日 | D185: 5 | E185: 4.3 | F185: 3.293855599 | S185: 3.293855599 | U185: 2014-01-08 | V185: 08:00:00 | W185: 休日 | X185: 5 | Y185: 4.3 | Z185: 0 | AA185: 0 | AZ185: 0 | BA185: 0 | BD185: 2014-01-08 | BE185: 08:00:00 | BF185: 休日 | BG185: 5 | BH185: 4.3 | BI185: 3293.855599 | BJ185: 0 | BK185: 0 | BL185: 0 | BM185: 0 | BN185: 0 | BO185: 0 | BP185: 0 | BQ185: 0 | BR185: 0 | BS185: 0 | BT185: 0 | BU185: 0 | BX185: 2014-01-08 | BY185: 08:00:00 | BZ185: 休日 | CA185: 5 | CB185: 4.3 | CC185: 0 | CD185: 0 | CE185: 0 | CF185: 0 | CG185: 0 | CH185: 0 | CI185: 0 | CJ185: 0 | CK185: 0 | CL185: 0 | CM185: 0 | CN185: 0 | CO185: 0 | CP185: 0 | CQ185: 0 | CR185: 0 | CS185: 0 | CT185: 0 | CU185: 0 | CV185: 0 | CW185: 0 | CX185: 0 | CY185: 0 | CZ185: 0 | DA185: 0 | DB185: 0
A186: 2014-01-08 | B186: 09:00:00 | C186: 休日 | D186: 6.6 | E186: 4.5 | F186: 0.09169715292 | S186: 0.09169715292 | U186: 2014-01-08 | V186: 09:00:00 | W186: 休日 | X186: 6.6 | Y186: 4.5 | Z186: 0 | AA186: 0 | AZ186: 0 | BA186: 0 | BD186: 2014-01-08 | BE186: 09:00:00 | BF186: 休日 | BG186: 6.6 | BH186: 4.5 | BI186: 91.69715292 | BJ186: 0 | BK186: 0 | BL186: 0 | BM186: 0 | BN186: 0 | BO186: 0 | BP186: 0 | BQ186: 0 | BR186: 0 | BS186: 0 | BT186: 0 | BU186: 0 | BX186: 2014-01-08 | BY186: 09:00:00 | BZ186: 休日 | CA186: 6.6 | CB186: 4.5 | CC186: 0 | CD186: 0 | CE186: 0 | CF186: 0 | CG186: 0 | CH186: 0 | CI186: 0 | CJ186: 0 | CK186: 0 | CL186: 0 | CM186: 0 | CN186: 0 | CO186: 0 | CP186: 0 | CQ186: 0 | CR186: 0 | CS186: 0 | CT186: 0 | CU186: 0 | CV186: 0 | CW186: 0 | CX186: 0 | CY186: 0 | CZ186: 0 | DA186: 0 | DB186: 0
A187: 2014-01-08 | B187: 10:00:00 | C187: 休日 | D187: 8.7 | E187: 4.6 | F187: 0.06673587603 | S187: 0.06673587603 | U187: 2014-01-08 | V187: 10:00:00 | W187: 休日 | X187: 8.7 | Y187: 4.6 | Z187: 0 | AA187: 0 | AZ187: 0 | BA187: 0 | BD187: 2014-01-08 | BE187: 10:00:00 | BF187: 休日 | BG187: 8.7 | BH187: 4.6 | BI187: 66.73587603 | BJ187: 0 | BK187: 0 | BL187: 0 | BM187: 0 | BN187: 0 | BO187: 0 | BP187: 0 | BQ187: 0 | BR187: 0 | BS187: 0 | BT187: 0 | BU187: 0 | BX187: 2014-01-08 | BY187: 10:00:00 | BZ187: 休日 | CA187: 8.7 | CB187: 4.6 | CC187: 0 | CD187: 0 | CE187: 0 | CF187: 0 | CG187: 0 | CH187: 0 | CI187: 0 | CJ187: 0 | CK187: 0 | CL187: 0 | CM187: 0 | CN187: 0 | CO187: 0 | CP187: 0 | CQ187: 0 | CR187: 0 | CS187: 0 | CT187: 0 | CU187: 0 | CV187: 0 | CW187: 0 | CX187: 0 | CY187: 0 | CZ187: 0 | DA187: 0 | DB187: 0
A188: 2014-01-08 | B188: 11:00:00 | C188: 休日 | D188: 10.5 | E188: 4.9 | F188: 0.06403952512 | S188: 0.06403952512 | U188: 2014-01-08 | V188: 11:00:00 | W188: 休日 | X188: 10.5 | Y188: 4.9 | Z188: 0 | AA188: 0 | AZ188: 0 | BA188: 0 | BD188: 2014-01-08 | BE188: 11:00:00 | BF188: 休日 | BG188: 10.5 | BH188: 4.9 | BI188: 64.03952512 | BJ188: 0 | BK188: 0 | BL188: 0 | BM188: 0 | BN188: 0 | BO188: 0 | BP188: 0 | BQ188: 0 | BR188: 0 | BS188: 0 | BT188: 0 | BU188: 0 | BX188: 2014-01-08 | BY188: 11:00:00 | BZ188: 休日 | CA188: 10.5 | CB188: 4.9 | CC188: 0 | CD188: 0 | CE188: 0 | CF188: 0 | CG188: 0 | CH188: 0 | CI188: 0 | CJ188: 0 | CK188: 0 | CL188: 0 | CM188: 0 | CN188: 0 | CO188: 0 | CP188: 0 | CQ188: 0 | CR188: 0 | CS188: 0 | CT188: 0 | CU188: 0 | CV188: 0 | CW188: 0 | CX188: 0 | CY188: 0 | CZ188: 0 | DA188: 0 | DB188: 0
A189: 2014-01-08 | B189: 12:00:00 | C189: 休日 | D189: 11.5 | E189: 4.9 | F189: 0.05455357292 | S189: 0.05455357292 | U189: 2014-01-08 | V189: 12:00:00 | W189: 休日 | X189: 11.5 | Y189: 4.9 | Z189: 0 | AA189: 0 | AZ189: 0 | BA189: 0 | BD189: 2014-01-08 | BE189: 12:00:00 | BF189: 休日 | BG189: 11.5 | BH189: 4.9 | BI189: 54.55357292 | BJ189: 0 | BK189: 0 | BL189: 0 | BM189: 0 | BN189: 0 | BO189: 0 | BP189: 0 | BQ189: 0 | BR189: 0 | BS189: 0 | BT189: 0 | BU189: 0 | BX189: 2014-01-08 | BY189: 12:00:00 | BZ189: 休日 | CA189: 11.5 | CB189: 4.9 | CC189: 0 | CD189: 0 | CE189: 0 | CF189: 0 | CG189: 0 | CH189: 0 | CI189: 0 | CJ189: 0 | CK189: 0 | CL189: 0 | CM189: 0 | CN189: 0 | CO189: 0 | CP189: 0 | CQ189: 0 | CR189: 0 | CS189: 0 | CT189: 0 | CU189: 0 | CV189: 0 | CW189: 0 | CX189: 0 | CY189: 0 | CZ189: 0 | DA189: 0 | DB189: 0
A190: 2014-01-08 | B190: 13:00:00 | C190: 休日 | D190: 12 | E190: 4.9 | F190: 0 | S190: 0 | U190: 2014-01-08 | V190: 13:00:00 | W190: 休日 | X190: 12 | Y190: 4.9 | Z190: 0 | AA190: 0 | AZ190: 0 | BA190: 0 | BD190: 2014-01-08 | BE190: 13:00:00 | BF190: 休日 | BG190: 12 | BH190: 4.9 | BI190: 0 | BJ190: 0 | BK190: 0 | BL190: 0 | BM190: 0 | BN190: 0 | BO190: 0 | BP190: 0 | BQ190: 0 | BR190: 0 | BS190: 0 | BT190: 0 | BU190: 0 | BX190: 2014-01-08 | BY190: 13:00:00 | BZ190: 休日 | CA190: 12 | CB190: 4.9 | CC190: 0 | CD190: 0 | CE190: 0 | CF190: 0 | CG190: 0 | CH190: 0 | CI190: 0 | CJ190: 0 | CK190: 0 | CL190: 0 | CM190: 0 | CN190: 0 | CO190: 0 | CP190: 0 | CQ190: 0 | CR190: 0 | CS190: 0 | CT190: 0 | CU190: 0 | CV190: 0 | CW190: 0 | CX190: 0 | CY190: 0 | CZ190: 0 | DA190: 0 | DB190: 0
A191: 2014-01-08 | B191: 14:00:00 | C191: 休日 | D191: 12.2 | E191: 4.9 | F191: 0 | S191: 0 | U191: 2014-01-08 | V191: 14:00:00 | W191: 休日 | X191: 12.2 | Y191: 4.9 | Z191: 0 | AA191: 0 | AZ191: 0 | BA191: 0 | BD191: 2014-01-08 | BE191: 14:00:00 | BF191: 休日 | BG191: 12.2 | BH191: 4.9 | BI191: 0 | BJ191: 0 | BK191: 0 | BL191: 0 | BM191: 0 | BN191: 0 | BO191: 0 | BP191: 0 | BQ191: 0 | BR191: 0 | BS191: 0 | BT191: 0 | BU191: 0 | BX191: 2014-01-08 | BY191: 14:00:00 | BZ191: 休日 | CA191: 12.2 | CB191: 4.9 | CC191: 0 | CD191: 0 | CE191: 0 | CF191: 0 | CG191: 0 | CH191: 0 | CI191: 0 | CJ191: 0 | CK191: 0 | CL191: 0 | CM191: 0 | CN191: 0 | CO191: 0 | CP191: 0 | CQ191: 0 | CR191: 0 | CS191: 0 | CT191: 0 | CU191: 0 | CV191: 0 | CW191: 0 | CX191: 0 | CY191: 0 | CZ191: 0 | DA191: 0 | DB191: 0
A192: 2014-01-08 | B192: 15:00:00 | C192: 休日 | D192: 11.9 | E192: 5.3 | F192: 0.1024897749 | S192: 0.1024897749 | U192: 2014-01-08 | V192: 15:00:00 | W192: 休日 | X192: 11.9 | Y192: 5.3 | Z192: 0 | AA192: 0 | AZ192: 0 | BA192: 0 | BD192: 2014-01-08 | BE192: 15:00:00 | BF192: 休日 | BG192: 11.9 | BH192: 5.3 | BI192: 102.4897749 | BJ192: 0 | BK192: 0 | BL192: 0 | BM192: 0 | BN192: 0 | BO192: 0 | BP192: 0 | BQ192: 0 | BR192: 0 | BS192: 0 | BT192: 0 | BU192: 0 | BX192: 2014-01-08 | BY192: 15:00:00 | BZ192: 休日 | CA192: 11.9 | CB192: 5.3 | CC192: 0 | CD192: 0 | CE192: 0 | CF192: 0 | CG192: 0 | CH192: 0 | CI192: 0 | CJ192: 0 | CK192: 0 | CL192: 0 | CM192: 0 | CN192: 0 | CO192: 0 | CP192: 0 | CQ192: 0 | CR192: 0 | CS192: 0 | CT192: 0 | CU192: 0 | CV192: 0 | CW192: 0 | CX192: 0 | CY192: 0 | CZ192: 0 | DA192: 0 | DB192: 0
A193: 2014-01-08 | B193: 16:00:00 | C193: 休日 | D193: 11.2 | E193: 5.3 | F193: 0.08269562899 | S193: 0.08269562899 | U193: 2014-01-08 | V193: 16:00:00 | W193: 休日 | X193: 11.2 | Y193: 5.3 | Z193: 0 | AA193: 0 | AZ193: 0 | BA193: 0 | BD193: 2014-01-08 | BE193: 16:00:00 | BF193: 休日 | BG193: 11.2 | BH193: 5.3 | BI193: 82.69562899 | BJ193: 0 | BK193: 0 | BL193: 0 | BM193: 0 | BN193: 0 | BO193: 0 | BP193: 0 | BQ193: 0 | BR193: 0 | BS193: 0 | BT193: 0 | BU193: 0 | BX193: 2014-01-08 | BY193: 16:00:00 | BZ193: 休日 | CA193: 11.2 | CB193: 5.3 | CC193: 0 | CD193: 0 | CE193: 0 | CF193: 0 | CG193: 0 | CH193: 0 | CI193: 0 | CJ193: 0 | CK193: 0 | CL193: 0 | CM193: 0 | CN193: 0 | CO193: 0 | CP193: 0 | CQ193: 0 | CR193: 0 | CS193: 0 | CT193: 0 | CU193: 0 | CV193: 0 | CW193: 0 | CX193: 0 | CY193: 0 | CZ193: 0 | DA193: 0 | DB193: 0
A194: 2014-01-08 | B194: 17:00:00 | C194: 休日 | D194: 9.7 | E194: 5.2 | F194: 0.2050828569 | S194: 0.2050828569 | U194: 2014-01-08 | V194: 17:00:00 | W194: 休日 | X194: 9.7 | Y194: 5.2 | Z194: 0 | AA194: 0 | AZ194: 0 | BA194: 0 | BD194: 2014-01-08 | BE194: 17:00:00 | BF194: 休日 | BG194: 9.7 | BH194: 5.2 | BI194: 205.0828569 | BJ194: 0 | BK194: 0 | BL194: 0 | BM194: 0 | BN194: 0 | BO194: 0 | BP194: 0 | BQ194: 0 | BR194: 0 | BS194: 0 | BT194: 0 | BU194: 0 | BX194: 2014-01-08 | BY194: 17:00:00 | BZ194: 休日 | CA194: 9.7 | CB194: 5.2 | CC194: 0 | CD194: 0 | CE194: 0 | CF194: 0 | CG194: 0 | CH194: 0 | CI194: 0 | CJ194: 0 | CK194: 0 | CL194: 0 | CM194: 0 | CN194: 0 | CO194: 0 | CP194: 0 | CQ194: 0 | CR194: 0 | CS194: 0 | CT194: 0 | CU194: 0 | CV194: 0 | CW194: 0 | CX194: 0 | CY194: 0 | CZ194: 0 | DA194: 0 | DB194: 0
A195: 2014-01-08 | B195: 18:00:00 | C195: 休日 | D195: 8.7 | E195: 5.1 | F195: 0.4896787231 | S195: 0.4896787231 | U195: 2014-01-08 | V195: 18:00:00 | W195: 休日 | X195: 8.7 | Y195: 5.1 | Z195: 0 | AA195: 0 | AZ195: 0 | BA195: 0 | BD195: 2014-01-08 | BE195: 18:00:00 | BF195: 休日 | BG195: 8.7 | BH195: 5.1 | BI195: 489.6787231 | BJ195: 0 | BK195: 0 | BL195: 0 | BM195: 0 | BN195: 0 | BO195: 0 | BP195: 0 | BQ195: 0 | BR195: 0 | BS195: 0 | BT195: 0 | BU195: 0 | BX195: 2014-01-08 | BY195: 18:00:00 | BZ195: 休日 | CA195: 8.7 | CB195: 5.1 | CC195: 0 | CD195: 0 | CE195: 0 | CF195: 0 | CG195: 0 | CH195: 0 | CI195: 0 | CJ195: 0 | CK195: 0 | CL195: 0 | CM195: 0 | CN195: 0 | CO195: 0 | CP195: 0 | CQ195: 0 | CR195: 0 | CS195: 0 | CT195: 0 | CU195: 0 | CV195: 0 | CW195: 0 | CX195: 0 | CY195: 0 | CZ195: 0 | DA195: 0 | DB195: 0
A196: 2014-01-08 | B196: 19:00:00 | C196: 休日 | D196: 8.1 | E196: 5.1 | F196: 2.64456972 | S196: 2.64456972 | U196: 2014-01-08 | V196: 19:00:00 | W196: 休日 | X196: 8.1 | Y196: 5.1 | Z196: 0 | AA196: 0 | AZ196: 0 | BA196: 0 | BD196: 2014-01-08 | BE196: 19:00:00 | BF196: 休日 | BG196: 8.1 | BH196: 5.1 | BI196: 2644.56972 | BJ196: 0 | BK196: 0 | BL196: 0 | BM196: 0 | BN196: 0 | BO196: 0 | BP196: 0 | BQ196: 0 | BR196: 0 | BS196: 0 | BT196: 0 | BU196: 0 | BX196: 2014-01-08 | BY196: 19:00:00 | BZ196: 休日 | CA196: 8.1 | CB196: 5.1 | CC196: 0 | CD196: 0 | CE196: 0 | CF196: 0 | CG196: 0 | CH196: 0 | CI196: 0 | CJ196: 0 | CK196: 0 | CL196: 0 | CM196: 0 | CN196: 0 | CO196: 0 | CP196: 0 | CQ196: 0 | CR196: 0 | CS196: 0 | CT196: 0 | CU196: 0 | CV196: 0 | CW196: 0 | CX196: 0 | CY196: 0 | CZ196: 0 | DA196: 0 | DB196: 0
A197: 2014-01-08 | B197: 20:00:00 | C197: 休日 | D197: 7.5 | E197: 4.9 | F197: 3.523230341 | S197: 3.523230341 | U197: 2014-01-08 | V197: 20:00:00 | W197: 休日 | X197: 7.5 | Y197: 4.9 | Z197: 0 | AA197: 0 | AZ197: 0 | BA197: 0 | BD197: 2014-01-08 | BE197: 20:00:00 | BF197: 休日 | BG197: 7.5 | BH197: 4.9 | BI197: 3523.230341 | BJ197: 0 | BK197: 0 | BL197: 0 | BM197: 0 | BN197: 0 | BO197: 0 | BP197: 0 | BQ197: 0 | BR197: 0 | BS197: 0 | BT197: 0 | BU197: 0 | BX197: 2014-01-08 | BY197: 20:00:00 | BZ197: 休日 | CA197: 7.5 | CB197: 4.9 | CC197: 0 | CD197: 0 | CE197: 0 | CF197: 0 | CG197: 0 | CH197: 0 | CI197: 0 | CJ197: 0 | CK197: 0 | CL197: 0 | CM197: 0 | CN197: 0 | CO197: 0 | CP197: 0 | CQ197: 0 | CR197: 0 | CS197: 0 | CT197: 0 | CU197: 0 | CV197: 0 | CW197: 0 | CX197: 0 | CY197: 0 | CZ197: 0 | DA197: 0 | DB197: 0
A198: 2014-01-08 | B198: 21:00:00 | C198: 休日 | D198: 6.7 | E198: 4.9 | F198: 4.623493779 | S198: 4.623493779 | U198: 2014-01-08 | V198: 21:00:00 | W198: 休日 | X198: 6.7 | Y198: 4.9 | Z198: 0 | AA198: 0 | AZ198: 0 | BA198: 0 | BD198: 2014-01-08 | BE198: 21:00:00 | BF198: 休日 | BG198: 6.7 | BH198: 4.9 | BI198: 4623.493779 | BJ198: 0 | BK198: 0 | BL198: 0 | BM198: 0 | BN198: 0 | BO198: 0 | BP198: 0 | BQ198: 0 | BR198: 0 | BS198: 0 | BT198: 0 | BU198: 0 | BX198: 2014-01-08 | BY198: 21:00:00 | BZ198: 休日 | CA198: 6.7 | CB198: 4.9 | CC198: 0 | CD198: 0 | CE198: 0 | CF198: 0 | CG198: 0 | CH198: 0 | CI198: 0 | CJ198: 0 | CK198: 0 | CL198: 0 | CM198: 0 | CN198: 0 | CO198: 0 | CP198: 0 | CQ198: 0 | CR198: 0 | CS198: 0 | CT198: 0 | CU198: 0 | CV198: 0 | CW198: 0 | CX198: 0 | CY198: 0 | CZ198: 0 | DA198: 0 | DB198: 0
A199: 2014-01-08 | B199: 22:00:00 | C199: 休日 | D199: 6 | E199: 4.8 | F199: 0 | S199: 0 | U199: 2014-01-08 | V199: 22:00:00 | W199: 休日 | X199: 6 | Y199: 4.8 | Z199: 0 | AA199: 0 | AZ199: 0 | BA199: 0 | BD199: 2014-01-08 | BE199: 22:00:00 | BF199: 休日 | BG199: 6 | BH199: 4.8 | BI199: 0 | BJ199: 0 | BK199: 0 | BL199: 0 | BM199: 0 | BN199: 0 | BO199: 0 | BP199: 0 | BQ199: 0 | BR199: 0 | BS199: 0 | BT199: 0 | BU199: 0 | BX199: 2014-01-08 | BY199: 22:00:00 | BZ199: 休日 | CA199: 6 | CB199: 4.8 | CC199: 0 | CD199: 0 | CE199: 0 | CF199: 0 | CG199: 0 | CH199: 0 | CI199: 0 | CJ199: 0 | CK199: 0 | CL199: 0 | CM199: 0 | CN199: 0 | CO199: 0 | CP199: 0 | CQ199: 0 | CR199: 0 | CS199: 0 | CT199: 0 | CU199: 0 | CV199: 0 | CW199: 0 | CX199: 0 | CY199: 0 | CZ199: 0 | DA199: 0 | DB199: 0
A200: 2014-01-08 | B200: 23:00:00 | C200: 休日 | D200: 5.2 | E200: 4.8 | F200: 0 | S200: 0 | U200: 2014-01-08 | V200: 23:00:00 | W200: 休日 | X200: 5.2 | Y200: 4.8 | Z200: 0 | AA200: 0 | AZ200: 0 | BA200: 0 | BD200: 2014-01-08 | BE200: 23:00:00 | BF200: 休日 | BG200: 5.2 | BH200: 4.8 | BI200: 0 | BJ200: 0 | BK200: 0 | BL200: 0 | BM200: 0 | BN200: 0 | BO200: 0 | BP200: 0 | BQ200: 0 | BR200: 0 | BS200: 0 | BT200: 0 | BU200: 0 | BX200: 2014-01-08 | BY200: 23:00:00 | BZ200: 休日 | CA200: 5.2 | CB200: 4.8 | CC200: 0 | CD200: 0 | CE200: 0 | CF200: 0 | CG200: 0 | CH200: 0 | CI200: 0 | CJ200: 0 | CK200: 0 | CL200: 0 | CM200: 0 | CN200: 0 | CO200: 0 | CP200: 0 | CQ200: 0 | CR200: 0 | CS200: 0 | CT200: 0 | CU200: 0 | CV200: 0 | CW200: 0 | CX200: 0 | CY200: 0 | CZ200: 0 | DA200: 0 | DB200: 0
... 362 more rows

Sheet 貼り付けシート
AB1: ⇒暖房負荷用 | BH1: ⇒冷房負荷用
AA2: ファイル名と居室名の貼り付け間違いの確認を行います。全て「TRUE」を確認してから計算してください⇒ | AB2: =IF(AB$3="-",TRUE,IF(AND(EXACT(AB3,AB4),EXACT($L$26,AB5))=TRUE,TRUE,FALSE)) -> TRUE | AF2: =IF(AF$3="-",TRUE,IF(AND(EXACT(AF3,AF4),EXACT($L$26,AF5))=TRUE,TRUE,FALSE)) -> TRUE | AJ2: =IF(AJ$3="-",TRUE,IF(AND(EXACT(AJ3,AJ4),EXACT($L$26,AJ5))=TRUE,TRUE,FALSE)) -> TRUE | AN2: =IF(AN$3="-",TRUE,IF(AND(EXACT(AN3,AN4),EXACT($L$26,AN5))=TRUE,TRUE,FALSE)) -> TRUE | AR2: =IF(AR$3="-",TRUE,IF(AND(EXACT(AR3,AR4),EXACT($L$26,AR5))=TRUE,TRUE,FALSE)) -> TRUE | AV2: =IF(AV$3="-",TRUE,IF(AND(EXACT(AV3,AV4),EXACT($L$26,AV5))=TRUE,TRUE,FALSE)) -> TRUE | AZ2: =IF(AZ$3="-",TRUE,IF(AND(EXACT(AZ3,AZ4),EXACT($L$26,AZ5))=TRUE,TRUE,FALSE)) -> TRUE | BD2: =IF(BD$3="-",TRUE,IF(AND(EXACT(BD3,BD4),EXACT($L$26,BD5))=TRUE,TRUE,FALSE)) -> TRUE | BH2: =IF(BH$3="-",TRUE,IF(AND(EXACT(BH3,BH4),EXACT($L$26,BH5))=TRUE,TRUE,FALSE)) -> TRUE | BL2: =IF(BL$3="-",TRUE,IF(AND(EXACT(BL3,BL4),EXACT($L$26,BL5))=TRUE,TRUE,FALSE)) -> TRUE | BP2: =IF(BP$3="-",TRUE,IF(AND(EXACT(BP3,BP4),EXACT($L$26,BP5))=TRUE,TRUE,FALSE)) -> TRUE | BT2: =IF(BT$3="-",TRUE,IF(AND(EXACT(BT3,BT4),EXACT($L$26,BT5))=TRUE,TRUE,FALSE)) -> TRUE | BX2: =IF(BX$3="-",TRUE,IF(AND(EXACT(BX3,BX4),EXACT($L$26,BX5))=TRUE,TRUE,FALSE)) -> TRUE | CB2: =IF(CB$3="-",TRUE,IF(AND(EXACT(CB3,CB4),EXACT($L$26,CB5))=TRUE,TRUE,FALSE)) -> TRUE | CF2: =IF(CF$3="-",TRUE,IF(AND(EXACT(CF3,CF4),EXACT($L$26,CF5))=TRUE,TRUE,FALSE)) -> TRUE | CJ2: =IF(CJ$3="-",TRUE,IF(AND(EXACT(CJ3,CJ4),EXACT($L$26,CJ5))=TRUE,TRUE,FALSE)) -> TRUE
O3: （参考）収集する負荷ファイル名 | AA3: 貼り付けるデータのファイル名（入力項目から自動生成）⇒ | AB3: =貼り付けシート!E36 -> HH6x_12_03_312_1SS_FM.csv | AF3: =貼り付けシート!F36 -> HH6x_12_03_212_1SS_FM.csv | AJ3: =貼り付けシート!G36 -> HH6x_12_05_212_1SS_FM.csv | AN3: =貼り付けシート!H36 -> HH6x_12_05_112_1SS_FM.csv | AR3: =貼り付けシート!I36 -> HH6x_12_03_312_2SS_FM.csv | AV3: =貼り付けシート!J36 -> HH6x_12_03_212_2SS_FM.csv | AZ3: =貼り付けシート!K36 -> HH6x_12_05_212_2SS_FM.csv | BD3: =貼り付けシート!L36 -> HH6x_12_05_112_2SS_FM.csv | BH3: =貼り付けシート!E54 -> HC6x_12_03_312_1SS_FM.csv | BL3: =貼り付けシート!F54 -> HC6x_12_03_212_1SS_FM.csv | BP3: =貼り付けシート!G54 -> HC6x_12_05_312_1SS_FM.csv | BT3: =貼り付けシート!H54 -> HC6x_12_05_212_1SS_FM.csv | BX3: =貼り付けシート!I54 -> HC6x_12_03_332_1SS_FM.csv | CB3: =貼り付けシート!J54 -> HC6x_12_03_232_1SS_FM.csv | CF3: =貼り付けシート!K54 -> HC6x_12_05_332_1SS_FM.csv | CJ3: =貼り付けシート!L54 -> HC6x_12_05_232_1SS_FM.csv
B4: 用途 | C4: 分類 | D4: 名称 | F4: 単位 | G4: 入力値 | L4: 換算値 | O4: 暖房 | R4: 冷房 | AA4: 貼り付けるデータのファイル名を入力してください⇒ | AB4: HH6x_12_03_312_1SS_FM.csv | AF4: HH6x_12_03_212_1SS_FM.csv | AJ4: HH6x_12_05_212_1SS_FM.csv | AN4: HH6x_12_05_112_1SS_FM.csv | AR4: HH6x_12_03_312_2SS_FM.csv | AV4: HH6x_12_03_212_2SS_FM.csv | AZ4: HH6x_12_05_212_2SS_FM.csv | BD4: HH6x_12_05_112_2SS_FM.csv | BH4: HC6x_12_03_312_1SS_FM.csv | BL4: HC6x_12_03_212_1SS_FM.csv | BP4: HC6x_12_05_312_1SS_FM.csv | BT4: HC6x_12_05_212_1SS_FM.csv | BX4: HC6x_12_03_332_1SS_FM.csv | CB4: HC6x_12_03_232_1SS_FM.csv | CF4: HC6x_12_05_332_1SS_FM.csv | CJ4: HC6x_12_05_232_1SS_FM.csv
B5: 基本情報 | D5: 地域区分 | F5: - | G5: =入力データ!G9 -> 6地域 | L5: =VLOOKUP($G5,負荷ファイル番号_地域区分,2,FALSE) -> 6x | O5: =TRANSPOSE(E36:L36) -> HH6x_12_03_312_1SS_FM.csv | R5: =TRANSPOSE(E54:L54) -> HC6x_12_03_312_1SS_FM.csv | AB5: LD | AF5: LD | AJ5: LD | AN5: LD | AR5: LD | AV5: LD | AZ5: LD | BD5: LD | BH5: LD | BL5: LD | BP5: LD | BT5: LD | BX5: LD | CB5: LD | CF5: LD | CJ5: LD
D6: 床面積の合計 | F6: m2 | G6: =入力データ!G10 -> 120.08 | L6: － | O6: HH6x_12_03_212_1SS_FM.csv | R6: HC6x_12_03_212_1SS_FM.csv | AB6: スケジュール | AC6: 顕熱 | AD6: 潜熱 | AF6: スケジュール | AG6: 顕熱 | AH6: 潜熱 | AJ6: スケジュール | AK6: 顕熱 | AL6: 潜熱 | AN6: スケジュール | AO6: 顕熱 | AP6: 潜熱 | AR6: スケジュール | AS6: 顕熱 | AT6: 潜熱 | AV6: スケジュール | AW6: 顕熱 | AX6: 潜熱 | AZ6: スケジュール | BA6: 顕熱 | BB6: 潜熱 | BD6: スケジュール | BE6: 顕熱 | BF6: 潜熱 | BH6: スケジュール | BI6: 顕熱 | BJ6: 潜熱 | BL6: スケジュール | BM6: 顕熱 | BN6: 潜熱 | BP6: スケジュール | BQ6: 顕熱 | BR6: 潜熱 | BT6: スケジュール | BU6: 顕熱 | BV6: 潜熱 | BX6: スケジュール | BY6: 顕熱 | BZ6: 潜熱 | CB6: スケジュール | CC6: 顕熱 | CD6: 潜熱 | CF6: スケジュール | CG6: 顕熱 | CH6: 潜熱 | CJ6: スケジュール | CK6: 顕熱 | CL6: 潜熱
D7: 主たる居室の床面積 | F7: m2 | G7: =入力データ!G11 -> 29.81 | L7: － | O7: HH6x_12_05_212_1SS_FM.csv | R7: HC6x_12_05_312_1SS_FM.csv | AC7: [kJ/h] | AD7: [kJ/h] | AG7: [kJ/h] | AH7: [kJ/h] | AK7: [kJ/h] | AL7: [kJ/h] | AO7: [kJ/h] | AP7: [kJ/h] | AS7: [kJ/h] | AT7: [kJ/h] | AW7: [kJ/h] | AX7: [kJ/h] | BA7: [kJ/h] | BB7: [kJ/h] | BE7: [kJ/h] | BF7: [kJ/h] | BI7: [kJ/h] | BJ7: [kJ/h] | BM7: [kJ/h] | BN7: [kJ/h] | BQ7: [kJ/h] | BR7: [kJ/h] | BU7: [kJ/h] | BV7: [kJ/h] | BY7: [kJ/h] | BZ7: [kJ/h] | CC7: [kJ/h] | CD7: [kJ/h] | CG7: [kJ/h] | CH7: [kJ/h] | CK7: [kJ/h] | CL7: [kJ/h]
D8: その他の居室の床面積 | F8: m2 | G8: =入力データ!G12 -> 51.34 | L8: － | O8: HH6x_12_05_112_1SS_FM.csv | R8: HC6x_12_05_212_1SS_FM.csv | Y8: 2014-01-01 | Z8: 00:00:00 | AA8: 休日 | AB8: OFF | AC8: 0 | AD8: 0 | AF8: OFF | AG8: 0 | AH8: 0 | AJ8: OFF | AK8: 0 | AL8: 0 | AN8: OFF | AO8: 0 | AP8: 0 | AR8: OFF | AS8: 0 | AT8: 0 | AV8: OFF | AW8: 0 | AX8: 0 | AZ8: OFF | BA8: 0 | BB8: 0 | BD8: OFF | BE8: 0 | BF8: 0 | BH8: OFF | BI8: 0 | BJ8: 0 | BL8: OFF | BM8: 0 | BN8: 0 | BP8: OFF | BQ8: 0 | BR8: 0 | BT8: OFF | BU8: 0 | BV8: 0 | BX8: OFF | BY8: 0 | BZ8: 0 | CB8: OFF | CC8: 0 | CD8: 0 | CF8: OFF | CG8: 0 | CH8: 0 | CJ8: OFF | CK8: 0 | CL8: 0
B9: 暖冷房 | C9: 外皮 | D9: 単位温度差当たりの外皮熱損失量 | F9: W/K | G9: =入力データ!G13 -> 279.8 | L9: － | O9: HH6x_12_03_312_2SS_FM.csv | R9: HC6x_12_03_332_1SS_FM.csv | Y9: 2014-01-01 | Z9: 01:00:00 | AA9: 休日 | AB9: OFF | AC9: 0 | AD9: 0 | AF9: OFF | AG9: 0 | AH9: 0 | AJ9: OFF | AK9: 0 | AL9: 0 | AN9: OFF | AO9: 0 | AP9: 0 | AR9: OFF | AS9: 0 | AT9: 0 | AV9: OFF | AW9: 0 | AX9: 0 | AZ9: OFF | BA9: 0 | BB9: 0 | BD9: OFF | BE9: 0 | BF9: 0 | BH9: OFF | BI9: 0 | BJ9: 0 | BL9: OFF | BM9: 0 | BN9: 0 | BP9: OFF | BQ9: 0 | BR9: 0 | BT9: OFF | BU9: 0 | BV9: 0 | BX9: OFF | BY9: 0 | BZ9: 0 | CB9: OFF | CC9: 0 | CD9: 0 | CF9: OFF | CG9: 0 | CH9: 0 | CJ9: OFF | CK9: 0 | CL9: 0
D10: 単位日射強度当たりの冷房期の日射熱取得量 | F10: W/(W/m2) | G10: =入力データ!G14 -> 6.42 | L10: － | O10: HH6x_12_03_212_2SS_FM.csv | R10: HC6x_12_03_232_1SS_FM.csv | Y10: 2014-01-01 | Z10: 02:00:00 | AA10: 休日 | AB10: OFF | AC10: 0 | AD10: 0 | AF10: OFF | AG10: 0 | AH10: 0 | AJ10: OFF | AK10: 0 | AL10: 0 | AN10: OFF | AO10: 0 | AP10: 0 | AR10: OFF | AS10: 0 | AT10: 0 | AV10: OFF | AW10: 0 | AX10: 0 | AZ10: OFF | BA10: 0 | BB10: 0 | BD10: OFF | BE10: 0 | BF10: 0 | BH10: OFF | BI10: 0 | BJ10: 0 | BL10: OFF | BM10: 0 | BN10: 0 | BP10: OFF | BQ10: 0 | BR10: 0 | BT10: OFF | BU10: 0 | BV10: 0 | BX10: OFF | BY10: 0 | BZ10: 0 | CB10: OFF | CC10: 0 | CD10: 0 | CF10: OFF | CG10: 0 | CH10: 0 | CJ10: OFF | CK10: 0 | CL10: 0
D11: 単位日射強度当たりの暖房期の日射熱取得量 | F11: W/(W/m2) | G11: =入力データ!G15 -> 12.37 | L11: － | O11: HH6x_12_05_212_2SS_FM.csv | R11: HC6x_12_05_332_1SS_FM.csv | Y11: 2014-01-01 | Z11: 03:00:00 | AA11: 休日 | AB11: OFF | AC11: 0 | AD11: 0 | AF11: OFF | AG11: 0 | AH11: 0 | AJ11: OFF | AK11: 0 | AL11: 0 | AN11: OFF | AO11: 0 | AP11: 0 | AR11: OFF | AS11: 0 | AT11: 0 | AV11: OFF | AW11: 0 | AX11: 0 | AZ11: OFF | BA11: 0 | BB11: 0 | BD11: OFF | BE11: 0 | BF11: 0 | BH11: OFF | BI11: 0 | BJ11: 0 | BL11: OFF | BM11: 0 | BN11: 0 | BP11: OFF | BQ11: 0 | BR11: 0 | BT11: OFF | BU11: 0 | BV11: 0 | BX11: OFF | BY11: 0 | BZ11: 0 | CB11: OFF | CC11: 0 | CD11: 0 | CF11: OFF | CG11: 0 | CH11: 0 | CJ11: OFF | CK11: 0 | CL11: 0
D12: 通風の利用における相当換気回数（主たる居室） | F12: 1/h | G12: =IF($L$20=11,0,入力データ!G16) -> 0 | L12: － | O12: HH6x_12_05_112_2SS_FM.csv | R12: HC6x_12_05_232_1SS_FM.csv | Y12: 2014-01-01 | Z12: 04:00:00 | AA12: 休日 | AB12: OFF | AC12: 0 | AD12: 0 | AF12: OFF | AG12: 0 | AH12: 0 | AJ12: OFF | AK12: 0 | AL12: 0 | AN12: OFF | AO12: 0 | AP12: 0 | AR12: OFF | AS12: 0 | AT12: 0 | AV12: OFF | AW12: 0 | AX12: 0 | AZ12: OFF | BA12: 0 | BB12: 0 | BD12: OFF | BE12: 0 | BF12: 0 | BH12: OFF | BI12: 0 | BJ12: 0 | BL12: OFF | BM12: 0 | BN12: 0 | BP12: OFF | BQ12: 0 | BR12: 0 | BT12: OFF | BU12: 0 | BV12: 0 | BX12: OFF | BY12: 0 | BZ12: 0 | CB12: OFF | CC12: 0 | CD12: 0 | CF12: OFF | CG12: 0 | CH12: 0 | CJ12: OFF | CK12: 0 | CL12: 0
D13: 通風の利用における相当換気回数（その他の居室） | F13: 1/h | G13: =IF($L$20=11,0,入力データ!G17) -> 0 | L13: － | Y13: 2014-01-01 | Z13: 05:00:00 | AA13: 休日 | AB13: OFF | AC13: 0 | AD13: 0 | AF13: OFF | AG13: 0 | AH13: 0 | AJ13: OFF | AK13: 0 | AL13: 0 | AN13: OFF | AO13: 0 | AP13: 0 | AR13: OFF | AS13: 0 | AT13: 0 | AV13: OFF | AW13: 0 | AX13: 0 | AZ13: OFF | BA13: 0 | BB13: 0 | BD13: OFF | BE13: 0 | BF13: 0 | BH13: OFF | BI13: 0 | BJ13: 0 | BL13: OFF | BM13: 0 | BN13: 0 | BP13: OFF | BQ13: 0 | BR13: 0 | BT13: OFF | BU13: 0 | BV13: 0 | BX13: OFF | BY13: 0 | BZ13: 0 | CB13: OFF | CC13: 0 | CD13: 0 | CF13: OFF | CG13: 0 | CH13: 0 | CJ13: OFF | CK13: 0 | CL13: 0
D14: 蓄熱の利用 | F14: - | G14: =入力データ!G18 -> 利用しない | L14: － | Y14: 2014-01-01 | Z14: 06:00:00 | AA14: 休日 | AB14: OFF | AC14: 0 | AD14: 0 | AF14: OFF | AG14: 0 | AH14: 0 | AJ14: OFF | AK14: 0 | AL14: 0 | AN14: OFF | AO14: 0 | AP14: 0 | AR14: OFF | AS14: 0 | AT14: 0 | AV14: OFF | AW14: 0 | AX14: 0 | AZ14: OFF | BA14: 0 | BB14: 0 | BD14: OFF | BE14: 0 | BF14: 0 | BH14: OFF | BI14: 0 | BJ14: 0 | BL14: OFF | BM14: 0 | BN14: 0 | BP14: OFF | BQ14: 0 | BR14: 0 | BT14: OFF | BU14: 0 | BV14: 0 | BX14: OFF | BY14: 0 | BZ14: 0 | CB14: OFF | CC14: 0 | CD14: 0 | CF14: OFF | CG14: 0 | CH14: 0 | CJ14: OFF | CK14: 0 | CL14: 0
C15: 暖房設備 | D15: 運転モード | F15: - | G15: =入力データ!G19 -> 居室間歇運転 | L15: =VLOOKUP($G15,負荷ファイル番号_暖房運転モード,2,FALSE) -> 12 | O15: （参考）断熱性能区分 | Y15: 2014-01-01 | Z15: 07:00:00 | AA15: 休日 | AB15: ON | AC15: 29016.19 | AD15: 0 | AF15: ON | AG15: 27536.87 | AH15: 0 | AJ15: ON | AK15: 23303.85 | AL15: 0 | AN15: ON | AO15: 22438.95 | AP15: 0 | AR15: ON | AS15: 25722.05 | AT15: 0 | AV15: ON | AW15: 23218.91 | AX15: 0 | AZ15: ON | BA15: 18002.84 | BB15: 0 | BD15: ON | BE15: 15739.41 | BF15: 0 | BH15: OFF | BI15: 0 | BJ15: 0 | BL15: OFF | BM15: 0 | BN15: 0 | BP15: OFF | BQ15: 0 | BR15: 0 | BT15: OFF | BU15: 0 | BV15: 0 | BX15: OFF | BY15: 0 | BZ15: 0 | CB15: OFF | CC15: 0 | CD15: 0 | CF15: OFF | CG15: 0 | CH15: 0 | CJ15: OFF | CK15: 0 | CL15: 0
D16: 床暖房採用の有無（主たる居室） | F16: - | G16: =入力データ!G20 -> 床暖房を採用しない | L16: =VLOOKUP($G16,負荷ファイル番号_床暖房採用の有無,2,FALSE) -> 0 | O16: 暖房 | Q16: 冷房 | Y16: 2014-01-01 | Z16: 08:00:00 | AA16: 休日 | AB16: ON | AC16: 10972.43 | AD16: 0 | AF16: ON | AG16: 7212.93 | AH16: 0 | AJ16: ON | AK16: 5095.91 | AL16: 0 | AN16: ON | AO16: 3707.13 | AP16: 0 | AR16: ON | AS16: 11356.83 | AT16: 0 | AV16: ON | AW16: 8000.7 | AX16: 0 | AZ16: ON | BA16: 5262.63 | BB16: 0 | BD16: ON | BE16: 4060.09 | BF16: 0 | BH16: OFF | BI16: 0 | BJ16: 0 | BL16: OFF | BM16: 0 | BN16: 0 | BP16: OFF | BQ16: 0 | BR16: 0 | BT16: OFF | BU16: 0 | BV16: 0 | BX16: OFF | BY16: 0 | BZ16: 0 | CB16: OFF | CC16: 0 | CD16: 0 | CF16: OFF | CG16: 0 | CH16: 0 | CJ16: OFF | CK16: 0 | CL16: 0
D17: 床暖房の敷設率（主たる居室） | F17: - | G17: =入力データ!G21 -> 0.75 | L17: =G17 -> 0.75 | O17: =バックデータ一覧!R63 -> 2 | P17: =バックデータ一覧!S63 -> 3 | Q17: =バックデータ一覧!R64 -> 2 | R17: =バックデータ一覧!S64 -> 3 | Y17: 2014-01-01 | Z17: 09:00:00 | AA17: 休日 | AB17: ON | AC17: 7463.69 | AD17: 0 | AF17: ON | AG17: 1518.21 | AH17: 0 | AJ17: ON | AK17: 0 | AL17: 0 | AN17: ON | AO17: 0 | AP17: 0 | AR17: ON | AS17: 8810.69 | AT17: 0 | AV17: ON | AW17: 4056.91 | AX17: 0 | AZ17: ON | BA17: 1791.86 | BB17: 0 | BD17: ON | BE17: 324.26 | BF17: 0 | BH17: OFF | BI17: 0 | BJ17: 0 | BL17: OFF | BM17: 0 | BN17: 0 | BP17: OFF | BQ17: 0 | BR17: 0 | BT17: OFF | BU17: 0 | BV17: 0 | BX17: OFF | BY17: 0 | BZ17: 0 | CB17: OFF | CC17: 0 | CD17: 0 | CF17: OFF | CG17: 0 | CH17: 0 | CJ17: OFF | CK17: 0 | CL17: 0
D18: 床暖房採用の有無（その他の居室） | F18: - | G18: =入力データ!G22 -> 床暖房を採用しない | L18: =VLOOKUP($G18,負荷ファイル番号_床暖房採用の有無,2,FALSE) -> 0 | O18: =O17&"_1" -> 2_1 | P18: =P17&"_1" -> 3_1 | Q18: =Q17&"_1" -> 2_1 | R18: =R17&"_1" -> 3_1 | Y18: 2014-01-01 | Z18: 10:00:00 | AA18: 休日 | AB18: ON | AC18: 5788.73 | AD18: 0 | AF18: ON | AG18: 0 | AH18: 0 | AJ18: ON | AK18: 0 | AL18: 0 | AN18: ON | AO18: 0 | AP18: 0 | AR18: ON | AS18: 7550.95 | AT18: 0 | AV18: ON | AW18: 2702.4 | AX18: 0 | AZ18: ON | BA18: 727.7 | BB18: 0 | BD18: ON | BE18: 0 | BF18: 0 | BH18: OFF | BI18: 0 | BJ18: 0 | BL18: OFF | BM18: 0 | BN18: 0 | BP18: OFF | BQ18: 0 | BR18: 0 | BT18: OFF | BU18: 0 | BV18: 0 | BX18: OFF | BY18: 0 | BZ18: 0 | CB18: OFF | CC18: 0 | CD18: 0 | CF18: OFF | CG18: 0 | CH18: 0 | CJ18: OFF | CK18: 0 | CL18: 0
D19: 床暖房の敷設率（その他の居室） | F19: - | G19: =入力データ!G23 -> 0.75 | L19: =G19 -> 0.75 | Y19: 2014-01-01 | Z19: 11:00:00 | AA19: 休日 | AB19: ON | AC19: 5992.85 | AD19: 0 | AF19: ON | AG19: 0 | AH19: 0 | AJ19: ON | AK19: 0 | AL19: 0 | AN19: ON | AO19: 0 | AP19: 0 | AR19: ON | AS19: 7866.08 | AT19: 0 | AV19: ON | AW19: 3199.85 | AX19: 0 | AZ19: ON | BA19: 1387.73 | BB19: 0 | BD19: ON | BE19: 0 | BF19: 0 | BH19: OFF | BI19: 0 | BJ19: 0 | BL19: OFF | BM19: 0 | BN19: 0 | BP19: OFF | BQ19: 0 | BR19: 0 | BT19: OFF | BU19: 0 | BV19: 0 | BX19: OFF | BY19: 0 | BZ19: 0 | CB19: OFF | CC19: 0 | CD19: 0 | CF19: OFF | CG19: 0 | CH19: 0 | CJ19: OFF | CK19: 0 | CL19: 0
C20: 冷房設備 | D20: 運転モード | F20: - | G20: =入力データ!G24 -> 居室間歇運転 | L20: =VLOOKUP($G20,負荷ファイル番号_冷房運転モード,2,FALSE) -> 12 | Y20: 2014-01-01 | Z20: 12:00:00 | AA20: 休日 | AB20: ON | AC20: 5186.1 | AD20: 0 | AF20: ON | AG20: 0 | AH20: 0 | AJ20: ON | AK20: 0 | AL20: 0 | AN20: ON | AO20: 0 | AP20: 0 | AR20: ON | AS20: 7115.17 | AT20: 0 | AV20: ON | AW20: 1713.31 | AX20: 0 | AZ20: ON | BA20: 47.2 | BB20: 0 | BD20: ON | BE20: 0 | BF20: 0 | BH20: OFF | BI20: 0 | BJ20: 0 | BL20: OFF | BM20: 0 | BN20: 0 | BP20: OFF | BQ20: 0 | BR20: 0 | BT20: OFF | BU20: 0 | BV20: 0 | BX20: OFF | BY20: 0 | BZ20: 0 | CB20: OFF | CC20: 0 | CD20: 0 | CF20: OFF | CG20: 0 | CH20: 0 | CJ20: OFF | CK20: 0 | CL20: 0
B21: 換気 | C21: 熱交換換気 | D21: 熱交換型換気 | F21: - | G21: =入力データ!G25 -> 採用しない | L21: =VLOOKUP($G21,負荷ファイル番号_熱交換型換気,2,FALSE) -> 1 | O21: （参考）相当換気回数ファイル区分 | Y21: 2014-01-01 | Z21: 13:00:00 | AA21: 休日 | AB21: OFF | AC21: 0 | AD21: 0 | AF21: OFF | AG21: 0 | AH21: 0 | AJ21: OFF | AK21: 0 | AL21: 0 | AN21: OFF | AO21: 0 | AP21: 0 | AR21: OFF | AS21: 0 | AT21: 0 | AV21: OFF | AW21: 0 | AX21: 0 | AZ21: OFF | BA21: 0 | BB21: 0 | BD21: OFF | BE21: 0 | BF21: 0 | BH21: OFF | BI21: 0 | BJ21: 0 | BL21: OFF | BM21: 0 | BN21: 0 | BP21: OFF | BQ21: 0 | BR21: 0 | BT21: OFF | BU21: 0 | BV21: 0 | BX21: OFF | BY21: 0 | BZ21: 0 | CB21: OFF | CC21: 0 | CD21: 0 | CF21: OFF | CG21: 0 | CH21: 0 | CJ21: OFF | CK21: 0 | CL21: 0
D22: 全般換気設備の有効換気量率 | F22: - | G22: =入力データ!G26 -> 1 | L22: =G22 -> 1 | P22: 主たる居室 | R22: その他の居室 | Y22: 2014-01-01 | Z22: 14:00:00 | AA22: 休日 | AB22: OFF | AC22: 0 | AD22: 0 | AF22: OFF | AG22: 0 | AH22: 0 | AJ22: OFF | AK22: 0 | AL22: 0 | AN22: OFF | AO22: 0 | AP22: 0 | AR22: OFF | AS22: 0 | AT22: 0 | AV22: OFF | AW22: 0 | AX22: 0 | AZ22: OFF | BA22: 0 | BB22: 0 | BD22: OFF | BE22: 0 | BF22: 0 | BH22: OFF | BI22: 0 | BJ22: 0 | BL22: OFF | BM22: 0 | BN22: 0 | BP22: OFF | BQ22: 0 | BR22: 0 | BT22: OFF | BU22: 0 | BV22: 0 | BX22: OFF | BY22: 0 | BZ22: 0 | CB22: OFF | CC22: 0 | CD22: 0 | CF22: OFF | CG22: 0 | CH22: 0 | CJ22: OFF | CK22: 0 | CL22: 0
D23: 熱交換型換気設備の温度交換効率 | F23: - | G23: =入力データ!G27 -> 0.65 | L23: 0.65 | O23: 換気区分 | P23: =IF($L$20=11,1,バックデータ一覧!V105) -> 1 | Q23: =IF($L$20=11,1,バックデータ一覧!W105) -> 2 | R23: =IF($L$20=11,1,バックデータ一覧!X105) -> 1 | S23: =IF($L$20=11,1,バックデータ一覧!Y105) -> 2 | Y23: 2014-01-01 | Z23: 15:00:00 | AA23: 休日 | AB23: ON | AC23: 10815.74 | AD23: 0 | AF23: ON | AG23: 3926.79 | AH23: 0 | AJ23: ON | AK23: 0 | AL23: 0 | AN23: ON | AO23: 0 | AP23: 0 | AR23: ON | AS23: 12719.19 | AT23: 0 | AV23: ON | AW23: 7264.46 | AX23: 0 | AZ23: ON | BA23: 4295.68 | BB23: 0 | BD23: ON | BE23: 0 | BF23: 0 | BH23: OFF | BI23: 0 | BJ23: 0 | BL23: OFF | BM23: 0 | BN23: 0 | BP23: OFF | BQ23: 0 | BR23: 0 | BT23: OFF | BU23: 0 | BV23: 0 | BX23: OFF | BY23: 0 | BZ23: 0 | CB23: OFF | CC23: 0 | CD23: 0 | CF23: OFF | CG23: 0 | CH23: 0 | CJ23: OFF | CK23: 0 | CL23: 0
D24: 給気と排気の比率による温度交換効率の補正係数 | F24: - | G24: =入力データ!G28 -> 0.9 | L24: 0.9 | O24: 換気回数 | P24: =IF($L$20=11,0,バックデータ一覧!V106) -> 0 | Q24: =IF($L$20=11,0,バックデータ一覧!W106) -> 5 | R24: =IF($L$20=11,0,バックデータ一覧!X106) -> 0 | S24: =IF($L$20=11,0,バックデータ一覧!Y106) -> 5 | Y24: 2014-01-01 | Z24: 16:00:00 | AA24: 休日 | AB24: ON | AC24: 8225.23 | AD24: 0 | AF24: ON | AG24: 6160.77 | AH24: 0 | AJ24: ON | AK24: 3090.73 | AL24: 0 | AN24: ON | AO24: 0 | AP24: 0 | AR24: ON | AS24: 9411.9 | AT24: 0 | AV24: ON | AW24: 7121.57 | AX24: 0 | AZ24: ON | BA24: 5075.79 | BB24: 0 | BD24: ON | BE24: 2046.24 | BF24: 0 | BH24: OFF | BI24: 0 | BJ24: 0 | BL24: OFF | BM24: 0 | BN24: 0 | BP24: OFF | BQ24: 0 | BR24: 0 | BT24: OFF | BU24: 0 | BV24: 0 | BX24: OFF | BY24: 0 | BZ24: 0 | CB24: OFF | CC24: 0 | CD24: 0 | CF24: OFF | CG24: 0 | CH24: 0 | CJ24: OFF | CK24: 0 | CL24: 0
D25: 排気過多時における住宅外皮経由の漏気による温度交換効率の補正係数 | F25: - | G25: =入力データ!G29 -> 1 | L25: 1 | O25: ﾌｧｲﾙ記号 | P25: =VLOOKUP(P23,負荷ファイル番号_通風利用,2,FALSE) -> 1 | Q25: =VLOOKUP(Q23,負荷ファイル番号_通風利用,2,FALSE) -> 3 | R25: =VLOOKUP(R23,負荷ファイル番号_通風利用,2,FALSE) -> 1 | S25: =VLOOKUP(S23,負荷ファイル番号_通風利用,2,FALSE) -> 3 | Y25: 2014-01-01 | Z25: 17:00:00 | AA25: 休日 | AB25: ON | AC25: 8680.77 | AD25: 0 | AF25: ON | AG25: 7343.68 | AH25: 0 | AJ25: ON | AK25: 4832.65 | AL25: 0 | AN25: ON | AO25: 0 | AP25: 0 | AR25: ON | AS25: 9715.55 | AT25: 0 | AV25: ON | AW25: 7802.86 | AX25: 0 | AZ25: ON | BA25: 5701.98 | BB25: 0 | BD25: ON | BE25: 3437.61 | BF25: 0 | BH25: OFF | BI25: 0 | BJ25: 0 | BL25: OFF | BM25: 0 | BN25: 0 | BP25: OFF | BQ25: 0 | BR25: 0 | BT25: OFF | BU25: 0 | BV25: 0 | BX25: OFF | BY25: 0 | BZ25: 0 | CB25: OFF | CC25: 0 | CD25: 0 | CF25: OFF | CG25: 0 | CH25: 0 | CJ25: OFF | CK25: 0 | CL25: 0
B26: 暖冷房区画番号 | G26: =入力データ!G31 -> 1 | L26: =VLOOKUP($G26,負荷ファイル番号_暖冷房区画,2,FALSE) -> LD | Y26: 2014-01-01 | Z26: 18:00:00 | AA26: 休日 | AB26: ON | AC26: 6840.49 | AD26: 0 | AF26: ON | AG26: 5862.12 | AH26: 0 | AJ26: ON | AK26: 3393.82 | AL26: 0 | AN26: ON | AO26: 1424.91 | AP26: 0 | AR26: ON | AS26: 7716.49 | AT26: 0 | AV26: ON | AW26: 6021.43 | AX26: 0 | AZ26: ON | BA26: 3848.68 | BB26: 0 | BD26: ON | BE26: 1838.71 | BF26: 0 | BH26: OFF | BI26: 0 | BJ26: 0 | BL26: OFF | BM26: 0 | BN26: 0 | BP26: OFF | BQ26: 0 | BR26: 0 | BT26: OFF | BU26: 0 | BV26: 0 | BX26: OFF | BY26: 0 | BZ26: 0 | CB26: OFF | CC26: 0 | CD26: 0 | CF26: OFF | CG26: 0 | CH26: 0 | CJ26: OFF | CK26: 0 | CL26: 0
Y27: 2014-01-01 | Z27: 19:00:00 | AA27: 休日 | AB27: ON | AC27: 7205.09 | AD27: 0 | AF27: ON | AG27: 6454.7 | AH27: 0 | AJ27: ON | AK27: 4028.15 | AL27: 0 | AN27: ON | AO27: 2701.42 | AP27: 0 | AR27: ON | AS27: 7990.66 | AT27: 0 | AV27: ON | AW27: 6452.26 | AX27: 0 | AZ27: ON | BA27: 4247.62 | BB27: 0 | BD27: ON | BE27: 2412.01 | BF27: 0 | BH27: OFF | BI27: 0 | BJ27: 0 | BL27: OFF | BM27: 0 | BN27: 0 | BP27: OFF | BQ27: 0 | BR27: 0 | BT27: OFF | BU27: 0 | BV27: 0 | BX27: OFF | BY27: 0 | BZ27: 0 | CB27: OFF | CC27: 0 | CD27: 0 | CF27: OFF | CG27: 0 | CH27: 0 | CJ27: OFF | CK27: 0 | CL27: 0
Y28: 2014-01-01 | Z28: 20:00:00 | AA28: 休日 | AB28: ON | AC28: 7244.06 | AD28: 0 | AF28: ON | AG28: 6654.97 | AH28: 0 | AJ28: ON | AK28: 4269.45 | AL28: 0 | AN28: ON | AO28: 3311.59 | AP28: 0 | AR28: ON | AS28: 7961.08 | AT28: 0 | AV28: ON | AW28: 6564.39 | AX28: 0 | AZ28: ON | BA28: 4347.25 | BB28: 0 | BD28: ON | BE28: 2670.24 | BF28: 0 | BH28: OFF | BI28: 0 | BJ28: 0 | BL28: OFF | BM28: 0 | BN28: 0 | BP28: OFF | BQ28: 0 | BR28: 0 | BT28: OFF | BU28: 0 | BV28: 0 | BX28: OFF | BY28: 0 | BZ28: 0 | CB28: OFF | CC28: 0 | CD28: 0 | CF28: OFF | CG28: 0 | CH28: 0 | CJ28: OFF | CK28: 0 | CL28: 0
Y29: 2014-01-01 | Z29: 21:00:00 | AA29: 休日 | AB29: ON | AC29: 7613.98 | AD29: 0 | AF29: ON | AG29: 7139.21 | AH29: 0 | AJ29: ON | AK29: 4768 | AL29: 0 | AN29: ON | AO29: 4046.3 | AP29: 0 | AR29: ON | AS29: 8246.19 | AT29: 0 | AV29: ON | AW29: 6969.63 | AX29: 0 | AZ29: ON | BA29: 4731.19 | BB29: 0 | BD29: ON | BE29: 3189.1 | BF29: 0 | BH29: OFF | BI29: 0 | BJ29: 0 | BL29: OFF | BM29: 0 | BN29: 0 | BP29: OFF | BQ29: 0 | BR29: 0 | BT29: OFF | BU29: 0 | BV29: 0 | BX29: OFF | BY29: 0 | BZ29: 0 | CB29: OFF | CC29: 0 | CD29: 0 | CF29: OFF | CG29: 0 | CH29: 0 | CJ29: OFF | CK29: 0 | CL29: 0
D30: ■暖房負荷ファイルの統合フロー | Y30: 2014-01-01 | Z30: 22:00:00 | AA30: 休日 | AB30: OFF | AC30: 0 | AD30: 0 | AF30: OFF | AG30: 0 | AH30: 0 | AJ30: OFF | AK30: 0 | AL30: 0 | AN30: OFF | AO30: 0 | AP30: 0 | AR30: OFF | AS30: 0 | AT30: 0 | AV30: OFF | AW30: 0 | AX30: 0 | AZ30: OFF | BA30: 0 | BB30: 0 | BD30: OFF | BE30: 0 | BF30: 0 | BH30: OFF | BI30: 0 | BJ30: 0 | BL30: OFF | BM30: 0 | BN30: 0 | BP30: OFF | BQ30: 0 | BR30: 0 | BT30: OFF | BU30: 0 | BV30: 0 | BX30: OFF | BY30: 0 | BZ30: 0 | CB30: OFF | CC30: 0 | CD30: 0 | CF30: OFF | CG30: 0 | CH30: 0 | CJ30: OFF | CK30: 0 | CL30: 0
E31: 暖房 | Y31: 2014-01-01 | Z31: 23:00:00 | AA31: 休日 | AB31: OFF | AC31: 0 | AD31: 0 | AF31: OFF | AG31: 0 | AH31: 0 | AJ31: OFF | AK31: 0 | AL31: 0 | AN31: OFF | AO31: 0 | AP31: 0 | AR31: OFF | AS31: 0 | AT31: 0 | AV31: OFF | AW31: 0 | AX31: 0 | AZ31: OFF | BA31: 0 | BB31: 0 | BD31: OFF | BE31: 0 | BF31: 0 | BH31: OFF | BI31: 0 | BJ31: 0 | BL31: OFF | BM31: 0 | BN31: 0 | BP31: OFF | BQ31: 0 | BR31: 0 | BT31: OFF | BU31: 0 | BV31: 0 | BX31: OFF | BY31: 0 | BZ31: 0 | CB31: OFF | CC31: 0 | CD31: 0 | CF31: OFF | CG31: 0 | CH31: 0 | CJ31: OFF | CK31: 0 | CL31: 0
D32: 暖冷房_負荷ファイル用記号 | E32: H | F32: =E32 -> H | G32: =F32 -> H | H32: =G32 -> H | I32: =E32 -> H | J32: H | K32: H | L32: H | Y32: 2014-01-02 | Z32: 00:00:00 | AA32: 平日 | AB32: OFF | AC32: 0 | AD32: 0 | AF32: OFF | AG32: 0 | AH32: 0 | AJ32: OFF | AK32: 0 | AL32: 0 | AN32: OFF | AO32: 0 | AP32: 0 | AR32: OFF | AS32: 0 | AT32: 0 | AV32: OFF | AW32: 0 | AX32: 0 | AZ32: OFF | BA32: 0 | BB32: 0 | BD32: OFF | BE32: 0 | BF32: 0 | BH32: OFF | BI32: 0 | BJ32: 0 | BL32: OFF | BM32: 0 | BN32: 0 | BP32: OFF | BQ32: 0 | BR32: 0 | BT32: OFF | BU32: 0 | BV32: 0 | BX32: OFF | BY32: 0 | BZ32: 0 | CB32: OFF | CC32: 0 | CD32: 0 | CF32: OFF | CG32: 0 | CH32: 0 | CJ32: OFF | CK32: 0 | CL32: 0
D33: Q値_負荷ファイル用記号 | E33: =VLOOKUP(O18,負荷ファイル番号_断熱水準,3,FALSE) -> 03 | F33: =E33 -> 03 | G33: =VLOOKUP(P18,負荷ファイル番号_断熱水準,3,FALSE) -> 05 | H33: =G33 -> 05 | I33: 03 | J33: 03 | K33: 05 | L33: 05 | Y33: 2014-01-02 | Z33: 01:00:00 | AA33: 平日 | AB33: OFF | AC33: 0 | AD33: 0 | AF33: OFF | AG33: 0 | AH33: 0 | AJ33: OFF | AK33: 0 | AL33: 0 | AN33: OFF | AO33: 0 | AP33: 0 | AR33: OFF | AS33: 0 | AT33: 0 | AV33: OFF | AW33: 0 | AX33: 0 | AZ33: OFF | BA33: 0 | BB33: 0 | BD33: OFF | BE33: 0 | BF33: 0 | BH33: OFF | BI33: 0 | BJ33: 0 | BL33: OFF | BM33: 0 | BN33: 0 | BP33: OFF | BQ33: 0 | BR33: 0 | BT33: OFF | BU33: 0 | BV33: 0 | BX33: OFF | BY33: 0 | BZ33: 0 | CB33: OFF | CC33: 0 | CD33: 0 | CF33: OFF | CG33: 0 | CH33: 0 | CJ33: OFF | CK33: 0 | CL33: 0
D34: μ値_負荷ファイル用記号 | E34: =バックデータ一覧!AB78 -> 3 | F34: =バックデータ一覧!AC78 -> 2 | G34: =バックデータ一覧!AB84 -> 2 | H34: =バックデータ一覧!AC84 -> 1 | I34: 3 | J34: 2 | K34: 2 | L34: 1 | Y34: 2014-01-02 | Z34: 02:00:00 | AA34: 平日 | AB34: OFF | AC34: 0 | AD34: 0 | AF34: OFF | AG34: 0 | AH34: 0 | AJ34: OFF | AK34: 0 | AL34: 0 | AN34: OFF | AO34: 0 | AP34: 0 | AR34: OFF | AS34: 0 | AT34: 0 | AV34: OFF | AW34: 0 | AX34: 0 | AZ34: OFF | BA34: 0 | BB34: 0 | BD34: OFF | BE34: 0 | BF34: 0 | BH34: OFF | BI34: 0 | BJ34: 0 | BL34: OFF | BM34: 0 | BN34: 0 | BP34: OFF | BQ34: 0 | BR34: 0 | BT34: OFF | BU34: 0 | BV34: 0 | BX34: OFF | BY34: 0 | BZ34: 0 | CB34: OFF | CC34: 0 | CD34: 0 | CF34: OFF | CG34: 0 | CH34: 0 | CJ34: OFF | CK34: 0 | CL34: 0
D35: 蓄熱_負荷ファイル用記号 | E35: 1 | F35: 1 | G35: 1 | H35: 1 | I35: 2 | J35: 2 | K35: 2 | L35: 2 | Y35: 2014-01-02 | Z35: 03:00:00 | AA35: 平日 | AB35: OFF | AC35: 0 | AD35: 0 | AF35: OFF | AG35: 0 | AH35: 0 | AJ35: OFF | AK35: 0 | AL35: 0 | AN35: OFF | AO35: 0 | AP35: 0 | AR35: OFF | AS35: 0 | AT35: 0 | AV35: OFF | AW35: 0 | AX35: 0 | AZ35: OFF | BA35: 0 | BB35: 0 | BD35: OFF | BE35: 0 | BF35: 0 | BH35: OFF | BI35: 0 | BJ35: 0 | BL35: OFF | BM35: 0 | BN35: 0 | BP35: OFF | BQ35: 0 | BR35: 0 | BT35: OFF | BU35: 0 | BV35: 0 | BX35: OFF | BY35: 0 | BZ35: 0 | CB35: OFF | CC35: 0 | CD35: 0 | CF35: OFF | CG35: 0 | CH35: 0 | CJ35: OFF | CK35: 0 | CL35: 0
D36: 負荷ファイル名 | E36: =IF($L$5="8x","-","H"&E$32&$L$5&"_"&$L$15&"_"&E$33&"_"&E$34&"12_"&E$35&"SS_FM.csv") -> HH6x_12_03_312_1SS_FM.csv | F36: HH6x_12_03_212_1SS_FM.csv | G36: HH6x_12_05_212_1SS_FM.csv | H36: HH6x_12_05_112_1SS_FM.csv | I36: HH6x_12_03_312_2SS_FM.csv | J36: HH6x_12_03_212_2SS_FM.csv | K36: HH6x_12_05_212_2SS_FM.csv | L36: HH6x_12_05_112_2SS_FM.csv | Y36: 2014-01-02 | Z36: 04:00:00 | AA36: 平日 | AB36: OFF | AC36: 0 | AD36: 0 | AF36: OFF | AG36: 0 | AH36: 0 | AJ36: OFF | AK36: 0 | AL36: 0 | AN36: OFF | AO36: 0 | AP36: 0 | AR36: OFF | AS36: 0 | AT36: 0 | AV36: OFF | AW36: 0 | AX36: 0 | AZ36: OFF | BA36: 0 | BB36: 0 | BD36: OFF | BE36: 0 | BF36: 0 | BH36: OFF | BI36: 0 | BJ36: 0 | BL36: OFF | BM36: 0 | BN36: 0 | BP36: OFF | BQ36: 0 | BR36: 0 | BT36: OFF | BU36: 0 | BV36: 0 | BX36: OFF | BY36: 0 | BZ36: 0 | CB36: OFF | CC36: 0 | CD36: 0 | CF36: OFF | CG36: 0 | CH36: 0 | CJ36: OFF | CK36: 0 | CL36: 0
Y37: 2014-01-02 | Z37: 05:00:00 | AA37: 平日 | AB37: ON | AC37: 24823.89 | AD37: 0 | AF37: ON | AG37: 24308.8 | AH37: 0 | AJ37: ON | AK37: 20186.23 | AL37: 0 | AN37: ON | AO37: 19567.01 | AP37: 0 | AR37: ON | AS37: 22186.23 | AT37: 0 | AV37: ON | AW37: 20444.01 | AX37: 0 | AZ37: ON | BA37: 15888.84 | BB37: 0 | BD37: ON | BE37: 13630.36 | BF37: 0 | BH37: OFF | BI37: 0 | BJ37: 0 | BL37: OFF | BM37: 0 | BN37: 0 | BP37: OFF | BQ37: 0 | BR37: 0 | BT37: OFF | BU37: 0 | BV37: 0 | BX37: OFF | BY37: 0 | BZ37: 0 | CB37: OFF | CC37: 0 | CD37: 0 | CF37: OFF | CG37: 0 | CH37: 0 | CJ37: OFF | CK37: 0 | CL37: 0
Y38: 2014-01-02 | Z38: 06:00:00 | AA38: 平日 | AB38: ON | AC38: 10858.69 | AD38: 0 | AF38: ON | AG38: 10642.12 | AH38: 0 | AJ38: ON | AK38: 8277.4 | AL38: 0 | AN38: ON | AO38: 8059.4 | AP38: 0 | AR38: ON | AS38: 10589.56 | AT38: 0 | AV38: ON | AW38: 9745.63 | AX38: 0 | AZ38: ON | BA38: 7070.09 | BB38: 0 | BD38: ON | BE38: 5991.7 | BF38: 0 | BH38: OFF | BI38: 0 | BJ38: 0 | BL38: OFF | BM38: 0 | BN38: 0 | BP38: OFF | BQ38: 0 | BR38: 0 | BT38: OFF | BU38: 0 | BV38: 0 | BX38: OFF | BY38: 0 | BZ38: 0 | CB38: OFF | CC38: 0 | CD38: 0 | CF38: OFF | CG38: 0 | CH38: 0 | CJ38: OFF | CK38: 0 | CL38: 0
Y39: 2014-01-02 | Z39: 07:00:00 | AA39: 平日 | AB39: ON | AC39: 9706.9 | AD39: 0 | AF39: ON | AG39: 8003.51 | AH39: 0 | AJ39: ON | AK39: 5773.48 | AL39: 0 | AN39: ON | AO39: 5206.71 | AP39: 0 | AR39: ON | AS39: 9890.72 | AT39: 0 | AV39: ON | AW39: 8080.91 | AX39: 0 | AZ39: ON | BA39: 5587.74 | BB39: 0 | BD39: ON | BE39: 4654.38 | BF39: 0 | BH39: OFF | BI39: 0 | BJ39: 0 | BL39: OFF | BM39: 0 | BN39: 0 | BP39: OFF | BQ39: 0 | BR39: 0 | BT39: OFF | BU39: 0 | BV39: 0 | BX39: OFF | BY39: 0 | BZ39: 0 | CB39: OFF | CC39: 0 | CD39: 0 | CF39: OFF | CG39: 0 | CH39: 0 | CJ39: OFF | CK39: 0 | CL39: 0
Y40: 2014-01-02 | Z40: 08:00:00 | AA40: 平日 | AB40: ON | AC40: 9033.54 | AD40: 0 | AF40: ON | AG40: 7713.2 | AH40: 0 | AJ40: ON | AK40: 5487.95 | AL40: 0 | AN40: ON | AO40: 4751.51 | AP40: 0 | AR40: ON | AS40: 9349.42 | AT40: 0 | AV40: ON | AW40: 7925.63 | AX40: 0 | AZ40: ON | BA40: 5554.49 | BB40: 0 | BD40: ON | BE40: 4509.73 | BF40: 0 | BH40: OFF | BI40: 0 | BJ40: 0 | BL40: OFF | BM40: 0 | BN40: 0 | BP40: OFF | BQ40: 0 | BR40: 0 | BT40: OFF | BU40: 0 | BV40: 0 | BX40: OFF | BY40: 0 | BZ40: 0 | CB40: OFF | CC40: 0 | CD40: 0 | CF40: OFF | CG40: 0 | CH40: 0 | CJ40: OFF | CK40: 0 | CL40: 0
Y41: 2014-01-02 | Z41: 09:00:00 | AA41: 平日 | AB41: OFF | AC41: 0 | AD41: 0 | AF41: OFF | AG41: 0 | AH41: 0 | AJ41: OFF | AK41: 0 | AL41: 0 | AN41: OFF | AO41: 0 | AP41: 0 | AR41: OFF | AS41: 0 | AT41: 0 | AV41: OFF | AW41: 0 | AX41: 0 | AZ41: OFF | BA41: 0 | BB41: 0 | BD41: OFF | BE41: 0 | BF41: 0 | BH41: OFF | BI41: 0 | BJ41: 0 | BL41: OFF | BM41: 0 | BN41: 0 | BP41: OFF | BQ41: 0 | BR41: 0 | BT41: OFF | BU41: 0 | BV41: 0 | BX41: OFF | BY41: 0 | BZ41: 0 | CB41: OFF | CC41: 0 | CD41: 0 | CF41: OFF | CG41: 0 | CH41: 0 | CJ41: OFF | CK41: 0 | CL41: 0
Y42: 2014-01-02 | Z42: 10:00:00 | AA42: 平日 | AB42: OFF | AC42: 0 | AD42: 0 | AF42: OFF | AG42: 0 | AH42: 0 | AJ42: OFF | AK42: 0 | AL42: 0 | AN42: OFF | AO42: 0 | AP42: 0 | AR42: OFF | AS42: 0 | AT42: 0 | AV42: OFF | AW42: 0 | AX42: 0 | AZ42: OFF | BA42: 0 | BB42: 0 | BD42: OFF | BE42: 0 | BF42: 0 | BH42: OFF | BI42: 0 | BJ42: 0 | BL42: OFF | BM42: 0 | BN42: 0 | BP42: OFF | BQ42: 0 | BR42: 0 | BT42: OFF | BU42: 0 | BV42: 0 | BX42: OFF | BY42: 0 | BZ42: 0 | CB42: OFF | CC42: 0 | CD42: 0 | CF42: OFF | CG42: 0 | CH42: 0 | CJ42: OFF | CK42: 0 | CL42: 0
Y43: 2014-01-02 | Z43: 11:00:00 | AA43: 平日 | AB43: ON | AC43: 16632.38 | AD43: 0 | AF43: ON | AG43: 13830.97 | AH43: 0 | AJ43: ON | AK43: 10442.93 | AL43: 0 | AN43: ON | AO43: 8838.7 | AP43: 0 | AR43: ON | AS43: 16323.96 | AT43: 0 | AV43: ON | AW43: 13684.66 | AX43: 0 | AZ43: ON | BA43: 10163.5 | BB43: 0 | BD43: ON | BE43: 8373.46 | BF43: 0 | BH43: OFF | BI43: 0 | BJ43: 0 | BL43: OFF | BM43: 0 | BN43: 0 | BP43: OFF | BQ43: 0 | BR43: 0 | BT43: OFF | BU43: 0 | BV43: 0 | BX43: OFF | BY43: 0 | BZ43: 0 | CB43: OFF | CC43: 0 | CD43: 0 | CF43: OFF | CG43: 0 | CH43: 0 | CJ43: OFF | CK43: 0 | CL43: 0
Y44: 2014-01-02 | Z44: 12:00:00 | AA44: 平日 | AB44: ON | AC44: 8682.15 | AD44: 0 | AF44: ON | AG44: 6905.81 | AH44: 0 | AJ44: ON | AK44: 4886.23 | AL44: 0 | AN44: ON | AO44: 3860.86 | AP44: 0 | AR44: ON | AS44: 8989.52 | AT44: 0 | AV44: ON | AW44: 7299.46 | AX44: 0 | AZ44: ON | BA44: 5122.39 | BB44: 0 | BD44: ON | BE44: 4009.16 | BF44: 0 | BH44: OFF | BI44: 0 | BJ44: 0 | BL44: OFF | BM44: 0 | BN44: 0 | BP44: OFF | BQ44: 0 | BR44: 0 | BT44: OFF | BU44: 0 | BV44: 0 | BX44: OFF | BY44: 0 | BZ44: 0 | CB44: OFF | CC44: 0 | CD44: 0 | CF44: OFF | CG44: 0 | CH44: 0 | CJ44: OFF | CK44: 0 | CL44: 0
G45: 負荷補正前の暖房負荷 | Y45: 2014-01-02 | Z45: 13:00:00 | AA45: 平日 | AB45: OFF | AC45: 0 | AD45: 0 | AF45: OFF | AG45: 0 | AH45: 0 | AJ45: OFF | AK45: 0 | AL45: 0 | AN45: OFF | AO45: 0 | AP45: 0 | AR45: OFF | AS45: 0 | AT45: 0 | AV45: OFF | AW45: 0 | AX45: 0 | AZ45: OFF | BA45: 0 | BB45: 0 | BD45: OFF | BE45: 0 | BF45: 0 | BH45: OFF | BI45: 0 | BJ45: 0 | BL45: OFF | BM45: 0 | BN45: 0 | BP45: OFF | BQ45: 0 | BR45: 0 | BT45: OFF | BU45: 0 | BV45: 0 | BX45: OFF | BY45: 0 | BZ45: 0 | CB45: OFF | CC45: 0 | CD45: 0 | CF45: OFF | CG45: 0 | CH45: 0 | CJ45: OFF | CK45: 0 | CL45: 0
Y46: 2014-01-02 | Z46: 14:00:00 | AA46: 平日 | AB46: OFF | AC46: 0 | AD46: 0 | AF46: OFF | AG46: 0 | AH46: 0 | AJ46: OFF | AK46: 0 | AL46: 0 | AN46: OFF | AO46: 0 | AP46: 0 | AR46: OFF | AS46: 0 | AT46: 0 | AV46: OFF | AW46: 0 | AX46: 0 | AZ46: OFF | BA46: 0 | BB46: 0 | BD46: OFF | BE46: 0 | BF46: 0 | BH46: OFF | BI46: 0 | BJ46: 0 | BL46: OFF | BM46: 0 | BN46: 0 | BP46: OFF | BQ46: 0 | BR46: 0 | BT46: OFF | BU46: 0 | BV46: 0 | BX46: OFF | BY46: 0 | BZ46: 0 | CB46: OFF | CC46: 0 | CD46: 0 | CF46: OFF | CG46: 0 | CH46: 0 | CJ46: OFF | CK46: 0 | CL46: 0
Y47: 2014-01-02 | Z47: 15:00:00 | AA47: 平日 | AB47: ON | AC47: 14413.59 | AD47: 0 | AF47: ON | AG47: 8864.09 | AH47: 0 | AJ47: ON | AK47: 5685.01 | AL47: 0 | AN47: ON | AO47: 2442.75 | AP47: 0 | AR47: ON | AS47: 14552.38 | AT47: 0 | AV47: ON | AW47: 10188.69 | AX47: 0 | AZ47: ON | BA47: 6892.03 | BB47: 0 | BD47: ON | BE47: 4673.34 | BF47: 0 | BH47: OFF | BI47: 0 | BJ47: 0 | BL47: OFF | BM47: 0 | BN47: 0 | BP47: OFF | BQ47: 0 | BR47: 0 | BT47: OFF | BU47: 0 | BV47: 0 | BX47: OFF | BY47: 0 | BZ47: 0 | CB47: OFF | CC47: 0 | CD47: 0 | CF47: OFF | CG47: 0 | CH47: 0 | CJ47: OFF | CK47: 0 | CL47: 0
D48: ■冷房負荷ファイルの統合フロー | Y48: 2014-01-02 | Z48: 16:00:00 | AA48: 平日 | AB48: ON | AC48: 8362.9 | AD48: 0 | AF48: ON | AG48: 6726.2 | AH48: 0 | AJ48: ON | AK48: 4551.29 | AL48: 0 | AN48: ON | AO48: 2955.45 | AP48: 0 | AR48: ON | AS48: 8769.09 | AT48: 0 | AV48: ON | AW48: 7253.75 | AX48: 0 | AZ48: ON | BA48: 5057.63 | BB48: 0 | BD48: ON | BE48: 3562.76 | BF48: 0 | BH48: OFF | BI48: 0 | BJ48: 0 | BL48: OFF | BM48: 0 | BN48: 0 | BP48: OFF | BQ48: 0 | BR48: 0 | BT48: OFF | BU48: 0 | BV48: 0 | BX48: OFF | BY48: 0 | BZ48: 0 | CB48: OFF | CC48: 0 | CD48: 0 | CF48: OFF | CG48: 0 | CH48: 0 | CJ48: OFF | CK48: 0 | CL48: 0
E49: 冷房 | Y49: 2014-01-02 | Z49: 17:00:00 | AA49: 平日 | AB49: ON | AC49: 9866.21 | AD49: 0 | AF49: ON | AG49: 8836.3 | AH49: 0 | AJ49: ON | AK49: 6670.73 | AL49: 0 | AN49: ON | AO49: 5680.26 | AP49: 0 | AR49: ON | AS49: 10354.05 | AT49: 0 | AV49: ON | AW49: 9132.24 | AX49: 0 | AZ49: ON | BA49: 6944.55 | BB49: 0 | BD49: ON | BE49: 5709.01 | BF49: 0 | BH49: OFF | BI49: 0 | BJ49: 0 | BL49: OFF | BM49: 0 | BN49: 0 | BP49: OFF | BQ49: 0 | BR49: 0 | BT49: OFF | BU49: 0 | BV49: 0 | BX49: OFF | BY49: 0 | BZ49: 0 | CB49: OFF | CC49: 0 | CD49: 0 | CF49: OFF | CG49: 0 | CH49: 0 | CJ49: OFF | CK49: 0 | CL49: 0
D50: 暖冷房記号 | E50: C | F50: C | G50: C | H50: C | I50: =E50 -> C | J50: C | K50: C | L50: C | Y50: 2014-01-02 | Z50: 18:00:00 | AA50: 平日 | AB50: ON | AC50: 10003.75 | AD50: 0 | AF50: ON | AG50: 9261.7 | AH50: 0 | AJ50: ON | AK50: 7050.64 | AL50: 0 | AN50: ON | AO50: 6370.64 | AP50: 0 | AR50: ON | AS50: 10472.2 | AT50: 0 | AV50: ON | AW50: 9401.75 | AX50: 0 | AZ50: ON | BA50: 7173.59 | BB50: 0 | BD50: ON | BE50: 6080.87 | BF50: 0 | BH50: OFF | BI50: 0 | BJ50: 0 | BL50: OFF | BM50: 0 | BN50: 0 | BP50: OFF | BQ50: 0 | BR50: 0 | BT50: OFF | BU50: 0 | BV50: 0 | BX50: OFF | BY50: 0 | BZ50: 0 | CB50: OFF | CC50: 0 | CD50: 0 | CF50: OFF | CG50: 0 | CH50: 0 | CJ50: OFF | CK50: 0 | CL50: 0
D51: Q値按分用 | E51: =VLOOKUP(Q18,負荷ファイル番号_断熱水準,3,FALSE) -> 03 | F51: =E51 -> 03 | G51: =VLOOKUP(R18,負荷ファイル番号_断熱水準,3,FALSE) -> 05 | H51: =G51 -> 05 | I51: 03 | J51: 03 | K51: 05 | L51: 05 | Y51: 2014-01-02 | Z51: 19:00:00 | AA51: 平日 | AB51: ON | AC51: 8030.43 | AD51: 0 | AF51: ON | AG51: 7456.81 | AH51: 0 | AJ51: ON | AK51: 5126.48 | AL51: 0 | AN51: ON | AO51: 4630.36 | AP51: 0 | AR51: ON | AS51: 8492.09 | AT51: 0 | AV51: ON | AW51: 7519.89 | AX51: 0 | AZ51: ON | BA51: 5184.8 | BB51: 0 | BD51: ON | BE51: 4189.29 | BF51: 0 | BH51: OFF | BI51: 0 | BJ51: 0 | BL51: OFF | BM51: 0 | BN51: 0 | BP51: OFF | BQ51: 0 | BR51: 0 | BT51: OFF | BU51: 0 | BV51: 0 | BX51: OFF | BY51: 0 | BZ51: 0 | CB51: OFF | CC51: 0 | CD51: 0 | CF51: OFF | CG51: 0 | CH51: 0 | CJ51: OFF | CK51: 0 | CL51: 0
D52: μ値按分用 | E52: =バックデータ一覧!AB79 -> 3 | F52: =バックデータ一覧!AC79 -> 2 | G52: =バックデータ一覧!AB85 -> 3 | H52: =バックデータ一覧!AC85 -> 2 | I52: 3 | J52: 2 | K52: 3 | L52: 2 | Y52: 2014-01-02 | Z52: 20:00:00 | AA52: 平日 | AB52: ON | AC52: 8725.67 | AD52: 0 | AF52: ON | AG52: 8268.82 | AH52: 0 | AJ52: ON | AK52: 5842.28 | AL52: 0 | AN52: ON | AO52: 5471.64 | AP52: 0 | AR52: ON | AS52: 9129.61 | AT52: 0 | AV52: ON | AW52: 8240.6 | AX52: 0 | AZ52: ON | BA52: 5823.9 | BB52: 0 | BD52: ON | BE52: 4911.88 | BF52: 0 | BH52: OFF | BI52: 0 | BJ52: 0 | BL52: OFF | BM52: 0 | BN52: 0 | BP52: OFF | BQ52: 0 | BR52: 0 | BT52: OFF | BU52: 0 | BV52: 0 | BX52: OFF | BY52: 0 | BZ52: 0 | CB52: OFF | CC52: 0 | CD52: 0 | CF52: OFF | CG52: 0 | CH52: 0 | CJ52: OFF | CK52: 0 | CL52: 0
D53: 通風の利用 | E53: =IF($G$26<=2,$P$25,$R$25) -> 1 | F53: =IF($G$26<=2,$P$25,$R$25) -> 1 | G53: =IF($G$26<=2,$P$25,$R$25) -> 1 | H53: =IF($G$26<=2,$P$25,$R$25) -> 1 | I53: =IF($G$26<=2,$Q$25,$S$25) -> 3 | J53: =IF($G$26<=2,$Q$25,$S$25) -> 3 | K53: =IF($G$26<=2,$Q$25,$S$25) -> 3 | L53: =IF($G$26<=2,$Q$25,$S$25) -> 3 | Y53: 2014-01-02 | Z53: 21:00:00 | AA53: 平日 | AB53: ON | AC53: 9247.09 | AD53: 0 | AF53: ON | AG53: 8875.11 | AH53: 0 | AJ53: ON | AK53: 6379.94 | AL53: 0 | AN53: ON | AO53: 6100.21 | AP53: 0 | AR53: ON | AS53: 9607.93 | AT53: 0 | AV53: ON | AW53: 8790.77 | AX53: 0 | AZ53: ON | BA53: 6309.98 | BB53: 0 | BD53: ON | BE53: 5471.74 | BF53: 0 | BH53: OFF | BI53: 0 | BJ53: 0 | BL53: OFF | BM53: 0 | BN53: 0 | BP53: OFF | BQ53: 0 | BR53: 0 | BT53: OFF | BU53: 0 | BV53: 0 | BX53: OFF | BY53: 0 | BZ53: 0 | CB53: OFF | CC53: 0 | CD53: 0 | CF53: OFF | CG53: 0 | CH53: 0 | CJ53: OFF | CK53: 0 | CL53: 0
D54: 負荷ファイル名 | E54: ="H"&E$50&$L$5&"_"&$L$20&"_"&E$51&"_"&E$52&E$53&"2_1SS_FM.csv" -> HC6x_12_03_312_1SS_FM.csv | F54: HC6x_12_03_212_1SS_FM.csv | G54: HC6x_12_05_312_1SS_FM.csv | H54: HC6x_12_05_212_1SS_FM.csv | I54: HC6x_12_03_332_1SS_FM.csv | J54: HC6x_12_03_232_1SS_FM.csv | K54: HC6x_12_05_332_1SS_FM.csv | L54: HC6x_12_05_232_1SS_FM.csv | Y54: 2014-01-02 | Z54: 22:00:00 | AA54: 平日 | AB54: ON | AC54: 9732.7 | AD54: 0 | AF54: ON | AG54: 9425.4 | AH54: 0 | AJ54: ON | AK54: 6863.31 | AL54: 0 | AN54: ON | AO54: 6653.35 | AP54: 0 | AR54: ON | AS54: 10005.07 | AT54: 0 | AV54: ON | AW54: 9255.76 | AX54: 0 | AZ54: ON | BA54: 6718 | BB54: 0 | BD54: ON | BE54: 5951.06 | BF54: 0 | BH54: OFF | BI54: 0 | BJ54: 0 | BL54: OFF | BM54: 0 | BN54: 0 | BP54: OFF | BQ54: 0 | BR54: 0 | BT54: OFF | BU54: 0 | BV54: 0 | BX54: OFF | BY54: 0 | BZ54: 0 | CB54: OFF | CC54: 0 | CD54: 0 | CF54: OFF | CG54: 0 | CH54: 0 | CJ54: OFF | CK54: 0 | CL54: 0
Y55: 2014-01-02 | Z55: 23:00:00 | AA55: 平日 | AB55: OFF | AC55: 0 | AD55: 0 | AF55: OFF | AG55: 0 | AH55: 0 | AJ55: OFF | AK55: 0 | AL55: 0 | AN55: OFF | AO55: 0 | AP55: 0 | AR55: OFF | AS55: 0 | AT55: 0 | AV55: OFF | AW55: 0 | AX55: 0 | AZ55: OFF | BA55: 0 | BB55: 0 | BD55: OFF | BE55: 0 | BF55: 0 | BH55: OFF | BI55: 0 | BJ55: 0 | BL55: OFF | BM55: 0 | BN55: 0 | BP55: OFF | BQ55: 0 | BR55: 0 | BT55: OFF | BU55: 0 | BV55: 0 | BX55: OFF | BY55: 0 | BZ55: 0 | CB55: OFF | CC55: 0 | CD55: 0 | CF55: OFF | CG55: 0 | CH55: 0 | CJ55: OFF | CK55: 0 | CL55: 0
Y56: 2014-01-03 | Z56: 00:00:00 | AA56: 平日 | AB56: OFF | AC56: 0 | AD56: 0 | AF56: OFF | AG56: 0 | AH56: 0 | AJ56: OFF | AK56: 0 | AL56: 0 | AN56: OFF | AO56: 0 | AP56: 0 | AR56: OFF | AS56: 0 | AT56: 0 | AV56: OFF | AW56: 0 | AX56: 0 | AZ56: OFF | BA56: 0 | BB56: 0 | BD56: OFF | BE56: 0 | BF56: 0 | BH56: OFF | BI56: 0 | BJ56: 0 | BL56: OFF | BM56: 0 | BN56: 0 | BP56: OFF | BQ56: 0 | BR56: 0 | BT56: OFF | BU56: 0 | BV56: 0 | BX56: OFF | BY56: 0 | BZ56: 0 | CB56: OFF | CC56: 0 | CD56: 0 | CF56: OFF | CG56: 0 | CH56: 0 | CJ56: OFF | CK56: 0 | CL56: 0
Y57: 2014-01-03 | Z57: 01:00:00 | AA57: 平日 | AB57: OFF | AC57: 0 | AD57: 0 | AF57: OFF | AG57: 0 | AH57: 0 | AJ57: OFF | AK57: 0 | AL57: 0 | AN57: OFF | AO57: 0 | AP57: 0 | AR57: OFF | AS57: 0 | AT57: 0 | AV57: OFF | AW57: 0 | AX57: 0 | AZ57: OFF | BA57: 0 | BB57: 0 | BD57: OFF | BE57: 0 | BF57: 0 | BH57: OFF | BI57: 0 | BJ57: 0 | BL57: OFF | BM57: 0 | BN57: 0 | BP57: OFF | BQ57: 0 | BR57: 0 | BT57: OFF | BU57: 0 | BV57: 0 | BX57: OFF | BY57: 0 | BZ57: 0 | CB57: OFF | CC57: 0 | CD57: 0 | CF57: OFF | CG57: 0 | CH57: 0 | CJ57: OFF | CK57: 0 | CL57: 0
Y58: 2014-01-03 | Z58: 02:00:00 | AA58: 平日 | AB58: OFF | AC58: 0 | AD58: 0 | AF58: OFF | AG58: 0 | AH58: 0 | AJ58: OFF | AK58: 0 | AL58: 0 | AN58: OFF | AO58: 0 | AP58: 0 | AR58: OFF | AS58: 0 | AT58: 0 | AV58: OFF | AW58: 0 | AX58: 0 | AZ58: OFF | BA58: 0 | BB58: 0 | BD58: OFF | BE58: 0 | BF58: 0 | BH58: OFF | BI58: 0 | BJ58: 0 | BL58: OFF | BM58: 0 | BN58: 0 | BP58: OFF | BQ58: 0 | BR58: 0 | BT58: OFF | BU58: 0 | BV58: 0 | BX58: OFF | BY58: 0 | BZ58: 0 | CB58: OFF | CC58: 0 | CD58: 0 | CF58: OFF | CG58: 0 | CH58: 0 | CJ58: OFF | CK58: 0 | CL58: 0
Y59: 2014-01-03 | Z59: 03:00:00 | AA59: 平日 | AB59: OFF | AC59: 0 | AD59: 0 | AF59: OFF | AG59: 0 | AH59: 0 | AJ59: OFF | AK59: 0 | AL59: 0 | AN59: OFF | AO59: 0 | AP59: 0 | AR59: OFF | AS59: 0 | AT59: 0 | AV59: OFF | AW59: 0 | AX59: 0 | AZ59: OFF | BA59: 0 | BB59: 0 | BD59: OFF | BE59: 0 | BF59: 0 | BH59: OFF | BI59: 0 | BJ59: 0 | BL59: OFF | BM59: 0 | BN59: 0 | BP59: OFF | BQ59: 0 | BR59: 0 | BT59: OFF | BU59: 0 | BV59: 0 | BX59: OFF | BY59: 0 | BZ59: 0 | CB59: OFF | CC59: 0 | CD59: 0 | CF59: OFF | CG59: 0 | CH59: 0 | CJ59: OFF | CK59: 0 | CL59: 0
Y60: 2014-01-03 | Z60: 04:00:00 | AA60: 平日 | AB60: OFF | AC60: 0 | AD60: 0 | AF60: OFF | AG60: 0 | AH60: 0 | AJ60: OFF | AK60: 0 | AL60: 0 | AN60: OFF | AO60: 0 | AP60: 0 | AR60: OFF | AS60: 0 | AT60: 0 | AV60: OFF | AW60: 0 | AX60: 0 | AZ60: OFF | BA60: 0 | BB60: 0 | BD60: OFF | BE60: 0 | BF60: 0 | BH60: OFF | BI60: 0 | BJ60: 0 | BL60: OFF | BM60: 0 | BN60: 0 | BP60: OFF | BQ60: 0 | BR60: 0 | BT60: OFF | BU60: 0 | BV60: 0 | BX60: OFF | BY60: 0 | BZ60: 0 | CB60: OFF | CC60: 0 | CD60: 0 | CF60: OFF | CG60: 0 | CH60: 0 | CJ60: OFF | CK60: 0 | CL60: 0
Y61: 2014-01-03 | Z61: 05:00:00 | AA61: 平日 | AB61: ON | AC61: 30248.6 | AD61: 0 | AF61: ON | AG61: 29842.5 | AH61: 0 | AJ61: ON | AK61: 25171.18 | AL61: 0 | AN61: ON | AO61: 25020.76 | AP61: 0 | AR61: ON | AS61: 26441.35 | AT61: 0 | AV61: ON | AW61: 25329.94 | AX61: 0 | AZ61: ON | BA61: 20147.46 | BB61: 0 | BD61: ON | BE61: 18995.42 | BF61: 0 | BH61: OFF | BI61: 0 | BJ61: 0 | BL61: OFF | BM61: 0 | BN61: 0 | BP61: OFF | BQ61: 0 | BR61: 0 | BT61: OFF | BU61: 0 | BV61: 0 | BX61: OFF | BY61: 0 | BZ61: 0 | CB61: OFF | CC61: 0 | CD61: 0 | CF61: OFF | CG61: 0 | CH61: 0 | CJ61: OFF | CK61: 0 | CL61: 0
Y62: 2014-01-03 | Z62: 06:00:00 | AA62: 平日 | AB62: ON | AC62: 13280.13 | AD62: 0 | AF62: ON | AG62: 13102.74 | AH62: 0 | AJ62: ON | AK62: 10454.61 | AL62: 0 | AN62: ON | AO62: 10409.05 | AP62: 0 | AR62: ON | AS62: 12580.16 | AT62: 0 | AV62: ON | AW62: 12031.18 | AX62: 0 | AZ62: ON | BA62: 9025.37 | BB62: 0 | BD62: ON | BE62: 8471.66 | BF62: 0 | BH62: OFF | BI62: 0 | BJ62: 0 | BL62: OFF | BM62: 0 | BN62: 0 | BP62: OFF | BQ62: 0 | BR62: 0 | BT62: OFF | BU62: 0 | BV62: 0 | BX62: OFF | BY62: 0 | BZ62: 0 | CB62: OFF | CC62: 0 | CD62: 0 | CF62: OFF | CG62: 0 | CH62: 0 | CJ62: OFF | CK62: 0 | CL62: 0
G63: 負荷補正前の冷房負荷 | Y63: 2014-01-03 | Z63: 07:00:00 | AA63: 平日 | AB63: ON | AC63: 12112.34 | AD63: 0 | AF63: ON | AG63: 11732.74 | AH63: 0 | AJ63: ON | AK63: 9158.61 | AL63: 0 | AN63: ON | AO63: 9068.08 | AP63: 0 | AR63: ON | AS63: 11888.77 | AT63: 0 | AV63: ON | AW63: 11243.97 | AX63: 0 | AZ63: ON | BA63: 8403.93 | BB63: 0 | BD63: ON | BE63: 7922.86 | BF63: 0 | BH63: OFF | BI63: 0 | BJ63: 0 | BL63: OFF | BM63: 0 | BN63: 0 | BP63: OFF | BQ63: 0 | BR63: 0 | BT63: OFF | BU63: 0 | BV63: 0 | BX63: OFF | BY63: 0 | BZ63: 0 | CB63: OFF | CC63: 0 | CD63: 0 | CF63: OFF | CG63: 0 | CH63: 0 | CJ63: OFF | CK63: 0 | CL63: 0
Y64: 2014-01-03 | Z64: 08:00:00 | AA64: 平日 | AB64: ON | AC64: 11146.85 | AD64: 0 | AF64: ON | AG64: 10540.27 | AH64: 0 | AJ64: ON | AK64: 8052.32 | AL64: 0 | AN64: ON | AO64: 7858.69 | AP64: 0 | AR64: ON | AS64: 11157.05 | AT64: 0 | AV64: ON | AW64: 10394.86 | AX64: 0 | AZ64: ON | BA64: 7702.17 | BB64: 0 | BD64: ON | BE64: 7235.84 | BF64: 0 | BH64: OFF | BI64: 0 | BJ64: 0 | BL64: OFF | BM64: 0 | BN64: 0 | BP64: OFF | BQ64: 0 | BR64: 0 | BT64: OFF | BU64: 0 | BV64: 0 | BX64: OFF | BY64: 0 | BZ64: 0 | CB64: OFF | CC64: 0 | CD64: 0 | CF64: OFF | CG64: 0 | CH64: 0 | CJ64: OFF | CK64: 0 | CL64: 0
Y65: 2014-01-03 | Z65: 09:00:00 | AA65: 平日 | AB65: OFF | AC65: 0 | AD65: 0 | AF65: OFF | AG65: 0 | AH65: 0 | AJ65: OFF | AK65: 0 | AL65: 0 | AN65: OFF | AO65: 0 | AP65: 0 | AR65: OFF | AS65: 0 | AT65: 0 | AV65: OFF | AW65: 0 | AX65: 0 | AZ65: OFF | BA65: 0 | BB65: 0 | BD65: OFF | BE65: 0 | BF65: 0 | BH65: OFF | BI65: 0 | BJ65: 0 | BL65: OFF | BM65: 0 | BN65: 0 | BP65: OFF | BQ65: 0 | BR65: 0 | BT65: OFF | BU65: 0 | BV65: 0 | BX65: OFF | BY65: 0 | BZ65: 0 | CB65: OFF | CC65: 0 | CD65: 0 | CF65: OFF | CG65: 0 | CH65: 0 | CJ65: OFF | CK65: 0 | CL65: 0
Y66: 2014-01-03 | Z66: 10:00:00 | AA66: 平日 | AB66: OFF | AC66: 0 | AD66: 0 | AF66: OFF | AG66: 0 | AH66: 0 | AJ66: OFF | AK66: 0 | AL66: 0 | AN66: OFF | AO66: 0 | AP66: 0 | AR66: OFF | AS66: 0 | AT66: 0 | AV66: OFF | AW66: 0 | AX66: 0 | AZ66: OFF | BA66: 0 | BB66: 0 | BD66: OFF | BE66: 0 | BF66: 0 | BH66: OFF | BI66: 0 | BJ66: 0 | BL66: OFF | BM66: 0 | BN66: 0 | BP66: OFF | BQ66: 0 | BR66: 0 | BT66: OFF | BU66: 0 | BV66: 0 | BX66: OFF | BY66: 0 | BZ66: 0 | CB66: OFF | CC66: 0 | CD66: 0 | CF66: OFF | CG66: 0 | CH66: 0 | CJ66: OFF | CK66: 0 | CL66: 0
Y67: 2014-01-03 | Z67: 11:00:00 | AA67: 平日 | AB67: ON | AC67: 20234.28 | AD67: 0 | AF67: ON | AG67: 18289.66 | AH67: 0 | AJ67: ON | AK67: 14658.26 | AL67: 0 | AN67: ON | AO67: 13773.66 | AP67: 0 | AR67: ON | AS67: 19381.2 | AT67: 0 | AV67: ON | AW67: 17627.82 | AX67: 0 | AZ67: ON | BA67: 13691.07 | BB67: 0 | BD67: ON | BE67: 12780.12 | BF67: 0 | BH67: OFF | BI67: 0 | BJ67: 0 | BL67: OFF | BM67: 0 | BN67: 0 | BP67: OFF | BQ67: 0 | BR67: 0 | BT67: OFF | BU67: 0 | BV67: 0 | BX67: OFF | BY67: 0 | BZ67: 0 | CB67: OFF | CC67: 0 | CD67: 0 | CF67: OFF | CG67: 0 | CH67: 0 | CJ67: OFF | CK67: 0 | CL67: 0
Y68: 2014-01-03 | Z68: 12:00:00 | AA68: 平日 | AB68: ON | AC68: 10811.92 | AD68: 0 | AF68: ON | AG68: 9702.8 | AH68: 0 | AJ68: ON | AK68: 7478.36 | AL68: 0 | AN68: ON | AO68: 6893.85 | AP68: 0 | AR68: ON | AS68: 10907.24 | AT68: 0 | AV68: ON | AW68: 9875.19 | AX68: 0 | AZ68: ON | BA68: 7398.11 | BB68: 0 | BD68: ON | BE68: 6799.04 | BF68: 0 | BH68: OFF | BI68: 0 | BJ68: 0 | BL68: OFF | BM68: 0 | BN68: 0 | BP68: OFF | BQ68: 0 | BR68: 0 | BT68: OFF | BU68: 0 | BV68: 0 | BX68: OFF | BY68: 0 | BZ68: 0 | CB68: OFF | CC68: 0 | CD68: 0 | CF68: OFF | CG68: 0 | CH68: 0 | CJ68: OFF | CK68: 0 | CL68: 0
Y69: 2014-01-03 | Z69: 13:00:00 | AA69: 平日 | AB69: OFF | AC69: 0 | AD69: 0 | AF69: OFF | AG69: 0 | AH69: 0 | AJ69: OFF | AK69: 0 | AL69: 0 | AN69: OFF | AO69: 0 | AP69: 0 | AR69: OFF | AS69: 0 | AT69: 0 | AV69: OFF | AW69: 0 | AX69: 0 | AZ69: OFF | BA69: 0 | BB69: 0 | BD69: OFF | BE69: 0 | BF69: 0 | BH69: OFF | BI69: 0 | BJ69: 0 | BL69: OFF | BM69: 0 | BN69: 0 | BP69: OFF | BQ69: 0 | BR69: 0 | BT69: OFF | BU69: 0 | BV69: 0 | BX69: OFF | BY69: 0 | BZ69: 0 | CB69: OFF | CC69: 0 | CD69: 0 | CF69: OFF | CG69: 0 | CH69: 0 | CJ69: OFF | CK69: 0 | CL69: 0
Y70: 2014-01-03 | Z70: 14:00:00 | AA70: 平日 | AB70: OFF | AC70: 0 | AD70: 0 | AF70: OFF | AG70: 0 | AH70: 0 | AJ70: OFF | AK70: 0 | AL70: 0 | AN70: OFF | AO70: 0 | AP70: 0 | AR70: OFF | AS70: 0 | AT70: 0 | AV70: OFF | AW70: 0 | AX70: 0 | AZ70: OFF | BA70: 0 | BB70: 0 | BD70: OFF | BE70: 0 | BF70: 0 | BH70: OFF | BI70: 0 | BJ70: 0 | BL70: OFF | BM70: 0 | BN70: 0 | BP70: OFF | BQ70: 0 | BR70: 0 | BT70: OFF | BU70: 0 | BV70: 0 | BX70: OFF | BY70: 0 | BZ70: 0 | CB70: OFF | CC70: 0 | CD70: 0 | CF70: OFF | CG70: 0 | CH70: 0 | CJ70: OFF | CK70: 0 | CL70: 0
Y71: 2014-01-03 | Z71: 15:00:00 | AA71: 平日 | AB71: ON | AC71: 18716.92 | AD71: 0 | AF71: ON | AG71: 17556.75 | AH71: 0 | AJ71: ON | AK71: 14156.98 | AL71: 0 | AN71: ON | AO71: 13440.27 | AP71: 0 | AR71: ON | AS71: 18098.32 | AT71: 0 | AV71: ON | AW71: 16857.98 | AX71: 0 | AZ71: ON | BA71: 13084.73 | BB71: 0 | BD71: ON | BE71: 12151.66 | BF71: 0 | BH71: OFF | BI71: 0 | BJ71: 0 | BL71: OFF | BM71: 0 | BN71: 0 | BP71: OFF | BQ71: 0 | BR71: 0 | BT71: OFF | BU71: 0 | BV71: 0 | BX71: OFF | BY71: 0 | BZ71: 0 | CB71: OFF | CC71: 0 | CD71: 0 | CF71: OFF | CG71: 0 | CH71: 0 | CJ71: OFF | CK71: 0 | CL71: 0
Y72: 2014-01-03 | Z72: 16:00:00 | AA72: 平日 | AB72: ON | AC72: 10273.72 | AD72: 0 | AF72: ON | AG72: 9826.85 | AH72: 0 | AJ72: ON | AK72: 7702.92 | AL72: 0 | AN72: ON | AO72: 7412.66 | AP72: 0 | AR72: ON | AS72: 10478.31 | AT72: 0 | AV72: ON | AW72: 9863.61 | AX72: 0 | AZ72: ON | BA72: 7457.94 | BB72: 0 | BD72: ON | BE72: 6937.7 | BF72: 0 | BH72: OFF | BI72: 0 | BJ72: 0 | BL72: OFF | BM72: 0 | BN72: 0 | BP72: OFF | BQ72: 0 | BR72: 0 | BT72: OFF | BU72: 0 | BV72: 0 | BX72: OFF | BY72: 0 | BZ72: 0 | CB72: OFF | CC72: 0 | CD72: 0 | CF72: OFF | CG72: 0 | CH72: 0 | CJ72: OFF | CK72: 0 | CL72: 0
Y73: 2014-01-03 | Z73: 17:00:00 | AA73: 平日 | AB73: ON | AC73: 11505.39 | AD73: 0 | AF73: ON | AG73: 11188.52 | AH73: 0 | AJ73: ON | AK73: 9115.6 | AL73: 0 | AN73: ON | AO73: 8923.77 | AP73: 0 | AR73: ON | AS73: 11963.82 | AT73: 0 | AV73: ON | AW73: 11439.63 | AX73: 0 | AZ73: ON | BA73: 9126.64 | BB73: 0 | BD73: ON | BE73: 8672.74 | BF73: 0 | BH73: OFF | BI73: 0 | BJ73: 0 | BL73: OFF | BM73: 0 | BN73: 0 | BP73: OFF | BQ73: 0 | BR73: 0 | BT73: OFF | BU73: 0 | BV73: 0 | BX73: OFF | BY73: 0 | BZ73: 0 | CB73: OFF | CC73: 0 | CD73: 0 | CF73: OFF | CG73: 0 | CH73: 0 | CJ73: OFF | CK73: 0 | CL73: 0
Y74: 2014-01-03 | Z74: 18:00:00 | AA74: 平日 | AB74: ON | AC74: 11049.67 | AD74: 0 | AF74: ON | AG74: 10796.48 | AH74: 0 | AJ74: ON | AK74: 8727.21 | AL74: 0 | AN74: ON | AO74: 8591.21 | AP74: 0 | AR74: ON | AS74: 11607.51 | AT74: 0 | AV74: ON | AW74: 11133.04 | AX74: 0 | AZ74: ON | BA74: 8865.09 | BB74: 0 | BD74: ON | BE74: 8455.87 | BF74: 0 | BH74: OFF | BI74: 0 | BJ74: 0 | BL74: OFF | BM74: 0 | BN74: 0 | BP74: OFF | BQ74: 0 | BR74: 0 | BT74: OFF | BU74: 0 | BV74: 0 | BX74: OFF | BY74: 0 | BZ74: 0 | CB74: OFF | CC74: 0 | CD74: 0 | CF74: OFF | CG74: 0 | CH74: 0 | CJ74: OFF | CK74: 0 | CL74: 0
Y75: 2014-01-03 | Z75: 19:00:00 | AA75: 平日 | AB75: ON | AC75: 8339 | AD75: 0 | AF75: ON | AG75: 8125.78 | AH75: 0 | AJ75: ON | AK75: 6028.69 | AL75: 0 | AN75: ON | AO75: 5928.31 | AP75: 0 | AR75: ON | AS75: 9009.5 | AT75: 0 | AV75: ON | AW75: 8569.59 | AX75: 0 | AZ75: ON | BA75: 6304.45 | BB75: 0 | BD75: ON | BE75: 5928.03 | BF75: 0 | BH75: OFF | BI75: 0 | BJ75: 0 | BL75: OFF | BM75: 0 | BN75: 0 | BP75: OFF | BQ75: 0 | BR75: 0 | BT75: OFF | BU75: 0 | BV75: 0 | BX75: OFF | BY75: 0 | BZ75: 0 | CB75: OFF | CC75: 0 | CD75: 0 | CF75: OFF | CG75: 0 | CH75: 0 | CJ75: OFF | CK75: 0 | CL75: 0
Y76: 2014-01-03 | Z76: 20:00:00 | AA76: 平日 | AB76: ON | AC76: 8502.55 | AD76: 0 | AF76: ON | AG76: 8319.2 | AH76: 0 | AJ76: ON | AK76: 6211.6 | AL76: 0 | AN76: ON | AO76: 6137.47 | AP76: 0 | AR76: ON | AS76: 9223.46 | AT76: 0 | AV76: ON | AW76: 8815.21 | AX76: 0 | AZ76: ON | BA76: 6565.69 | BB76: 0 | BD76: ON | BE76: 6219.31 | BF76: 0 | BH76: OFF | BI76: 0 | BJ76: 0 | BL76: OFF | BM76: 0 | BN76: 0 | BP76: OFF | BQ76: 0 | BR76: 0 | BT76: OFF | BU76: 0 | BV76: 0 | BX76: OFF | BY76: 0 | BZ76: 0 | CB76: OFF | CC76: 0 | CD76: 0 | CF76: OFF | CG76: 0 | CH76: 0 | CJ76: OFF | CK76: 0 | CL76: 0
Y77: 2014-01-03 | Z77: 21:00:00 | AA77: 平日 | AB77: ON | AC77: 8504.89 | AD77: 0 | AF77: ON | AG77: 8344.02 | AH77: 0 | AJ77: ON | AK77: 6256.61 | AL77: 0 | AN77: ON | AO77: 6202.25 | AP77: 0 | AR77: ON | AS77: 9278.73 | AT77: 0 | AV77: ON | AW77: 8898.46 | AX77: 0 | AZ77: ON | BA77: 6682.61 | BB77: 0 | BD77: ON | BE77: 6363.16 | BF77: 0 | BH77: OFF | BI77: 0 | BJ77: 0 | BL77: OFF | BM77: 0 | BN77: 0 | BP77: OFF | BQ77: 0 | BR77: 0 | BT77: OFF | BU77: 0 | BV77: 0 | BX77: OFF | BY77: 0 | BZ77: 0 | CB77: OFF | CC77: 0 | CD77: 0 | CF77: OFF | CG77: 0 | CH77: 0 | CJ77: OFF | CK77: 0 | CL77: 0
Y78: 2014-01-03 | Z78: 22:00:00 | AA78: 平日 | AB78: ON | AC78: 8526.78 | AD78: 0 | AF78: ON | AG78: 8383.77 | AH78: 0 | AJ78: ON | AK78: 6304.42 | AL78: 0 | AN78: ON | AO78: 6265.73 | AP78: 0 | AR78: ON | AS78: 9296.75 | AT78: 0 | AV78: ON | AW78: 8943.64 | AX78: 0 | AZ78: ON | BA78: 6754.45 | BB78: 0 | BD78: ON | BE78: 6461.45 | BF78: 0 | BH78: OFF | BI78: 0 | BJ78: 0 | BL78: OFF | BM78: 0 | BN78: 0 | BP78: OFF | BQ78: 0 | BR78: 0 | BT78: OFF | BU78: 0 | BV78: 0 | BX78: OFF | BY78: 0 | BZ78: 0 | CB78: OFF | CC78: 0 | CD78: 0 | CF78: OFF | CG78: 0 | CH78: 0 | CJ78: OFF | CK78: 0 | CL78: 0
Y79: 2014-01-03 | Z79: 23:00:00 | AA79: 平日 | AB79: OFF | AC79: 0 | AD79: 0 | AF79: OFF | AG79: 0 | AH79: 0 | AJ79: OFF | AK79: 0 | AL79: 0 | AN79: OFF | AO79: 0 | AP79: 0 | AR79: OFF | AS79: 0 | AT79: 0 | AV79: OFF | AW79: 0 | AX79: 0 | AZ79: OFF | BA79: 0 | BB79: 0 | BD79: OFF | BE79: 0 | BF79: 0 | BH79: OFF | BI79: 0 | BJ79: 0 | BL79: OFF | BM79: 0 | BN79: 0 | BP79: OFF | BQ79: 0 | BR79: 0 | BT79: OFF | BU79: 0 | BV79: 0 | BX79: OFF | BY79: 0 | BZ79: 0 | CB79: OFF | CC79: 0 | CD79: 0 | CF79: OFF | CG79: 0 | CH79: 0 | CJ79: OFF | CK79: 0 | CL79: 0
Y80: 2014-01-04 | Z80: 00:00:00 | AA80: 平日 | AB80: OFF | AC80: 0 | AD80: 0 | AF80: OFF | AG80: 0 | AH80: 0 | AJ80: OFF | AK80: 0 | AL80: 0 | AN80: OFF | AO80: 0 | AP80: 0 | AR80: OFF | AS80: 0 | AT80: 0 | AV80: OFF | AW80: 0 | AX80: 0 | AZ80: OFF | BA80: 0 | BB80: 0 | BD80: OFF | BE80: 0 | BF80: 0 | BH80: OFF | BI80: 0 | BJ80: 0 | BL80: OFF | BM80: 0 | BN80: 0 | BP80: OFF | BQ80: 0 | BR80: 0 | BT80: OFF | BU80: 0 | BV80: 0 | BX80: OFF | BY80: 0 | BZ80: 0 | CB80: OFF | CC80: 0 | CD80: 0 | CF80: OFF | CG80: 0 | CH80: 0 | CJ80: OFF | CK80: 0 | CL80: 0
Y81: 2014-01-04 | Z81: 01:00:00 | AA81: 平日 | AB81: OFF | AC81: 0 | AD81: 0 | AF81: OFF | AG81: 0 | AH81: 0 | AJ81: OFF | AK81: 0 | AL81: 0 | AN81: OFF | AO81: 0 | AP81: 0 | AR81: OFF | AS81: 0 | AT81: 0 | AV81: OFF | AW81: 0 | AX81: 0 | AZ81: OFF | BA81: 0 | BB81: 0 | BD81: OFF | BE81: 0 | BF81: 0 | BH81: OFF | BI81: 0 | BJ81: 0 | BL81: OFF | BM81: 0 | BN81: 0 | BP81: OFF | BQ81: 0 | BR81: 0 | BT81: OFF | BU81: 0 | BV81: 0 | BX81: OFF | BY81: 0 | BZ81: 0 | CB81: OFF | CC81: 0 | CD81: 0 | CF81: OFF | CG81: 0 | CH81: 0 | CJ81: OFF | CK81: 0 | CL81: 0
Y82: 2014-01-04 | Z82: 02:00:00 | AA82: 平日 | AB82: OFF | AC82: 0 | AD82: 0 | AF82: OFF | AG82: 0 | AH82: 0 | AJ82: OFF | AK82: 0 | AL82: 0 | AN82: OFF | AO82: 0 | AP82: 0 | AR82: OFF | AS82: 0 | AT82: 0 | AV82: OFF | AW82: 0 | AX82: 0 | AZ82: OFF | BA82: 0 | BB82: 0 | BD82: OFF | BE82: 0 | BF82: 0 | BH82: OFF | BI82: 0 | BJ82: 0 | BL82: OFF | BM82: 0 | BN82: 0 | BP82: OFF | BQ82: 0 | BR82: 0 | BT82: OFF | BU82: 0 | BV82: 0 | BX82: OFF | BY82: 0 | BZ82: 0 | CB82: OFF | CC82: 0 | CD82: 0 | CF82: OFF | CG82: 0 | CH82: 0 | CJ82: OFF | CK82: 0 | CL82: 0
Y83: 2014-01-04 | Z83: 03:00:00 | AA83: 平日 | AB83: OFF | AC83: 0 | AD83: 0 | AF83: OFF | AG83: 0 | AH83: 0 | AJ83: OFF | AK83: 0 | AL83: 0 | AN83: OFF | AO83: 0 | AP83: 0 | AR83: OFF | AS83: 0 | AT83: 0 | AV83: OFF | AW83: 0 | AX83: 0 | AZ83: OFF | BA83: 0 | BB83: 0 | BD83: OFF | BE83: 0 | BF83: 0 | BH83: OFF | BI83: 0 | BJ83: 0 | BL83: OFF | BM83: 0 | BN83: 0 | BP83: OFF | BQ83: 0 | BR83: 0 | BT83: OFF | BU83: 0 | BV83: 0 | BX83: OFF | BY83: 0 | BZ83: 0 | CB83: OFF | CC83: 0 | CD83: 0 | CF83: OFF | CG83: 0 | CH83: 0 | CJ83: OFF | CK83: 0 | CL83: 0
Y84: 2014-01-04 | Z84: 04:00:00 | AA84: 平日 | AB84: OFF | AC84: 0 | AD84: 0 | AF84: OFF | AG84: 0 | AH84: 0 | AJ84: OFF | AK84: 0 | AL84: 0 | AN84: OFF | AO84: 0 | AP84: 0 | AR84: OFF | AS84: 0 | AT84: 0 | AV84: OFF | AW84: 0 | AX84: 0 | AZ84: OFF | BA84: 0 | BB84: 0 | BD84: OFF | BE84: 0 | BF84: 0 | BH84: OFF | BI84: 0 | BJ84: 0 | BL84: OFF | BM84: 0 | BN84: 0 | BP84: OFF | BQ84: 0 | BR84: 0 | BT84: OFF | BU84: 0 | BV84: 0 | BX84: OFF | BY84: 0 | BZ84: 0 | CB84: OFF | CC84: 0 | CD84: 0 | CF84: OFF | CG84: 0 | CH84: 0 | CJ84: OFF | CK84: 0 | CL84: 0
Y85: 2014-01-04 | Z85: 05:00:00 | AA85: 平日 | AB85: ON | AC85: 23216.13 | AD85: 0 | AF85: ON | AG85: 22962.99 | AH85: 0 | AJ85: ON | AK85: 19630.26 | AL85: 0 | AN85: ON | AO85: 19613.52 | AP85: 0 | AR85: ON | AS85: 21744.72 | AT85: 0 | AV85: ON | AW85: 21183.75 | AX85: 0 | AZ85: ON | BA85: 17312.66 | BB85: 0 | BD85: ON | BE85: 16863.02 | BF85: 0 | BH85: OFF | BI85: 0 | BJ85: 0 | BL85: OFF | BM85: 0 | BN85: 0 | BP85: OFF | BQ85: 0 | BR85: 0 | BT85: OFF | BU85: 0 | BV85: 0 | BX85: OFF | BY85: 0 | BZ85: 0 | CB85: OFF | CC85: 0 | CD85: 0 | CF85: OFF | CG85: 0 | CH85: 0 | CJ85: OFF | CK85: 0 | CL85: 0
Y86: 2014-01-04 | Z86: 06:00:00 | AA86: 平日 | AB86: ON | AC86: 9716.43 | AD86: 0 | AF86: ON | AG86: 9597.98 | AH86: 0 | AJ86: ON | AK86: 7680.39 | AL86: 0 | AN86: ON | AO86: 7677.02 | AP86: 0 | AR86: ON | AS86: 10010.24 | AT86: 0 | AV86: ON | AW86: 9727.53 | AX86: 0 | AZ86: ON | BA86: 7489.17 | BB86: 0 | BD86: ON | BE86: 7271.67 | BF86: 0 | BH86: OFF | BI86: 0 | BJ86: 0 | BL86: OFF | BM86: 0 | BN86: 0 | BP86: OFF | BQ86: 0 | BR86: 0 | BT86: OFF | BU86: 0 | BV86: 0 | BX86: OFF | BY86: 0 | BZ86: 0 | CB86: OFF | CC86: 0 | CD86: 0 | CF86: OFF | CG86: 0 | CH86: 0 | CJ86: OFF | CK86: 0 | CL86: 0
Y87: 2014-01-04 | Z87: 07:00:00 | AA87: 平日 | AB87: ON | AC87: 8926.01 | AD87: 0 | AF87: ON | AG87: 8592.16 | AH87: 0 | AJ87: ON | AK87: 6683.78 | AL87: 0 | AN87: ON | AO87: 6620.53 | AP87: 0 | AR87: ON | AS87: 9520.32 | AT87: 0 | AV87: ON | AW87: 9107.21 | AX87: 0 | AZ87: ON | BA87: 6979.98 | BB87: 0 | BD87: ON | BE87: 6790.7 | BF87: 0 | BH87: OFF | BI87: 0 | BJ87: 0 | BL87: OFF | BM87: 0 | BN87: 0 | BP87: OFF | BQ87: 0 | BR87: 0 | BT87: OFF | BU87: 0 | BV87: 0 | BX87: OFF | BY87: 0 | BZ87: 0 | CB87: OFF | CC87: 0 | CD87: 0 | CF87: OFF | CG87: 0 | CH87: 0 | CJ87: OFF | CK87: 0 | CL87: 0
Y88: 2014-01-04 | Z88: 08:00:00 | AA88: 平日 | AB88: ON | AC88: 8254.11 | AD88: 0 | AF88: ON | AG88: 7685.91 | AH88: 0 | AJ88: ON | AK88: 5797.41 | AL88: 0 | AN88: ON | AO88: 5623.07 | AP88: 0 | AR88: ON | AS88: 8978.33 | AT88: 0 | AV88: ON | AW88: 8425.57 | AX88: 0 | AZ88: ON | BA88: 6392.37 | BB88: 0 | BD88: ON | BE88: 6190.27 | BF88: 0 | BH88: OFF | BI88: 0 | BJ88: 0 | BL88: OFF | BM88: 0 | BN88: 0 | BP88: OFF | BQ88: 0 | BR88: 0 | BT88: OFF | BU88: 0 | BV88: 0 | BX88: OFF | BY88: 0 | BZ88: 0 | CB88: OFF | CC88: 0 | CD88: 0 | CF88: OFF | CG88: 0 | CH88: 0 | CJ88: OFF | CK88: 0 | CL88: 0
Y89: 2014-01-04 | Z89: 09:00:00 | AA89: 平日 | AB89: OFF | AC89: 0 | AD89: 0 | AF89: OFF | AG89: 0 | AH89: 0 | AJ89: OFF | AK89: 0 | AL89: 0 | AN89: OFF | AO89: 0 | AP89: 0 | AR89: OFF | AS89: 0 | AT89: 0 | AV89: OFF | AW89: 0 | AX89: 0 | AZ89: OFF | BA89: 0 | BB89: 0 | BD89: OFF | BE89: 0 | BF89: 0 | BH89: OFF | BI89: 0 | BJ89: 0 | BL89: OFF | BM89: 0 | BN89: 0 | BP89: OFF | BQ89: 0 | BR89: 0 | BT89: OFF | BU89: 0 | BV89: 0 | BX89: OFF | BY89: 0 | BZ89: 0 | CB89: OFF | CC89: 0 | CD89: 0 | CF89: OFF | CG89: 0 | CH89: 0 | CJ89: OFF | CK89: 0 | CL89: 0
Y90: 2014-01-04 | Z90: 10:00:00 | AA90: 平日 | AB90: OFF | AC90: 0 | AD90: 0 | AF90: OFF | AG90: 0 | AH90: 0 | AJ90: OFF | AK90: 0 | AL90: 0 | AN90: OFF | AO90: 0 | AP90: 0 | AR90: OFF | AS90: 0 | AT90: 0 | AV90: OFF | AW90: 0 | AX90: 0 | AZ90: OFF | BA90: 0 | BB90: 0 | BD90: OFF | BE90: 0 | BF90: 0 | BH90: OFF | BI90: 0 | BJ90: 0 | BL90: OFF | BM90: 0 | BN90: 0 | BP90: OFF | BQ90: 0 | BR90: 0 | BT90: OFF | BU90: 0 | BV90: 0 | BX90: OFF | BY90: 0 | BZ90: 0 | CB90: OFF | CC90: 0 | CD90: 0 | CF90: OFF | CG90: 0 | CH90: 0 | CJ90: OFF | CK90: 0 | CL90: 0
Y91: 2014-01-04 | Z91: 11:00:00 | AA91: 平日 | AB91: ON | AC91: 15179.47 | AD91: 0 | AF91: ON | AG91: 13294.2 | AH91: 0 | AJ91: ON | AK91: 10446.74 | AL91: 0 | AN91: ON | AO91: 9590.45 | AP91: 0 | AR91: ON | AS91: 15589.88 | AT91: 0 | AV91: ON | AW91: 14135.68 | AX91: 0 | AZ91: ON | BA91: 11190.7 | BB91: 0 | BD91: ON | BE91: 10674.78 | BF91: 0 | BH91: OFF | BI91: 0 | BJ91: 0 | BL91: OFF | BM91: 0 | BN91: 0 | BP91: OFF | BQ91: 0 | BR91: 0 | BT91: OFF | BU91: 0 | BV91: 0 | BX91: OFF | BY91: 0 | BZ91: 0 | CB91: OFF | CC91: 0 | CD91: 0 | CF91: OFF | CG91: 0 | CH91: 0 | CJ91: OFF | CK91: 0 | CL91: 0
Y92: 2014-01-04 | Z92: 12:00:00 | AA92: 平日 | AB92: ON | AC92: 7789.82 | AD92: 0 | AF92: ON | AG92: 6544.29 | AH92: 0 | AJ92: ON | AK92: 4838.88 | AL92: 0 | AN92: ON | AO92: 4210.82 | AP92: 0 | AR92: ON | AS92: 8494.16 | AT92: 0 | AV92: ON | AW92: 7516.41 | AX92: 0 | AZ92: ON | BA92: 5705.61 | BB92: 0 | BD92: ON | BE92: 5322.13 | BF92: 0 | BH92: OFF | BI92: 0 | BJ92: 0 | BL92: OFF | BM92: 0 | BN92: 0 | BP92: OFF | BQ92: 0 | BR92: 0 | BT92: OFF | BU92: 0 | BV92: 0 | BX92: OFF | BY92: 0 | BZ92: 0 | CB92: OFF | CC92: 0 | CD92: 0 | CF92: OFF | CG92: 0 | CH92: 0 | CJ92: OFF | CK92: 0 | CL92: 0
Y93: 2014-01-04 | Z93: 13:00:00 | AA93: 平日 | AB93: OFF | AC93: 0 | AD93: 0 | AF93: OFF | AG93: 0 | AH93: 0 | AJ93: OFF | AK93: 0 | AL93: 0 | AN93: OFF | AO93: 0 | AP93: 0 | AR93: OFF | AS93: 0 | AT93: 0 | AV93: OFF | AW93: 0 | AX93: 0 | AZ93: OFF | BA93: 0 | BB93: 0 | BD93: OFF | BE93: 0 | BF93: 0 | BH93: OFF | BI93: 0 | BJ93: 0 | BL93: OFF | BM93: 0 | BN93: 0 | BP93: OFF | BQ93: 0 | BR93: 0 | BT93: OFF | BU93: 0 | BV93: 0 | BX93: OFF | BY93: 0 | BZ93: 0 | CB93: OFF | CC93: 0 | CD93: 0 | CF93: OFF | CG93: 0 | CH93: 0 | CJ93: OFF | CK93: 0 | CL93: 0
Y94: 2014-01-04 | Z94: 14:00:00 | AA94: 平日 | AB94: OFF | AC94: 0 | AD94: 0 | AF94: OFF | AG94: 0 | AH94: 0 | AJ94: OFF | AK94: 0 | AL94: 0 | AN94: OFF | AO94: 0 | AP94: 0 | AR94: OFF | AS94: 0 | AT94: 0 | AV94: OFF | AW94: 0 | AX94: 0 | AZ94: OFF | BA94: 0 | BB94: 0 | BD94: OFF | BE94: 0 | BF94: 0 | BH94: OFF | BI94: 0 | BJ94: 0 | BL94: OFF | BM94: 0 | BN94: 0 | BP94: OFF | BQ94: 0 | BR94: 0 | BT94: OFF | BU94: 0 | BV94: 0 | BX94: OFF | BY94: 0 | BZ94: 0 | CB94: OFF | CC94: 0 | CD94: 0 | CF94: OFF | CG94: 0 | CH94: 0 | CJ94: OFF | CK94: 0 | CL94: 0
Y95: 2014-01-04 | Z95: 15:00:00 | AA95: 平日 | AB95: ON | AC95: 13349.28 | AD95: 0 | AF95: ON | AG95: 11720.16 | AH95: 0 | AJ95: ON | AK95: 9074.01 | AL95: 0 | AN95: ON | AO95: 8062.73 | AP95: 0 | AR95: ON | AS95: 13871.07 | AT95: 0 | AV95: ON | AW95: 12555.31 | AX95: 0 | AZ95: ON | BA95: 9861.07 | BB95: 0 | BD95: ON | BE95: 9136.3 | BF95: 0 | BH95: OFF | BI95: 0 | BJ95: 0 | BL95: OFF | BM95: 0 | BN95: 0 | BP95: OFF | BQ95: 0 | BR95: 0 | BT95: OFF | BU95: 0 | BV95: 0 | BX95: OFF | BY95: 0 | BZ95: 0 | CB95: OFF | CC95: 0 | CD95: 0 | CF95: OFF | CG95: 0 | CH95: 0 | CJ95: OFF | CK95: 0 | CL95: 0
Y96: 2014-01-04 | Z96: 16:00:00 | AA96: 平日 | AB96: ON | AC96: 7198.2 | AD96: 0 | AF96: ON | AG96: 6615.68 | AH96: 0 | AJ96: ON | AK96: 4939.78 | AL96: 0 | AN96: ON | AO96: 4514.48 | AP96: 0 | AR96: ON | AS96: 7898.21 | AT96: 0 | AV96: ON | AW96: 7313.41 | AX96: 0 | AZ96: ON | BA96: 5571.55 | BB96: 0 | BD96: ON | BE96: 5149.99 | BF96: 0 | BH96: OFF | BI96: 0 | BJ96: 0 | BL96: OFF | BM96: 0 | BN96: 0 | BP96: OFF | BQ96: 0 | BR96: 0 | BT96: OFF | BU96: 0 | BV96: 0 | BX96: OFF | BY96: 0 | BZ96: 0 | CB96: OFF | CC96: 0 | CD96: 0 | CF96: OFF | CG96: 0 | CH96: 0 | CJ96: OFF | CK96: 0 | CL96: 0
Y97: 2014-01-04 | Z97: 17:00:00 | AA97: 平日 | AB97: ON | AC97: 8020.09 | AD97: 0 | AF97: ON | AG97: 7633.49 | AH97: 0 | AJ97: ON | AK97: 5980.98 | AL97: 0 | AN97: ON | AO97: 5703.64 | AP97: 0 | AR97: ON | AS97: 8840.94 | AT97: 0 | AV97: ON | AW97: 8363.39 | AX97: 0 | AZ97: ON | BA97: 6667.31 | BB97: 0 | BD97: ON | BE97: 6305.33 | BF97: 0 | BH97: OFF | BI97: 0 | BJ97: 0 | BL97: OFF | BM97: 0 | BN97: 0 | BP97: OFF | BQ97: 0 | BR97: 0 | BT97: OFF | BU97: 0 | BV97: 0 | BX97: OFF | BY97: 0 | BZ97: 0 | CB97: OFF | CC97: 0 | CD97: 0 | CF97: OFF | CG97: 0 | CH97: 0 | CJ97: OFF | CK97: 0 | CL97: 0
Y98: 2014-01-04 | Z98: 18:00:00 | AA98: 平日 | AB98: ON | AC98: 7984.17 | AD98: 0 | AF98: ON | AG98: 7688.49 | AH98: 0 | AJ98: ON | AK98: 5982.66 | AL98: 0 | AN98: ON | AO98: 5788.09 | AP98: 0 | AR98: ON | AS98: 8814.96 | AT98: 0 | AV98: ON | AW98: 8388.79 | AX98: 0 | AZ98: ON | BA98: 6671.77 | BB98: 0 | BD98: ON | BE98: 6350.03 | BF98: 0 | BH98: OFF | BI98: 0 | BJ98: 0 | BL98: OFF | BM98: 0 | BN98: 0 | BP98: OFF | BQ98: 0 | BR98: 0 | BT98: OFF | BU98: 0 | BV98: 0 | BX98: OFF | BY98: 0 | BZ98: 0 | CB98: OFF | CC98: 0 | CD98: 0 | CF98: OFF | CG98: 0 | CH98: 0 | CJ98: OFF | CK98: 0 | CL98: 0
Y99: 2014-01-04 | Z99: 19:00:00 | AA99: 平日 | AB99: ON | AC99: 6154.75 | AD99: 0 | AF99: ON | AG99: 5914.35 | AH99: 0 | AJ99: ON | AK99: 4126.67 | AL99: 0 | AN99: ON | AO99: 3983.57 | AP99: 0 | AR99: ON | AS99: 7005.6 | AT99: 0 | AV99: ON | AW99: 6613.38 | AX99: 0 | AZ99: ON | BA99: 4843.72 | BB99: 0 | BD99: ON | BE99: 4550.56 | BF99: 0 | BH99: OFF | BI99: 0 | BJ99: 0 | BL99: OFF | BM99: 0 | BN99: 0 | BP99: OFF | BQ99: 0 | BR99: 0 | BT99: OFF | BU99: 0 | BV99: 0 | BX99: OFF | BY99: 0 | BZ99: 0 | CB99: OFF | CC99: 0 | CD99: 0 | CF99: OFF | CG99: 0 | CH99: 0 | CJ99: OFF | CK99: 0 | CL99: 0
Y100: 2014-01-04 | Z100: 20:00:00 | AA100: 平日 | AB100: ON | AC100: 6783.98 | AD100: 0 | AF100: ON | AG100: 6583.5 | AH100: 0 | AJ100: ON | AK100: 4696.4 | AL100: 0 | AN100: ON | AO100: 4590.82 | AP100: 0 | AR100: ON | AS100: 7585.09 | AT100: 0 | AV100: ON | AW100: 7222.72 | AX100: 0 | AZ100: ON | BA100: 5382.93 | BB100: 0 | BD100: ON | BE100: 5115.44 | BF100: 0 | BH100: OFF | BI100: 0 | BJ100: 0 | BL100: OFF | BM100: 0 | BN100: 0 | BP100: OFF | BQ100: 0 | BR100: 0 | BT100: OFF | BU100: 0 | BV100: 0 | BX100: OFF | BY100: 0 | BZ100: 0 | CB100: OFF | CC100: 0 | CD100: 0 | CF100: OFF | CG100: 0 | CH100: 0 | CJ100: OFF | CK100: 0 | CL100: 0
Y101: 2014-01-04 | Z101: 21:00:00 | AA101: 平日 | AB101: ON | AC101: 7333.3 | AD101: 0 | AF101: ON | AG101: 7162.33 | AH101: 0 | AJ101: ON | AK101: 5180.19 | AL101: 0 | AN101: ON | AO101: 5103.61 | AP101: 0 | AR101: ON | AS101: 8077.99 | AT101: 0 | AV101: ON | AW101: 7741.59 | AX101: 0 | AZ101: ON | BA101: 5827.63 | BB101: 0 | BD101: ON | BE101: 5583.59 | BF101: 0 | BH101: OFF | BI101: 0 | BJ101: 0 | BL101: OFF | BM101: 0 | BN101: 0 | BP101: OFF | BQ101: 0 | BR101: 0 | BT101: OFF | BU101: 0 | BV101: 0 | BX101: OFF | BY101: 0 | BZ101: 0 | CB101: OFF | CC101: 0 | CD101: 0 | CF101: OFF | CG101: 0 | CH101: 0 | CJ101: OFF | CK101: 0 | CL101: 0
Y102: 2014-01-04 | Z102: 22:00:00 | AA102: 平日 | AB102: ON | AC102: 7374.98 | AD102: 0 | AF102: ON | AG102: 7227.03 | AH102: 0 | AJ102: ON | AK102: 5253.14 | AL102: 0 | AN102: ON | AO102: 5198.58 | AP102: 0 | AR102: ON | AS102: 8055.33 | AT102: 0 | AV102: ON | AW102: 7743.78 | AX102: 0 | AZ102: ON | BA102: 5848.38 | BB102: 0 | BD102: ON | BE102: 5626.13 | BF102: 0 | BH102: OFF | BI102: 0 | BJ102: 0 | BL102: OFF | BM102: 0 | BN102: 0 | BP102: OFF | BQ102: 0 | BR102: 0 | BT102: OFF | BU102: 0 | BV102: 0 | BX102: OFF | BY102: 0 | BZ102: 0 | CB102: OFF | CC102: 0 | CD102: 0 | CF102: OFF | CG102: 0 | CH102: 0 | CJ102: OFF | CK102: 0 | CL102: 0
Y103: 2014-01-04 | Z103: 23:00:00 | AA103: 平日 | AB103: OFF | AC103: 0 | AD103: 0 | AF103: OFF | AG103: 0 | AH103: 0 | AJ103: OFF | AK103: 0 | AL103: 0 | AN103: OFF | AO103: 0 | AP103: 0 | AR103: OFF | AS103: 0 | AT103: 0 | AV103: OFF | AW103: 0 | AX103: 0 | AZ103: OFF | BA103: 0 | BB103: 0 | BD103: OFF | BE103: 0 | BF103: 0 | BH103: OFF | BI103: 0 | BJ103: 0 | BL103: OFF | BM103: 0 | BN103: 0 | BP103: OFF | BQ103: 0 | BR103: 0 | BT103: OFF | BU103: 0 | BV103: 0 | BX103: OFF | BY103: 0 | BZ103: 0 | CB103: OFF | CC103: 0 | CD103: 0 | CF103: OFF | CG103: 0 | CH103: 0 | CJ103: OFF | CK103: 0 | CL103: 0
Y104: 2014-01-05 | Z104: 00:00:00 | AA104: 平日 | AB104: OFF | AC104: 0 | AD104: 0 | AF104: OFF | AG104: 0 | AH104: 0 | AJ104: OFF | AK104: 0 | AL104: 0 | AN104: OFF | AO104: 0 | AP104: 0 | AR104: OFF | AS104: 0 | AT104: 0 | AV104: OFF | AW104: 0 | AX104: 0 | AZ104: OFF | BA104: 0 | BB104: 0 | BD104: OFF | BE104: 0 | BF104: 0 | BH104: OFF | BI104: 0 | BJ104: 0 | BL104: OFF | BM104: 0 | BN104: 0 | BP104: OFF | BQ104: 0 | BR104: 0 | BT104: OFF | BU104: 0 | BV104: 0 | BX104: OFF | BY104: 0 | BZ104: 0 | CB104: OFF | CC104: 0 | CD104: 0 | CF104: OFF | CG104: 0 | CH104: 0 | CJ104: OFF | CK104: 0 | CL104: 0
Y105: 2014-01-05 | Z105: 01:00:00 | AA105: 平日 | AB105: OFF | AC105: 0 | AD105: 0 | AF105: OFF | AG105: 0 | AH105: 0 | AJ105: OFF | AK105: 0 | AL105: 0 | AN105: OFF | AO105: 0 | AP105: 0 | AR105: OFF | AS105: 0 | AT105: 0 | AV105: OFF | AW105: 0 | AX105: 0 | AZ105: OFF | BA105: 0 | BB105: 0 | BD105: OFF | BE105: 0 | BF105: 0 | BH105: OFF | BI105: 0 | BJ105: 0 | BL105: OFF | BM105: 0 | BN105: 0 | BP105: OFF | BQ105: 0 | BR105: 0 | BT105: OFF | BU105: 0 | BV105: 0 | BX105: OFF | BY105: 0 | BZ105: 0 | CB105: OFF | CC105: 0 | CD105: 0 | CF105: OFF | CG105: 0 | CH105: 0 | CJ105: OFF | CK105: 0 | CL105: 0
Y106: 2014-01-05 | Z106: 02:00:00 | AA106: 平日 | AB106: OFF | AC106: 0 | AD106: 0 | AF106: OFF | AG106: 0 | AH106: 0 | AJ106: OFF | AK106: 0 | AL106: 0 | AN106: OFF | AO106: 0 | AP106: 0 | AR106: OFF | AS106: 0 | AT106: 0 | AV106: OFF | AW106: 0 | AX106: 0 | AZ106: OFF | BA106: 0 | BB106: 0 | BD106: OFF | BE106: 0 | BF106: 0 | BH106: OFF | BI106: 0 | BJ106: 0 | BL106: OFF | BM106: 0 | BN106: 0 | BP106: OFF | BQ106: 0 | BR106: 0 | BT106: OFF | BU106: 0 | BV106: 0 | BX106: OFF | BY106: 0 | BZ106: 0 | CB106: OFF | CC106: 0 | CD106: 0 | CF106: OFF | CG106: 0 | CH106: 0 | CJ106: OFF | CK106: 0 | CL106: 0
Y107: 2014-01-05 | Z107: 03:00:00 | AA107: 平日 | AB107: OFF | AC107: 0 | AD107: 0 | AF107: OFF | AG107: 0 | AH107: 0 | AJ107: OFF | AK107: 0 | AL107: 0 | AN107: OFF | AO107: 0 | AP107: 0 | AR107: OFF | AS107: 0 | AT107: 0 | AV107: OFF | AW107: 0 | AX107: 0 | AZ107: OFF | BA107: 0 | BB107: 0 | BD107: OFF | BE107: 0 | BF107: 0 | BH107: OFF | BI107: 0 | BJ107: 0 | BL107: OFF | BM107: 0 | BN107: 0 | BP107: OFF | BQ107: 0 | BR107: 0 | BT107: OFF | BU107: 0 | BV107: 0 | BX107: OFF | BY107: 0 | BZ107: 0 | CB107: OFF | CC107: 0 | CD107: 0 | CF107: OFF | CG107: 0 | CH107: 0 | CJ107: OFF | CK107: 0 | CL107: 0
Y108: 2014-01-05 | Z108: 04:00:00 | AA108: 平日 | AB108: OFF | AC108: 0 | AD108: 0 | AF108: OFF | AG108: 0 | AH108: 0 | AJ108: OFF | AK108: 0 | AL108: 0 | AN108: OFF | AO108: 0 | AP108: 0 | AR108: OFF | AS108: 0 | AT108: 0 | AV108: OFF | AW108: 0 | AX108: 0 | AZ108: OFF | BA108: 0 | BB108: 0 | BD108: OFF | BE108: 0 | BF108: 0 | BH108: OFF | BI108: 0 | BJ108: 0 | BL108: OFF | BM108: 0 | BN108: 0 | BP108: OFF | BQ108: 0 | BR108: 0 | BT108: OFF | BU108: 0 | BV108: 0 | BX108: OFF | BY108: 0 | BZ108: 0 | CB108: OFF | CC108: 0 | CD108: 0 | CF108: OFF | CG108: 0 | CH108: 0 | CJ108: OFF | CK108: 0 | CL108: 0
Y109: 2014-01-05 | Z109: 05:00:00 | AA109: 平日 | AB109: ON | AC109: 22910.05 | AD109: 0 | AF109: ON | AG109: 22672.39 | AH109: 0 | AJ109: ON | AK109: 19029.97 | AL109: 0 | AN109: ON | AO109: 19018.55 | AP109: 0 | AR109: ON | AS109: 20902.89 | AT109: 0 | AV109: ON | AW109: 20413.29 | AX109: 0 | AZ109: ON | BA109: 16643.38 | BB109: 0 | BD109: ON | BE109: 16320.95 | BF109: 0 | BH109: OFF | BI109: 0 | BJ109: 0 | BL109: OFF | BM109: 0 | BN109: 0 | BP109: OFF | BQ109: 0 | BR109: 0 | BT109: OFF | BU109: 0 | BV109: 0 | BX109: OFF | BY109: 0 | BZ109: 0 | CB109: OFF | CC109: 0 | CD109: 0 | CF109: OFF | CG109: 0 | CH109: 0 | CJ109: OFF | CK109: 0 | CL109: 0
Y110: 2014-01-05 | Z110: 06:00:00 | AA110: 平日 | AB110: ON | AC110: 10105.08 | AD110: 0 | AF110: ON | AG110: 9996.04 | AH110: 0 | AJ110: ON | AK110: 7831.36 | AL110: 0 | AN110: ON | AO110: 7835.29 | AP110: 0 | AR110: ON | AS110: 10007.66 | AT110: 0 | AV110: ON | AW110: 9761.53 | AX110: 0 | AZ110: ON | BA110: 7472.53 | BB110: 0 | BD110: ON | BE110: 7320.33 | BF110: 0 | BH110: OFF | BI110: 0 | BJ110: 0 | BL110: OFF | BM110: 0 | BN110: 0 | BP110: OFF | BQ110: 0 | BR110: 0 | BT110: OFF | BU110: 0 | BV110: 0 | BX110: OFF | BY110: 0 | BZ110: 0 | CB110: OFF | CC110: 0 | CD110: 0 | CF110: OFF | CG110: 0 | CH110: 0 | CJ110: OFF | CK110: 0 | CL110: 0
Y111: 2014-01-05 | Z111: 07:00:00 | AA111: 平日 | AB111: ON | AC111: 9218.11 | AD111: 0 | AF111: ON | AG111: 8048.75 | AH111: 0 | AJ111: ON | AK111: 5952.86 | AL111: 0 | AN111: ON | AO111: 5671.57 | AP111: 0 | AR111: ON | AS111: 9470.63 | AT111: 0 | AV111: ON | AW111: 8495.34 | AX111: 0 | AZ111: ON | BA111: 6325.38 | BB111: 0 | BD111: ON | BE111: 6196.85 | BF111: 0 | BH111: OFF | BI111: 0 | BJ111: 0 | BL111: OFF | BM111: 0 | BN111: 0 | BP111: OFF | BQ111: 0 | BR111: 0 | BT111: OFF | BU111: 0 | BV111: 0 | BX111: OFF | BY111: 0 | BZ111: 0 | CB111: OFF | CC111: 0 | CD111: 0 | CF111: OFF | CG111: 0 | CH111: 0 | CJ111: OFF | CK111: 0 | CL111: 0
Y112: 2014-01-05 | Z112: 08:00:00 | AA112: 平日 | AB112: ON | AC112: 8600.89 | AD112: 0 | AF112: ON | AG112: 6930.89 | AH112: 0 | AJ112: ON | AK112: 4841.69 | AL112: 0 | AN112: ON | AO112: 4204.25 | AP112: 0 | AR112: ON | AS112: 9000.61 | AT112: 0 | AV112: ON | AW112: 7728.4 | AX112: 0 | AZ112: ON | BA112: 5644.95 | BB112: 0 | BD112: ON | BE112: 5389.07 | BF112: 0 | BH112: OFF | BI112: 0 | BJ112: 0 | BL112: OFF | BM112: 0 | BN112: 0 | BP112: OFF | BQ112: 0 | BR112: 0 | BT112: OFF | BU112: 0 | BV112: 0 | BX112: OFF | BY112: 0 | BZ112: 0 | CB112: OFF | CC112: 0 | CD112: 0 | CF112: OFF | CG112: 0 | CH112: 0 | CJ112: OFF | CK112: 0 | CL112: 0
Y113: 2014-01-05 | Z113: 09:00:00 | AA113: 平日 | AB113: OFF | AC113: 0 | AD113: 0 | AF113: OFF | AG113: 0 | AH113: 0 | AJ113: OFF | AK113: 0 | AL113: 0 | AN113: OFF | AO113: 0 | AP113: 0 | AR113: OFF | AS113: 0 | AT113: 0 | AV113: OFF | AW113: 0 | AX113: 0 | AZ113: OFF | BA113: 0 | BB113: 0 | BD113: OFF | BE113: 0 | BF113: 0 | BH113: OFF | BI113: 0 | BJ113: 0 | BL113: OFF | BM113: 0 | BN113: 0 | BP113: OFF | BQ113: 0 | BR113: 0 | BT113: OFF | BU113: 0 | BV113: 0 | BX113: OFF | BY113: 0 | BZ113: 0 | CB113: OFF | CC113: 0 | CD113: 0 | CF113: OFF | CG113: 0 | CH113: 0 | CJ113: OFF | CK113: 0 | CL113: 0
Y114: 2014-01-05 | Z114: 10:00:00 | AA114: 平日 | AB114: OFF | AC114: 0 | AD114: 0 | AF114: OFF | AG114: 0 | AH114: 0 | AJ114: OFF | AK114: 0 | AL114: 0 | AN114: OFF | AO114: 0 | AP114: 0 | AR114: OFF | AS114: 0 | AT114: 0 | AV114: OFF | AW114: 0 | AX114: 0 | AZ114: OFF | BA114: 0 | BB114: 0 | BD114: OFF | BE114: 0 | BF114: 0 | BH114: OFF | BI114: 0 | BJ114: 0 | BL114: OFF | BM114: 0 | BN114: 0 | BP114: OFF | BQ114: 0 | BR114: 0 | BT114: OFF | BU114: 0 | BV114: 0 | BX114: OFF | BY114: 0 | BZ114: 0 | CB114: OFF | CC114: 0 | CD114: 0 | CF114: OFF | CG114: 0 | CH114: 0 | CJ114: OFF | CK114: 0 | CL114: 0
Y115: 2014-01-05 | Z115: 11:00:00 | AA115: 平日 | AB115: ON | AC115: 14368.55 | AD115: 0 | AF115: ON | AG115: 7290.63 | AH115: 0 | AJ115: ON | AK115: 4038.57 | AL115: 0 | AN115: ON | AO115: 45.99 | AP115: 0 | AR115: ON | AS115: 14645.85 | AT115: 0 | AV115: ON | AW115: 9950.56 | AX115: 0 | AZ115: ON | BA115: 7082.04 | BB115: 0 | BD115: ON | BE115: 5605.8 | BF115: 0 | BH115: OFF | BI115: 0 | BJ115: 0 | BL115: OFF | BM115: 0 | BN115: 0 | BP115: OFF | BQ115: 0 | BR115: 0 | BT115: OFF | BU115: 0 | BV115: 0 | BX115: OFF | BY115: 0 | BZ115: 0 | CB115: OFF | CC115: 0 | CD115: 0 | CF115: OFF | CG115: 0 | CH115: 0 | CJ115: OFF | CK115: 0 | CL115: 0
Y116: 2014-01-05 | Z116: 12:00:00 | AA116: 平日 | AB116: ON | AC116: 7401.16 | AD116: 0 | AF116: ON | AG116: 3303.64 | AH116: 0 | AJ116: ON | AK116: 1323.88 | AL116: 0 | AN116: ON | AO116: 0 | AP116: 0 | AR116: ON | AS116: 8002.56 | AT116: 0 | AV116: ON | AW116: 5081.63 | AX116: 0 | AZ116: ON | BA116: 3306.6 | BB116: 0 | BD116: ON | BE116: 2200.88 | BF116: 0 | BH116: OFF | BI116: 0 | BJ116: 0 | BL116: OFF | BM116: 0 | BN116: 0 | BP116: OFF | BQ116: 0 | BR116: 0 | BT116: OFF | BU116: 0 | BV116: 0 | BX116: OFF | BY116: 0 | BZ116: 0 | CB116: OFF | CC116: 0 | CD116: 0 | CF116: OFF | CG116: 0 | CH116: 0 | CJ116: OFF | CK116: 0 | CL116: 0
Y117: 2014-01-05 | Z117: 13:00:00 | AA117: 平日 | AB117: OFF | AC117: 0 | AD117: 0 | AF117: OFF | AG117: 0 | AH117: 0 | AJ117: OFF | AK117: 0 | AL117: 0 | AN117: OFF | AO117: 0 | AP117: 0 | AR117: OFF | AS117: 0 | AT117: 0 | AV117: OFF | AW117: 0 | AX117: 0 | AZ117: OFF | BA117: 0 | BB117: 0 | BD117: OFF | BE117: 0 | BF117: 0 | BH117: OFF | BI117: 0 | BJ117: 0 | BL117: OFF | BM117: 0 | BN117: 0 | BP117: OFF | BQ117: 0 | BR117: 0 | BT117: OFF | BU117: 0 | BV117: 0 | BX117: OFF | BY117: 0 | BZ117: 0 | CB117: OFF | CC117: 0 | CD117: 0 | CF117: OFF | CG117: 0 | CH117: 0 | CJ117: OFF | CK117: 0 | CL117: 0
Y118: 2014-01-05 | Z118: 14:00:00 | AA118: 平日 | AB118: OFF | AC118: 0 | AD118: 0 | AF118: OFF | AG118: 0 | AH118: 0 | AJ118: OFF | AK118: 0 | AL118: 0 | AN118: OFF | AO118: 0 | AP118: 0 | AR118: OFF | AS118: 0 | AT118: 0 | AV118: OFF | AW118: 0 | AX118: 0 | AZ118: OFF | BA118: 0 | BB118: 0 | BD118: OFF | BE118: 0 | BF118: 0 | BH118: OFF | BI118: 0 | BJ118: 0 | BL118: OFF | BM118: 0 | BN118: 0 | BP118: OFF | BQ118: 0 | BR118: 0 | BT118: OFF | BU118: 0 | BV118: 0 | BX118: OFF | BY118: 0 | BZ118: 0 | CB118: OFF | CC118: 0 | CD118: 0 | CF118: OFF | CG118: 0 | CH118: 0 | CJ118: OFF | CK118: 0 | CL118: 0
Y119: 2014-01-05 | Z119: 15:00:00 | AA119: 平日 | AB119: ON | AC119: 13383.37 | AD119: 0 | AF119: ON | AG119: 5253.34 | AH119: 0 | AJ119: ON | AK119: 1632.05 | AL119: 0 | AN119: ON | AO119: 0 | AP119: 0 | AR119: ON | AS119: 13834.59 | AT119: 0 | AV119: ON | AW119: 8145.07 | AX119: 0 | AZ119: ON | BA119: 5192.2 | BB119: 0 | BD119: ON | BE119: 2548.31 | BF119: 0 | BH119: OFF | BI119: 0 | BJ119: 0 | BL119: OFF | BM119: 0 | BN119: 0 | BP119: OFF | BQ119: 0 | BR119: 0 | BT119: OFF | BU119: 0 | BV119: 0 | BX119: OFF | BY119: 0 | BZ119: 0 | CB119: OFF | CC119: 0 | CD119: 0 | CF119: OFF | CG119: 0 | CH119: 0 | CJ119: OFF | CK119: 0 | CL119: 0
Y120: 2014-01-05 | Z120: 16:00:00 | AA120: 平日 | AB120: ON | AC120: 8307.9 | AD120: 0 | AF120: ON | AG120: 5644.4 | AH120: 0 | AJ120: ON | AK120: 3149.27 | AL120: 0 | AN120: ON | AO120: 0 | AP120: 0 | AR120: ON | AS120: 8732.85 | AT120: 0 | AV120: ON | AW120: 6591.98 | AX120: 0 | AZ120: ON | BA120: 4501.71 | BB120: 0 | BD120: ON | BE120: 2795.97 | BF120: 0 | BH120: OFF | BI120: 0 | BJ120: 0 | BL120: OFF | BM120: 0 | BN120: 0 | BP120: OFF | BQ120: 0 | BR120: 0 | BT120: OFF | BU120: 0 | BV120: 0 | BX120: OFF | BY120: 0 | BZ120: 0 | CB120: OFF | CC120: 0 | CD120: 0 | CF120: OFF | CG120: 0 | CH120: 0 | CJ120: OFF | CK120: 0 | CL120: 0
Y121: 2014-01-05 | Z121: 17:00:00 | AA121: 平日 | AB121: ON | AC121: 10499.92 | AD121: 0 | AF121: ON | AG121: 8898.01 | AH121: 0 | AJ121: ON | AK121: 6384.55 | AL121: 0 | AN121: ON | AO121: 3475.23 | AP121: 0 | AR121: ON | AS121: 10893.41 | AT121: 0 | AV121: ON | AW121: 9279.64 | AX121: 0 | AZ121: ON | BA121: 7111.72 | BB121: 0 | BD121: ON | BE121: 5682.77 | BF121: 0 | BH121: OFF | BI121: 0 | BJ121: 0 | BL121: OFF | BM121: 0 | BN121: 0 | BP121: OFF | BQ121: 0 | BR121: 0 | BT121: OFF | BU121: 0 | BV121: 0 | BX121: OFF | BY121: 0 | BZ121: 0 | CB121: OFF | CC121: 0 | CD121: 0 | CF121: OFF | CG121: 0 | CH121: 0 | CJ121: OFF | CK121: 0 | CL121: 0
Y122: 2014-01-05 | Z122: 18:00:00 | AA122: 平日 | AB122: ON | AC122: 10855.54 | AD122: 0 | AF122: ON | AG122: 9717.3 | AH122: 0 | AJ122: ON | AK122: 7153.95 | AL122: 0 | AN122: ON | AO122: 5769.61 | AP122: 0 | AR122: ON | AS122: 11156.96 | AT122: 0 | AV122: ON | AW122: 9760.65 | AX122: 0 | AZ122: ON | BA122: 7503.16 | BB122: 0 | BD122: ON | BE122: 6257.42 | BF122: 0 | BH122: OFF | BI122: 0 | BJ122: 0 | BL122: OFF | BM122: 0 | BN122: 0 | BP122: OFF | BQ122: 0 | BR122: 0 | BT122: OFF | BU122: 0 | BV122: 0 | BX122: OFF | BY122: 0 | BZ122: 0 | CB122: OFF | CC122: 0 | CD122: 0 | CF122: OFF | CG122: 0 | CH122: 0 | CJ122: OFF | CK122: 0 | CL122: 0
Y123: 2014-01-05 | Z123: 19:00:00 | AA123: 平日 | AB123: ON | AC123: 8423.65 | AD123: 0 | AF123: ON | AG123: 7561.63 | AH123: 0 | AJ123: ON | AK123: 4948.02 | AL123: 0 | AN123: ON | AO123: 3987.43 | AP123: 0 | AR123: ON | AS123: 8696.94 | AT123: 0 | AV123: ON | AW123: 7440.76 | AX123: 0 | AZ123: ON | BA123: 5101.62 | BB123: 0 | BD123: ON | BE123: 3976.56 | BF123: 0 | BH123: OFF | BI123: 0 | BJ123: 0 | BL123: OFF | BM123: 0 | BN123: 0 | BP123: OFF | BQ123: 0 | BR123: 0 | BT123: OFF | BU123: 0 | BV123: 0 | BX123: OFF | BY123: 0 | BZ123: 0 | CB123: OFF | CC123: 0 | CD123: 0 | CF123: OFF | CG123: 0 | CH123: 0 | CJ123: OFF | CK123: 0 | CL123: 0
Y124: 2014-01-05 | Z124: 20:00:00 | AA124: 平日 | AB124: ON | AC124: 9152.68 | AD124: 0 | AF124: ON | AG124: 8483.53 | AH124: 0 | AJ124: ON | AK124: 5792.7 | AL124: 0 | AN124: ON | AO124: 5093.04 | AP124: 0 | AR124: ON | AS124: 9356.29 | AT124: 0 | AV124: ON | AW124: 8216.21 | AX124: 0 | AZ124: ON | BA124: 5778.98 | BB124: 0 | BD124: ON | BE124: 4753.41 | BF124: 0 | BH124: OFF | BI124: 0 | BJ124: 0 | BL124: OFF | BM124: 0 | BN124: 0 | BP124: OFF | BQ124: 0 | BR124: 0 | BT124: OFF | BU124: 0 | BV124: 0 | BX124: OFF | BY124: 0 | BZ124: 0 | CB124: OFF | CC124: 0 | CD124: 0 | CF124: OFF | CG124: 0 | CH124: 0 | CJ124: OFF | CK124: 0 | CL124: 0
Y125: 2014-01-05 | Z125: 21:00:00 | AA125: 平日 | AB125: ON | AC125: 9504.69 | AD125: 0 | AF125: ON | AG125: 8976.16 | AH125: 0 | AJ125: ON | AK125: 6277.51 | AL125: 0 | AN125: ON | AO125: 5754.41 | AP125: 0 | AR125: ON | AS125: 9677.46 | AT125: 0 | AV125: ON | AW125: 8637.1 | AX125: 0 | AZ125: ON | BA125: 6160.45 | BB125: 0 | BD125: ON | BE125: 5221.29 | BF125: 0 | BH125: OFF | BI125: 0 | BJ125: 0 | BL125: OFF | BM125: 0 | BN125: 0 | BP125: OFF | BQ125: 0 | BR125: 0 | BT125: OFF | BU125: 0 | BV125: 0 | BX125: OFF | BY125: 0 | BZ125: 0 | CB125: OFF | CC125: 0 | CD125: 0 | CF125: OFF | CG125: 0 | CH125: 0 | CJ125: OFF | CK125: 0 | CL125: 0
Y126: 2014-01-05 | Z126: 22:00:00 | AA126: 平日 | AB126: ON | AC126: 10047.78 | AD126: 0 | AF126: ON | AG126: 9626.04 | AH126: 0 | AJ126: ON | AK126: 6869.94 | AL126: 0 | AN126: ON | AO126: 6476.52 | AP126: 0 | AR126: ON | AS126: 10138.09 | AT126: 0 | AV126: ON | AW126: 9190.81 | AX126: 0 | AZ126: ON | BA126: 6638.14 | BB126: 0 | BD126: ON | BE126: 5781.63 | BF126: 0 | BH126: OFF | BI126: 0 | BJ126: 0 | BL126: OFF | BM126: 0 | BN126: 0 | BP126: OFF | BQ126: 0 | BR126: 0 | BT126: OFF | BU126: 0 | BV126: 0 | BX126: OFF | BY126: 0 | BZ126: 0 | CB126: OFF | CC126: 0 | CD126: 0 | CF126: OFF | CG126: 0 | CH126: 0 | CJ126: OFF | CK126: 0 | CL126: 0
Y127: 2014-01-05 | Z127: 23:00:00 | AA127: 平日 | AB127: OFF | AC127: 0 | AD127: 0 | AF127: OFF | AG127: 0 | AH127: 0 | AJ127: OFF | AK127: 0 | AL127: 0 | AN127: OFF | AO127: 0 | AP127: 0 | AR127: OFF | AS127: 0 | AT127: 0 | AV127: OFF | AW127: 0 | AX127: 0 | AZ127: OFF | BA127: 0 | BB127: 0 | BD127: OFF | BE127: 0 | BF127: 0 | BH127: OFF | BI127: 0 | BJ127: 0 | BL127: OFF | BM127: 0 | BN127: 0 | BP127: OFF | BQ127: 0 | BR127: 0 | BT127: OFF | BU127: 0 | BV127: 0 | BX127: OFF | BY127: 0 | BZ127: 0 | CB127: OFF | CC127: 0 | CD127: 0 | CF127: OFF | CG127: 0 | CH127: 0 | CJ127: OFF | CK127: 0 | CL127: 0
Y128: 2014-01-06 | Z128: 00:00:00 | AA128: 平日 | AB128: OFF | AC128: 0 | AD128: 0 | AF128: OFF | AG128: 0 | AH128: 0 | AJ128: OFF | AK128: 0 | AL128: 0 | AN128: OFF | AO128: 0 | AP128: 0 | AR128: OFF | AS128: 0 | AT128: 0 | AV128: OFF | AW128: 0 | AX128: 0 | AZ128: OFF | BA128: 0 | BB128: 0 | BD128: OFF | BE128: 0 | BF128: 0 | BH128: OFF | BI128: 0 | BJ128: 0 | BL128: OFF | BM128: 0 | BN128: 0 | BP128: OFF | BQ128: 0 | BR128: 0 | BT128: OFF | BU128: 0 | BV128: 0 | BX128: OFF | BY128: 0 | BZ128: 0 | CB128: OFF | CC128: 0 | CD128: 0 | CF128: OFF | CG128: 0 | CH128: 0 | CJ128: OFF | CK128: 0 | CL128: 0
Y129: 2014-01-06 | Z129: 01:00:00 | AA129: 平日 | AB129: OFF | AC129: 0 | AD129: 0 | AF129: OFF | AG129: 0 | AH129: 0 | AJ129: OFF | AK129: 0 | AL129: 0 | AN129: OFF | AO129: 0 | AP129: 0 | AR129: OFF | AS129: 0 | AT129: 0 | AV129: OFF | AW129: 0 | AX129: 0 | AZ129: OFF | BA129: 0 | BB129: 0 | BD129: OFF | BE129: 0 | BF129: 0 | BH129: OFF | BI129: 0 | BJ129: 0 | BL129: OFF | BM129: 0 | BN129: 0 | BP129: OFF | BQ129: 0 | BR129: 0 | BT129: OFF | BU129: 0 | BV129: 0 | BX129: OFF | BY129: 0 | BZ129: 0 | CB129: OFF | CC129: 0 | CD129: 0 | CF129: OFF | CG129: 0 | CH129: 0 | CJ129: OFF | CK129: 0 | CL129: 0
Y130: 2014-01-06 | Z130: 02:00:00 | AA130: 平日 | AB130: OFF | AC130: 0 | AD130: 0 | AF130: OFF | AG130: 0 | AH130: 0 | AJ130: OFF | AK130: 0 | AL130: 0 | AN130: OFF | AO130: 0 | AP130: 0 | AR130: OFF | AS130: 0 | AT130: 0 | AV130: OFF | AW130: 0 | AX130: 0 | AZ130: OFF | BA130: 0 | BB130: 0 | BD130: OFF | BE130: 0 | BF130: 0 | BH130: OFF | BI130: 0 | BJ130: 0 | BL130: OFF | BM130: 0 | BN130: 0 | BP130: OFF | BQ130: 0 | BR130: 0 | BT130: OFF | BU130: 0 | BV130: 0 | BX130: OFF | BY130: 0 | BZ130: 0 | CB130: OFF | CC130: 0 | CD130: 0 | CF130: OFF | CG130: 0 | CH130: 0 | CJ130: OFF | CK130: 0 | CL130: 0
Y131: 2014-01-06 | Z131: 03:00:00 | AA131: 平日 | AB131: OFF | AC131: 0 | AD131: 0 | AF131: OFF | AG131: 0 | AH131: 0 | AJ131: OFF | AK131: 0 | AL131: 0 | AN131: OFF | AO131: 0 | AP131: 0 | AR131: OFF | AS131: 0 | AT131: 0 | AV131: OFF | AW131: 0 | AX131: 0 | AZ131: OFF | BA131: 0 | BB131: 0 | BD131: OFF | BE131: 0 | BF131: 0 | BH131: OFF | BI131: 0 | BJ131: 0 | BL131: OFF | BM131: 0 | BN131: 0 | BP131: OFF | BQ131: 0 | BR131: 0 | BT131: OFF | BU131: 0 | BV131: 0 | BX131: OFF | BY131: 0 | BZ131: 0 | CB131: OFF | CC131: 0 | CD131: 0 | CF131: OFF | CG131: 0 | CH131: 0 | CJ131: OFF | CK131: 0 | CL131: 0
Y132: 2014-01-06 | Z132: 04:00:00 | AA132: 平日 | AB132: OFF | AC132: 0 | AD132: 0 | AF132: OFF | AG132: 0 | AH132: 0 | AJ132: OFF | AK132: 0 | AL132: 0 | AN132: OFF | AO132: 0 | AP132: 0 | AR132: OFF | AS132: 0 | AT132: 0 | AV132: OFF | AW132: 0 | AX132: 0 | AZ132: OFF | BA132: 0 | BB132: 0 | BD132: OFF | BE132: 0 | BF132: 0 | BH132: OFF | BI132: 0 | BJ132: 0 | BL132: OFF | BM132: 0 | BN132: 0 | BP132: OFF | BQ132: 0 | BR132: 0 | BT132: OFF | BU132: 0 | BV132: 0 | BX132: OFF | BY132: 0 | BZ132: 0 | CB132: OFF | CC132: 0 | CD132: 0 | CF132: OFF | CG132: 0 | CH132: 0 | CJ132: OFF | CK132: 0 | CL132: 0
Y133: 2014-01-06 | Z133: 05:00:00 | AA133: 平日 | AB133: ON | AC133: 29557.3 | AD133: 0 | AF133: ON | AG133: 29096.99 | AH133: 0 | AJ133: ON | AK133: 24341.11 | AL133: 0 | AN133: ON | AO133: 24013.67 | AP133: 0 | AR133: ON | AS133: 25722.15 | AT133: 0 | AV133: ON | AW133: 24373.34 | AX133: 0 | AZ133: ON | BA133: 19287.11 | BB133: 0 | BD133: ON | BE133: 18021.08 | BF133: 0 | BH133: OFF | BI133: 0 | BJ133: 0 | BL133: OFF | BM133: 0 | BN133: 0 | BP133: OFF | BQ133: 0 | BR133: 0 | BT133: OFF | BU133: 0 | BV133: 0 | BX133: OFF | BY133: 0 | BZ133: 0 | CB133: OFF | CC133: 0 | CD133: 0 | CF133: OFF | CG133: 0 | CH133: 0 | CJ133: OFF | CK133: 0 | CL133: 0
Y134: 2014-01-06 | Z134: 06:00:00 | AA134: 平日 | AB134: ON | AC134: 13349.91 | AD134: 0 | AF134: ON | AG134: 13160.84 | AH134: 0 | AJ134: ON | AK134: 10397.15 | AL134: 0 | AN134: ON | AO134: 10290.09 | AP134: 0 | AR134: ON | AS134: 12596.31 | AT134: 0 | AV134: ON | AW134: 11938.1 | AX134: 0 | AZ134: ON | BA134: 8903.01 | BB134: 0 | BD134: ON | BE134: 8299.11 | BF134: 0 | BH134: OFF | BI134: 0 | BJ134: 0 | BL134: OFF | BM134: 0 | BN134: 0 | BP134: OFF | BQ134: 0 | BR134: 0 | BT134: OFF | BU134: 0 | BV134: 0 | BX134: OFF | BY134: 0 | BZ134: 0 | CB134: OFF | CC134: 0 | CD134: 0 | CF134: OFF | CG134: 0 | CH134: 0 | CJ134: OFF | CK134: 0 | CL134: 0
Y135: 2014-01-06 | Z135: 07:00:00 | AA135: 平日 | AB135: ON | AC135: 11520.35 | AD135: 0 | AF135: ON | AG135: 8645.71 | AH135: 0 | AJ135: ON | AK135: 6137.52 | AL135: 0 | AN135: ON | AO135: 5336.83 | AP135: 0 | AR135: ON | AS135: 11427.13 | AT135: 0 | AV135: ON | AW135: 8933.36 | AX135: 0 | AZ135: ON | BA135: 6166.96 | BB135: 0 | BD135: ON | BE135: 5650 | BF135: 0 | BH135: OFF | BI135: 0 | BJ135: 0 | BL135: OFF | BM135: 0 | BN135: 0 | BP135: OFF | BQ135: 0 | BR135: 0 | BT135: OFF | BU135: 0 | BV135: 0 | BX135: OFF | BY135: 0 | BZ135: 0 | CB135: OFF | CC135: 0 | CD135: 0 | CF135: OFF | CG135: 0 | CH135: 0 | CJ135: OFF | CK135: 0 | CL135: 0
Y136: 2014-01-06 | Z136: 08:00:00 | AA136: 平日 | AB136: ON | AC136: 9555.47 | AD136: 0 | AF136: ON | AG136: 4352.56 | AH136: 0 | AJ136: ON | AK136: 2097.49 | AL136: 0 | AN136: ON | AO136: 98.89 | AP136: 0 | AR136: ON | AS136: 9922 | AT136: 0 | AV136: ON | AW136: 5922 | AX136: 0 | AZ136: ON | BA136: 3489.85 | BB136: 0 | BD136: ON | BE136: 2664.16 | BF136: 0 | BH136: OFF | BI136: 0 | BJ136: 0 | BL136: OFF | BM136: 0 | BN136: 0 | BP136: OFF | BQ136: 0 | BR136: 0 | BT136: OFF | BU136: 0 | BV136: 0 | BX136: OFF | BY136: 0 | BZ136: 0 | CB136: OFF | CC136: 0 | CD136: 0 | CF136: OFF | CG136: 0 | CH136: 0 | CJ136: OFF | CK136: 0 | CL136: 0
Y137: 2014-01-06 | Z137: 09:00:00 | AA137: 平日 | AB137: OFF | AC137: 0 | AD137: 0 | AF137: OFF | AG137: 0 | AH137: 0 | AJ137: OFF | AK137: 0 | AL137: 0 | AN137: OFF | AO137: 0 | AP137: 0 | AR137: OFF | AS137: 0 | AT137: 0 | AV137: OFF | AW137: 0 | AX137: 0 | AZ137: OFF | BA137: 0 | BB137: 0 | BD137: OFF | BE137: 0 | BF137: 0 | BH137: OFF | BI137: 0 | BJ137: 0 | BL137: OFF | BM137: 0 | BN137: 0 | BP137: OFF | BQ137: 0 | BR137: 0 | BT137: OFF | BU137: 0 | BV137: 0 | BX137: OFF | BY137: 0 | BZ137: 0 | CB137: OFF | CC137: 0 | CD137: 0 | CF137: OFF | CG137: 0 | CH137: 0 | CJ137: OFF | CK137: 0 | CL137: 0
Y138: 2014-01-06 | Z138: 10:00:00 | AA138: 平日 | AB138: OFF | AC138: 0 | AD138: 0 | AF138: OFF | AG138: 0 | AH138: 0 | AJ138: OFF | AK138: 0 | AL138: 0 | AN138: OFF | AO138: 0 | AP138: 0 | AR138: OFF | AS138: 0 | AT138: 0 | AV138: OFF | AW138: 0 | AX138: 0 | AZ138: OFF | BA138: 0 | BB138: 0 | BD138: OFF | BE138: 0 | BF138: 0 | BH138: OFF | BI138: 0 | BJ138: 0 | BL138: OFF | BM138: 0 | BN138: 0 | BP138: OFF | BQ138: 0 | BR138: 0 | BT138: OFF | BU138: 0 | BV138: 0 | BX138: OFF | BY138: 0 | BZ138: 0 | CB138: OFF | CC138: 0 | CD138: 0 | CF138: OFF | CG138: 0 | CH138: 0 | CJ138: OFF | CK138: 0 | CL138: 0
Y139: 2014-01-06 | Z139: 11:00:00 | AA139: 平日 | AB139: ON | AC139: 15576.96 | AD139: 0 | AF139: ON | AG139: 3255.47 | AH139: 0 | AJ139: ON | AK139: 0 | AL139: 0 | AN139: ON | AO139: 0 | AP139: 0 | AR139: ON | AS139: 15967.08 | AT139: 0 | AV139: ON | AW139: 7338.91 | AX139: 0 | AZ139: ON | BA139: 3960.86 | BB139: 0 | BD139: ON | BE139: 757.57 | BF139: 0 | BH139: OFF | BI139: 0 | BJ139: 0 | BL139: OFF | BM139: 0 | BN139: 0 | BP139: OFF | BQ139: 0 | BR139: 0 | BT139: OFF | BU139: 0 | BV139: 0 | BX139: OFF | BY139: 0 | BZ139: 0 | CB139: OFF | CC139: 0 | CD139: 0 | CF139: OFF | CG139: 0 | CH139: 0 | CJ139: OFF | CK139: 0 | CL139: 0
Y140: 2014-01-06 | Z140: 12:00:00 | AA140: 平日 | AB140: ON | AC140: 7583.19 | AD140: 0 | AF140: ON | AG140: 0 | AH140: 0 | AJ140: ON | AK140: 0 | AL140: 0 | AN140: ON | AO140: 0 | AP140: 0 | AR140: ON | AS140: 8451.13 | AT140: 0 | AV140: ON | AW140: 2332.13 | AX140: 0 | AZ140: ON | BA140: 317.3 | BB140: 0 | BD140: ON | BE140: 0 | BF140: 0 | BH140: OFF | BI140: 0 | BJ140: 0 | BL140: OFF | BM140: 0 | BN140: 0 | BP140: OFF | BQ140: 0 | BR140: 0 | BT140: OFF | BU140: 0 | BV140: 0 | BX140: OFF | BY140: 0 | BZ140: 0 | CB140: OFF | CC140: 0 | CD140: 0 | CF140: OFF | CG140: 0 | CH140: 0 | CJ140: OFF | CK140: 0 | CL140: 0
Y141: 2014-01-06 | Z141: 13:00:00 | AA141: 平日 | AB141: OFF | AC141: 0 | AD141: 0 | AF141: OFF | AG141: 0 | AH141: 0 | AJ141: OFF | AK141: 0 | AL141: 0 | AN141: OFF | AO141: 0 | AP141: 0 | AR141: OFF | AS141: 0 | AT141: 0 | AV141: OFF | AW141: 0 | AX141: 0 | AZ141: OFF | BA141: 0 | BB141: 0 | BD141: OFF | BE141: 0 | BF141: 0 | BH141: OFF | BI141: 0 | BJ141: 0 | BL141: OFF | BM141: 0 | BN141: 0 | BP141: OFF | BQ141: 0 | BR141: 0 | BT141: OFF | BU141: 0 | BV141: 0 | BX141: OFF | BY141: 0 | BZ141: 0 | CB141: OFF | CC141: 0 | CD141: 0 | CF141: OFF | CG141: 0 | CH141: 0 | CJ141: OFF | CK141: 0 | CL141: 0
Y142: 2014-01-06 | Z142: 14:00:00 | AA142: 平日 | AB142: OFF | AC142: 0 | AD142: 0 | AF142: OFF | AG142: 0 | AH142: 0 | AJ142: OFF | AK142: 0 | AL142: 0 | AN142: OFF | AO142: 0 | AP142: 0 | AR142: OFF | AS142: 0 | AT142: 0 | AV142: OFF | AW142: 0 | AX142: 0 | AZ142: OFF | BA142: 0 | BB142: 0 | BD142: OFF | BE142: 0 | BF142: 0 | BH142: OFF | BI142: 0 | BJ142: 0 | BL142: OFF | BM142: 0 | BN142: 0 | BP142: OFF | BQ142: 0 | BR142: 0 | BT142: OFF | BU142: 0 | BV142: 0 | BX142: OFF | BY142: 0 | BZ142: 0 | CB142: OFF | CC142: 0 | CD142: 0 | CF142: OFF | CG142: 0 | CH142: 0 | CJ142: OFF | CK142: 0 | CL142: 0
Y143: 2014-01-06 | Z143: 15:00:00 | AA143: 平日 | AB143: ON | AC143: 14187.5 | AD143: 0 | AF143: ON | AG143: 3230.43 | AH143: 0 | AJ143: ON | AK143: 0 | AL143: 0 | AN143: ON | AO143: 0 | AP143: 0 | AR143: ON | AS143: 14875.33 | AT143: 0 | AV143: ON | AW143: 6765.15 | AX143: 0 | AZ143: ON | BA143: 3311.86 | BB143: 0 | BD143: ON | BE143: 0 | BF143: 0 | BH143: OFF | BI143: 0 | BJ143: 0 | BL143: OFF | BM143: 0 | BN143: 0 | BP143: OFF | BQ143: 0 | BR143: 0 | BT143: OFF | BU143: 0 | BV143: 0 | BX143: OFF | BY143: 0 | BZ143: 0 | CB143: OFF | CC143: 0 | CD143: 0 | CF143: OFF | CG143: 0 | CH143: 0 | CJ143: OFF | CK143: 0 | CL143: 0
Y144: 2014-01-06 | Z144: 16:00:00 | AA144: 平日 | AB144: ON | AC144: 8943.22 | AD144: 0 | AF144: ON | AG144: 5343.52 | AH144: 0 | AJ144: ON | AK144: 1330.99 | AL144: 0 | AN144: ON | AO144: 0 | AP144: 0 | AR144: ON | AS144: 9489.83 | AT144: 0 | AV144: ON | AW144: 6244.73 | AX144: 0 | AZ144: ON | BA144: 3830.28 | BB144: 0 | BD144: ON | BE144: 0 | BF144: 0 | BH144: OFF | BI144: 0 | BJ144: 0 | BL144: OFF | BM144: 0 | BN144: 0 | BP144: OFF | BQ144: 0 | BR144: 0 | BT144: OFF | BU144: 0 | BV144: 0 | BX144: OFF | BY144: 0 | BZ144: 0 | CB144: OFF | CC144: 0 | CD144: 0 | CF144: OFF | CG144: 0 | CH144: 0 | CJ144: OFF | CK144: 0 | CL144: 0
Y145: 2014-01-06 | Z145: 17:00:00 | AA145: 平日 | AB145: ON | AC145: 11203.06 | AD145: 0 | AF145: ON | AG145: 8972.21 | AH145: 0 | AJ145: ON | AK145: 5970.9 | AL145: 0 | AN145: ON | AO145: 0 | AP145: 0 | AR145: ON | AS145: 11708.64 | AT145: 0 | AV145: ON | AW145: 9160.53 | AX145: 0 | AZ145: ON | BA145: 6695.09 | BB145: 0 | BD145: ON | BE145: 4001.74 | BF145: 0 | BH145: OFF | BI145: 0 | BJ145: 0 | BL145: OFF | BM145: 0 | BN145: 0 | BP145: OFF | BQ145: 0 | BR145: 0 | BT145: OFF | BU145: 0 | BV145: 0 | BX145: OFF | BY145: 0 | BZ145: 0 | CB145: OFF | CC145: 0 | CD145: 0 | CF145: OFF | CG145: 0 | CH145: 0 | CJ145: OFF | CK145: 0 | CL145: 0
Y146: 2014-01-06 | Z146: 18:00:00 | AA146: 平日 | AB146: ON | AC146: 11532.75 | AD146: 0 | AF146: ON | AG146: 9930.53 | AH146: 0 | AJ146: ON | AK146: 7020.23 | AL146: 0 | AN146: ON | AO146: 2844.29 | AP146: 0 | AR146: ON | AS146: 11942.54 | AT146: 0 | AV146: ON | AW146: 9718.22 | AX146: 0 | AZ146: ON | BA146: 7177.39 | BB146: 0 | BD146: ON | BE146: 4890.62 | BF146: 0 | BH146: OFF | BI146: 0 | BJ146: 0 | BL146: OFF | BM146: 0 | BN146: 0 | BP146: OFF | BQ146: 0 | BR146: 0 | BT146: OFF | BU146: 0 | BV146: 0 | BX146: OFF | BY146: 0 | BZ146: 0 | CB146: OFF | CC146: 0 | CD146: 0 | CF146: OFF | CG146: 0 | CH146: 0 | CJ146: OFF | CK146: 0 | CL146: 0
Y147: 2014-01-06 | Z147: 19:00:00 | AA147: 平日 | AB147: ON | AC147: 8963.38 | AD147: 0 | AF147: ON | AG147: 7746.47 | AH147: 0 | AJ147: ON | AK147: 4850.94 | AL147: 0 | AN147: ON | AO147: 2790.32 | AP147: 0 | AR147: ON | AS147: 9344.91 | AT147: 0 | AV147: ON | AW147: 7338.72 | AX147: 0 | AZ147: ON | BA147: 4719.68 | BB147: 0 | BD147: ON | BE147: 2655.73 | BF147: 0 | BH147: OFF | BI147: 0 | BJ147: 0 | BL147: OFF | BM147: 0 | BN147: 0 | BP147: OFF | BQ147: 0 | BR147: 0 | BT147: OFF | BU147: 0 | BV147: 0 | BX147: OFF | BY147: 0 | BZ147: 0 | CB147: OFF | CC147: 0 | CD147: 0 | CF147: OFF | CG147: 0 | CH147: 0 | CJ147: OFF | CK147: 0 | CL147: 0
Y148: 2014-01-06 | Z148: 20:00:00 | AA148: 平日 | AB148: ON | AC148: 9453.7 | AD148: 0 | AF148: ON | AG148: 8510.56 | AH148: 0 | AJ148: ON | AK148: 5630.19 | AL148: 0 | AN148: ON | AO148: 4195.98 | AP148: 0 | AR148: ON | AS148: 9783.05 | AT148: 0 | AV148: ON | AW148: 7961.58 | AX148: 0 | AZ148: ON | BA148: 5295.31 | BB148: 0 | BD148: ON | BE148: 3410.99 | BF148: 0 | BH148: OFF | BI148: 0 | BJ148: 0 | BL148: OFF | BM148: 0 | BN148: 0 | BP148: OFF | BQ148: 0 | BR148: 0 | BT148: OFF | BU148: 0 | BV148: 0 | BX148: OFF | BY148: 0 | BZ148: 0 | CB148: OFF | CC148: 0 | CD148: 0 | CF148: OFF | CG148: 0 | CH148: 0 | CJ148: OFF | CK148: 0 | CL148: 0
Y149: 2014-01-06 | Z149: 21:00:00 | AA149: 平日 | AB149: ON | AC149: 9819 | AD149: 0 | AF149: ON | AG149: 9077.39 | AH149: 0 | AJ149: ON | AK149: 6217.13 | AL149: 0 | AN149: ON | AO149: 5164.33 | AP149: 0 | AR149: ON | AS149: 10123.75 | AT149: 0 | AV149: ON | AW149: 8462.83 | AX149: 0 | AZ149: ON | BA149: 5761.59 | BB149: 0 | BD149: ON | BE149: 4032.31 | BF149: 0 | BH149: OFF | BI149: 0 | BJ149: 0 | BL149: OFF | BM149: 0 | BN149: 0 | BP149: OFF | BQ149: 0 | BR149: 0 | BT149: OFF | BU149: 0 | BV149: 0 | BX149: OFF | BY149: 0 | BZ149: 0 | CB149: OFF | CC149: 0 | CD149: 0 | CF149: OFF | CG149: 0 | CH149: 0 | CJ149: OFF | CK149: 0 | CL149: 0
Y150: 2014-01-06 | Z150: 22:00:00 | AA150: 平日 | AB150: ON | AC150: 9998.84 | AD150: 0 | AF150: ON | AG150: 9410.74 | AH150: 0 | AJ150: ON | AK150: 6594.4 | AL150: 0 | AN150: ON | AO150: 5801.88 | AP150: 0 | AR150: ON | AS150: 10250.85 | AT150: 0 | AV150: ON | AW150: 8740.52 | AX150: 0 | AZ150: ON | BA150: 6040.54 | BB150: 0 | BD150: ON | BE150: 4458 | BF150: 0 | BH150: OFF | BI150: 0 | BJ150: 0 | BL150: OFF | BM150: 0 | BN150: 0 | BP150: OFF | BQ150: 0 | BR150: 0 | BT150: OFF | BU150: 0 | BV150: 0 | BX150: OFF | BY150: 0 | BZ150: 0 | CB150: OFF | CC150: 0 | CD150: 0 | CF150: OFF | CG150: 0 | CH150: 0 | CJ150: OFF | CK150: 0 | CL150: 0
Y151: 2014-01-06 | Z151: 23:00:00 | AA151: 平日 | AB151: OFF | AC151: 0 | AD151: 0 | AF151: OFF | AG151: 0 | AH151: 0 | AJ151: OFF | AK151: 0 | AL151: 0 | AN151: OFF | AO151: 0 | AP151: 0 | AR151: OFF | AS151: 0 | AT151: 0 | AV151: OFF | AW151: 0 | AX151: 0 | AZ151: OFF | BA151: 0 | BB151: 0 | BD151: OFF | BE151: 0 | BF151: 0 | BH151: OFF | BI151: 0 | BJ151: 0 | BL151: OFF | BM151: 0 | BN151: 0 | BP151: OFF | BQ151: 0 | BR151: 0 | BT151: OFF | BU151: 0 | BV151: 0 | BX151: OFF | BY151: 0 | BZ151: 0 | CB151: OFF | CC151: 0 | CD151: 0 | CF151: OFF | CG151: 0 | CH151: 0 | CJ151: OFF | CK151: 0 | CL151: 0
Y152: 2014-01-07 | Z152: 00:00:00 | AA152: 休日 | AB152: OFF | AC152: 0 | AD152: 0 | AF152: OFF | AG152: 0 | AH152: 0 | AJ152: OFF | AK152: 0 | AL152: 0 | AN152: OFF | AO152: 0 | AP152: 0 | AR152: OFF | AS152: 0 | AT152: 0 | AV152: OFF | AW152: 0 | AX152: 0 | AZ152: OFF | BA152: 0 | BB152: 0 | BD152: OFF | BE152: 0 | BF152: 0 | BH152: OFF | BI152: 0 | BJ152: 0 | BL152: OFF | BM152: 0 | BN152: 0 | BP152: OFF | BQ152: 0 | BR152: 0 | BT152: OFF | BU152: 0 | BV152: 0 | BX152: OFF | BY152: 0 | BZ152: 0 | CB152: OFF | CC152: 0 | CD152: 0 | CF152: OFF | CG152: 0 | CH152: 0 | CJ152: OFF | CK152: 0 | CL152: 0
Y153: 2014-01-07 | Z153: 01:00:00 | AA153: 休日 | AB153: OFF | AC153: 0 | AD153: 0 | AF153: OFF | AG153: 0 | AH153: 0 | AJ153: OFF | AK153: 0 | AL153: 0 | AN153: OFF | AO153: 0 | AP153: 0 | AR153: OFF | AS153: 0 | AT153: 0 | AV153: OFF | AW153: 0 | AX153: 0 | AZ153: OFF | BA153: 0 | BB153: 0 | BD153: OFF | BE153: 0 | BF153: 0 | BH153: OFF | BI153: 0 | BJ153: 0 | BL153: OFF | BM153: 0 | BN153: 0 | BP153: OFF | BQ153: 0 | BR153: 0 | BT153: OFF | BU153: 0 | BV153: 0 | BX153: OFF | BY153: 0 | BZ153: 0 | CB153: OFF | CC153: 0 | CD153: 0 | CF153: OFF | CG153: 0 | CH153: 0 | CJ153: OFF | CK153: 0 | CL153: 0
Y154: 2014-01-07 | Z154: 02:00:00 | AA154: 休日 | AB154: OFF | AC154: 0 | AD154: 0 | AF154: OFF | AG154: 0 | AH154: 0 | AJ154: OFF | AK154: 0 | AL154: 0 | AN154: OFF | AO154: 0 | AP154: 0 | AR154: OFF | AS154: 0 | AT154: 0 | AV154: OFF | AW154: 0 | AX154: 0 | AZ154: OFF | BA154: 0 | BB154: 0 | BD154: OFF | BE154: 0 | BF154: 0 | BH154: OFF | BI154: 0 | BJ154: 0 | BL154: OFF | BM154: 0 | BN154: 0 | BP154: OFF | BQ154: 0 | BR154: 0 | BT154: OFF | BU154: 0 | BV154: 0 | BX154: OFF | BY154: 0 | BZ154: 0 | CB154: OFF | CC154: 0 | CD154: 0 | CF154: OFF | CG154: 0 | CH154: 0 | CJ154: OFF | CK154: 0 | CL154: 0
Y155: 2014-01-07 | Z155: 03:00:00 | AA155: 休日 | AB155: OFF | AC155: 0 | AD155: 0 | AF155: OFF | AG155: 0 | AH155: 0 | AJ155: OFF | AK155: 0 | AL155: 0 | AN155: OFF | AO155: 0 | AP155: 0 | AR155: OFF | AS155: 0 | AT155: 0 | AV155: OFF | AW155: 0 | AX155: 0 | AZ155: OFF | BA155: 0 | BB155: 0 | BD155: OFF | BE155: 0 | BF155: 0 | BH155: OFF | BI155: 0 | BJ155: 0 | BL155: OFF | BM155: 0 | BN155: 0 | BP155: OFF | BQ155: 0 | BR155: 0 | BT155: OFF | BU155: 0 | BV155: 0 | BX155: OFF | BY155: 0 | BZ155: 0 | CB155: OFF | CC155: 0 | CD155: 0 | CF155: OFF | CG155: 0 | CH155: 0 | CJ155: OFF | CK155: 0 | CL155: 0
Y156: 2014-01-07 | Z156: 04:00:00 | AA156: 休日 | AB156: OFF | AC156: 0 | AD156: 0 | AF156: OFF | AG156: 0 | AH156: 0 | AJ156: OFF | AK156: 0 | AL156: 0 | AN156: OFF | AO156: 0 | AP156: 0 | AR156: OFF | AS156: 0 | AT156: 0 | AV156: OFF | AW156: 0 | AX156: 0 | AZ156: OFF | BA156: 0 | BB156: 0 | BD156: OFF | BE156: 0 | BF156: 0 | BH156: OFF | BI156: 0 | BJ156: 0 | BL156: OFF | BM156: 0 | BN156: 0 | BP156: OFF | BQ156: 0 | BR156: 0 | BT156: OFF | BU156: 0 | BV156: 0 | BX156: OFF | BY156: 0 | BZ156: 0 | CB156: OFF | CC156: 0 | CD156: 0 | CF156: OFF | CG156: 0 | CH156: 0 | CJ156: OFF | CK156: 0 | CL156: 0
Y157: 2014-01-07 | Z157: 05:00:00 | AA157: 休日 | AB157: OFF | AC157: 0 | AD157: 0 | AF157: OFF | AG157: 0 | AH157: 0 | AJ157: OFF | AK157: 0 | AL157: 0 | AN157: OFF | AO157: 0 | AP157: 0 | AR157: OFF | AS157: 0 | AT157: 0 | AV157: OFF | AW157: 0 | AX157: 0 | AZ157: OFF | BA157: 0 | BB157: 0 | BD157: OFF | BE157: 0 | BF157: 0 | BH157: OFF | BI157: 0 | BJ157: 0 | BL157: OFF | BM157: 0 | BN157: 0 | BP157: OFF | BQ157: 0 | BR157: 0 | BT157: OFF | BU157: 0 | BV157: 0 | BX157: OFF | BY157: 0 | BZ157: 0 | CB157: OFF | CC157: 0 | CD157: 0 | CF157: OFF | CG157: 0 | CH157: 0 | CJ157: OFF | CK157: 0 | CL157: 0
Y158: 2014-01-07 | Z158: 06:00:00 | AA158: 休日 | AB158: OFF | AC158: 0 | AD158: 0 | AF158: OFF | AG158: 0 | AH158: 0 | AJ158: OFF | AK158: 0 | AL158: 0 | AN158: OFF | AO158: 0 | AP158: 0 | AR158: OFF | AS158: 0 | AT158: 0 | AV158: OFF | AW158: 0 | AX158: 0 | AZ158: OFF | BA158: 0 | BB158: 0 | BD158: OFF | BE158: 0 | BF158: 0 | BH158: OFF | BI158: 0 | BJ158: 0 | BL158: OFF | BM158: 0 | BN158: 0 | BP158: OFF | BQ158: 0 | BR158: 0 | BT158: OFF | BU158: 0 | BV158: 0 | BX158: OFF | BY158: 0 | BZ158: 0 | CB158: OFF | CC158: 0 | CD158: 0 | CF158: OFF | CG158: 0 | CH158: 0 | CJ158: OFF | CK158: 0 | CL158: 0
Y159: 2014-01-07 | Z159: 07:00:00 | AA159: 休日 | AB159: ON | AC159: 30029.13 | AD159: 0 | AF159: ON | AG159: 29094.8 | AH159: 0 | AJ159: ON | AK159: 24618.71 | AL159: 0 | AN159: ON | AO159: 23901.43 | AP159: 0 | AR159: ON | AS159: 26251.22 | AT159: 0 | AV159: ON | AW159: 23991.69 | AX159: 0 | AZ159: ON | BA159: 18461.29 | BB159: 0 | BD159: ON | BE159: 16231.46 | BF159: 0 | BH159: OFF | BI159: 0 | BJ159: 0 | BL159: OFF | BM159: 0 | BN159: 0 | BP159: OFF | BQ159: 0 | BR159: 0 | BT159: OFF | BU159: 0 | BV159: 0 | BX159: OFF | BY159: 0 | BZ159: 0 | CB159: OFF | CC159: 0 | CD159: 0 | CF159: OFF | CG159: 0 | CH159: 0 | CJ159: OFF | CK159: 0 | CL159: 0
Y160: 2014-01-07 | Z160: 08:00:00 | AA160: 休日 | AB160: ON | AC160: 12083.66 | AD160: 0 | AF160: ON | AG160: 11316.99 | AH160: 0 | AJ160: ON | AK160: 8969.58 | AL160: 0 | AN160: ON | AO160: 8535.03 | AP160: 0 | AR160: ON | AS160: 12039.07 | AT160: 0 | AV160: ON | AW160: 10716.53 | AX160: 0 | AZ160: ON | BA160: 7731.52 | BB160: 0 | BD160: ON | BE160: 6617.48 | BF160: 0 | BH160: OFF | BI160: 0 | BJ160: 0 | BL160: OFF | BM160: 0 | BN160: 0 | BP160: OFF | BQ160: 0 | BR160: 0 | BT160: OFF | BU160: 0 | BV160: 0 | BX160: OFF | BY160: 0 | BZ160: 0 | CB160: OFF | CC160: 0 | CD160: 0 | CF160: OFF | CG160: 0 | CH160: 0 | CJ160: OFF | CK160: 0 | CL160: 0
Y161: 2014-01-07 | Z161: 09:00:00 | AA161: 休日 | AB161: ON | AC161: 8330.91 | AD161: 0 | AF161: ON | AG161: 5697.39 | AH161: 0 | AJ161: ON | AK161: 3803.65 | AL161: 0 | AN161: ON | AO161: 2815.82 | AP161: 0 | AR161: ON | AS161: 9274.4 | AT161: 0 | AV161: ON | AW161: 6728.44 | AX161: 0 | AZ161: ON | BA161: 4261.05 | BB161: 0 | BD161: ON | BE161: 3245.97 | BF161: 0 | BH161: OFF | BI161: 0 | BJ161: 0 | BL161: OFF | BM161: 0 | BN161: 0 | BP161: OFF | BQ161: 0 | BR161: 0 | BT161: OFF | BU161: 0 | BV161: 0 | BX161: OFF | BY161: 0 | BZ161: 0 | CB161: OFF | CC161: 0 | CD161: 0 | CF161: OFF | CG161: 0 | CH161: 0 | CJ161: OFF | CK161: 0 | CL161: 0
Y162: 2014-01-07 | Z162: 10:00:00 | AA162: 休日 | AB162: ON | AC162: 7289.88 | AD162: 0 | AF162: ON | AG162: 5545.13 | AH162: 0 | AJ162: ON | AK162: 3661.44 | AL162: 0 | AN162: ON | AO162: 2548.54 | AP162: 0 | AR162: ON | AS162: 8580.12 | AT162: 0 | AV162: ON | AW162: 6796.46 | AX162: 0 | AZ162: ON | BA162: 4513.24 | BB162: 0 | BD162: ON | BE162: 3305.15 | BF162: 0 | BH162: OFF | BI162: 0 | BJ162: 0 | BL162: OFF | BM162: 0 | BN162: 0 | BP162: OFF | BQ162: 0 | BR162: 0 | BT162: OFF | BU162: 0 | BV162: 0 | BX162: OFF | BY162: 0 | BZ162: 0 | CB162: OFF | CC162: 0 | CD162: 0 | CF162: OFF | CG162: 0 | CH162: 0 | CJ162: OFF | CK162: 0 | CL162: 0
Y163: 2014-01-07 | Z163: 11:00:00 | AA163: 休日 | AB163: ON | AC163: 7845.28 | AD163: 0 | AF163: ON | AG163: 6374.38 | AH163: 0 | AJ163: ON | AK163: 4512.08 | AL163: 0 | AN163: ON | AO163: 3551.21 | AP163: 0 | AR163: ON | AS163: 9231.3 | AT163: 0 | AV163: ON | AW163: 7634.53 | AX163: 0 | AZ163: ON | BA163: 5461.01 | BB163: 0 | BD163: ON | BE163: 4322.42 | BF163: 0 | BH163: OFF | BI163: 0 | BJ163: 0 | BL163: OFF | BM163: 0 | BN163: 0 | BP163: OFF | BQ163: 0 | BR163: 0 | BT163: OFF | BU163: 0 | BV163: 0 | BX163: OFF | BY163: 0 | BZ163: 0 | CB163: OFF | CC163: 0 | CD163: 0 | CF163: OFF | CG163: 0 | CH163: 0 | CJ163: OFF | CK163: 0 | CL163: 0
Y164: 2014-01-07 | Z164: 12:00:00 | AA164: 休日 | AB164: ON | AC164: 7044.22 | AD164: 0 | AF164: ON | AG164: 5655.14 | AH164: 0 | AJ164: ON | AK164: 3922.13 | AL164: 0 | AN164: ON | AO164: 3043.15 | AP164: 0 | AR164: ON | AS164: 8419.43 | AT164: 0 | AV164: ON | AW164: 6879.74 | AX164: 0 | AZ164: ON | BA164: 4870.23 | BB164: 0 | BD164: ON | BE164: 3775.1 | BF164: 0 | BH164: OFF | BI164: 0 | BJ164: 0 | BL164: OFF | BM164: 0 | BN164: 0 | BP164: OFF | BQ164: 0 | BR164: 0 | BT164: OFF | BU164: 0 | BV164: 0 | BX164: OFF | BY164: 0 | BZ164: 0 | CB164: OFF | CC164: 0 | CD164: 0 | CF164: OFF | CG164: 0 | CH164: 0 | CJ164: OFF | CK164: 0 | CL164: 0
Y165: 2014-01-07 | Z165: 13:00:00 | AA165: 休日 | AB165: OFF | AC165: 0 | AD165: 0 | AF165: OFF | AG165: 0 | AH165: 0 | AJ165: OFF | AK165: 0 | AL165: 0 | AN165: OFF | AO165: 0 | AP165: 0 | AR165: OFF | AS165: 0 | AT165: 0 | AV165: OFF | AW165: 0 | AX165: 0 | AZ165: OFF | BA165: 0 | BB165: 0 | BD165: OFF | BE165: 0 | BF165: 0 | BH165: OFF | BI165: 0 | BJ165: 0 | BL165: OFF | BM165: 0 | BN165: 0 | BP165: OFF | BQ165: 0 | BR165: 0 | BT165: OFF | BU165: 0 | BV165: 0 | BX165: OFF | BY165: 0 | BZ165: 0 | CB165: OFF | CC165: 0 | CD165: 0 | CF165: OFF | CG165: 0 | CH165: 0 | CJ165: OFF | CK165: 0 | CL165: 0
Y166: 2014-01-07 | Z166: 14:00:00 | AA166: 休日 | AB166: OFF | AC166: 0 | AD166: 0 | AF166: OFF | AG166: 0 | AH166: 0 | AJ166: OFF | AK166: 0 | AL166: 0 | AN166: OFF | AO166: 0 | AP166: 0 | AR166: OFF | AS166: 0 | AT166: 0 | AV166: OFF | AW166: 0 | AX166: 0 | AZ166: OFF | BA166: 0 | BB166: 0 | BD166: OFF | BE166: 0 | BF166: 0 | BH166: OFF | BI166: 0 | BJ166: 0 | BL166: OFF | BM166: 0 | BN166: 0 | BP166: OFF | BQ166: 0 | BR166: 0 | BT166: OFF | BU166: 0 | BV166: 0 | BX166: OFF | BY166: 0 | BZ166: 0 | CB166: OFF | CC166: 0 | CD166: 0 | CF166: OFF | CG166: 0 | CH166: 0 | CJ166: OFF | CK166: 0 | CL166: 0
Y167: 2014-01-07 | Z167: 15:00:00 | AA167: 休日 | AB167: ON | AC167: 12907.61 | AD167: 0 | AF167: ON | AG167: 11061.79 | AH167: 0 | AJ167: ON | AK167: 8165.13 | AL167: 0 | AN167: ON | AO167: 6845.46 | AP167: 0 | AR167: ON | AS167: 14158.38 | AT167: 0 | AV167: ON | AW167: 12012.46 | AX167: 0 | AZ167: ON | BA167: 8814.56 | BB167: 0 | BD167: ON | BE167: 7026.39 | BF167: 0 | BH167: OFF | BI167: 0 | BJ167: 0 | BL167: OFF | BM167: 0 | BN167: 0 | BP167: OFF | BQ167: 0 | BR167: 0 | BT167: OFF | BU167: 0 | BV167: 0 | BX167: OFF | BY167: 0 | BZ167: 0 | CB167: OFF | CC167: 0 | CD167: 0 | CF167: OFF | CG167: 0 | CH167: 0 | CJ167: OFF | CK167: 0 | CL167: 0
Y168: 2014-01-07 | Z168: 16:00:00 | AA168: 休日 | AB168: ON | AC168: 8376 | AD168: 0 | AF168: ON | AG168: 7742.11 | AH168: 0 | AJ168: ON | AK168: 5925.4 | AL168: 0 | AN168: ON | AO168: 5386.9 | AP168: 0 | AR168: ON | AS168: 9466.75 | AT168: 0 | AV168: ON | AW168: 8458.48 | AX168: 0 | AZ168: ON | BA168: 6424.33 | BB168: 0 | BD168: ON | BE168: 5424.24 | BF168: 0 | BH168: OFF | BI168: 0 | BJ168: 0 | BL168: OFF | BM168: 0 | BN168: 0 | BP168: OFF | BQ168: 0 | BR168: 0 | BT168: OFF | BU168: 0 | BV168: 0 | BX168: OFF | BY168: 0 | BZ168: 0 | CB168: OFF | CC168: 0 | CD168: 0 | CF168: OFF | CG168: 0 | CH168: 0 | CJ168: OFF | CK168: 0 | CL168: 0
Y169: 2014-01-07 | Z169: 17:00:00 | AA169: 休日 | AB169: ON | AC169: 8126.6 | AD169: 0 | AF169: ON | AG169: 7708.55 | AH169: 0 | AJ169: ON | AK169: 5908.91 | AL169: 0 | AN169: ON | AO169: 5554.62 | AP169: 0 | AR169: ON | AS169: 9227.43 | AT169: 0 | AV169: ON | AW169: 8379.7 | AX169: 0 | AZ169: ON | BA169: 6397.29 | BB169: 0 | BD169: ON | BE169: 5523.96 | BF169: 0 | BH169: OFF | BI169: 0 | BJ169: 0 | BL169: OFF | BM169: 0 | BN169: 0 | BP169: OFF | BQ169: 0 | BR169: 0 | BT169: OFF | BU169: 0 | BV169: 0 | BX169: OFF | BY169: 0 | BZ169: 0 | CB169: OFF | CC169: 0 | CD169: 0 | CF169: OFF | CG169: 0 | CH169: 0 | CJ169: OFF | CK169: 0 | CL169: 0
Y170: 2014-01-07 | Z170: 18:00:00 | AA170: 休日 | AB170: ON | AC170: 6274.99 | AD170: 0 | AF170: ON | AG170: 5955.56 | AH170: 0 | AJ170: ON | AK170: 4103.58 | AL170: 0 | AN170: ON | AO170: 3851.12 | AP170: 0 | AR170: ON | AS170: 7317.39 | AT170: 0 | AV170: ON | AW170: 6554.9 | AX170: 0 | AZ170: ON | BA170: 4559.3 | BB170: 0 | BD170: ON | BE170: 3769.5 | BF170: 0 | BH170: OFF | BI170: 0 | BJ170: 0 | BL170: OFF | BM170: 0 | BN170: 0 | BP170: OFF | BQ170: 0 | BR170: 0 | BT170: OFF | BU170: 0 | BV170: 0 | BX170: OFF | BY170: 0 | BZ170: 0 | CB170: OFF | CC170: 0 | CD170: 0 | CF170: OFF | CG170: 0 | CH170: 0 | CJ170: OFF | CK170: 0 | CL170: 0
Y171: 2014-01-07 | Z171: 19:00:00 | AA171: 休日 | AB171: ON | AC171: 6636.77 | AD171: 0 | AF171: ON | AG171: 6379.12 | AH171: 0 | AJ171: ON | AK171: 4475.44 | AL171: 0 | AN171: ON | AO171: 4288.6 | AP171: 0 | AR171: ON | AS171: 7639.75 | AT171: 0 | AV171: ON | AW171: 6940.44 | AX171: 0 | AZ171: ON | BA171: 4920.19 | BB171: 0 | BD171: ON | BE171: 4192.99 | BF171: 0 | BH171: OFF | BI171: 0 | BJ171: 0 | BL171: OFF | BM171: 0 | BN171: 0 | BP171: OFF | BQ171: 0 | BR171: 0 | BT171: OFF | BU171: 0 | BV171: 0 | BX171: OFF | BY171: 0 | BZ171: 0 | CB171: OFF | CC171: 0 | CD171: 0 | CF171: OFF | CG171: 0 | CH171: 0 | CJ171: OFF | CK171: 0 | CL171: 0
Y172: 2014-01-07 | Z172: 20:00:00 | AA172: 休日 | AB172: ON | AC172: 6753.39 | AD172: 0 | AF172: ON | AG172: 6539.64 | AH172: 0 | AJ172: ON | AK172: 4587.71 | AL172: 0 | AN172: ON | AO172: 4448.38 | AP172: 0 | AR172: ON | AS172: 7704.64 | AT172: 0 | AV172: ON | AW172: 7063.63 | AX172: 0 | AZ172: ON | BA172: 5017.62 | BB172: 0 | BD172: ON | BE172: 4350.45 | BF172: 0 | BH172: OFF | BI172: 0 | BJ172: 0 | BL172: OFF | BM172: 0 | BN172: 0 | BP172: OFF | BQ172: 0 | BR172: 0 | BT172: OFF | BU172: 0 | BV172: 0 | BX172: OFF | BY172: 0 | BZ172: 0 | CB172: OFF | CC172: 0 | CD172: 0 | CF172: OFF | CG172: 0 | CH172: 0 | CJ172: OFF | CK172: 0 | CL172: 0
Y173: 2014-01-07 | Z173: 21:00:00 | AA173: 休日 | AB173: ON | AC173: 7086.71 | AD173: 0 | AF173: ON | AG173: 6904.04 | AH173: 0 | AJ173: ON | AK173: 4921.03 | AL173: 0 | AN173: ON | AO173: 4816.31 | AP173: 0 | AR173: ON | AS173: 7962.13 | AT173: 0 | AV173: ON | AW173: 7371.07 | AX173: 0 | AZ173: ON | BA173: 5313.43 | BB173: 0 | BD173: ON | BE173: 4698.51 | BF173: 0 | BH173: OFF | BI173: 0 | BJ173: 0 | BL173: OFF | BM173: 0 | BN173: 0 | BP173: OFF | BQ173: 0 | BR173: 0 | BT173: OFF | BU173: 0 | BV173: 0 | BX173: OFF | BY173: 0 | BZ173: 0 | CB173: OFF | CC173: 0 | CD173: 0 | CF173: OFF | CG173: 0 | CH173: 0 | CJ173: OFF | CK173: 0 | CL173: 0
Y174: 2014-01-07 | Z174: 22:00:00 | AA174: 休日 | AB174: OFF | AC174: 0 | AD174: 0 | AF174: OFF | AG174: 0 | AH174: 0 | AJ174: OFF | AK174: 0 | AL174: 0 | AN174: OFF | AO174: 0 | AP174: 0 | AR174: OFF | AS174: 0 | AT174: 0 | AV174: OFF | AW174: 0 | AX174: 0 | AZ174: OFF | BA174: 0 | BB174: 0 | BD174: OFF | BE174: 0 | BF174: 0 | BH174: OFF | BI174: 0 | BJ174: 0 | BL174: OFF | BM174: 0 | BN174: 0 | BP174: OFF | BQ174: 0 | BR174: 0 | BT174: OFF | BU174: 0 | BV174: 0 | BX174: OFF | BY174: 0 | BZ174: 0 | CB174: OFF | CC174: 0 | CD174: 0 | CF174: OFF | CG174: 0 | CH174: 0 | CJ174: OFF | CK174: 0 | CL174: 0
Y175: 2014-01-07 | Z175: 23:00:00 | AA175: 休日 | AB175: OFF | AC175: 0 | AD175: 0 | AF175: OFF | AG175: 0 | AH175: 0 | AJ175: OFF | AK175: 0 | AL175: 0 | AN175: OFF | AO175: 0 | AP175: 0 | AR175: OFF | AS175: 0 | AT175: 0 | AV175: OFF | AW175: 0 | AX175: 0 | AZ175: OFF | BA175: 0 | BB175: 0 | BD175: OFF | BE175: 0 | BF175: 0 | BH175: OFF | BI175: 0 | BJ175: 0 | BL175: OFF | BM175: 0 | BN175: 0 | BP175: OFF | BQ175: 0 | BR175: 0 | BT175: OFF | BU175: 0 | BV175: 0 | BX175: OFF | BY175: 0 | BZ175: 0 | CB175: OFF | CC175: 0 | CD175: 0 | CF175: OFF | CG175: 0 | CH175: 0 | CJ175: OFF | CK175: 0 | CL175: 0
Y176: 2014-01-08 | Z176: 00:00:00 | AA176: 休日 | AB176: OFF | AC176: 0 | AD176: 0 | AF176: OFF | AG176: 0 | AH176: 0 | AJ176: OFF | AK176: 0 | AL176: 0 | AN176: OFF | AO176: 0 | AP176: 0 | AR176: OFF | AS176: 0 | AT176: 0 | AV176: OFF | AW176: 0 | AX176: 0 | AZ176: OFF | BA176: 0 | BB176: 0 | BD176: OFF | BE176: 0 | BF176: 0 | BH176: OFF | BI176: 0 | BJ176: 0 | BL176: OFF | BM176: 0 | BN176: 0 | BP176: OFF | BQ176: 0 | BR176: 0 | BT176: OFF | BU176: 0 | BV176: 0 | BX176: OFF | BY176: 0 | BZ176: 0 | CB176: OFF | CC176: 0 | CD176: 0 | CF176: OFF | CG176: 0 | CH176: 0 | CJ176: OFF | CK176: 0 | CL176: 0
Y177: 2014-01-08 | Z177: 01:00:00 | AA177: 休日 | AB177: OFF | AC177: 0 | AD177: 0 | AF177: OFF | AG177: 0 | AH177: 0 | AJ177: OFF | AK177: 0 | AL177: 0 | AN177: OFF | AO177: 0 | AP177: 0 | AR177: OFF | AS177: 0 | AT177: 0 | AV177: OFF | AW177: 0 | AX177: 0 | AZ177: OFF | BA177: 0 | BB177: 0 | BD177: OFF | BE177: 0 | BF177: 0 | BH177: OFF | BI177: 0 | BJ177: 0 | BL177: OFF | BM177: 0 | BN177: 0 | BP177: OFF | BQ177: 0 | BR177: 0 | BT177: OFF | BU177: 0 | BV177: 0 | BX177: OFF | BY177: 0 | BZ177: 0 | CB177: OFF | CC177: 0 | CD177: 0 | CF177: OFF | CG177: 0 | CH177: 0 | CJ177: OFF | CK177: 0 | CL177: 0
Y178: 2014-01-08 | Z178: 02:00:00 | AA178: 休日 | AB178: OFF | AC178: 0 | AD178: 0 | AF178: OFF | AG178: 0 | AH178: 0 | AJ178: OFF | AK178: 0 | AL178: 0 | AN178: OFF | AO178: 0 | AP178: 0 | AR178: OFF | AS178: 0 | AT178: 0 | AV178: OFF | AW178: 0 | AX178: 0 | AZ178: OFF | BA178: 0 | BB178: 0 | BD178: OFF | BE178: 0 | BF178: 0 | BH178: OFF | BI178: 0 | BJ178: 0 | BL178: OFF | BM178: 0 | BN178: 0 | BP178: OFF | BQ178: 0 | BR178: 0 | BT178: OFF | BU178: 0 | BV178: 0 | BX178: OFF | BY178: 0 | BZ178: 0 | CB178: OFF | CC178: 0 | CD178: 0 | CF178: OFF | CG178: 0 | CH178: 0 | CJ178: OFF | CK178: 0 | CL178: 0
Y179: 2014-01-08 | Z179: 03:00:00 | AA179: 休日 | AB179: OFF | AC179: 0 | AD179: 0 | AF179: OFF | AG179: 0 | AH179: 0 | AJ179: OFF | AK179: 0 | AL179: 0 | AN179: OFF | AO179: 0 | AP179: 0 | AR179: OFF | AS179: 0 | AT179: 0 | AV179: OFF | AW179: 0 | AX179: 0 | AZ179: OFF | BA179: 0 | BB179: 0 | BD179: OFF | BE179: 0 | BF179: 0 | BH179: OFF | BI179: 0 | BJ179: 0 | BL179: OFF | BM179: 0 | BN179: 0 | BP179: OFF | BQ179: 0 | BR179: 0 | BT179: OFF | BU179: 0 | BV179: 0 | BX179: OFF | BY179: 0 | BZ179: 0 | CB179: OFF | CC179: 0 | CD179: 0 | CF179: OFF | CG179: 0 | CH179: 0 | CJ179: OFF | CK179: 0 | CL179: 0
Y180: 2014-01-08 | Z180: 04:00:00 | AA180: 休日 | AB180: OFF | AC180: 0 | AD180: 0 | AF180: OFF | AG180: 0 | AH180: 0 | AJ180: OFF | AK180: 0 | AL180: 0 | AN180: OFF | AO180: 0 | AP180: 0 | AR180: OFF | AS180: 0 | AT180: 0 | AV180: OFF | AW180: 0 | AX180: 0 | AZ180: OFF | BA180: 0 | BB180: 0 | BD180: OFF | BE180: 0 | BF180: 0 | BH180: OFF | BI180: 0 | BJ180: 0 | BL180: OFF | BM180: 0 | BN180: 0 | BP180: OFF | BQ180: 0 | BR180: 0 | BT180: OFF | BU180: 0 | BV180: 0 | BX180: OFF | BY180: 0 | BZ180: 0 | CB180: OFF | CC180: 0 | CD180: 0 | CF180: OFF | CG180: 0 | CH180: 0 | CJ180: OFF | CK180: 0 | CL180: 0
Y181: 2014-01-08 | Z181: 05:00:00 | AA181: 休日 | AB181: OFF | AC181: 0 | AD181: 0 | AF181: OFF | AG181: 0 | AH181: 0 | AJ181: OFF | AK181: 0 | AL181: 0 | AN181: OFF | AO181: 0 | AP181: 0 | AR181: OFF | AS181: 0 | AT181: 0 | AV181: OFF | AW181: 0 | AX181: 0 | AZ181: OFF | BA181: 0 | BB181: 0 | BD181: OFF | BE181: 0 | BF181: 0 | BH181: OFF | BI181: 0 | BJ181: 0 | BL181: OFF | BM181: 0 | BN181: 0 | BP181: OFF | BQ181: 0 | BR181: 0 | BT181: OFF | BU181: 0 | BV181: 0 | BX181: OFF | BY181: 0 | BZ181: 0 | CB181: OFF | CC181: 0 | CD181: 0 | CF181: OFF | CG181: 0 | CH181: 0 | CJ181: OFF | CK181: 0 | CL181: 0
Y182: 2014-01-08 | Z182: 06:00:00 | AA182: 休日 | AB182: OFF | AC182: 0 | AD182: 0 | AF182: OFF | AG182: 0 | AH182: 0 | AJ182: OFF | AK182: 0 | AL182: 0 | AN182: OFF | AO182: 0 | AP182: 0 | AR182: OFF | AS182: 0 | AT182: 0 | AV182: OFF | AW182: 0 | AX182: 0 | AZ182: OFF | BA182: 0 | BB182: 0 | BD182: OFF | BE182: 0 | BF182: 0 | BH182: OFF | BI182: 0 | BJ182: 0 | BL182: OFF | BM182: 0 | BN182: 0 | BP182: OFF | BQ182: 0 | BR182: 0 | BT182: OFF | BU182: 0 | BV182: 0 | BX182: OFF | BY182: 0 | BZ182: 0 | CB182: OFF | CC182: 0 | CD182: 0 | CF182: OFF | CG182: 0 | CH182: 0 | CJ182: OFF | CK182: 0 | CL182: 0
Y183: 2014-01-08 | Z183: 07:00:00 | AA183: 休日 | AB183: ON | AC183: 25739.6 | AD183: 0 | AF183: ON | AG183: 23299.95 | AH183: 0 | AJ183: ON | AK183: 19545.82 | AL183: 0 | AN183: ON | AO183: 18947.21 | AP183: 0 | AR183: ON | AS183: 23083.15 | AT183: 0 | AV183: ON | AW183: 20740.72 | AX183: 0 | AZ183: ON | BA183: 16180.81 | BB183: 0 | BD183: ON | BE183: 15357.7 | BF183: 0 | BH183: OFF | BI183: 0 | BJ183: 0 | BL183: OFF | BM183: 0 | BN183: 0 | BP183: OFF | BQ183: 0 | BR183: 0 | BT183: OFF | BU183: 0 | BV183: 0 | BX183: OFF | BY183: 0 | BZ183: 0 | CB183: OFF | CC183: 0 | CD183: 0 | CF183: OFF | CG183: 0 | CH183: 0 | CJ183: OFF | CK183: 0 | CL183: 0
Y184: 2014-01-08 | Z184: 08:00:00 | AA184: 休日 | AB184: ON | AC184: 9310.09 | AD184: 0 | AF184: ON | AG184: 4466.3 | AH184: 0 | AJ184: ON | AK184: 2598.57 | AL184: 0 | AN184: ON | AO184: 861.3 | AP184: 0 | AR184: ON | AS184: 9806.12 | AT184: 0 | AV184: ON | AW184: 6133.58 | AX184: 0 | AZ184: ON | BA184: 3796.16 | BB184: 0 | BD184: ON | BE184: 3121.24 | BF184: 0 | BH184: OFF | BI184: 0 | BJ184: 0 | BL184: OFF | BM184: 0 | BN184: 0 | BP184: OFF | BQ184: 0 | BR184: 0 | BT184: OFF | BU184: 0 | BV184: 0 | BX184: OFF | BY184: 0 | BZ184: 0 | CB184: OFF | CC184: 0 | CD184: 0 | CF184: OFF | CG184: 0 | CH184: 0 | CJ184: OFF | CK184: 0 | CL184: 0
Y185: 2014-01-08 | Z185: 09:00:00 | AA185: 休日 | AB185: ON | AC185: 6351.65 | AD185: 0 | AF185: ON | AG185: 0 | AH185: 0 | AJ185: ON | AK185: 0 | AL185: 0 | AN185: ON | AO185: 0 | AP185: 0 | AR185: ON | AS185: 7645.35 | AT185: 0 | AV185: ON | AW185: 2929.89 | AX185: 0 | AZ185: ON | BA185: 981.18 | BB185: 0 | BD185: ON | BE185: 0 | BF185: 0 | BH185: OFF | BI185: 0 | BJ185: 0 | BL185: OFF | BM185: 0 | BN185: 0 | BP185: OFF | BQ185: 0 | BR185: 0 | BT185: OFF | BU185: 0 | BV185: 0 | BX185: OFF | BY185: 0 | BZ185: 0 | CB185: OFF | CC185: 0 | CD185: 0 | CF185: OFF | CG185: 0 | CH185: 0 | CJ185: OFF | CK185: 0 | CL185: 0
Y186: 2014-01-08 | Z186: 10:00:00 | AA186: 休日 | AB186: ON | AC186: 4622.64 | AD186: 0 | AF186: ON | AG186: 0 | AH186: 0 | AJ186: ON | AK186: 0 | AL186: 0 | AN186: ON | AO186: 0 | AP186: 0 | AR186: ON | AS186: 6301.11 | AT186: 0 | AV186: ON | AW186: 1125.19 | AX186: 0 | AZ186: ON | BA186: 0 | BB186: 0 | BD186: ON | BE186: 0 | BF186: 0 | BH186: OFF | BI186: 0 | BJ186: 0 | BL186: OFF | BM186: 0 | BN186: 0 | BP186: OFF | BQ186: 0 | BR186: 0 | BT186: OFF | BU186: 0 | BV186: 0 | BX186: OFF | BY186: 0 | BZ186: 0 | CB186: OFF | CC186: 0 | CD186: 0 | CF186: OFF | CG186: 0 | CH186: 0 | CJ186: OFF | CK186: 0 | CL186: 0
Y187: 2014-01-08 | Z187: 11:00:00 | AA187: 休日 | AB187: ON | AC187: 4435.87 | AD187: 0 | AF187: ON | AG187: 0 | AH187: 0 | AJ187: ON | AK187: 0 | AL187: 0 | AN187: ON | AO187: 0 | AP187: 0 | AR187: ON | AS187: 6240.66 | AT187: 0 | AV187: ON | AW187: 1178.36 | AX187: 0 | AZ187: ON | BA187: 0 | BB187: 0 | BD187: ON | BE187: 0 | BF187: 0 | BH187: OFF | BI187: 0 | BJ187: 0 | BL187: OFF | BM187: 0 | BN187: 0 | BP187: OFF | BQ187: 0 | BR187: 0 | BT187: OFF | BU187: 0 | BV187: 0 | BX187: OFF | BY187: 0 | BZ187: 0 | CB187: OFF | CC187: 0 | CD187: 0 | CF187: OFF | CG187: 0 | CH187: 0 | CJ187: OFF | CK187: 0 | CL187: 0
Y188: 2014-01-08 | Z188: 12:00:00 | AA188: 休日 | AB188: ON | AC188: 3778.8 | AD188: 0 | AF188: ON | AG188: 0 | AH188: 0 | AJ188: ON | AK188: 0 | AL188: 0 | AN188: ON | AO188: 0 | AP188: 0 | AR188: ON | AS188: 5625.86 | AT188: 0 | AV188: ON | AW188: 160.85 | AX188: 0 | AZ188: ON | BA188: 0 | BB188: 0 | BD188: ON | BE188: 0 | BF188: 0 | BH188: OFF | BI188: 0 | BJ188: 0 | BL188: OFF | BM188: 0 | BN188: 0 | BP188: OFF | BQ188: 0 | BR188: 0 | BT188: OFF | BU188: 0 | BV188: 0 | BX188: OFF | BY188: 0 | BZ188: 0 | CB188: OFF | CC188: 0 | CD188: 0 | CF188: OFF | CG188: 0 | CH188: 0 | CJ188: OFF | CK188: 0 | CL188: 0
Y189: 2014-01-08 | Z189: 13:00:00 | AA189: 休日 | AB189: OFF | AC189: 0 | AD189: 0 | AF189: OFF | AG189: 0 | AH189: 0 | AJ189: OFF | AK189: 0 | AL189: 0 | AN189: OFF | AO189: 0 | AP189: 0 | AR189: OFF | AS189: 0 | AT189: 0 | AV189: OFF | AW189: 0 | AX189: 0 | AZ189: OFF | BA189: 0 | BB189: 0 | BD189: OFF | BE189: 0 | BF189: 0 | BH189: OFF | BI189: 0 | BJ189: 0 | BL189: OFF | BM189: 0 | BN189: 0 | BP189: OFF | BQ189: 0 | BR189: 0 | BT189: OFF | BU189: 0 | BV189: 0 | BX189: OFF | BY189: 0 | BZ189: 0 | CB189: OFF | CC189: 0 | CD189: 0 | CF189: OFF | CG189: 0 | CH189: 0 | CJ189: OFF | CK189: 0 | CL189: 0
Y190: 2014-01-08 | Z190: 14:00:00 | AA190: 休日 | AB190: OFF | AC190: 0 | AD190: 0 | AF190: OFF | AG190: 0 | AH190: 0 | AJ190: OFF | AK190: 0 | AL190: 0 | AN190: OFF | AO190: 0 | AP190: 0 | AR190: OFF | AS190: 0 | AT190: 0 | AV190: OFF | AW190: 0 | AX190: 0 | AZ190: OFF | BA190: 0 | BB190: 0 | BD190: OFF | BE190: 0 | BF190: 0 | BH190: OFF | BI190: 0 | BJ190: 0 | BL190: OFF | BM190: 0 | BN190: 0 | BP190: OFF | BQ190: 0 | BR190: 0 | BT190: OFF | BU190: 0 | BV190: 0 | BX190: OFF | BY190: 0 | BZ190: 0 | CB190: OFF | CC190: 0 | CD190: 0 | CF190: OFF | CG190: 0 | CH190: 0 | CJ190: OFF | CK190: 0 | CL190: 0
Y191: 2014-01-08 | Z191: 15:00:00 | AA191: 休日 | AB191: ON | AC191: 7099.23 | AD191: 0 | AF191: ON | AG191: 0 | AH191: 0 | AJ191: ON | AK191: 0 | AL191: 0 | AN191: ON | AO191: 0 | AP191: 0 | AR191: ON | AS191: 9392.18 | AT191: 0 | AV191: ON | AW191: 2178.81 | AX191: 0 | AZ191: ON | BA191: 0 | BB191: 0 | BD191: ON | BE191: 0 | BF191: 0 | BH191: OFF | BI191: 0 | BJ191: 0 | BL191: OFF | BM191: 0 | BN191: 0 | BP191: OFF | BQ191: 0 | BR191: 0 | BT191: OFF | BU191: 0 | BV191: 0 | BX191: OFF | BY191: 0 | BZ191: 0 | CB191: OFF | CC191: 0 | CD191: 0 | CF191: OFF | CG191: 0 | CH191: 0 | CJ191: OFF | CK191: 0 | CL191: 0
Y192: 2014-01-08 | Z192: 16:00:00 | AA192: 休日 | AB192: ON | AC192: 5536.09 | AD192: 0 | AF192: ON | AG192: 102.06 | AH192: 0 | AJ192: ON | AK192: 0 | AL192: 0 | AN192: ON | AO192: 0 | AP192: 0 | AR192: ON | AS192: 6850.15 | AT192: 0 | AV192: ON | AW192: 4048.37 | AX192: 0 | AZ192: ON | BA192: 2161.78 | BB192: 0 | BD192: ON | BE192: 0 | BF192: 0 | BH192: OFF | BI192: 0 | BJ192: 0 | BL192: OFF | BM192: 0 | BN192: 0 | BP192: OFF | BQ192: 0 | BR192: 0 | BT192: OFF | BU192: 0 | BV192: 0 | BX192: OFF | BY192: 0 | BZ192: 0 | CB192: OFF | CC192: 0 | CD192: 0 | CF192: OFF | CG192: 0 | CH192: 0 | CJ192: OFF | CK192: 0 | CL192: 0
Y193: 2014-01-08 | Z193: 17:00:00 | AA193: 休日 | AB193: ON | AC193: 6392.86 | AD193: 0 | AF193: ON | AG193: 4151.99 | AH193: 0 | AJ193: ON | AK193: 0 | AL193: 0 | AN193: ON | AO193: 0 | AP193: 0 | AR193: ON | AS193: 7475.65 | AT193: 0 | AV193: ON | AW193: 5265.59 | AX193: 0 | AZ193: ON | BA193: 3461.61 | BB193: 0 | BD193: ON | BE193: 0 | BF193: 0 | BH193: OFF | BI193: 0 | BJ193: 0 | BL193: OFF | BM193: 0 | BN193: 0 | BP193: OFF | BQ193: 0 | BR193: 0 | BT193: OFF | BU193: 0 | BV193: 0 | BX193: OFF | BY193: 0 | BZ193: 0 | CB193: OFF | CC193: 0 | CD193: 0 | CF193: OFF | CG193: 0 | CH193: 0 | CJ193: OFF | CK193: 0 | CL193: 0
Y194: 2014-01-08 | Z194: 18:00:00 | AA194: 休日 | AB194: ON | AC194: 5236.74 | AD194: 0 | AF194: ON | AG194: 3703.4 | AH194: 0 | AJ194: ON | AK194: 272.1 | AL194: 0 | AN194: ON | AO194: 0 | AP194: 0 | AR194: ON | AS194: 6114.87 | AT194: 0 | AV194: ON | AW194: 4184.18 | AX194: 0 | AZ194: ON | BA194: 2278.29 | BB194: 0 | BD194: ON | BE194: 0 | BF194: 0 | BH194: OFF | BI194: 0 | BJ194: 0 | BL194: OFF | BM194: 0 | BN194: 0 | BP194: OFF | BQ194: 0 | BR194: 0 | BT194: OFF | BU194: 0 | BV194: 0 | BX194: OFF | BY194: 0 | BZ194: 0 | CB194: OFF | CC194: 0 | CD194: 0 | CF194: OFF | CG194: 0 | CH194: 0 | CJ194: OFF | CK194: 0 | CL194: 0
Y195: 2014-01-08 | Z195: 19:00:00 | AA195: 休日 | AB195: ON | AC195: 5900.72 | AD195: 0 | AF195: ON | AG195: 4775.25 | AH195: 0 | AJ195: ON | AK195: 2108.99 | AL195: 0 | AN195: ON | AO195: 0 | AP195: 0 | AR195: ON | AS195: 6631.64 | AT195: 0 | AV195: ON | AW195: 4892.01 | AX195: 0 | AZ195: ON | BA195: 2908.52 | BB195: 0 | BD195: ON | BE195: 375.48 | BF195: 0 | BH195: OFF | BI195: 0 | BJ195: 0 | BL195: OFF | BM195: 0 | BN195: 0 | BP195: OFF | BQ195: 0 | BR195: 0 | BT195: OFF | BU195: 0 | BV195: 0 | BX195: OFF | BY195: 0 | BZ195: 0 | CB195: OFF | CC195: 0 | CD195: 0 | CF195: OFF | CG195: 0 | CH195: 0 | CJ195: OFF | CK195: 0 | CL195: 0
Y196: 2014-01-08 | Z196: 20:00:00 | AA196: 休日 | AB196: ON | AC196: 6226.4 | AD196: 0 | AF196: ON | AG196: 5373.31 | AH196: 0 | AJ196: ON | AK196: 2853.5 | AL196: 0 | AN196: ON | AO196: 0 | AP196: 0 | AR196: ON | AS196: 6834.96 | AT196: 0 | AV196: ON | AW196: 5263.55 | AX196: 0 | AZ196: ON | BA196: 3217.12 | BB196: 0 | BD196: ON | BE196: 1193.22 | BF196: 0 | BH196: OFF | BI196: 0 | BJ196: 0 | BL196: OFF | BM196: 0 | BN196: 0 | BP196: OFF | BQ196: 0 | BR196: 0 | BT196: OFF | BU196: 0 | BV196: 0 | BX196: OFF | BY196: 0 | BZ196: 0 | CB196: OFF | CC196: 0 | CD196: 0 | CF196: OFF | CG196: 0 | CH196: 0 | CJ196: OFF | CK196: 0 | CL196: 0
Y197: 2014-01-08 | Z197: 21:00:00 | AA197: 休日 | AB197: ON | AC197: 6870.18 | AD197: 0 | AF197: ON | AG197: 6203.77 | AH197: 0 | AJ197: ON | AK197: 3725.28 | AL197: 0 | AN197: ON | AO197: 1241.92 | AP197: 0 | AR197: ON | AS197: 7345.6 | AT197: 0 | AV197: ON | AW197: 5915.13 | AX197: 0 | AZ197: ON | BA197: 3797.59 | BB197: 0 | BD197: ON | BE197: 1967.01 | BF197: 0 | BH197: OFF | BI197: 0 | BJ197: 0 | BL197: OFF | BM197: 0 | BN197: 0 | BP197: OFF | BQ197: 0 | BR197: 0 | BT197: OFF | BU197: 0 | BV197: 0 | BX197: OFF | BY197: 0 | BZ197: 0 | CB197: OFF | CC197: 0 | CD197: 0 | CF197: OFF | CG197: 0 | CH197: 0 | CJ197: OFF | CK197: 0 | CL197: 0
Y198: 2014-01-08 | Z198: 22:00:00 | AA198: 休日 | AB198: OFF | AC198: 0 | AD198: 0 | AF198: OFF | AG198: 0 | AH198: 0 | AJ198: OFF | AK198: 0 | AL198: 0 | AN198: OFF | AO198: 0 | AP198: 0 | AR198: OFF | AS198: 0 | AT198: 0 | AV198: OFF | AW198: 0 | AX198: 0 | AZ198: OFF | BA198: 0 | BB198: 0 | BD198: OFF | BE198: 0 | BF198: 0 | BH198: OFF | BI198: 0 | BJ198: 0 | BL198: OFF | BM198: 0 | BN198: 0 | BP198: OFF | BQ198: 0 | BR198: 0 | BT198: OFF | BU198: 0 | BV198: 0 | BX198: OFF | BY198: 0 | BZ198: 0 | CB198: OFF | CC198: 0 | CD198: 0 | CF198: OFF | CG198: 0 | CH198: 0 | CJ198: OFF | CK198: 0 | CL198: 0
Y199: 2014-01-08 | Z199: 23:00:00 | AA199: 休日 | AB199: OFF | AC199: 0 | AD199: 0 | AF199: OFF | AG199: 0 | AH199: 0 | AJ199: OFF | AK199: 0 | AL199: 0 | AN199: OFF | AO199: 0 | AP199: 0 | AR199: OFF | AS199: 0 | AT199: 0 | AV199: OFF | AW199: 0 | AX199: 0 | AZ199: OFF | BA199: 0 | BB199: 0 | BD199: OFF | BE199: 0 | BF199: 0 | BH199: OFF | BI199: 0 | BJ199: 0 | BL199: OFF | BM199: 0 | BN199: 0 | BP199: OFF | BQ199: 0 | BR199: 0 | BT199: OFF | BU199: 0 | BV199: 0 | BX199: OFF | BY199: 0 | BZ199: 0 | CB199: OFF | CC199: 0 | CD199: 0 | CF199: OFF | CG199: 0 | CH199: 0 | CJ199: OFF | CK199: 0 | CL199: 0
Y200: 2014-01-09 | Z200: 00:00:00 | AA200: 平日 | AB200: OFF | AC200: 0 | AD200: 0 | AF200: OFF | AG200: 0 | AH200: 0 | AJ200: OFF | AK200: 0 | AL200: 0 | AN200: OFF | AO200: 0 | AP200: 0 | AR200: OFF | AS200: 0 | AT200: 0 | AV200: OFF | AW200: 0 | AX200: 0 | AZ200: OFF | BA200: 0 | BB200: 0 | BD200: OFF | BE200: 0 | BF200: 0 | BH200: OFF | BI200: 0 | BJ200: 0 | BL200: OFF | BM200: 0 | BN200: 0 | BP200: OFF | BQ200: 0 | BR200: 0 | BT200: OFF | BU200: 0 | BV200: 0 | BX200: OFF | BY200: 0 | BZ200: 0 | CB200: OFF | CC200: 0 | CD200: 0 | CF200: OFF | CG200: 0 | CH200: 0 | CJ200: OFF | CK200: 0 | CL200: 0
... 362 more rows

Sheet 計算過程
D2: 年間合計 | E2: =SUM(E16:E8775) -> 12860.80282 | F2: =SUM(F16:F8775) -> 5158.570268 | G2: 1640.392713 | H2: 10327.92287 | I2: 5158.570268 | J2: 1640.392713 | K2: 10327.92287 | L2: =SUM(L16:L8775) -> 5158.570268 | M2: 1640.392713 | O2: 10327.92287 | Q2: 10327.92287 | R2: 10257.70538 | S2: 16181.13835 | T2: 10125.61487 | U2: 16548.9379 | V2: 10040.25795 | W2: 19204.30192 | X2: 14574.51642 | Y2: 10203.41926 | Z2: 8388.31786 | AA2: 19742.1754 | AB2: 14851.93233 | AC2: 10146.35054 | AD2: 7671.31276 | AF2: =SUM(AF16:AF8775) -> 5158.570268 | AG2: 1640.392713 | AH2: 5158.570268 | AI2: 4938.373764 | AJ2: 1640.392713 | AK2: 1547.227587 | AL2: 3837.706586 | AM2: 5204.224028 | AN2: 3738.400898 | AO2: 4979.849107 | AP2: 1525.072916 | AQ2: 1644.378577 | AR2: 1476.701747 | AS2: 1549.665212 | AT2: 3220.52756 | AU2: 1493.91987 | AV2: 5697.65242 | AW2: 1618.9565 | AX2: 3082.80368 | AY2: 1568.5331 | AZ2: 5863.5399 | BA2: 1667.95058 | BB2: 3146.78442 | BC2: 1455.92937 | BD2: 5521.31081 | BE2: 1539.30189 | BF2: 2960.59368 | BG2: 1476.16986 | BH2: 5607.41316 | BI2: 1572.50682
B4: 見出し１ | H4: 面積補正(全館連続） | K4: 面積補正(居室のみ暖冷房） | O4: 蓄熱按分 | Q4: Q値按分 | S4: μ値按分 | W4: ローデータ | AF4: 換気按分 | AH4: Q値按分 | AL4: μ値按分 | AT4: ローデータ | BK4: 見出し | BL4: 式番号 | BM4: 記号 | BN4: 単位 | BO4: 数値 | BP4: 備考
B5: 見出し２ | E5: 暖房負荷 | F5: 冷房負荷 | G5: 冷房負荷 | H5: 暖房負荷 | I5: 冷房負荷 | J5: 冷房負荷 | K5: 暖房負荷 | L5: 冷房負荷 | M5: 冷房負荷 | O5: 暖房負荷 | P5: 係数 | Q5: 暖房負荷 | R5: 暖房負荷 | S5: 暖房負荷 | T5: 暖房負荷 | U5: 暖房負荷 | V5: 暖房負荷 | W5: 暖房負荷 | X5: 暖房負荷 | Y5: 暖房負荷 | Z5: 暖房負荷 | AA5: 暖房負荷 | AB5: 暖房負荷 | AC5: 暖房負荷 | AD5: 暖房負荷 | AF5: 冷房負荷 | AG5: 冷房負荷 | AH5: 冷房負荷 | AI5: 冷房負荷 | AJ5: 冷房負荷 | AK5: 冷房負荷 | AL5: 冷房負荷 | AM5: 冷房負荷 | AN5: 冷房負荷 | AO5: 冷房負荷 | AP5: 冷房負荷 | AQ5: 冷房負荷 | AR5: 冷房負荷 | AS5: 冷房負荷 | AT5: 冷房負荷 | AU5: 冷房負荷 | AV5: 冷房負荷 | AW5: 冷房負荷 | AX5: 冷房負荷 | AY5: 冷房負荷 | AZ5: 冷房負荷 | BA5: 冷房負荷 | BB5: 冷房負荷 | BC5: 冷房負荷 | BD5: 冷房負荷 | BE5: 冷房負荷 | BF5: 冷房負荷 | BG5: 冷房負荷 | BH5: 冷房負荷 | BI5: 冷房負荷 | BK5: 外皮等の表面温度による放射温度を考慮した負荷補正係数 | BL5: （2） | BM5: f_(R,Evp,i) | BN5: － | BO5: =バックデータ一覧!Q15 -> 1.197254417
B6: 見出し３ | E6: =貼り付けシート!$L$26 -> LD | F6: =貼り付けシート!$L$26 -> LD | G6: =貼り付けシート!$L$26 -> LD | H6: =貼り付けシート!$L$26 -> LD | I6: =貼り付けシート!$L$26 -> LD | J6: =貼り付けシート!$L$26 -> LD | K6: =貼り付けシート!$L$26 -> LD | L6: =貼り付けシート!$L$26 -> LD | M6: =貼り付けシート!$L$26 -> LD | O6: =貼り付けシート!$L$26 -> LD | P6: =貼り付けシート!$L$26 -> LD | Q6: =貼り付けシート!$L$26 -> LD | R6: =貼り付けシート!$L$26 -> LD | S6: =貼り付けシート!$L$26 -> LD | T6: =貼り付けシート!$L$26 -> LD | U6: =貼り付けシート!$L$26 -> LD | V6: =貼り付けシート!$L$26 -> LD | W6: =貼り付けシート!$L$26 -> LD | X6: =貼り付けシート!$L$26 -> LD | Y6: =貼り付けシート!$L$26 -> LD | Z6: =貼り付けシート!$L$26 -> LD | AA6: =貼り付けシート!$L$26 -> LD | AB6: =貼り付けシート!$L$26 -> LD | AC6: =貼り付けシート!$L$26 -> LD | AD6: =貼り付けシート!$L$26 -> LD | AF6: =貼り付けシート!$L$26 -> LD | AG6: =貼り付けシート!$L$26 -> LD | AH6: =貼り付けシート!$L$26 -> LD | AI6: =貼り付けシート!$L$26 -> LD | AJ6: =貼り付けシート!$L$26 -> LD | AK6: =貼り付けシート!$L$26 -> LD | AL6: =貼り付けシート!$L$26 -> LD | AM6: =貼り付けシート!$L$26 -> LD | AN6: =貼り付けシート!$L$26 -> LD | AO6: =貼り付けシート!$L$26 -> LD | AP6: =貼り付けシート!$L$26 -> LD | AQ6: =貼り付けシート!$L$26 -> LD | AR6: =貼り付けシート!$L$26 -> LD | AS6: =貼り付けシート!$L$26 -> LD | AT6: =貼り付けシート!$L$26 -> LD | AU6: =貼り付けシート!$L$26 -> LD | AV6: =貼り付けシート!$L$26 -> LD | AW6: =貼り付けシート!$L$26 -> LD | AX6: =貼り付けシート!$L$26 -> LD | AY6: =貼り付けシート!$L$26 -> LD | AZ6: =貼り付けシート!$L$26 -> LD | BA6: =貼り付けシート!$L$26 -> LD | BB6: =貼り付けシート!$L$26 -> LD | BC6: =貼り付けシート!$L$26 -> LD | BD6: =貼り付けシート!$L$26 -> LD | BE6: =貼り付けシート!$L$26 -> LD | BF6: =貼り付けシート!$L$26 -> LD | BG6: =貼り付けシート!$L$26 -> LD | BH6: =貼り付けシート!$L$26 -> LD | BI6: =貼り付けシート!$L$26 -> LD | BK6: 暖房設備の方式による放射温度を考慮した負荷補正係数 | BL6: （3） | BM6: f_(R,Eqp,i) | BN6: － | BO6: =バックデータ一覧!Q29 -> 1
B7: 見出し４ | E7: 顕熱 | F7: 顕熱 | G7: 潜熱 | H7: 顕熱 | I7: 顕熱 | J7: 潜熱 | K7: 顕熱 | L7: 顕熱 | M7: 潜熱 | O7: 顕熱 | P7: 蓄熱利用の程度 | Q7: 顕熱 | R7: 顕熱 | S7: 顕熱 | T7: 顕熱 | U7: 顕熱 | V7: 顕熱 | W7: 顕熱 | X7: 顕熱 | Y7: 顕熱 | Z7: 顕熱 | AA7: 顕熱 | AB7: 顕熱 | AC7: 顕熱 | AD7: 顕熱 | AF7: 顕熱 | AG7: 潜熱 | AH7: 顕熱 | AI7: 顕熱 | AJ7: 潜熱 | AK7: 潜熱 | AL7: 顕熱 | AM7: 顕熱 | AN7: 顕熱 | AO7: 顕熱 | AP7: 潜熱 | AQ7: 潜熱 | AR7: 潜熱 | AS7: 潜熱 | AT7: 顕熱 | AU7: 潜熱 | AV7: 顕熱 | AW7: 潜熱 | AX7: 顕熱 | AY7: 潜熱 | AZ7: 顕熱 | BA7: 潜熱 | BB7: 顕熱 | BC7: 潜熱 | BD7: 顕熱 | BE7: 潜熱 | BF7: 顕熱 | BG7: 潜熱 | BH7: 顕熱 | BI7: 潜熱 | BK7: 上下温度分布を考慮した負荷補正係数 | BL7: （4） | BM7: f_(TD,i) | BN7: － | BO7: =バックデータ一覧!Q37 -> 1.040084552
B8: Q値 | F8: =I8 -> 2.750113258 | G8: =J8 -> 2.750113258 | H8: =O8 -> 2.750113258 | I8: =AF8 -> 2.750113258 | J8: =AG8 -> 2.750113258 | K8: =O8 -> 2.750113258 | L8: =AF8 -> 2.750113258 | M8: =AG8 -> 2.750113258 | O8: =$BO$8 -> 2.750113258 | P8: - | Q8: =$BO$8 -> 2.750113258 | R8: 2.750113258 | S8: =W8 -> 4.2 | T8: =Y8 -> 2.7 | U8: =AA8 -> 4.2 | V8: =AC8 -> 2.7 | W8: =バックデータ一覧!W89 -> 4.2 | X8: =バックデータ一覧!X89 -> 4.2 | Y8: =バックデータ一覧!Y89 -> 2.7 | Z8: =バックデータ一覧!Z89 -> 2.7 | AA8: =バックデータ一覧!W89 -> 4.2 | AB8: =バックデータ一覧!X89 -> 4.2 | AC8: =バックデータ一覧!Y89 -> 2.7 | AD8: =バックデータ一覧!Z89 -> 2.7 | AF8: =$BO$9 -> 2.750113258 | AG8: 2.750113258 | AH8: 2.750113258 | AI8: 2.750113258 | AJ8: 2.750113258 | AK8: 2.750113258 | AL8: =AT8 -> 4.2 | AM8: =AX8 -> 2.7 | AN8: =BB8 -> 4.2 | AO8: =BF8 -> 2.7 | AP8: =AU8 -> 4.2 | AQ8: =AY8 -> 2.7 | AR8: =BC8 -> 4.2 | AS8: =BG8 -> 2.7 | AT8: =バックデータ一覧!W91 -> 4.2 | AU8: =AT8 -> 4.2 | AV8: =バックデータ一覧!X91 -> 4.2 | AW8: =AV8 -> 4.2 | AX8: =バックデータ一覧!Y91 -> 2.7 | AY8: =AX8 -> 2.7 | AZ8: =バックデータ一覧!Z91 -> 2.7 | BA8: =AZ8 -> 2.7 | BB8: =バックデータ一覧!W91 -> 4.2 | BC8: =BB8 -> 4.2 | BD8: =バックデータ一覧!X91 -> 4.2 | BE8: =BD8 -> 4.2 | BF8: =バックデータ一覧!Y91 -> 2.7 | BG8: =BF8 -> 2.7 | BH8: =バックデータ一覧!Z91 -> 2.7 | BI8: =BH8 -> 2.7 | BK8: 熱交換型換気設備による暖房負荷低減を考慮した補正熱損失係数 | BL8: (14) | BM8: Q_HEXC | BN8: － | BO8: =バックデータ一覧!P51 -> 2.750113258
B9: μ_H | E9: =$O$9 -> 0.1030146569 | F9: =I9 -> - | G9: - | H9: =$O$9 -> 0.1030146569 | I9: =AF9 -> - | J9: - | K9: =$O$9 -> 0.1030146569 | L9: =AI9 -> - | M9: =AJ9 -> - | O9: =$BO$10 -> 0.1030146569 | P9: - | Q9: 0.1030146569 | R9: 0.1030146569 | S9: 0.1030146569 | T9: 0.1030146569 | U9: 0.1030146569 | V9: 0.1030146569 | W9: =バックデータ一覧!W88 -> 0.056 | X9: =バックデータ一覧!X88 -> 0.128 | Y9: =バックデータ一覧!Y88 -> 0.101 | Z9: =バックデータ一覧!Z88 -> 0.148 | AA9: =バックデータ一覧!W88 -> 0.056 | AB9: =バックデータ一覧!X88 -> 0.128 | AC9: =バックデータ一覧!Y88 -> 0.101 | AD9: =バックデータ一覧!Z88 -> 0.148 | AF9: - | AG9: - | AH9: - | AI9: - | AJ9: - | AK9: - | AL9: - | AM9: - | AN9: - | AO9: - | AP9: - | AQ9: - | AR9: - | AS9: - | AT9: - | AU9: - | AV9: - | AW9: - | AX9: - | AY9: - | AZ9: - | BA9: - | BB9: - | BC9: - | BD9: - | BE9: - | BF9: - | BG9: - | BH9: - | BI9: - | BK9: 熱損失係数 | BL9: (15) | BM9: Q | BN9: － | BO9: =バックデータ一覧!Q51 -> 2.750113258
B10: μ_C | E10: - | F10: 0.0534643571 | G10: 0.0534643571 | H10: =O10 -> - | I10: 0.0534643571 | J10: 0.0534643571 | K10: =O10 -> - | L10: =AF10 -> 0.0534643571 | M10: =AG10 -> 0.0534643571 | O10: - | P10: - | Q10: - | R10: - | S10: - | T10: - | U10: - | V10: - | W10: - | X10: - | Y10: - | Z10: - | AA10: - | AB10: - | AC10: - | AD10: - | AF10: =$BO$11 -> 0.0534643571 | AG10: 0.0534643571 | AH10: 0.0534643571 | AI10: 0.0534643571 | AJ10: 0.0534643571 | AK10: 0.0534643571 | AL10: 0.0534643571 | AM10: 0.0534643571 | AN10: 0.0534643571 | AO10: 0.0534643571 | AP10: 0.0534643571 | AQ10: 0.0534643571 | AR10: 0.0534643571 | AS10: =$BO$11 -> 0.0534643571 | AT10: =バックデータ一覧!W90 -> 0.043 | AU10: =AT10 -> 0.043 | AV10: =バックデータ一覧!X90 -> 0.085 | AW10: =AV10 -> 0.085 | AX10: =バックデータ一覧!Y90 -> 0.026 | AY10: =AX10 -> 0.026 | AZ10: =バックデータ一覧!Z90 -> 0.062 | BA10: =AZ10 -> 0.062 | BB10: =バックデータ一覧!W90 -> 0.043 | BC10: =BB10 -> 0.043 | BD10: =バックデータ一覧!X90 -> 0.085 | BE10: =BD10 -> 0.085 | BF10: =バックデータ一覧!Y90 -> 0.026 | BG10: =BF10 -> 0.026 | BH10: =バックデータ一覧!Z90 -> 0.062 | BI10: =BH10 -> 0.062 | BK10: 暖房期の日射取得係数 | BL10: (16) | BM10: μ_H | BN10: － | BO10: =バックデータ一覧!R51 -> 0.1030146569
B11: 蓄熱の有無 | E11: - | F11: - | G11: - | H11: - | I11: - | J11: - | K11: - | L11: - | M11: - | O11: - | P11: - | Q11: なし | R11: あり | S11: なし | T11: なし | U11: あり | V11: あり | W11: なし | X11: なし | Y11: なし | Z11: なし | AA11: あり | AB11: あり | AC11: あり | AD11: あり | AF11: - | AG11: - | AH11: - | AI11: - | AJ11: - | AK11: - | AL11: - | AM11: - | AN11: - | AO11: - | AP11: - | AQ11: - | AR11: - | AS11: - | AT11: - | AU11: - | AV11: - | AW11: - | AX11: - | AY11: - | AZ11: - | BA11: - | BB11: - | BC11: - | BD11: - | BE11: - | BF11: - | BG11: - | BH11: - | BI11: - | BK11: 冷房期の日射取得係数 | BL11: (17) | BM11: μ_C | BN11: － | BO11: =バックデータ一覧!S51 -> 0.0534643571
B12: 相当換気回数 | E12: =H12 -> - | F12: 0 | G12: 0 | H12: =K12 -> - | I12: =L12 -> 0 | J12: =M12 -> 0 | K12: - | L12: =AF12 -> 0 | M12: =AG12 -> 0 | O12: - | P12: - | Q12: - | R12: - | S12: - | T12: - | U12: - | V12: - | W12: - | X12: - | Y12: - | Z12: - | AA12: - | AB12: - | AC12: - | AD12: - | AF12: =IF(貼り付けシート!$G$26<=2,貼り付けシート!$G$12,貼り付けシート!$G$13) -> 0 | AG12: =AF12 -> 0 | AH12: =$AL$12 -> 0 | AI12: =$AN$12 -> 5 | AJ12: =AH12 -> 0 | AK12: =AI12 -> 5 | AL12: =$AT$12 -> 0 | AM12: =$AT$12 -> 0 | AN12: =$AX$12 -> 5 | AO12: =$AX$12 -> 5 | AP12: =AL12 -> 0 | AQ12: =AM12 -> 0 | AR12: 5 | AS12: 5 | AT12: =IF(貼り付けシート!$G$26<=2,貼り付けシート!$P$24,貼り付けシート!$R$24) -> 0 | AU12: =IF(貼り付けシート!$G$26<=2,貼り付けシート!$P$24,貼り付けシート!$R$24) -> 0 | AV12: =IF(貼り付けシート!$G$26<=2,貼り付けシート!$P$24,貼り付けシート!$R$24) -> 0 | AW12: =IF(貼り付けシート!$G$26<=2,貼り付けシート!$P$24,貼り付けシート!$R$24) -> 0 | AX12: =IF(貼り付けシート!$G$26<=2,貼り付けシート!$Q$24,貼り付けシート!$S$24) -> 5 | AY12: =IF(貼り付けシート!$G$26<=2,貼り付けシート!$Q$24,貼り付けシート!$S$24) -> 5 | AZ12: =IF(貼り付けシート!$G$26<=2,貼り付けシート!$Q$24,貼り付けシート!$S$24) -> 5 | BA12: =IF(貼り付けシート!$G$26<=2,貼り付けシート!$Q$24,貼り付けシート!$S$24) -> 5 | BB12: =AT12 -> 0 | BC12: =AU12 -> 0 | BD12: 0 | BE12: 0 | BF12: 5 | BG12: 5 | BH12: 5 | BI12: 5 | BK12: 有効換気量率による温度交換効率の補正係数 | BL12: 付録3.1A | BM12: Ceff | BN12: － | BO12: =バックデータ一覧!O51 -> 1
B13: 式番号 | E13: (1) | F13: (5a) | G13: (5b) | H13: (6a) | I13: (6b) | J13: (6c) | K13: (7a) | L13: (7b) | M13: (7c) | O13: (8) | P13: - | Q13: (9) | R13: (9) | S13: (10) | T13: (10) | U13: (10) | V13: (10) | W13: - | X13: - | Y13: - | Z13: - | AA13: - | AB13: - | AC13: - | AD13: - | AF13: (11a) | AG13: (11b) | AH13: (12a) | AI13: (12a) | AJ13: (12b) | AK13: (12b) | AL13: (13a) | AM13: (13a) | AN13: (13a) | AO13: (13a) | AP13: (13b) | AQ13: (13b) | AR13: (13b) | AS13: (13b) | AT13: - | AU13: - | AV13: - | AW13: - | AX13: - | AY13: - | AZ13: - | BA13: - | BB13: - | BC13: - | BD13: - | BE13: - | BF13: - | BG13: - | BH13: - | BI13: -
B14: 記号 | E14: L_(H,d,t,i) | F14: L_(CS,d,t,i) | G14: L_(CL,d,t,i) | H14: L_(H,d,t,i)^' | I14: L_(CS,d,t,i)^' | J14: L_(CL,d,t,i)^' | K14: L_(H,d,t,i)^' | L14: L_(CS,d,t,i)^' | M14: L_(CL,d,t,i)^' | O14: L_(H,R,d,t,i)^' | P14: r_TS | Q14: L_(H,R,TS_0,d,t,i)^' | R14: L_(H,R,TS_1,d,t,i)^' | S14: L_(H,R,TS_l,Q_j,d,t,i)^' | W14: - | X14: - | Y14: - | Z14: - | AA14: - | AB14: - | AC14: - | AD14: - | AF14: L_(CS,R,d,t,i)^' | AG14: L_(CL,R,d,t,i)^' | AH14: L_(CS,R,NV_l,d,t,i)^' | AJ14: L_(CL,R,NV_l,d,t,i)^' | AL14: L_(CS,R,NV_l,Q_j,d,t,i)^' | AP14: L_(CL,R,NV_l,Q_j,d,t,i)^' | AT14: - | AU14: - | AV14: - | AW14: - | AX14: - | AY14: - | AZ14: - | BA14: - | BB14: - | BC14: - | BD14: - | BE14: - | BF14: - | BG14: - | BH14: - | BI14: -
B15: 単位 | E15: MJ/h | F15: MJ/h | G15: MJ/h | H15: MJ/h | I15: MJ/h | J15: MJ/h | K15: MJ/h | L15: MJ/h | M15: MJ/h | O15: MJ/h | P15: - | Q15: MJ/h | R15: MJ/h | S15: MJ/h | T15: MJ/h | U15: MJ/h | V15: MJ/h | W15: MJ/h | X15: MJ/h | Y15: MJ/h | Z15: MJ/h | AA15: MJ/h | AB15: MJ/h | AC15: MJ/h | AD15: MJ/h | AF15: MJ/h | AG15: MJ/h | AH15: MJ/h | AI15: MJ/h | AJ15: MJ/h | AK15: MJ/h | AL15: MJ/h | AM15: MJ/h | AN15: MJ/h | AO15: MJ/h | AP15: MJ/h | AQ15: MJ/h | AR15: MJ/h | AS15: MJ/h | AT15: MJ/h | AU15: MJ/h | AV15: MJ/h | AW15: MJ/h | AX15: MJ/h | AY15: MJ/h | AZ15: MJ/h | BA15: MJ/h | BB15: MJ/h | BC15: MJ/h | BD15: MJ/h | BE15: MJ/h | BF15: MJ/h | BG15: MJ/h | BH15: MJ/h | BI15: MJ/h
B16: 2014-01-01 | C16: 00:00:00 | D16: 休日 | E16: =IF(貼り付けシート!$L$15=11,H16,K16)*$BO$5*$BO$6*$BO$7 -> 0 | F16: =IF(貼り付けシート!$L$20=11,I16,L16) -> 0 | G16: =IF(貼り付けシート!$L$20=11,J16,M16) -> 0 | H16: =O16*バックデータ一覧!$E$4/バックデータ一覧!$E$4 -> 0 | I16: =AF16*バックデータ一覧!$E$4/バックデータ一覧!$E$4 -> 0 | J16: =AG16*バックデータ一覧!$E$4/バックデータ一覧!$E$4 -> 0 | K16: =O16*IF(入力データ!$G$31>=負荷ファイル名作成データ一覧!$C$10,バックデータ一覧!$E$7/バックデータ一覧!$E$7,IF(入力データ!$G$31<=負荷ファイル名作成データ一覧!$C$5,バックデータ一覧!$E$5/バックデータ一覧!$E$5,バックデータ一覧!$E$6/バックデータ一覧!$E$6)) -> 0 | L16: =AF16*IF(入力データ!$G$31>=負荷ファイル名作成データ一覧!$C$10,バックデータ一覧!$E$7/バックデータ一覧!$E$7,IF(入力データ!$G$31<=負荷ファイル名作成データ一覧!$C$5,バックデータ一覧!$E$5/バックデータ一覧!$E$5,バックデータ一覧!$E$6/バックデータ一覧!$E$6)) -> 0 | M16: =AG16*IF(入力データ!$G$31>=負荷ファイル名作成データ一覧!$C$10,バックデータ一覧!$E$7/バックデータ一覧!$E$7,IF(入力データ!$G$31<=負荷ファイル名作成データ一覧!$C$5,バックデータ一覧!$E$5/バックデータ一覧!$E$5,バックデータ一覧!$E$6/バックデータ一覧!$E$6)) -> 0 | O16: =IF((1-$P16)*$Q16+$P16*$R16<0,0,(1-$P16)*$Q16+$P16*$R16) -> 0 | P16: =IF(入力データ!$G$18="利用しない",0,IF($Q16<=$R16,1,HLOOKUP(LEFT(貼り付けシート!$G$14,2),係数_蓄熱利用の程度,LEFT(貼り付けシート!$L$5,1)+1,FALSE))) -> 0 | Q16: =IF($S$8=$T$8,$S16,($Q$8-$T$8)/($S$8-$T$8)*$S16+($Q$8-$S$8)/($T$8-$S$8)*$T16) -> 0 | R16: =IF($U$8=$V$8,$U16,($R$8-$V$8)/($U$8-$V$8)*$U16+($R$8-$U$8)/($V$8-$U$8)*$V16) -> 0 | S16: =($S$9-$X$9)/($W$9-$X$9)*$W16+($S$9-$W$9)/($X$9-$W$9)*$X16 -> 0 | T16: =($T$9-$Z$9)/($Y$9-$Z$9)*$Y16+($T$9-$Y$9)/($Z$9-$Y$9)*$Z16 -> 0 | U16: =($U$9-$AB$9)/($AA$9-$AB$9)*$AA16+($U$9-$AA$9)/($AB$9-$AA$9)*$AB16 -> 0 | V16: =($V$9-$AD$9)/($AC$9-$AD$9)*$AC16+($V$9-$AC$9)/($AD$9-$AC$9)*$AD16 -> 0 | W16: =貼り付けシート!AC8/1000 -> 0 | X16: =貼り付けシート!AG8/1000 -> 0 | Y16: =貼り付けシート!AK8/1000 -> 0 | Z16: =貼り付けシート!AO8/1000 -> 0 | AA16: =貼り付けシート!AS8/1000 -> 0 | AB16: =貼り付けシート!AW8/1000 -> 0 | AC16: =貼り付けシート!BA8/1000 -> 0 | AD16: =貼り付けシート!BE8/1000 -> 0 | AF16: =IF(貼り付けシート!$L$20=11,IF($AH16<0,0,$AH16),IF(($AF$12-$AI$12)/($AH$12-$AI$12)*$AH16+($AF$12-$AH$12)/($AI$12-$AH$12)*$AI16<0,0,($AF$12-$AI$12)/($AH$12-$AI$12)*$AH16+($AF$12-$AH$12)/($AI$12-$AH$12)*$AI16)) -> 0 | AG16: =IF(貼り付けシート!$L$20=11,IF($AJ16<0,0,$AJ16),IF(($AG$12-$AK$12)/($AJ$12-$AK$12)*$AJ16+($AG$12-$AJ$12)/($AK$12-$AJ$12)*$AK16<0,0,($AG$12-$AK$12)/($AJ$12-$AK$12)*$AJ16+($AG$12-$AJ$12)/($AK$12-$AJ$12)*$AK16)) -> 0 | AH16: =IF($AL$8=$AM$8,$AL16,($AH$8-$AM$8)/($AL$8-$AM$8)*$AL16+($AH$8-$AL$8)/($AM$8-$AL$8)*$AM16) -> 0 | AI16: =IF($AN$8=$AO$8,$AN16,($AI$8-$AO$8)/($AN$8-$AO$8)*$AN16+($AI$8-$AN$8)/($AO$8-$AN$8)*$AO16) -> 0 | AJ16: =IF($AP$8=$AQ$8,$AP16,($AJ$8-$AQ$8)/($AP$8-$AQ$8)*$AP16+($AJ$8-$AP$8)/($AQ$8-$AP$8)*$AQ16) -> 0 | AK16: =IF($AR$8=$AS$8,$AR16,($AK$8-$AS$8)/($AR$8-$AS$8)*$AR16+($AK$8-$AR$8)/($AS$8-$AR$8)*$AS16) -> 0 | AL16: =($AL$10-$AV$10)/($AT$10-$AV$10)*$AT16+($AL$10-$AT$10)/($AV$10-$AT$10)*$AV16 -> 0 | AM16: =($AM$10-$AZ$10)/($AX$10-$AZ$10)*$AX16+($AM$10-$AX$10)/($AZ$10-$AX$10)*$AZ16 -> 0 | AN16: =($AN$10-$BD$10)/($BB$10-$BD$10)*$BB16+($AN$10-$BB$10)/($BD$10-$BB$10)*$BD16 -> 0 | AO16: =($AO$10-$BH$10)/($BF$10-$BH$10)*$BF16+($AO$10-$BF$10)/($BH$10-$BF$10)*$BH16 -> 0 | AP16: =($AP$10-$AW$10)/($AU$10-$AW$10)*$AU16+($AP$10-$AU$10)/($AW$10-$AU$10)*$AW16 -> 0 | AQ16: =($AQ$10-$BA$10)/($AY$10-$BA$10)*$AY16+($AQ$10-$AY$10)/($BA$10-$AY$10)*$BA16 -> 0 | AR16: =($AR$10-$BE$10)/($BC$10-$BE$10)*$BC16+($AR$10-$BC$10)/($BE$10-$BC$10)*$BE16 -> 0 | AS16: =($AS$10-$BI$10)/($BG$10-$BI$10)*$BG16+($AS$10-$BG$10)/($BI$10-$BG$10)*$BI16 -> 0 | AT16: =-貼り付けシート!BI8/1000 -> 0 | AU16: =-貼り付けシート!BJ8/1000 -> 0 | AV16: =-貼り付けシート!BM8/1000 -> 0 | AW16: =-貼り付けシート!BN8/1000 -> 0 | AX16: =-貼り付けシート!BQ8/1000 -> 0 | AY16: =-貼り付けシート!BR8/1000 -> 0 | AZ16: =-貼り付けシート!BU8/1000 -> 0 | BA16: =-貼り付けシート!BV8/1000 -> 0 | BB16: =-貼り付けシート!BY8/1000 -> 0 | BC16: =-貼り付けシート!BZ8/1000 -> 0 | BD16: =-貼り付けシート!CC8/1000 -> 0 | BE16: =-貼り付けシート!CD8/1000 -> 0 | BF16: =-貼り付けシート!CG8/1000 -> 0 | BG16: =-貼り付けシート!CH8/1000 -> 0 | BH16: =-貼り付けシート!CK8/1000 -> 0 | BI16: =-貼り付けシート!CL8/1000 -> 0
B17: 2014-01-01 | C17: 01:00:00 | D17: 休日 | E17: =IF(貼り付けシート!$L$15=11,H17,K17)*$BO$5*$BO$6*$BO$7 -> 0 | F17: =IF(貼り付けシート!$L$20=11,I17,L17) -> 0 | G17: =IF(貼り付けシート!$L$20=11,J17,M17) -> 0 | H17: =O17*バックデータ一覧!$E$4/バックデータ一覧!$E$4 -> 0 | I17: =AF17*バックデータ一覧!$E$4/バックデータ一覧!$E$4 -> 0 | J17: =AG17*バックデータ一覧!$E$4/バックデータ一覧!$E$4 -> 0 | K17: =O17*IF(入力データ!$G$31>=負荷ファイル名作成データ一覧!$C$10,バックデータ一覧!$E$7/バックデータ一覧!$E$7,IF(入力データ!$G$31<=負荷ファイル名作成データ一覧!$C$5,バックデータ一覧!$E$5/バックデータ一覧!$E$5,バックデータ一覧!$E$6/バックデータ一覧!$E$6)) -> 0 | L17: =AF17*IF(入力データ!$G$31>=負荷ファイル名作成データ一覧!$C$10,バックデータ一覧!$E$7/バックデータ一覧!$E$7,IF(入力データ!$G$31<=負荷ファイル名作成データ一覧!$C$5,バックデータ一覧!$E$5/バックデータ一覧!$E$5,バックデータ一覧!$E$6/バックデータ一覧!$E$6)) -> 0 | M17: =AG17*IF(入力データ!$G$31>=負荷ファイル名作成データ一覧!$C$10,バックデータ一覧!$E$7/バックデータ一覧!$E$7,IF(入力データ!$G$31<=負荷ファイル名作成データ一覧!$C$5,バックデータ一覧!$E$5/バックデータ一覧!$E$5,バックデータ一覧!$E$6/バックデータ一覧!$E$6)) -> 0 | O17: =IF((1-$P17)*$Q17+$P17*$R17<0,0,(1-$P17)*$Q17+$P17*$R17) -> 0 | P17: =IF(入力データ!$G$18="利用しない",0,IF($Q17<=$R17,1,HLOOKUP(LEFT(貼り付けシート!$G$14,2),係数_蓄熱利用の程度,LEFT(貼り付けシート!$L$5,1)+1,FALSE))) -> 0 | Q17: 0 | R17: 0 | S17: =($S$9-$X$9)/($W$9-$X$9)*$W17+($S$9-$W$9)/($X$9-$W$9)*$X17 -> 0 | T17: =($T$9-$Z$9)/($Y$9-$Z$9)*$Y17+($T$9-$Y$9)/($Z$9-$Y$9)*$Z17 -> 0 | U17: =($U$9-$AB$9)/($AA$9-$AB$9)*$AA17+($U$9-$AA$9)/($AB$9-$AA$9)*$AB17 -> 0 | V17: =($V$9-$AD$9)/($AC$9-$AD$9)*$AC17+($V$9-$AC$9)/($AD$9-$AC$9)*$AD17 -> 0 | W17: =貼り付けシート!AC9/1000 -> 0 | X17: =貼り付けシート!AG9/1000 -> 0 | Y17: =貼り付けシート!AK9/1000 -> 0 | Z17: =貼り付けシート!AO9/1000 -> 0 | AA17: =貼り付けシート!AS9/1000 -> 0 | AB17: =貼り付けシート!AW9/1000 -> 0 | AC17: =貼り付けシート!BA9/1000 -> 0 | AD17: =貼り付けシート!BE9/1000 -> 0 | AF17: =IF(貼り付けシート!$L$20=11,IF($AH17<0,0,$AH17),IF(($AF$12-$AI$12)/($AH$12-$AI$12)*$AH17+($AF$12-$AH$12)/($AI$12-$AH$12)*$AI17<0,0,($AF$12-$AI$12)/($AH$12-$AI$12)*$AH17+($AF$12-$AH$12)/($AI$12-$AH$12)*$AI17)) -> 0 | AG17: =IF(貼り付けシート!$L$20=11,IF($AJ17<0,0,$AJ17),IF(($AG$12-$AK$12)/($AJ$12-$AK$12)*$AJ17+($AG$12-$AJ$12)/($AK$12-$AJ$12)*$AK17<0,0,($AG$12-$AK$12)/($AJ$12-$AK$12)*$AJ17+($AG$12-$AJ$12)/($AK$12-$AJ$12)*$AK17)) -> 0 | AH17: 0 | AI17: 0 | AJ17: 0 | AK17: 0 | AL17: 0 | AM17: 0 | AN17: 0 | AO17: 0 | AP17: 0 | AQ17: 0 | AR17: 0 | AS17: 0 | AT17: =-貼り付けシート!BI9/1000 -> 0 | AU17: =-貼り付けシート!BJ9/1000 -> 0 | AV17: =-貼り付けシート!BM9/1000 -> 0 | AW17: =-貼り付けシート!BN9/1000 -> 0 | AX17: =-貼り付けシート!BQ9/1000 -> 0 | AY17: =-貼り付けシート!BR9/1000 -> 0 | AZ17: =-貼り付けシート!BU9/1000 -> 0 | BA17: =-貼り付けシート!BV9/1000 -> 0 | BB17: =-貼り付けシート!BY9/1000 -> 0 | BC17: =-貼り付けシート!BZ9/1000 -> 0 | BD17: =-貼り付けシート!CC9/1000 -> 0 | BE17: =-貼り付けシート!CD9/1000 -> 0 | BF17: =-貼り付けシート!CG9/1000 -> 0 | BG17: =-貼り付けシート!CH9/1000 -> 0 | BH17: =-貼り付けシート!CK9/1000 -> 0 | BI17: =-貼り付けシート!CL9/1000 -> 0
